Workbook

Sheet Entrada de dados
Q8: xx//419y*d

Sheet Cabeçalho
B2: CEFISE Biotecnologia | L2: ='Entrada de dados'!K3 -> 00:00:00
B5: ='Entrada de dados'!P3 -> 0
B7: Avaliador | C7: ='Entrada de dados'!Q3 -> 0 | I7: Avaliação | K7: ='Entrada de dados'!A3 -> 0
B8: Avaliado | C8: ='Entrada de dados'!B3 -> 0 | I8: Grupo | K8: ='Entrada de dados'!F3 -> 0
B9: Modalidade | C9: ='Entrada de dados'!D3 -> 0 | I9: Idade | K9: ='Entrada de dados'!L3 -> 0 | L9: Sexo | M9: ='Entrada de dados'!M3 -> 0
B10: Posição | C10: ='Entrada de dados'!E3 -> 0 | I10: Peso | K10: ='Entrada de dados'!N3 -> 0 | L10: Altura | M10: ='Entrada de dados'!O3 -> 0
B12: Observações:
B13: ='Entrada de dados'!S3 -> 0
B15: Tempo para Início do Movimento | F15: 1.000 | I15: s
B16: % para Início do Movimento | F16: 2.0%
B17: % para Fim do Movimento | F17: 2.0%
B18: Tempo para Cálculo da TDF Inicial | F18: 30 | I18: ms
B19: Tipo de Salto | F19: Contramovimento
B20: Correção de Velocidade
B22: Correção de Tempo | E22: 1.0600

Sheet Velocidade (hidden)
A1: Frequência de Amostragem | B1: 600
A2: Marca da Plataforma de Força | B2: CEFISE Biotecnologia | T2: CEFISE Biotecnologia
A3: Peso Corporal | B3: =IF(B2="CEFISE Biotecnologia"," ",AVERAGE(E8:E607)) ->  | T3: AMTI
A4: Correção de Tempo | B4: =Cabeçalho!E22 -> 1.060000 | T4: Kistler 9286BA
I5: =AVERAGE(I8:I607) -> 0.00 | T5: Kistler Quatto Jump
C6: Inserir Valor de Força de outra plataforma | T6: Outras
A7: Velocidade Entrada de Dados - Plataforam CEFISE | H7: Vel outras Plataformas
A8: =IF(Cabeçalho!$E$20="x",Velocidade!L8,'Entrada de dados'!I8) -> 0.000000000 | C8: 1 | D8: =(1/$B$1*C8)*$B$4 -> 0.001766666667 | E8: 603 | F8: 0 | G8: 0 | H8: 0.00000 | I8: ='Entrada de dados'!F8 -> 0.00 | J8: =I8-$I$5 -> 0.00 | K8: =J8/($I$5/9.81) ->  | L8: =IF(ISBLANK(I8)," ",L7+((K8+K7)/2)*(D8-D7)) -> 
A9: =IF(Cabeçalho!$E$20="x",Velocidade!L9,'Entrada de dados'!I9) -> 0.000000000 | C9: 2 | D9: =(1/$B$1*C9)*$B$4 -> 0.003533333333 | E9: 603 | F9: =E9-$B$3 ->  | G9: =F9/($B$3/9.81) ->  | H9: =IF(ISBLANK(E9)," ",H8+((G9+G8)/2)*(D9-D8)) ->  | I9: ='Entrada de dados'!F9 -> 0.00 | J9: =I9-$I$5 -> 0.00 | K9: =J9/($I$5/9.81) ->  | L9: =IF(ISBLANK(I9)," ",L8+((K9+K8)/2)*(D9-D8)) -> 
A10: =IF(Cabeçalho!$E$20="x",Velocidade!L10,'Entrada de dados'!I10) -> 0.000000000 | C10: 3 | D10: 0.0053 | E10: 603 | I10: ='Entrada de dados'!F10 -> 0.00 | J10: =I10-$I$5 -> 0.00 | K10: =J10/($I$5/9.81) ->  | L10: =IF(ISBLANK(I10)," ",L9+((K10+K9)/2)*(D10-D9)) -> 
A11: =IF(Cabeçalho!$E$20="x",Velocidade!L11,'Entrada de dados'!I11) -> 0.000000000 | C11: 4 | D11: 0.007066666667 | E11: 603 | I11: ='Entrada de dados'!F11 -> 0.00 | J11: 0.00
A12: =IF(Cabeçalho!$E$20="x",Velocidade!L12,'Entrada de dados'!I12) -> 0.000000000 | C12: 5 | D12: 0.008833333333 | E12: 603 | I12: ='Entrada de dados'!F12 -> 0.00 | J12: 0.00
A13: =IF(Cabeçalho!$E$20="x",Velocidade!L13,'Entrada de dados'!I13) -> 0.000000000 | C13: 6 | D13: 0.0106 | E13: 603 | I13: ='Entrada de dados'!F13 -> 0.00 | J13: 0.00
A14: =IF(Cabeçalho!$E$20="x",Velocidade!L14,'Entrada de dados'!I14) -> 0.000000000 | C14: 7 | D14: 0.01236666667 | E14: 603 | I14: ='Entrada de dados'!F14 -> 0.00 | J14: 0.00
A15: =IF(Cabeçalho!$E$20="x",Velocidade!L15,'Entrada de dados'!I15) -> 0.000000000 | C15: 8 | D15: 0.01413333333 | E15: 603 | I15: ='Entrada de dados'!F15 -> 0.00 | J15: 0.00
A16: =IF(Cabeçalho!$E$20="x",Velocidade!L16,'Entrada de dados'!I16) -> 0.000000000 | C16: 9 | D16: 0.0159 | E16: 603 | I16: ='Entrada de dados'!F16 -> 0.00 | J16: 0.00
A17: =IF(Cabeçalho!$E$20="x",Velocidade!L17,'Entrada de dados'!I17) -> 0.000000000 | C17: 10 | D17: 0.01766666667 | E17: 602 | I17: ='Entrada de dados'!F17 -> 0.00 | J17: 0.00
A18: =IF(Cabeçalho!$E$20="x",Velocidade!L18,'Entrada de dados'!I18) -> 0.000000000 | C18: 11 | D18: 0.01943333333 | E18: 603 | I18: ='Entrada de dados'!F18 -> 0.00 | J18: 0.00
A19: =IF(Cabeçalho!$E$20="x",Velocidade!L19,'Entrada de dados'!I19) -> 0.000000000 | C19: 12 | D19: 0.0212 | E19: 603 | I19: ='Entrada de dados'!F19 -> 0.00 | J19: 0.00
A20: =IF(Cabeçalho!$E$20="x",Velocidade!L20,'Entrada de dados'!I20) -> 0.000000000 | C20: 13 | D20: 0.02296666667 | E20: 603 | I20: ='Entrada de dados'!F20 -> 0.00 | J20: 0.00
A21: =IF(Cabeçalho!$E$20="x",Velocidade!L21,'Entrada de dados'!I21) -> 0.000000000 | C21: 14 | D21: 0.02473333333 | E21: 602 | I21: ='Entrada de dados'!F21 -> 0.00 | J21: 0.00
A22: =IF(Cabeçalho!$E$20="x",Velocidade!L22,'Entrada de dados'!I22) -> 0.000000000 | C22: 15 | D22: 0.0265 | E22: 602 | I22: ='Entrada de dados'!F22 -> 0.00 | J22: 0.00
A23: =IF(Cabeçalho!$E$20="x",Velocidade!L23,'Entrada de dados'!I23) -> 0.000000000 | C23: 16 | D23: 0.02826666667 | E23: 602 | I23: ='Entrada de dados'!F23 -> 0.00 | J23: 0.00
A24: =IF(Cabeçalho!$E$20="x",Velocidade!L24,'Entrada de dados'!I24) -> 0.000000000 | C24: 17 | D24: 0.03003333333 | E24: 603 | I24: ='Entrada de dados'!F24 -> 0.00 | J24: 0.00
A25: =IF(Cabeçalho!$E$20="x",Velocidade!L25,'Entrada de dados'!I25) -> 0.000000000 | C25: 18 | D25: 0.0318 | E25: 603 | I25: ='Entrada de dados'!F25 -> 0.00 | J25: 0.00
A26: =IF(Cabeçalho!$E$20="x",Velocidade!L26,'Entrada de dados'!I26) -> 0.000000000 | C26: 19 | D26: 0.03356666667 | E26: 603 | I26: ='Entrada de dados'!F26 -> 0.00 | J26: 0.00
A27: =IF(Cabeçalho!$E$20="x",Velocidade!L27,'Entrada de dados'!I27) -> 0.000000000 | C27: 20 | D27: 0.03533333333 | E27: 602 | I27: ='Entrada de dados'!F27 -> 0.00 | J27: 0.00
A28: =IF(Cabeçalho!$E$20="x",Velocidade!L28,'Entrada de dados'!I28) -> 0.000000000 | C28: 21 | D28: 0.0371 | E28: 603 | I28: ='Entrada de dados'!F28 -> 0.00 | J28: 0.00
A29: =IF(Cabeçalho!$E$20="x",Velocidade!L29,'Entrada de dados'!I29) -> 0.000000000 | C29: 22 | D29: 0.03886666667 | E29: 603 | I29: ='Entrada de dados'!F29 -> 0.00 | J29: 0.00
A30: =IF(Cabeçalho!$E$20="x",Velocidade!L30,'Entrada de dados'!I30) -> 0.000000000 | C30: 23 | D30: 0.04063333333 | E30: 603 | I30: ='Entrada de dados'!F30 -> 0.00 | J30: 0.00
A31: =IF(Cabeçalho!$E$20="x",Velocidade!L31,'Entrada de dados'!I31) -> 0.000000000 | C31: 24 | D31: 0.0424 | E31: 602 | I31: ='Entrada de dados'!F31 -> 0.00 | J31: 0.00
A32: =IF(Cabeçalho!$E$20="x",Velocidade!L32,'Entrada de dados'!I32) -> 0.000000000 | C32: 25 | D32: 0.04416666667 | E32: 603 | I32: ='Entrada de dados'!F32 -> 0.00 | J32: 0.00
A33: =IF(Cabeçalho!$E$20="x",Velocidade!L33,'Entrada de dados'!I33) -> 0.000000000 | C33: 26 | D33: 0.04593333333 | E33: 603 | I33: ='Entrada de dados'!F33 -> 0.00 | J33: 0.00
A34: =IF(Cabeçalho!$E$20="x",Velocidade!L34,'Entrada de dados'!I34) -> 0.000000000 | C34: 27 | D34: 0.0477 | E34: 602 | I34: ='Entrada de dados'!F34 -> 0.00 | J34: 0.00
A35: =IF(Cabeçalho!$E$20="x",Velocidade!L35,'Entrada de dados'!I35) -> 0.000000000 | C35: 28 | D35: 0.04946666667 | E35: 602 | I35: ='Entrada de dados'!F35 -> 0.00 | J35: 0.00
A36: =IF(Cabeçalho!$E$20="x",Velocidade!L36,'Entrada de dados'!I36) -> 0.000000000 | C36: 29 | D36: 0.05123333333 | E36: 602 | I36: ='Entrada de dados'!F36 -> 0.00 | J36: 0.00
A37: =IF(Cabeçalho!$E$20="x",Velocidade!L37,'Entrada de dados'!I37) -> 0.000000000 | C37: 30 | D37: 0.053 | E37: 602 | I37: ='Entrada de dados'!F37 -> 0.00 | J37: 0.00
A38: =IF(Cabeçalho!$E$20="x",Velocidade!L38,'Entrada de dados'!I38) -> 0.000000000 | C38: 31 | D38: 0.05476666667 | E38: 603 | I38: ='Entrada de dados'!F38 -> 0.00 | J38: 0.00
A39: =IF(Cabeçalho!$E$20="x",Velocidade!L39,'Entrada de dados'!I39) -> 0.000000000 | C39: 32 | D39: 0.05653333333 | E39: 602 | I39: ='Entrada de dados'!F39 -> 0.00 | J39: 0.00
A40: =IF(Cabeçalho!$E$20="x",Velocidade!L40,'Entrada de dados'!I40) -> 0.000000000 | C40: 33 | D40: 0.0583 | E40: 602 | I40: ='Entrada de dados'!F40 -> 0.00 | J40: 0.00
A41: =IF(Cabeçalho!$E$20="x",Velocidade!L41,'Entrada de dados'!I41) -> 0.000000000 | C41: 34 | D41: 0.06006666667 | E41: 602 | I41: ='Entrada de dados'!F41 -> 0.00 | J41: 0.00
A42: =IF(Cabeçalho!$E$20="x",Velocidade!L42,'Entrada de dados'!I42) -> 0.000000000 | C42: 35 | D42: 0.06183333333 | E42: 602 | I42: ='Entrada de dados'!F42 -> 0.00 | J42: 0.00
A43: =IF(Cabeçalho!$E$20="x",Velocidade!L43,'Entrada de dados'!I43) -> 0.000000000 | C43: 36 | D43: 0.0636 | E43: 602 | I43: ='Entrada de dados'!F43 -> 0.00 | J43: 0.00
A44: =IF(Cabeçalho!$E$20="x",Velocidade!L44,'Entrada de dados'!I44) -> 0.000000000 | C44: 37 | D44: 0.06536666667 | E44: 602 | I44: ='Entrada de dados'!F44 -> 0.00 | J44: 0.00
A45: =IF(Cabeçalho!$E$20="x",Velocidade!L45,'Entrada de dados'!I45) -> 0.000000000 | C45: 38 | D45: 0.06713333333 | E45: 602 | I45: ='Entrada de dados'!F45 -> 0.00 | J45: 0.00
A46: =IF(Cabeçalho!$E$20="x",Velocidade!L46,'Entrada de dados'!I46) -> 0.000000000 | C46: 39 | D46: 0.0689 | E46: 602 | I46: ='Entrada de dados'!F46 -> 0.00 | J46: 0.00
A47: =IF(Cabeçalho!$E$20="x",Velocidade!L47,'Entrada de dados'!I47) -> 0.000000000 | C47: 40 | D47: 0.07066666667 | E47: 602 | I47: ='Entrada de dados'!F47 -> 0.00 | J47: 0.00
A48: =IF(Cabeçalho!$E$20="x",Velocidade!L48,'Entrada de dados'!I48) -> 0.000000000 | C48: 41 | D48: 0.07243333333 | E48: 602 | I48: ='Entrada de dados'!F48 -> 0.00 | J48: 0.00
A49: =IF(Cabeçalho!$E$20="x",Velocidade!L49,'Entrada de dados'!I49) -> 0.000000000 | C49: 42 | D49: 0.0742 | E49: 602 | I49: ='Entrada de dados'!F49 -> 0.00 | J49: 0.00
A50: =IF(Cabeçalho!$E$20="x",Velocidade!L50,'Entrada de dados'!I50) -> 0.000000000 | C50: 43 | D50: 0.07596666667 | E50: 601 | I50: ='Entrada de dados'!F50 -> 0.00 | J50: 0.00
A51: =IF(Cabeçalho!$E$20="x",Velocidade!L51,'Entrada de dados'!I51) -> 0.000000000 | C51: 44 | D51: 0.07773333333 | E51: 602 | I51: ='Entrada de dados'!F51 -> 0.00 | J51: 0.00
A52: =IF(Cabeçalho!$E$20="x",Velocidade!L52,'Entrada de dados'!I52) -> 0.000000000 | C52: 45 | D52: 0.0795 | E52: 602 | I52: ='Entrada de dados'!F52 -> 0.00 | J52: 0.00
A53: =IF(Cabeçalho!$E$20="x",Velocidade!L53,'Entrada de dados'!I53) -> 0.000000000 | C53: 46 | D53: 0.08126666667 | E53: 602 | I53: ='Entrada de dados'!F53 -> 0.00 | J53: 0.00
A54: =IF(Cabeçalho!$E$20="x",Velocidade!L54,'Entrada de dados'!I54) -> 0.000000000 | C54: 47 | D54: 0.08303333333 | E54: 601 | I54: ='Entrada de dados'!F54 -> 0.00 | J54: 0.00
A55: =IF(Cabeçalho!$E$20="x",Velocidade!L55,'Entrada de dados'!I55) -> 0.000000000 | C55: 48 | D55: 0.0848 | E55: 601 | I55: ='Entrada de dados'!F55 -> 0.00 | J55: 0.00
A56: =IF(Cabeçalho!$E$20="x",Velocidade!L56,'Entrada de dados'!I56) -> 0.000000000 | C56: 49 | D56: 0.08656666667 | E56: 601 | I56: ='Entrada de dados'!F56 -> 0.00 | J56: 0.00
A57: =IF(Cabeçalho!$E$20="x",Velocidade!L57,'Entrada de dados'!I57) -> 0.000000000 | C57: 50 | D57: 0.08833333333 | E57: 602 | I57: ='Entrada de dados'!F57 -> 0.00 | J57: 0.00
A58: =IF(Cabeçalho!$E$20="x",Velocidade!L58,'Entrada de dados'!I58) -> 0.000000000 | C58: 51 | D58: 0.0901 | E58: 602 | I58: ='Entrada de dados'!F58 -> 0.00 | J58: 0.00
A59: =IF(Cabeçalho!$E$20="x",Velocidade!L59,'Entrada de dados'!I59) -> 0.000000000 | C59: 52 | D59: 0.09186666667 | E59: 602 | I59: ='Entrada de dados'!F59 -> 0.00 | J59: 0.00
A60: =IF(Cabeçalho!$E$20="x",Velocidade!L60,'Entrada de dados'!I60) -> 0.000000000 | C60: 53 | D60: 0.09363333333 | E60: 601 | I60: ='Entrada de dados'!F60 -> 0.00 | J60: 0.00
A61: =IF(Cabeçalho!$E$20="x",Velocidade!L61,'Entrada de dados'!I61) -> 0.000000000 | C61: 54 | D61: 0.0954 | E61: 601 | I61: ='Entrada de dados'!F61 -> 0.00 | J61: 0.00
A62: =IF(Cabeçalho!$E$20="x",Velocidade!L62,'Entrada de dados'!I62) -> 0.000000000 | C62: 55 | D62: 0.09716666667 | E62: 602 | I62: ='Entrada de dados'!F62 -> 0.00 | J62: 0.00
A63: =IF(Cabeçalho!$E$20="x",Velocidade!L63,'Entrada de dados'!I63) -> 0.000000000 | C63: 56 | D63: 0.09893333333 | E63: 602 | I63: ='Entrada de dados'!F63 -> 0.00 | J63: 0.00
A64: =IF(Cabeçalho!$E$20="x",Velocidade!L64,'Entrada de dados'!I64) -> 0.000000000 | C64: 57 | D64: 0.1007 | E64: 601 | I64: ='Entrada de dados'!F64 -> 0.00 | J64: 0.00
A65: =IF(Cabeçalho!$E$20="x",Velocidade!L65,'Entrada de dados'!I65) -> 0.000000000 | C65: 58 | D65: 0.1024666667 | E65: 601 | I65: ='Entrada de dados'!F65 -> 0.00 | J65: 0.00
A66: =IF(Cabeçalho!$E$20="x",Velocidade!L66,'Entrada de dados'!I66) -> 0.000000000 | C66: 59 | D66: 0.1042333333 | E66: 602 | I66: ='Entrada de dados'!F66 -> 0.00 | J66: 0.00
A67: =IF(Cabeçalho!$E$20="x",Velocidade!L67,'Entrada de dados'!I67) -> 0.000000000 | C67: 60 | D67: 0.106 | E67: 602 | I67: ='Entrada de dados'!F67 -> 0.00 | J67: 0.00
A68: =IF(Cabeçalho!$E$20="x",Velocidade!L68,'Entrada de dados'!I68) -> 0.000000000 | C68: 61 | D68: 0.1077666667 | E68: 602 | I68: ='Entrada de dados'!F68 -> 0.00 | J68: 0.00
A69: =IF(Cabeçalho!$E$20="x",Velocidade!L69,'Entrada de dados'!I69) -> 0.000000000 | C69: 62 | D69: 0.1095333333 | E69: 602 | I69: ='Entrada de dados'!F69 -> 0.00 | J69: 0.00
A70: =IF(Cabeçalho!$E$20="x",Velocidade!L70,'Entrada de dados'!I70) -> 0.000000000 | C70: 63 | D70: 0.1113 | E70: 602 | I70: ='Entrada de dados'!F70 -> 0.00 | J70: 0.00
A71: =IF(Cabeçalho!$E$20="x",Velocidade!L71,'Entrada de dados'!I71) -> 0.000000000 | C71: 64 | D71: 0.1130666667 | E71: 602 | I71: ='Entrada de dados'!F71 -> 0.00 | J71: 0.00
A72: =IF(Cabeçalho!$E$20="x",Velocidade!L72,'Entrada de dados'!I72) -> 0.000000000 | C72: 65 | D72: 0.1148333333 | E72: 602 | I72: ='Entrada de dados'!F72 -> 0.00 | J72: 0.00
A73: =IF(Cabeçalho!$E$20="x",Velocidade!L73,'Entrada de dados'!I73) -> 0.000000000 | C73: 66 | D73: =(1/$B$1*C73)*$B$4 -> 0.1166 | E73: 602 | F73: =E73-$B$3 ->  | G73: =F73/($B$3/9.81) ->  | H73: =IF(ISBLANK(E73)," ",H72+((G73+G72)/2)*(D73-D72)) ->  | I73: ='Entrada de dados'!F73 -> 0.00 | J73: 0.00
A74: =IF(Cabeçalho!$E$20="x",Velocidade!L74,'Entrada de dados'!I74) -> 0.000000000 | C74: 67 | D74: 0.1183666667 | E74: 602 | I74: ='Entrada de dados'!F74 -> 0.00 | J74: =I74-$I$5 -> 0.00 | K74: =J74/($I$5/9.81) ->  | L74: =IF(ISBLANK(I74)," ",L73+((K74+K73)/2)*(D74-D73)) -> 
A75: =IF(Cabeçalho!$E$20="x",Velocidade!L75,'Entrada de dados'!I75) -> 0.000000000 | C75: 68 | D75: 0.1201333333 | E75: 602 | I75: ='Entrada de dados'!F75 -> 0.00 | J75: 0.00
A76: =IF(Cabeçalho!$E$20="x",Velocidade!L76,'Entrada de dados'!I76) -> 0.000000000 | C76: 69 | D76: 0.1219 | E76: 602 | I76: ='Entrada de dados'!F76 -> 0.00 | J76: 0.00
A77: =IF(Cabeçalho!$E$20="x",Velocidade!L77,'Entrada de dados'!I77) -> 0.000000000 | C77: 70 | D77: 0.1236666667 | E77: 603 | I77: ='Entrada de dados'!F77 -> 0.00 | J77: 0.00
A78: =IF(Cabeçalho!$E$20="x",Velocidade!L78,'Entrada de dados'!I78) -> 0.000000000 | C78: 71 | D78: 0.1254333333 | E78: 603 | I78: ='Entrada de dados'!F78 -> 0.00 | J78: 0.00
A79: =IF(Cabeçalho!$E$20="x",Velocidade!L79,'Entrada de dados'!I79) -> 0.000000000 | C79: 72 | D79: 0.1272 | E79: 602 | I79: ='Entrada de dados'!F79 -> 0.00 | J79: 0.00
A80: =IF(Cabeçalho!$E$20="x",Velocidade!L80,'Entrada de dados'!I80) -> 0.000000000 | C80: 73 | D80: 0.1289666667 | E80: 602 | I80: ='Entrada de dados'!F80 -> 0.00 | J80: 0.00
A81: =IF(Cabeçalho!$E$20="x",Velocidade!L81,'Entrada de dados'!I81) -> 0.000000000 | C81: 74 | D81: 0.1307333333 | E81: 603 | I81: ='Entrada de dados'!F81 -> 0.00 | J81: 0.00
A82: =IF(Cabeçalho!$E$20="x",Velocidade!L82,'Entrada de dados'!I82) -> 0.000000000 | C82: 75 | D82: 0.1325 | E82: 603 | I82: ='Entrada de dados'!F82 -> 0.00 | J82: 0.00
A83: =IF(Cabeçalho!$E$20="x",Velocidade!L83,'Entrada de dados'!I83) -> 0.000000000 | C83: 76 | D83: 0.1342666667 | E83: 603 | I83: ='Entrada de dados'!F83 -> 0.00 | J83: 0.00
A84: =IF(Cabeçalho!$E$20="x",Velocidade!L84,'Entrada de dados'!I84) -> 0.000000000 | C84: 77 | D84: 0.1360333333 | E84: 603 | I84: ='Entrada de dados'!F84 -> 0.00 | J84: 0.00
A85: =IF(Cabeçalho!$E$20="x",Velocidade!L85,'Entrada de dados'!I85) -> 0.000000000 | C85: 78 | D85: 0.1378 | E85: 603 | I85: ='Entrada de dados'!F85 -> 0.00 | J85: 0.00
A86: =IF(Cabeçalho!$E$20="x",Velocidade!L86,'Entrada de dados'!I86) -> 0.000000000 | C86: 79 | D86: 0.1395666667 | E86: 603 | I86: ='Entrada de dados'!F86 -> 0.00 | J86: 0.00
A87: =IF(Cabeçalho!$E$20="x",Velocidade!L87,'Entrada de dados'!I87) -> 0.000000000 | C87: 80 | D87: 0.1413333333 | E87: 603 | I87: ='Entrada de dados'!F87 -> 0.00 | J87: 0.00
A88: =IF(Cabeçalho!$E$20="x",Velocidade!L88,'Entrada de dados'!I88) -> 0.000000000 | C88: 81 | D88: 0.1431 | E88: 603 | I88: ='Entrada de dados'!F88 -> 0.00 | J88: 0.00
A89: =IF(Cabeçalho!$E$20="x",Velocidade!L89,'Entrada de dados'!I89) -> 0.000000000 | C89: 82 | D89: 0.1448666667 | E89: 603 | I89: ='Entrada de dados'!F89 -> 0.00 | J89: 0.00
A90: =IF(Cabeçalho!$E$20="x",Velocidade!L90,'Entrada de dados'!I90) -> 0.000000000 | C90: 83 | D90: 0.1466333333 | E90: 603 | I90: ='Entrada de dados'!F90 -> 0.00 | J90: 0.00
A91: =IF(Cabeçalho!$E$20="x",Velocidade!L91,'Entrada de dados'!I91) -> 0.000000000 | C91: 84 | D91: 0.1484 | E91: 603 | I91: ='Entrada de dados'!F91 -> 0.00 | J91: 0.00
A92: =IF(Cabeçalho!$E$20="x",Velocidade!L92,'Entrada de dados'!I92) -> 0.000000000 | C92: 85 | D92: 0.1501666667 | E92: 603 | I92: ='Entrada de dados'!F92 -> 0.00 | J92: 0.00
A93: =IF(Cabeçalho!$E$20="x",Velocidade!L93,'Entrada de dados'!I93) -> 0.000000000 | C93: 86 | D93: 0.1519333333 | E93: 603 | I93: ='Entrada de dados'!F93 -> 0.00 | J93: 0.00
A94: =IF(Cabeçalho!$E$20="x",Velocidade!L94,'Entrada de dados'!I94) -> 0.000000000 | C94: 87 | D94: 0.1537 | E94: 603 | I94: ='Entrada de dados'!F94 -> 0.00 | J94: 0.00
A95: =IF(Cabeçalho!$E$20="x",Velocidade!L95,'Entrada de dados'!I95) -> 0.000000000 | C95: 88 | D95: 0.1554666667 | E95: 603 | I95: ='Entrada de dados'!F95 -> 0.00 | J95: 0.00
A96: =IF(Cabeçalho!$E$20="x",Velocidade!L96,'Entrada de dados'!I96) -> 0.000000000 | C96: 89 | D96: 0.1572333333 | E96: 603 | I96: ='Entrada de dados'!F96 -> 0.00 | J96: 0.00
A97: =IF(Cabeçalho!$E$20="x",Velocidade!L97,'Entrada de dados'!I97) -> 0.000000000 | C97: 90 | D97: 0.159 | E97: 603 | I97: ='Entrada de dados'!F97 -> 0.00 | J97: 0.00
A98: =IF(Cabeçalho!$E$20="x",Velocidade!L98,'Entrada de dados'!I98) -> 0.000000000 | C98: 91 | D98: 0.1607666667 | E98: 603 | I98: ='Entrada de dados'!F98 -> 0.00 | J98: 0.00
A99: =IF(Cabeçalho!$E$20="x",Velocidade!L99,'Entrada de dados'!I99) -> 0.000000000 | C99: 92 | D99: 0.1625333333 | E99: 603 | I99: ='Entrada de dados'!F99 -> 0.00 | J99: 0.00
A100: =IF(Cabeçalho!$E$20="x",Velocidade!L100,'Entrada de dados'!I100) -> 0.000000000 | C100: 93 | D100: 0.1643 | E100: 603 | I100: ='Entrada de dados'!F100 -> 0.00 | J100: 0.00
A101: =IF(Cabeçalho!$E$20="x",Velocidade!L101,'Entrada de dados'!I101) -> 0.000000000 | C101: 94 | D101: 0.1660666667 | E101: 603 | I101: ='Entrada de dados'!F101 -> 0.00 | J101: 0.00
A102: =IF(Cabeçalho!$E$20="x",Velocidade!L102,'Entrada de dados'!I102) -> 0.000000000 | C102: 95 | D102: 0.1678333333 | E102: 603 | I102: ='Entrada de dados'!F102 -> 0.00 | J102: 0.00
A103: =IF(Cabeçalho!$E$20="x",Velocidade!L103,'Entrada de dados'!I103) -> 0.000000000 | C103: 96 | D103: 0.1696 | E103: 603 | I103: ='Entrada de dados'!F103 -> 0.00 | J103: 0.00
A104: =IF(Cabeçalho!$E$20="x",Velocidade!L104,'Entrada de dados'!I104) -> 0.000000000 | C104: 97 | D104: 0.1713666667 | E104: 603 | I104: ='Entrada de dados'!F104 -> 0.00 | J104: 0.00
A105: =IF(Cabeçalho!$E$20="x",Velocidade!L105,'Entrada de dados'!I105) -> 0.000000000 | C105: 98 | D105: 0.1731333333 | E105: 603 | I105: ='Entrada de dados'!F105 -> 0.00 | J105: 0.00
A106: =IF(Cabeçalho!$E$20="x",Velocidade!L106,'Entrada de dados'!I106) -> 0.000000000 | C106: 99 | D106: 0.1749 | E106: 603 | I106: ='Entrada de dados'!F106 -> 0.00 | J106: 0.00
A107: =IF(Cabeçalho!$E$20="x",Velocidade!L107,'Entrada de dados'!I107) -> 0.000000000 | C107: 100 | D107: 0.1766666667 | E107: 603 | I107: ='Entrada de dados'!F107 -> 0.00 | J107: 0.00
A108: =IF(Cabeçalho!$E$20="x",Velocidade!L108,'Entrada de dados'!I108) -> 0.000000000 | C108: 101 | D108: 0.1784333333 | E108: 603 | I108: ='Entrada de dados'!F108 -> 0.00 | J108: 0.00
A109: =IF(Cabeçalho!$E$20="x",Velocidade!L109,'Entrada de dados'!I109) -> 0.000000000 | C109: 102 | D109: 0.1802 | E109: 603 | I109: ='Entrada de dados'!F109 -> 0.00 | J109: 0.00
A110: =IF(Cabeçalho!$E$20="x",Velocidade!L110,'Entrada de dados'!I110) -> 0.000000000 | C110: 103 | D110: 0.1819666667 | E110: 603 | I110: ='Entrada de dados'!F110 -> 0.00 | J110: 0.00
A111: =IF(Cabeçalho!$E$20="x",Velocidade!L111,'Entrada de dados'!I111) -> 0.000000000 | C111: 104 | D111: 0.1837333333 | E111: 603 | I111: ='Entrada de dados'!F111 -> 0.00 | J111: 0.00
A112: =IF(Cabeçalho!$E$20="x",Velocidade!L112,'Entrada de dados'!I112) -> 0.000000000 | C112: 105 | D112: 0.1855 | E112: 603 | I112: ='Entrada de dados'!F112 -> 0.00 | J112: 0.00
A113: =IF(Cabeçalho!$E$20="x",Velocidade!L113,'Entrada de dados'!I113) -> 0.000000000 | C113: 106 | D113: 0.1872666667 | E113: 603 | I113: ='Entrada de dados'!F113 -> 0.00 | J113: 0.00
A114: =IF(Cabeçalho!$E$20="x",Velocidade!L114,'Entrada de dados'!I114) -> 0.000000000 | C114: 107 | D114: 0.1890333333 | E114: 603 | I114: ='Entrada de dados'!F114 -> 0.00 | J114: 0.00
A115: =IF(Cabeçalho!$E$20="x",Velocidade!L115,'Entrada de dados'!I115) -> 0.000000000 | C115: 108 | D115: 0.1908 | E115: 603 | I115: ='Entrada de dados'!F115 -> 0.00 | J115: 0.00
A116: =IF(Cabeçalho!$E$20="x",Velocidade!L116,'Entrada de dados'!I116) -> 0.000000000 | C116: 109 | D116: 0.1925666667 | E116: 603 | I116: ='Entrada de dados'!F116 -> 0.00 | J116: 0.00
A117: =IF(Cabeçalho!$E$20="x",Velocidade!L117,'Entrada de dados'!I117) -> 0.000000000 | C117: 110 | D117: 0.1943333333 | E117: 603 | I117: ='Entrada de dados'!F117 -> 0.00 | J117: 0.00
A118: =IF(Cabeçalho!$E$20="x",Velocidade!L118,'Entrada de dados'!I118) -> 0.000000000 | C118: 111 | D118: 0.1961 | E118: 603 | I118: ='Entrada de dados'!F118 -> 0.00 | J118: 0.00
A119: =IF(Cabeçalho!$E$20="x",Velocidade!L119,'Entrada de dados'!I119) -> 0.000000000 | C119: 112 | D119: 0.1978666667 | E119: 603 | I119: ='Entrada de dados'!F119 -> 0.00 | J119: 0.00
A120: =IF(Cabeçalho!$E$20="x",Velocidade!L120,'Entrada de dados'!I120) -> 0.000000000 | C120: 113 | D120: 0.1996333333 | E120: 603 | I120: ='Entrada de dados'!F120 -> 0.00 | J120: 0.00
A121: =IF(Cabeçalho!$E$20="x",Velocidade!L121,'Entrada de dados'!I121) -> 0.000000000 | C121: 114 | D121: 0.2014 | E121: 603 | I121: ='Entrada de dados'!F121 -> 0.00 | J121: 0.00
A122: =IF(Cabeçalho!$E$20="x",Velocidade!L122,'Entrada de dados'!I122) -> 0.000000000 | C122: 115 | D122: 0.2031666667 | E122: 603 | I122: ='Entrada de dados'!F122 -> 0.00 | J122: 0.00
A123: =IF(Cabeçalho!$E$20="x",Velocidade!L123,'Entrada de dados'!I123) -> 0.000000000 | C123: 116 | D123: 0.2049333333 | E123: 603 | I123: ='Entrada de dados'!F123 -> 0.00 | J123: 0.00
A124: =IF(Cabeçalho!$E$20="x",Velocidade!L124,'Entrada de dados'!I124) -> 0.000000000 | C124: 117 | D124: 0.2067 | E124: 603 | I124: ='Entrada de dados'!F124 -> 0.00 | J124: 0.00
A125: =IF(Cabeçalho!$E$20="x",Velocidade!L125,'Entrada de dados'!I125) -> 0.000000000 | C125: 118 | D125: 0.2084666667 | E125: 603 | I125: ='Entrada de dados'!F125 -> 0.00 | J125: 0.00
A126: =IF(Cabeçalho!$E$20="x",Velocidade!L126,'Entrada de dados'!I126) -> 0.000000000 | C126: 119 | D126: 0.2102333333 | E126: 603 | I126: ='Entrada de dados'!F126 -> 0.00 | J126: 0.00
A127: =IF(Cabeçalho!$E$20="x",Velocidade!L127,'Entrada de dados'!I127) -> 0.000000000 | C127: 120 | D127: 0.212 | E127: 603 | I127: ='Entrada de dados'!F127 -> 0.00 | J127: 0.00
A128: =IF(Cabeçalho!$E$20="x",Velocidade!L128,'Entrada de dados'!I128) -> 0.000000000 | C128: 121 | D128: 0.2137666667 | E128: 603 | I128: ='Entrada de dados'!F128 -> 0.00 | J128: 0.00
A129: =IF(Cabeçalho!$E$20="x",Velocidade!L129,'Entrada de dados'!I129) -> 0.000000000 | C129: 122 | D129: 0.2155333333 | E129: 603 | I129: ='Entrada de dados'!F129 -> 0.00 | J129: 0.00
A130: =IF(Cabeçalho!$E$20="x",Velocidade!L130,'Entrada de dados'!I130) -> 0.000000000 | C130: 123 | D130: 0.2173 | E130: 603 | I130: ='Entrada de dados'!F130 -> 0.00 | J130: 0.00
A131: =IF(Cabeçalho!$E$20="x",Velocidade!L131,'Entrada de dados'!I131) -> 0.000000000 | C131: 124 | D131: 0.2190666667 | E131: 603 | I131: ='Entrada de dados'!F131 -> 0.00 | J131: 0.00
A132: =IF(Cabeçalho!$E$20="x",Velocidade!L132,'Entrada de dados'!I132) -> 0.000000000 | C132: 125 | D132: 0.2208333333 | E132: 603 | I132: ='Entrada de dados'!F132 -> 0.00 | J132: 0.00
A133: =IF(Cabeçalho!$E$20="x",Velocidade!L133,'Entrada de dados'!I133) -> 0.000000000 | C133: 126 | D133: 0.2226 | E133: 603 | I133: ='Entrada de dados'!F133 -> 0.00 | J133: 0.00
A134: =IF(Cabeçalho!$E$20="x",Velocidade!L134,'Entrada de dados'!I134) -> 0.000000000 | C134: 127 | D134: 0.2243666667 | E134: 603 | I134: ='Entrada de dados'!F134 -> 0.00 | J134: 0.00
A135: =IF(Cabeçalho!$E$20="x",Velocidade!L135,'Entrada de dados'!I135) -> 0.000000000 | C135: 128 | D135: 0.2261333333 | E135: 603 | I135: ='Entrada de dados'!F135 -> 0.00 | J135: 0.00
A136: =IF(Cabeçalho!$E$20="x",Velocidade!L136,'Entrada de dados'!I136) -> 0.000000000 | C136: 129 | D136: 0.2279 | E136: 603 | I136: ='Entrada de dados'!F136 -> 0.00 | J136: 0.00
A137: =IF(Cabeçalho!$E$20="x",Velocidade!L137,'Entrada de dados'!I137) -> 0.000000000 | C137: 130 | D137: =(1/$B$1*C137)*$B$4 -> 0.2296666667 | E137: 603 | F137: =E137-$B$3 ->  | G137: =F137/($B$3/9.81) ->  | H137: =IF(ISBLANK(E137)," ",H136+((G137+G136)/2)*(D137-D136)) ->  | I137: ='Entrada de dados'!F137 -> 0.00 | J137: 0.00
A138: =IF(Cabeçalho!$E$20="x",Velocidade!L138,'Entrada de dados'!I138) -> 0.000000000 | C138: 131 | D138: 0.2314333333 | E138: 603 | I138: ='Entrada de dados'!F138 -> 0.00 | J138: =I138-$I$5 -> 0.00 | K138: =J138/($I$5/9.81) ->  | L138: =IF(ISBLANK(I138)," ",L137+((K138+K137)/2)*(D138-D137)) -> 
A139: =IF(Cabeçalho!$E$20="x",Velocidade!L139,'Entrada de dados'!I139) -> 0.000000000 | C139: 132 | D139: 0.2332 | E139: 603 | I139: ='Entrada de dados'!F139 -> 0.00 | J139: 0.00
A140: =IF(Cabeçalho!$E$20="x",Velocidade!L140,'Entrada de dados'!I140) -> 0.000000000 | C140: 133 | D140: 0.2349666667 | E140: 603 | I140: ='Entrada de dados'!F140 -> 0.00 | J140: 0.00
A141: =IF(Cabeçalho!$E$20="x",Velocidade!L141,'Entrada de dados'!I141) -> 0.000000000 | C141: 134 | D141: 0.2367333333 | E141: 603 | I141: ='Entrada de dados'!F141 -> 0.00 | J141: 0.00
A142: =IF(Cabeçalho!$E$20="x",Velocidade!L142,'Entrada de dados'!I142) -> 0.000000000 | C142: 135 | D142: 0.2385 | E142: 603 | I142: ='Entrada de dados'!F142 -> 0.00 | J142: 0.00
A143: =IF(Cabeçalho!$E$20="x",Velocidade!L143,'Entrada de dados'!I143) -> 0.000000000 | C143: 136 | D143: 0.2402666667 | E143: 603 | I143: ='Entrada de dados'!F143 -> 0.00 | J143: 0.00
A144: =IF(Cabeçalho!$E$20="x",Velocidade!L144,'Entrada de dados'!I144) -> 0.000000000 | C144: 137 | D144: 0.2420333333 | E144: 603 | I144: ='Entrada de dados'!F144 -> 0.00 | J144: 0.00
A145: =IF(Cabeçalho!$E$20="x",Velocidade!L145,'Entrada de dados'!I145) -> 0.000000000 | C145: 138 | D145: 0.2438 | E145: 603 | I145: ='Entrada de dados'!F145 -> 0.00 | J145: 0.00
A146: =IF(Cabeçalho!$E$20="x",Velocidade!L146,'Entrada de dados'!I146) -> 0.000000000 | C146: 139 | D146: 0.2455666667 | E146: 602 | I146: ='Entrada de dados'!F146 -> 0.00 | J146: 0.00
A147: =IF(Cabeçalho!$E$20="x",Velocidade!L147,'Entrada de dados'!I147) -> 0.000000000 | C147: 140 | D147: 0.2473333333 | E147: 603 | I147: ='Entrada de dados'!F147 -> 0.00 | J147: 0.00
A148: =IF(Cabeçalho!$E$20="x",Velocidade!L148,'Entrada de dados'!I148) -> 0.000000000 | C148: 141 | D148: 0.2491 | E148: 603 | I148: ='Entrada de dados'!F148 -> 0.00 | J148: 0.00
A149: =IF(Cabeçalho!$E$20="x",Velocidade!L149,'Entrada de dados'!I149) -> 0.000000000 | C149: 142 | D149: 0.2508666667 | E149: 603 | I149: ='Entrada de dados'!F149 -> 0.00 | J149: 0.00
A150: =IF(Cabeçalho!$E$20="x",Velocidade!L150,'Entrada de dados'!I150) -> 0.000000000 | C150: 143 | D150: 0.2526333333 | E150: 602 | I150: ='Entrada de dados'!F150 -> 0.00 | J150: 0.00
A151: =IF(Cabeçalho!$E$20="x",Velocidade!L151,'Entrada de dados'!I151) -> 0.000000000 | C151: 144 | D151: 0.2544 | E151: 603 | I151: ='Entrada de dados'!F151 -> 0.00 | J151: 0.00
A152: =IF(Cabeçalho!$E$20="x",Velocidade!L152,'Entrada de dados'!I152) -> 0.000000000 | C152: 145 | D152: 0.2561666667 | E152: 603 | I152: ='Entrada de dados'!F152 -> 0.00 | J152: 0.00
A153: =IF(Cabeçalho!$E$20="x",Velocidade!L153,'Entrada de dados'!I153) -> 0.000000000 | C153: 146 | D153: 0.2579333333 | E153: 603 | I153: ='Entrada de dados'!F153 -> 0.00 | J153: 0.00
A154: =IF(Cabeçalho!$E$20="x",Velocidade!L154,'Entrada de dados'!I154) -> 0.000000000 | C154: 147 | D154: 0.2597 | E154: 602 | I154: ='Entrada de dados'!F154 -> 0.00 | J154: 0.00
A155: =IF(Cabeçalho!$E$20="x",Velocidade!L155,'Entrada de dados'!I155) -> 0.000000000 | C155: 148 | D155: 0.2614666667 | E155: 602 | I155: ='Entrada de dados'!F155 -> 0.00 | J155: 0.00
A156: =IF(Cabeçalho!$E$20="x",Velocidade!L156,'Entrada de dados'!I156) -> 0.000000000 | C156: 149 | D156: 0.2632333333 | E156: 603 | I156: ='Entrada de dados'!F156 -> 0.00 | J156: 0.00
A157: =IF(Cabeçalho!$E$20="x",Velocidade!L157,'Entrada de dados'!I157) -> 0.000000000 | C157: 150 | D157: 0.265 | E157: 602 | I157: ='Entrada de dados'!F157 -> 0.00 | J157: 0.00
A158: =IF(Cabeçalho!$E$20="x",Velocidade!L158,'Entrada de dados'!I158) -> 0.000000000 | C158: 151 | D158: 0.2667666667 | E158: 602 | I158: ='Entrada de dados'!F158 -> 0.00 | J158: 0.00
A159: =IF(Cabeçalho!$E$20="x",Velocidade!L159,'Entrada de dados'!I159) -> 0.000000000 | C159: 152 | D159: 0.2685333333 | E159: 602 | I159: ='Entrada de dados'!F159 -> 0.00 | J159: 0.00
A160: =IF(Cabeçalho!$E$20="x",Velocidade!L160,'Entrada de dados'!I160) -> 0.000000000 | C160: 153 | D160: 0.2703 | E160: 602 | I160: ='Entrada de dados'!F160 -> 0.00 | J160: 0.00
A161: =IF(Cabeçalho!$E$20="x",Velocidade!L161,'Entrada de dados'!I161) -> 0.000000000 | C161: 154 | D161: 0.2720666667 | E161: 602 | I161: ='Entrada de dados'!F161 -> 0.00 | J161: 0.00
A162: =IF(Cabeçalho!$E$20="x",Velocidade!L162,'Entrada de dados'!I162) -> 0.000000000 | C162: 155 | D162: 0.2738333333 | E162: 602 | I162: ='Entrada de dados'!F162 -> 0.00 | J162: 0.00
A163: =IF(Cabeçalho!$E$20="x",Velocidade!L163,'Entrada de dados'!I163) -> 0.000000000 | C163: 156 | D163: 0.2756 | E163: 602 | I163: ='Entrada de dados'!F163 -> 0.00 | J163: 0.00
A164: =IF(Cabeçalho!$E$20="x",Velocidade!L164,'Entrada de dados'!I164) -> 0.000000000 | C164: 157 | D164: 0.2773666667 | E164: 602 | I164: ='Entrada de dados'!F164 -> 0.00 | J164: 0.00
A165: =IF(Cabeçalho!$E$20="x",Velocidade!L165,'Entrada de dados'!I165) -> 0.000000000 | C165: 158 | D165: 0.2791333333 | E165: 602 | I165: ='Entrada de dados'!F165 -> 0.00 | J165: 0.00
A166: =IF(Cabeçalho!$E$20="x",Velocidade!L166,'Entrada de dados'!I166) -> 0.000000000 | C166: 159 | D166: 0.2809 | E166: 602 | I166: ='Entrada de dados'!F166 -> 0.00 | J166: 0.00
A167: =IF(Cabeçalho!$E$20="x",Velocidade!L167,'Entrada de dados'!I167) -> 0.000000000 | C167: 160 | D167: 0.2826666667 | E167: 602 | I167: ='Entrada de dados'!F167 -> 0.00 | J167: 0.00
A168: =IF(Cabeçalho!$E$20="x",Velocidade!L168,'Entrada de dados'!I168) -> 0.000000000 | C168: 161 | D168: 0.2844333333 | E168: 602 | I168: ='Entrada de dados'!F168 -> 0.00 | J168: 0.00
A169: =IF(Cabeçalho!$E$20="x",Velocidade!L169,'Entrada de dados'!I169) -> 0.000000000 | C169: 162 | D169: 0.2862 | E169: 602 | I169: ='Entrada de dados'!F169 -> 0.00 | J169: 0.00
A170: =IF(Cabeçalho!$E$20="x",Velocidade!L170,'Entrada de dados'!I170) -> 0.000000000 | C170: 163 | D170: 0.2879666667 | E170: 602 | I170: ='Entrada de dados'!F170 -> 0.00 | J170: 0.00
A171: =IF(Cabeçalho!$E$20="x",Velocidade!L171,'Entrada de dados'!I171) -> 0.000000000 | C171: 164 | D171: 0.2897333333 | E171: 602 | I171: ='Entrada de dados'!F171 -> 0.00 | J171: 0.00
A172: =IF(Cabeçalho!$E$20="x",Velocidade!L172,'Entrada de dados'!I172) -> 0.000000000 | C172: 165 | D172: 0.2915 | E172: 602 | I172: ='Entrada de dados'!F172 -> 0.00 | J172: 0.00
A173: =IF(Cabeçalho!$E$20="x",Velocidade!L173,'Entrada de dados'!I173) -> 0.000000000 | C173: 166 | D173: 0.2932666667 | E173: 602 | I173: ='Entrada de dados'!F173 -> 0.00 | J173: 0.00
A174: =IF(Cabeçalho!$E$20="x",Velocidade!L174,'Entrada de dados'!I174) -> 0.000000000 | C174: 167 | D174: 0.2950333333 | E174: 602 | I174: ='Entrada de dados'!F174 -> 0.00 | J174: 0.00
A175: =IF(Cabeçalho!$E$20="x",Velocidade!L175,'Entrada de dados'!I175) -> 0.000000000 | C175: 168 | D175: 0.2968 | E175: 602 | I175: ='Entrada de dados'!F175 -> 0.00 | J175: 0.00
A176: =IF(Cabeçalho!$E$20="x",Velocidade!L176,'Entrada de dados'!I176) -> 0.000000000 | C176: 169 | D176: 0.2985666667 | E176: 602 | I176: ='Entrada de dados'!F176 -> 0.00 | J176: 0.00
A177: =IF(Cabeçalho!$E$20="x",Velocidade!L177,'Entrada de dados'!I177) -> 0.000000000 | C177: 170 | D177: 0.3003333333 | E177: 602 | I177: ='Entrada de dados'!F177 -> 0.00 | J177: 0.00
A178: =IF(Cabeçalho!$E$20="x",Velocidade!L178,'Entrada de dados'!I178) -> 0.000000000 | C178: 171 | D178: 0.3021 | E178: 602 | I178: ='Entrada de dados'!F178 -> 0.00 | J178: 0.00
A179: =IF(Cabeçalho!$E$20="x",Velocidade!L179,'Entrada de dados'!I179) -> 0.000000000 | C179: 172 | D179: 0.3038666667 | E179: 603 | I179: ='Entrada de dados'!F179 -> 0.00 | J179: 0.00
A180: =IF(Cabeçalho!$E$20="x",Velocidade!L180,'Entrada de dados'!I180) -> 0.000000000 | C180: 173 | D180: 0.3056333333 | E180: 602 | I180: ='Entrada de dados'!F180 -> 0.00 | J180: 0.00
A181: =IF(Cabeçalho!$E$20="x",Velocidade!L181,'Entrada de dados'!I181) -> 0.000000000 | C181: 174 | D181: 0.3074 | E181: 602 | I181: ='Entrada de dados'!F181 -> 0.00 | J181: 0.00
A182: =IF(Cabeçalho!$E$20="x",Velocidade!L182,'Entrada de dados'!I182) -> 0.000000000 | C182: 175 | D182: 0.3091666667 | E182: 603 | I182: ='Entrada de dados'!F182 -> 0.00 | J182: 0.00
A183: =IF(Cabeçalho!$E$20="x",Velocidade!L183,'Entrada de dados'!I183) -> 0.000000000 | C183: 176 | D183: 0.3109333333 | E183: 603 | I183: ='Entrada de dados'!F183 -> 0.00 | J183: 0.00
A184: =IF(Cabeçalho!$E$20="x",Velocidade!L184,'Entrada de dados'!I184) -> 0.000000000 | C184: 177 | D184: 0.3127 | E184: 603 | I184: ='Entrada de dados'!F184 -> 0.00 | J184: 0.00
A185: =IF(Cabeçalho!$E$20="x",Velocidade!L185,'Entrada de dados'!I185) -> 0.000000000 | C185: 178 | D185: 0.3144666667 | E185: 602 | I185: ='Entrada de dados'!F185 -> 0.00 | J185: 0.00
A186: =IF(Cabeçalho!$E$20="x",Velocidade!L186,'Entrada de dados'!I186) -> 0.000000000 | C186: 179 | D186: 0.3162333333 | E186: 602 | I186: ='Entrada de dados'!F186 -> 0.00 | J186: 0.00
A187: =IF(Cabeçalho!$E$20="x",Velocidade!L187,'Entrada de dados'!I187) -> 0.000000000 | C187: 180 | D187: 0.318 | E187: 602 | I187: ='Entrada de dados'!F187 -> 0.00 | J187: 0.00
A188: =IF(Cabeçalho!$E$20="x",Velocidade!L188,'Entrada de dados'!I188) -> 0.000000000 | C188: 181 | D188: 0.3197666667 | E188: 603 | I188: ='Entrada de dados'!F188 -> 0.00 | J188: 0.00
A189: =IF(Cabeçalho!$E$20="x",Velocidade!L189,'Entrada de dados'!I189) -> 0.000000000 | C189: 182 | D189: 0.3215333333 | E189: 603 | I189: ='Entrada de dados'!F189 -> 0.00 | J189: 0.00
A190: =IF(Cabeçalho!$E$20="x",Velocidade!L190,'Entrada de dados'!I190) -> 0.000000000 | C190: 183 | D190: 0.3233 | E190: 602 | I190: ='Entrada de dados'!F190 -> 0.00 | J190: 0.00
A191: =IF(Cabeçalho!$E$20="x",Velocidade!L191,'Entrada de dados'!I191) -> 0.000000000 | C191: 184 | D191: 0.3250666667 | E191: 602 | I191: ='Entrada de dados'!F191 -> 0.00 | J191: 0.00
A192: =IF(Cabeçalho!$E$20="x",Velocidade!L192,'Entrada de dados'!I192) -> 0.000000000 | C192: 185 | D192: 0.3268333333 | E192: 603 | I192: ='Entrada de dados'!F192 -> 0.00 | J192: 0.00
A193: =IF(Cabeçalho!$E$20="x",Velocidade!L193,'Entrada de dados'!I193) -> 0.000000000 | C193: 186 | D193: 0.3286 | E193: 602 | I193: ='Entrada de dados'!F193 -> 0.00 | J193: 0.00
A194: =IF(Cabeçalho!$E$20="x",Velocidade!L194,'Entrada de dados'!I194) -> 0.000000000 | C194: 187 | D194: 0.3303666667 | E194: 603 | I194: ='Entrada de dados'!F194 -> 0.00 | J194: 0.00
A195: =IF(Cabeçalho!$E$20="x",Velocidade!L195,'Entrada de dados'!I195) -> 0.000000000 | C195: 188 | D195: 0.3321333333 | E195: 602 | I195: ='Entrada de dados'!F195 -> 0.00 | J195: 0.00
A196: =IF(Cabeçalho!$E$20="x",Velocidade!L196,'Entrada de dados'!I196) -> 0.000000000 | C196: 189 | D196: 0.3339 | E196: 603 | I196: ='Entrada de dados'!F196 -> 0.00 | J196: 0.00
A197: =IF(Cabeçalho!$E$20="x",Velocidade!L197,'Entrada de dados'!I197) -> 0.000000000 | C197: 190 | D197: 0.3356666667 | E197: 602 | I197: ='Entrada de dados'!F197 -> 0.00 | J197: 0.00
A198: =IF(Cabeçalho!$E$20="x",Velocidade!L198,'Entrada de dados'!I198) -> 0.000000000 | C198: 191 | D198: 0.3374333333 | E198: 602 | I198: ='Entrada de dados'!F198 -> 0.00 | J198: 0.00
A199: =IF(Cabeçalho!$E$20="x",Velocidade!L199,'Entrada de dados'!I199) -> 0.000000000 | C199: 192 | D199: 0.3392 | E199: 602 | I199: ='Entrada de dados'!F199 -> 0.00 | J199: 0.00
A200: =IF(Cabeçalho!$E$20="x",Velocidade!L200,'Entrada de dados'!I200) -> 0.000000000 | C200: 193 | D200: 0.3409666667 | E200: 603 | I200: ='Entrada de dados'!F200 -> 0.00 | J200: 0.00
... 2807 more rows

Sheet Correção da Força x Peso (hidden)
A2: Plataforma de Força CEFISE | B2: =Velocidade!B2 -> CEFISE Biotecnologia
A3: Frequência de Amostragem | B3: =Velocidade!B1 -> 600
A4: Massa Corporal | B4: =Cabeçalho!K10 -> 0
A5: Peso Corporal | B5: =B4*9.81 -> 0 | C5: A - Carga de Calibração
A6: Cal Zero - Fase de Voo | B6: =(SUM(S13:S3012))/($Q$10-($S$10*2)) -> 0 | C6: B - Amostra Cal Zero
A7: Cal Peso | B7: =AVERAGE(O13:O612) -> 0.00 | C7: C - Amostra Carga Cal
A8: IC | B8: =(B7-B6)/B5 ->  | C8: (C - B)/ A
A9: Correção de Tempo | B9: 1.1 | P9: =MAX(P13:P3012) -> 0.00
P10: =MIN(P13:P3014) -> 0.00 | Q10: =COUNTIF(Q13:Q3014,1) -> 1.00 | S10: =Q10/3 -> 0.33
A12: Amostra | B12: Tempo | C12: Força 1 | D12: Alisamento 1 Força 1 | E12: Alisamento 2 Força 1 | F12: Alisamento 3 Força 1 | G12: % Força 1 | H12: Força 2 | I12: Alisamento 1 Força 2 | J12: Alisamento 2 Força 2 | K12: Alisamento 3 Força 2 | L12: Força Total | M12: Alisamento 1 Força Total | N12: Alisamento 2 Força Total | O12: Alisamento 3 Força Total | P12: Velocidade | Q12: Aux Vel Max e Vel Min | R12: Aux Cal Zero (Fase de Voo) | S12: Valores de Cal Zero - Fase de Voo | T12: Força (N) | U12: Força 1 (N) | V12: Força 2 (N)
A13: ='Entrada de dados'!A8 -> 0 | B13: =(1/$B$3*A13)*$B$9 -> 0 | C13: ='Entrada de dados'!C8 -> 0.00 | D13: =C13 -> 0.00 | E13: =D13 -> 0.00 | F13: =E13 -> 0.00 | G13: =F13/O13*100 ->  | H13: ='Entrada de dados'!D8 -> 0.00 | I13: =H13 -> 0.00 | J13: =I13 -> 0.00 | K13: =J13 -> 0.00 | L13: =IF($B$2="CEFISE Biotecnologia",'Entrada de dados'!F8,Velocidade!E8) -> 0.00 | M13: =L13 -> 0.00 | N13: =M13 -> 0.00 | O13: =N13 -> 0.00 | P13: =IF($B$2="CEFISE Biotecnologia",Velocidade!A8,Velocidade!H8) -> 0.0000000 | T13: =(O13-$B$6)/$B$8 ->  | U13: =IF(OR(C13=0,H13=0),0,T13*G13%) -> 0 | V13: =IF(OR(C13=0,H13=0),0,T13-U13) -> 0
A14: ='Entrada de dados'!A9 -> 0 | B14: =(1/$B$3*A14)*$B$9 -> 0 | C14: ='Entrada de dados'!C9 -> 0.00 | D14: =AVERAGE(C13:C15) -> 0.00 | E14: 0.00 | F14: =E14 -> 0.00 | G14: =F14/O14*100 ->  | H14: ='Entrada de dados'!D9 -> 0.00 | I14: =AVERAGE(H13:H15) -> 0.00 | J14: =AVERAGE(I13:I15) -> 0.00 | K14: =AVERAGE(J13:J15) -> 0.00 | L14: =IF($B$2="CEFISE Biotecnologia",'Entrada de dados'!F9,Velocidade!E9) -> 0.00 | M14: =AVERAGE(L13:L15) -> 0.00 | N14: =AVERAGE(M13:M15) -> 0.00 | O14: 0.00 | P14: =IF($B$2="CEFISE Biotecnologia",Velocidade!A9,Velocidade!H9) -> 0.0000000 | Q14: =IF(P14=$P$9,1+Q13,IF(P14=$P$10,0,Q13)) -> 1.00 | R14: =IF(Q14=1,Q14+R13,0) -> 1.00 | S14: =IF(AND(R14>=$S$10,R14<$Q$10-$S$10),O14,0) -> 0.00 | T14: =(O14-$B$6)/$B$8 ->  | U14: =IF(OR(C14=0,H14=0),0,T14*G14%) -> 0 | V14: =IF(OR(C14=0,H14=0),0,T14-U14) -> 0
A15: ='Entrada de dados'!A10 -> 0 | B15: 0 | C15: ='Entrada de dados'!C10 -> 0.00 | D15: 0.00 | E15: 0.00 | F15: 0.00 | H15: ='Entrada de dados'!D10 -> 0.00 | I15: =AVERAGE(H14:H16) -> 0.00 | J15: 0.00 | K15: 0.00 | L15: =IF($B$2="CEFISE Biotecnologia",'Entrada de dados'!F10,Velocidade!E10) -> 0.00 | M15: =AVERAGE(L14:L16) -> 0.00 | N15: 0.00 | O15: 0.00 | P15: =IF($B$2="CEFISE Biotecnologia",Velocidade!A10,Velocidade!H10) -> 0.0000000 | Q15: =IF(P15=$P$9,1+Q14,IF(P15=$P$10,0,Q14)) -> 2.00 | R15: =IF(Q15=1,Q15+R14,0) -> 0.00 | S15: =IF(AND(R15>=$S$10,R15<$Q$10-$S$10),O15,0) -> 0.00 | U15: 0 | V15: 0
A16: ='Entrada de dados'!A11 -> 0 | B16: 0 | C16: ='Entrada de dados'!C11 -> 0.00 | D16: 0.00 | E16: 0.00 | F16: 0.00 | H16: ='Entrada de dados'!D11 -> 0.00 | I16: 0.00 | J16: 0.00 | K16: 0.00 | L16: =IF($B$2="CEFISE Biotecnologia",'Entrada de dados'!F11,Velocidade!E11) -> 0.00 | M16: 0.00 | N16: 0.00 | O16: 0.00 | P16: =IF($B$2="CEFISE Biotecnologia",Velocidade!A11,Velocidade!H11) -> 0.0000000 | Q16: 3.00 | R16: 0.00 | S16: 0.00 | U16: 0 | V16: 0
A17: ='Entrada de dados'!A12 -> 0 | B17: 0 | C17: ='Entrada de dados'!C12 -> 0.00 | D17: 0.00 | E17: 0.00 | F17: 0.00 | H17: ='Entrada de dados'!D12 -> 0.00 | I17: 0.00 | J17: 0.00 | K17: 0.00 | L17: =IF($B$2="CEFISE Biotecnologia",'Entrada de dados'!F12,Velocidade!E12) -> 0.00 | M17: 0.00 | N17: 0.00 | O17: 0.00 | P17: =IF($B$2="CEFISE Biotecnologia",Velocidade!A12,Velocidade!H12) -> 0.0000000 | Q17: 4.00 | R17: 0.00 | S17: 0.00 | U17: 0 | V17: 0
A18: ='Entrada de dados'!A13 -> 0 | B18: 0 | C18: ='Entrada de dados'!C13 -> 0.00 | D18: 0.00 | E18: 0.00 | F18: 0.00 | H18: ='Entrada de dados'!D13 -> 0.00 | I18: 0.00 | J18: 0.00 | K18: 0.00 | L18: =IF($B$2="CEFISE Biotecnologia",'Entrada de dados'!F13,Velocidade!E13) -> 0.00 | M18: 0.00 | N18: 0.00 | O18: 0.00 | P18: =IF($B$2="CEFISE Biotecnologia",Velocidade!A13,Velocidade!H13) -> 0.0000000 | Q18: 5.00 | R18: 0.00 | S18: 0.00 | U18: 0 | V18: 0
A19: ='Entrada de dados'!A14 -> 0 | B19: 0 | C19: ='Entrada de dados'!C14 -> 0.00 | D19: =AVERAGE(C18:C20) -> 0.00 | E19: =AVERAGE(D18:D20) -> 0.00 | F19: 0.00 | H19: ='Entrada de dados'!D14 -> 0.00 | I19: 0.00 | J19: 0.00 | K19: 0.00 | L19: =IF($B$2="CEFISE Biotecnologia",'Entrada de dados'!F14,Velocidade!E14) -> 0.00 | M19: 0.00 | N19: 0.00 | O19: 0.00 | P19: =IF($B$2="CEFISE Biotecnologia",Velocidade!A14,Velocidade!H14) -> 0.0000000 | Q19: 6.00 | R19: 0.00 | S19: 0.00 | U19: 0 | V19: 0
A20: ='Entrada de dados'!A15 -> 0 | B20: 0 | C20: ='Entrada de dados'!C15 -> 0.00 | D20: 0.00 | E20: 0.00 | F20: 0.00 | H20: ='Entrada de dados'!D15 -> 0.00 | I20: 0.00 | J20: 0.00 | K20: 0.00 | L20: =IF($B$2="CEFISE Biotecnologia",'Entrada de dados'!F15,Velocidade!E15) -> 0.00 | M20: 0.00 | N20: 0.00 | O20: 0.00 | P20: =IF($B$2="CEFISE Biotecnologia",Velocidade!A15,Velocidade!H15) -> 0.0000000 | Q20: 7.00 | R20: 0.00 | S20: 0.00 | U20: 0 | V20: 0
A21: ='Entrada de dados'!A16 -> 0 | B21: 0 | C21: ='Entrada de dados'!C16 -> 0.00 | D21: 0.00 | E21: 0.00 | F21: 0.00 | H21: ='Entrada de dados'!D16 -> 0.00 | I21: 0.00 | J21: 0.00 | K21: 0.00 | L21: =IF($B$2="CEFISE Biotecnologia",'Entrada de dados'!F16,Velocidade!E16) -> 0.00 | M21: 0.00 | N21: 0.00 | O21: 0.00 | P21: =IF($B$2="CEFISE Biotecnologia",Velocidade!A16,Velocidade!H16) -> 0.0000000 | Q21: 8.00 | R21: 0.00 | S21: 0.00 | U21: 0 | V21: 0
A22: ='Entrada de dados'!A17 -> 0 | B22: 0 | C22: ='Entrada de dados'!C17 -> 0.00 | D22: 0.00 | E22: 0.00 | F22: 0.00 | H22: ='Entrada de dados'!D17 -> 0.00 | I22: 0.00 | J22: 0.00 | K22: 0.00 | L22: =IF($B$2="CEFISE Biotecnologia",'Entrada de dados'!F17,Velocidade!E17) -> 0.00 | M22: 0.00 | N22: 0.00 | O22: 0.00 | P22: =IF($B$2="CEFISE Biotecnologia",Velocidade!A17,Velocidade!H17) -> 0.0000000 | Q22: 9.00 | R22: 0.00 | S22: 0.00 | U22: 0 | V22: 0
A23: ='Entrada de dados'!A18 -> 0 | B23: 0 | C23: ='Entrada de dados'!C18 -> 0.00 | D23: 0.00 | E23: 0.00 | F23: 0.00 | H23: ='Entrada de dados'!D18 -> 0.00 | I23: =AVERAGE(H22:H24) -> 0.00 | J23: =AVERAGE(I22:I24) -> 0.00 | K23: =AVERAGE(J22:J24) -> 0.00 | L23: =IF($B$2="CEFISE Biotecnologia",'Entrada de dados'!F18,Velocidade!E18) -> 0.00 | M23: 0.00 | N23: 0.00 | O23: 0.00 | P23: =IF($B$2="CEFISE Biotecnologia",Velocidade!A18,Velocidade!H18) -> 0.0000000 | Q23: 10.00 | R23: 0.00 | S23: 0.00 | U23: 0 | V23: 0
A24: ='Entrada de dados'!A19 -> 0 | B24: 0 | C24: ='Entrada de dados'!C19 -> 0.00 | D24: 0.00 | E24: 0.00 | F24: 0.00 | H24: ='Entrada de dados'!D19 -> 0.00 | I24: 0.00 | J24: 0.00 | K24: 0.00 | L24: =IF($B$2="CEFISE Biotecnologia",'Entrada de dados'!F19,Velocidade!E19) -> 0.00 | M24: 0.00 | N24: 0.00 | O24: 0.00 | P24: =IF($B$2="CEFISE Biotecnologia",Velocidade!A19,Velocidade!H19) -> 0.0000000 | Q24: 11.00 | R24: 0.00 | S24: 0.00 | U24: 0 | V24: 0
A25: ='Entrada de dados'!A20 -> 0 | B25: 0 | C25: ='Entrada de dados'!C20 -> 0.00 | D25: 0.00 | E25: 0.00 | F25: 0.00 | H25: ='Entrada de dados'!D20 -> 0.00 | I25: 0.00 | J25: 0.00 | K25: 0.00 | L25: =IF($B$2="CEFISE Biotecnologia",'Entrada de dados'!F20,Velocidade!E20) -> 0.00 | M25: 0.00 | N25: 0.00 | O25: 0.00 | P25: =IF($B$2="CEFISE Biotecnologia",Velocidade!A20,Velocidade!H20) -> 0.0000000 | Q25: 12.00 | R25: 0.00 | S25: 0.00 | U25: 0 | V25: 0
A26: ='Entrada de dados'!A21 -> 0 | B26: 0 | C26: ='Entrada de dados'!C21 -> 0.00 | D26: 0.00 | E26: 0.00 | F26: 0.00 | H26: ='Entrada de dados'!D21 -> 0.00 | I26: 0.00 | J26: 0.00 | K26: 0.00 | L26: =IF($B$2="CEFISE Biotecnologia",'Entrada de dados'!F21,Velocidade!E21) -> 0.00 | M26: 0.00 | N26: 0.00 | O26: 0.00 | P26: =IF($B$2="CEFISE Biotecnologia",Velocidade!A21,Velocidade!H21) -> 0.0000000 | Q26: 13.00 | R26: 0.00 | S26: 0.00 | U26: 0 | V26: 0
A27: ='Entrada de dados'!A22 -> 0 | B27: 0 | C27: ='Entrada de dados'!C22 -> 0.00 | D27: 0.00 | E27: 0.00 | F27: 0.00 | H27: ='Entrada de dados'!D22 -> 0.00 | I27: 0.00 | J27: 0.00 | K27: 0.00 | L27: =IF($B$2="CEFISE Biotecnologia",'Entrada de dados'!F22,Velocidade!E22) -> 0.00 | M27: 0.00 | N27: 0.00 | O27: 0.00 | P27: =IF($B$2="CEFISE Biotecnologia",Velocidade!A22,Velocidade!H22) -> 0.0000000 | Q27: 14.00 | R27: 0.00 | S27: 0.00 | U27: 0 | V27: 0
A28: ='Entrada de dados'!A23 -> 0 | B28: 0 | C28: ='Entrada de dados'!C23 -> 0.00 | D28: 0.00 | E28: 0.00 | F28: 0.00 | H28: ='Entrada de dados'!D23 -> 0.00 | I28: 0.00 | J28: 0.00 | K28: 0.00 | L28: =IF($B$2="CEFISE Biotecnologia",'Entrada de dados'!F23,Velocidade!E23) -> 0.00 | M28: 0.00 | N28: 0.00 | O28: 0.00 | P28: =IF($B$2="CEFISE Biotecnologia",Velocidade!A23,Velocidade!H23) -> 0.0000000 | Q28: 15.00 | R28: 0.00 | S28: 0.00 | U28: 0 | V28: 0
A29: ='Entrada de dados'!A24 -> 0 | B29: 0 | C29: ='Entrada de dados'!C24 -> 0.00 | D29: 0.00 | E29: 0.00 | F29: 0.00 | H29: ='Entrada de dados'!D24 -> 0.00 | I29: 0.00 | J29: 0.00 | K29: 0.00 | L29: =IF($B$2="CEFISE Biotecnologia",'Entrada de dados'!F24,Velocidade!E24) -> 0.00 | M29: 0.00 | N29: 0.00 | O29: 0.00 | P29: =IF($B$2="CEFISE Biotecnologia",Velocidade!A24,Velocidade!H24) -> 0.0000000 | Q29: 16.00 | R29: 0.00 | S29: 0.00 | U29: 0 | V29: 0
A30: ='Entrada de dados'!A25 -> 0 | B30: 0 | C30: ='Entrada de dados'!C25 -> 0.00 | D30: 0.00 | E30: 0.00 | F30: 0.00 | H30: ='Entrada de dados'!D25 -> 0.00 | I30: 0.00 | J30: 0.00 | K30: 0.00 | L30: =IF($B$2="CEFISE Biotecnologia",'Entrada de dados'!F25,Velocidade!E25) -> 0.00 | M30: 0.00 | N30: 0.00 | O30: 0.00 | P30: =IF($B$2="CEFISE Biotecnologia",Velocidade!A25,Velocidade!H25) -> 0.0000000 | Q30: 17.00 | R30: 0.00 | S30: 0.00 | U30: 0 | V30: 0
A31: ='Entrada de dados'!A26 -> 0 | B31: 0 | C31: ='Entrada de dados'!C26 -> 0.00 | D31: 0.00 | E31: 0.00 | F31: 0.00 | H31: ='Entrada de dados'!D26 -> 0.00 | I31: 0.00 | J31: 0.00 | K31: 0.00 | L31: =IF($B$2="CEFISE Biotecnologia",'Entrada de dados'!F26,Velocidade!E26) -> 0.00 | M31: 0.00 | N31: 0.00 | O31: 0.00 | P31: =IF($B$2="CEFISE Biotecnologia",Velocidade!A26,Velocidade!H26) -> 0.0000000 | Q31: 18.00 | R31: 0.00 | S31: 0.00 | U31: 0 | V31: 0
A32: ='Entrada de dados'!A27 -> 0 | B32: 0 | C32: ='Entrada de dados'!C27 -> 0.00 | D32: 0.00 | E32: 0.00 | F32: 0.00 | H32: ='Entrada de dados'!D27 -> 0.00 | I32: 0.00 | J32: 0.00 | K32: 0.00 | L32: =IF($B$2="CEFISE Biotecnologia",'Entrada de dados'!F27,Velocidade!E27) -> 0.00 | M32: 0.00 | N32: 0.00 | O32: 0.00 | P32: =IF($B$2="CEFISE Biotecnologia",Velocidade!A27,Velocidade!H27) -> 0.0000000 | Q32: 19.00 | R32: 0.00 | S32: 0.00 | U32: 0 | V32: 0
A33: ='Entrada de dados'!A28 -> 0 | B33: 0 | C33: ='Entrada de dados'!C28 -> 0.00 | D33: 0.00 | E33: 0.00 | F33: 0.00 | H33: ='Entrada de dados'!D28 -> 0.00 | I33: 0.00 | J33: 0.00 | K33: 0.00 | L33: =IF($B$2="CEFISE Biotecnologia",'Entrada de dados'!F28,Velocidade!E28) -> 0.00 | M33: 0.00 | N33: 0.00 | O33: 0.00 | P33: =IF($B$2="CEFISE Biotecnologia",Velocidade!A28,Velocidade!H28) -> 0.0000000 | Q33: 20.00 | R33: 0.00 | S33: 0.00 | U33: 0 | V33: 0
A34: ='Entrada de dados'!A29 -> 0 | B34: 0 | C34: ='Entrada de dados'!C29 -> 0.00 | D34: 0.00 | E34: 0.00 | F34: 0.00 | H34: ='Entrada de dados'!D29 -> 0.00 | I34: 0.00 | J34: 0.00 | K34: 0.00 | L34: =IF($B$2="CEFISE Biotecnologia",'Entrada de dados'!F29,Velocidade!E29) -> 0.00 | M34: 0.00 | N34: 0.00 | O34: 0.00 | P34: =IF($B$2="CEFISE Biotecnologia",Velocidade!A29,Velocidade!H29) -> 0.0000000 | Q34: 21.00 | R34: 0.00 | S34: 0.00 | U34: 0 | V34: 0
A35: ='Entrada de dados'!A30 -> 0 | B35: 0 | C35: ='Entrada de dados'!C30 -> 0.00 | D35: 0.00 | E35: 0.00 | F35: 0.00 | H35: ='Entrada de dados'!D30 -> 0.00 | I35: 0.00 | J35: 0.00 | K35: 0.00 | L35: =IF($B$2="CEFISE Biotecnologia",'Entrada de dados'!F30,Velocidade!E30) -> 0.00 | M35: 0.00 | N35: 0.00 | O35: 0.00 | P35: =IF($B$2="CEFISE Biotecnologia",Velocidade!A30,Velocidade!H30) -> 0.0000000 | Q35: 22.00 | R35: 0.00 | S35: 0.00 | U35: 0 | V35: 0
A36: ='Entrada de dados'!A31 -> 0 | B36: 0 | C36: ='Entrada de dados'!C31 -> 0.00 | D36: 0.00 | E36: 0.00 | F36: 0.00 | H36: ='Entrada de dados'!D31 -> 0.00 | I36: 0.00 | J36: 0.00 | K36: 0.00 | L36: =IF($B$2="CEFISE Biotecnologia",'Entrada de dados'!F31,Velocidade!E31) -> 0.00 | M36: 0.00 | N36: 0.00 | O36: 0.00 | P36: =IF($B$2="CEFISE Biotecnologia",Velocidade!A31,Velocidade!H31) -> 0.0000000 | Q36: 23.00 | R36: 0.00 | S36: 0.00 | U36: 0 | V36: 0
A37: ='Entrada de dados'!A32 -> 0 | B37: 0 | C37: ='Entrada de dados'!C32 -> 0.00 | D37: 0.00 | E37: 0.00 | F37: 0.00 | H37: ='Entrada de dados'!D32 -> 0.00 | I37: 0.00 | J37: 0.00 | K37: 0.00 | L37: =IF($B$2="CEFISE Biotecnologia",'Entrada de dados'!F32,Velocidade!E32) -> 0.00 | M37: 0.00 | N37: 0.00 | O37: 0.00 | P37: =IF($B$2="CEFISE Biotecnologia",Velocidade!A32,Velocidade!H32) -> 0.0000000 | Q37: 24.00 | R37: 0.00 | S37: 0.00 | U37: 0 | V37: 0
A38: ='Entrada de dados'!A33 -> 0 | B38: 0 | C38: ='Entrada de dados'!C33 -> 0.00 | D38: 0.00 | E38: 0.00 | F38: 0.00 | H38: ='Entrada de dados'!D33 -> 0.00 | I38: 0.00 | J38: 0.00 | K38: 0.00 | L38: =IF($B$2="CEFISE Biotecnologia",'Entrada de dados'!F33,Velocidade!E33) -> 0.00 | M38: 0.00 | N38: 0.00 | O38: 0.00 | P38: =IF($B$2="CEFISE Biotecnologia",Velocidade!A33,Velocidade!H33) -> 0.0000000 | Q38: 25.00 | R38: 0.00 | S38: 0.00 | U38: 0 | V38: 0
A39: ='Entrada de dados'!A34 -> 0 | B39: 0 | C39: ='Entrada de dados'!C34 -> 0.00 | D39: 0.00 | E39: 0.00 | F39: 0.00 | H39: ='Entrada de dados'!D34 -> 0.00 | I39: 0.00 | J39: 0.00 | K39: 0.00 | L39: =IF($B$2="CEFISE Biotecnologia",'Entrada de dados'!F34,Velocidade!E34) -> 0.00 | M39: 0.00 | N39: 0.00 | O39: 0.00 | P39: =IF($B$2="CEFISE Biotecnologia",Velocidade!A34,Velocidade!H34) -> 0.0000000 | Q39: 26.00 | R39: 0.00 | S39: 0.00 | U39: 0 | V39: 0
A40: ='Entrada de dados'!A35 -> 0 | B40: 0 | C40: ='Entrada de dados'!C35 -> 0.00 | D40: 0.00 | E40: 0.00 | F40: 0.00 | H40: ='Entrada de dados'!D35 -> 0.00 | I40: 0.00 | J40: 0.00 | K40: 0.00 | L40: =IF($B$2="CEFISE Biotecnologia",'Entrada de dados'!F35,Velocidade!E35) -> 0.00 | M40: 0.00 | N40: 0.00 | O40: 0.00 | P40: =IF($B$2="CEFISE Biotecnologia",Velocidade!A35,Velocidade!H35) -> 0.0000000 | Q40: 27.00 | R40: 0.00 | S40: 0.00 | U40: 0 | V40: 0
A41: ='Entrada de dados'!A36 -> 0 | B41: 0 | C41: ='Entrada de dados'!C36 -> 0.00 | D41: 0.00 | E41: 0.00 | F41: 0.00 | H41: ='Entrada de dados'!D36 -> 0.00 | I41: 0.00 | J41: 0.00 | K41: 0.00 | L41: =IF($B$2="CEFISE Biotecnologia",'Entrada de dados'!F36,Velocidade!E36) -> 0.00 | M41: 0.00 | N41: 0.00 | O41: 0.00 | P41: =IF($B$2="CEFISE Biotecnologia",Velocidade!A36,Velocidade!H36) -> 0.0000000 | Q41: 28.00 | R41: 0.00 | S41: 0.00 | U41: 0 | V41: 0
A42: ='Entrada de dados'!A37 -> 0 | B42: 0 | C42: ='Entrada de dados'!C37 -> 0.00 | D42: 0.00 | E42: 0.00 | F42: 0.00 | H42: ='Entrada de dados'!D37 -> 0.00 | I42: 0.00 | J42: 0.00 | K42: 0.00 | L42: =IF($B$2="CEFISE Biotecnologia",'Entrada de dados'!F37,Velocidade!E37) -> 0.00 | M42: 0.00 | N42: 0.00 | O42: 0.00 | P42: =IF($B$2="CEFISE Biotecnologia",Velocidade!A37,Velocidade!H37) -> 0.0000000 | Q42: 29.00 | R42: 0.00 | S42: 0.00 | U42: 0 | V42: 0
A43: ='Entrada de dados'!A38 -> 0 | B43: 0 | C43: ='Entrada de dados'!C38 -> 0.00 | D43: 0.00 | E43: 0.00 | F43: 0.00 | H43: ='Entrada de dados'!D38 -> 0.00 | I43: 0.00 | J43: 0.00 | K43: 0.00 | L43: =IF($B$2="CEFISE Biotecnologia",'Entrada de dados'!F38,Velocidade!E38) -> 0.00 | M43: 0.00 | N43: 0.00 | O43: 0.00 | P43: =IF($B$2="CEFISE Biotecnologia",Velocidade!A38,Velocidade!H38) -> 0.0000000 | Q43: 30.00 | R43: 0.00 | S43: 0.00 | U43: 0 | V43: 0
A44: ='Entrada de dados'!A39 -> 0 | B44: 0 | C44: ='Entrada de dados'!C39 -> 0.00 | D44: 0.00 | E44: 0.00 | F44: 0.00 | H44: ='Entrada de dados'!D39 -> 0.00 | I44: 0.00 | J44: 0.00 | K44: 0.00 | L44: =IF($B$2="CEFISE Biotecnologia",'Entrada de dados'!F39,Velocidade!E39) -> 0.00 | M44: 0.00 | N44: 0.00 | O44: 0.00 | P44: =IF($B$2="CEFISE Biotecnologia",Velocidade!A39,Velocidade!H39) -> 0.0000000 | Q44: 31.00 | R44: 0.00 | S44: 0.00 | U44: 0 | V44: 0
A45: ='Entrada de dados'!A40 -> 0 | B45: 0 | C45: ='Entrada de dados'!C40 -> 0.00 | D45: 0.00 | E45: 0.00 | F45: 0.00 | H45: ='Entrada de dados'!D40 -> 0.00 | I45: 0.00 | J45: 0.00 | K45: 0.00 | L45: =IF($B$2="CEFISE Biotecnologia",'Entrada de dados'!F40,Velocidade!E40) -> 0.00 | M45: 0.00 | N45: 0.00 | O45: 0.00 | P45: =IF($B$2="CEFISE Biotecnologia",Velocidade!A40,Velocidade!H40) -> 0.0000000 | Q45: 32.00 | R45: 0.00 | S45: 0.00 | U45: 0 | V45: 0
A46: ='Entrada de dados'!A41 -> 0 | B46: 0 | C46: ='Entrada de dados'!C41 -> 0.00 | D46: 0.00 | E46: 0.00 | F46: 0.00 | H46: ='Entrada de dados'!D41 -> 0.00 | I46: 0.00 | J46: 0.00 | K46: 0.00 | L46: =IF($B$2="CEFISE Biotecnologia",'Entrada de dados'!F41,Velocidade!E41) -> 0.00 | M46: 0.00 | N46: 0.00 | O46: 0.00 | P46: =IF($B$2="CEFISE Biotecnologia",Velocidade!A41,Velocidade!H41) -> 0.0000000 | Q46: 33.00 | R46: 0.00 | S46: 0.00 | U46: 0 | V46: 0
A47: ='Entrada de dados'!A42 -> 0 | B47: 0 | C47: ='Entrada de dados'!C42 -> 0.00 | D47: 0.00 | E47: 0.00 | F47: 0.00 | H47: ='Entrada de dados'!D42 -> 0.00 | I47: 0.00 | J47: 0.00 | K47: 0.00 | L47: =IF($B$2="CEFISE Biotecnologia",'Entrada de dados'!F42,Velocidade!E42) -> 0.00 | M47: 0.00 | N47: 0.00 | O47: 0.00 | P47: =IF($B$2="CEFISE Biotecnologia",Velocidade!A42,Velocidade!H42) -> 0.0000000 | Q47: 34.00 | R47: 0.00 | S47: 0.00 | U47: 0 | V47: 0
A48: ='Entrada de dados'!A43 -> 0 | B48: 0 | C48: ='Entrada de dados'!C43 -> 0.00 | D48: 0.00 | E48: 0.00 | F48: 0.00 | H48: ='Entrada de dados'!D43 -> 0.00 | I48: 0.00 | J48: 0.00 | K48: 0.00 | L48: =IF($B$2="CEFISE Biotecnologia",'Entrada de dados'!F43,Velocidade!E43) -> 0.00 | M48: 0.00 | N48: 0.00 | O48: 0.00 | P48: =IF($B$2="CEFISE Biotecnologia",Velocidade!A43,Velocidade!H43) -> 0.0000000 | Q48: 35.00 | R48: 0.00 | S48: 0.00 | U48: 0 | V48: 0
A49: ='Entrada de dados'!A44 -> 0 | B49: 0 | C49: ='Entrada de dados'!C44 -> 0.00 | D49: 0.00 | E49: 0.00 | F49: 0.00 | H49: ='Entrada de dados'!D44 -> 0.00 | I49: 0.00 | J49: 0.00 | K49: 0.00 | L49: =IF($B$2="CEFISE Biotecnologia",'Entrada de dados'!F44,Velocidade!E44) -> 0.00 | M49: 0.00 | N49: 0.00 | O49: 0.00 | P49: =IF($B$2="CEFISE Biotecnologia",Velocidade!A44,Velocidade!H44) -> 0.0000000 | Q49: 36.00 | R49: 0.00 | S49: 0.00 | U49: 0 | V49: 0
A50: ='Entrada de dados'!A45 -> 0 | B50: 0 | C50: ='Entrada de dados'!C45 -> 0.00 | D50: 0.00 | E50: 0.00 | F50: 0.00 | H50: ='Entrada de dados'!D45 -> 0.00 | I50: 0.00 | J50: 0.00 | K50: 0.00 | L50: =IF($B$2="CEFISE Biotecnologia",'Entrada de dados'!F45,Velocidade!E45) -> 0.00 | M50: 0.00 | N50: 0.00 | O50: 0.00 | P50: =IF($B$2="CEFISE Biotecnologia",Velocidade!A45,Velocidade!H45) -> 0.0000000 | Q50: 37.00 | R50: 0.00 | S50: 0.00 | U50: 0 | V50: 0
A51: ='Entrada de dados'!A46 -> 0 | B51: 0 | C51: ='Entrada de dados'!C46 -> 0.00 | D51: 0.00 | E51: 0.00 | F51: 0.00 | H51: ='Entrada de dados'!D46 -> 0.00 | I51: 0.00 | J51: 0.00 | K51: 0.00 | L51: =IF($B$2="CEFISE Biotecnologia",'Entrada de dados'!F46,Velocidade!E46) -> 0.00 | M51: 0.00 | N51: 0.00 | O51: 0.00 | P51: =IF($B$2="CEFISE Biotecnologia",Velocidade!A46,Velocidade!H46) -> 0.0000000 | Q51: 38.00 | R51: 0.00 | S51: 0.00 | U51: 0 | V51: 0
A52: ='Entrada de dados'!A47 -> 0 | B52: 0 | C52: ='Entrada de dados'!C47 -> 0.00 | D52: 0.00 | E52: 0.00 | F52: 0.00 | H52: ='Entrada de dados'!D47 -> 0.00 | I52: 0.00 | J52: 0.00 | K52: 0.00 | L52: =IF($B$2="CEFISE Biotecnologia",'Entrada de dados'!F47,Velocidade!E47) -> 0.00 | M52: 0.00 | N52: 0.00 | O52: 0.00 | P52: =IF($B$2="CEFISE Biotecnologia",Velocidade!A47,Velocidade!H47) -> 0.0000000 | Q52: 39.00 | R52: 0.00 | S52: 0.00 | U52: 0 | V52: 0
A53: ='Entrada de dados'!A48 -> 0 | B53: 0 | C53: ='Entrada de dados'!C48 -> 0.00 | D53: 0.00 | E53: 0.00 | F53: 0.00 | H53: ='Entrada de dados'!D48 -> 0.00 | I53: 0.00 | J53: 0.00 | K53: 0.00 | L53: =IF($B$2="CEFISE Biotecnologia",'Entrada de dados'!F48,Velocidade!E48) -> 0.00 | M53: 0.00 | N53: 0.00 | O53: 0.00 | P53: =IF($B$2="CEFISE Biotecnologia",Velocidade!A48,Velocidade!H48) -> 0.0000000 | Q53: 40.00 | R53: 0.00 | S53: 0.00 | U53: 0 | V53: 0
A54: ='Entrada de dados'!A49 -> 0 | B54: 0 | C54: ='Entrada de dados'!C49 -> 0.00 | D54: 0.00 | E54: 0.00 | F54: 0.00 | H54: ='Entrada de dados'!D49 -> 0.00 | I54: 0.00 | J54: 0.00 | K54: 0.00 | L54: =IF($B$2="CEFISE Biotecnologia",'Entrada de dados'!F49,Velocidade!E49) -> 0.00 | M54: 0.00 | N54: 0.00 | O54: 0.00 | P54: =IF($B$2="CEFISE Biotecnologia",Velocidade!A49,Velocidade!H49) -> 0.0000000 | Q54: 41.00 | R54: 0.00 | S54: 0.00 | U54: 0 | V54: 0
A55: ='Entrada de dados'!A50 -> 0 | B55: 0 | C55: ='Entrada de dados'!C50 -> 0.00 | D55: 0.00 | E55: 0.00 | F55: 0.00 | H55: ='Entrada de dados'!D50 -> 0.00 | I55: 0.00 | J55: 0.00 | K55: 0.00 | L55: =IF($B$2="CEFISE Biotecnologia",'Entrada de dados'!F50,Velocidade!E50) -> 0.00 | M55: 0.00 | N55: 0.00 | O55: 0.00 | P55: =IF($B$2="CEFISE Biotecnologia",Velocidade!A50,Velocidade!H50) -> 0.0000000 | Q55: 42.00 | R55: 0.00 | S55: 0.00 | U55: 0 | V55: 0
A56: ='Entrada de dados'!A51 -> 0 | B56: 0 | C56: ='Entrada de dados'!C51 -> 0.00 | D56: 0.00 | E56: 0.00 | F56: 0.00 | H56: ='Entrada de dados'!D51 -> 0.00 | I56: 0.00 | J56: 0.00 | K56: 0.00 | L56: =IF($B$2="CEFISE Biotecnologia",'Entrada de dados'!F51,Velocidade!E51) -> 0.00 | M56: 0.00 | N56: 0.00 | O56: 0.00 | P56: =IF($B$2="CEFISE Biotecnologia",Velocidade!A51,Velocidade!H51) -> 0.0000000 | Q56: 43.00 | R56: 0.00 | S56: 0.00 | U56: 0 | V56: 0
A57: ='Entrada de dados'!A52 -> 0 | B57: 0 | C57: ='Entrada de dados'!C52 -> 0.00 | D57: 0.00 | E57: 0.00 | F57: 0.00 | H57: ='Entrada de dados'!D52 -> 0.00 | I57: 0.00 | J57: 0.00 | K57: 0.00 | L57: =IF($B$2="CEFISE Biotecnologia",'Entrada de dados'!F52,Velocidade!E52) -> 0.00 | M57: 0.00 | N57: 0.00 | O57: 0.00 | P57: =IF($B$2="CEFISE Biotecnologia",Velocidade!A52,Velocidade!H52) -> 0.0000000 | Q57: 44.00 | R57: 0.00 | S57: 0.00 | U57: 0 | V57: 0
A58: ='Entrada de dados'!A53 -> 0 | B58: 0 | C58: ='Entrada de dados'!C53 -> 0.00 | D58: 0.00 | E58: 0.00 | F58: 0.00 | H58: ='Entrada de dados'!D53 -> 0.00 | I58: 0.00 | J58: 0.00 | K58: 0.00 | L58: =IF($B$2="CEFISE Biotecnologia",'Entrada de dados'!F53,Velocidade!E53) -> 0.00 | M58: 0.00 | N58: 0.00 | O58: 0.00 | P58: =IF($B$2="CEFISE Biotecnologia",Velocidade!A53,Velocidade!H53) -> 0.0000000 | Q58: 45.00 | R58: 0.00 | S58: 0.00 | U58: 0 | V58: 0
A59: ='Entrada de dados'!A54 -> 0 | B59: 0 | C59: ='Entrada de dados'!C54 -> 0.00 | D59: 0.00 | E59: 0.00 | F59: 0.00 | H59: ='Entrada de dados'!D54 -> 0.00 | I59: 0.00 | J59: 0.00 | K59: 0.00 | L59: =IF($B$2="CEFISE Biotecnologia",'Entrada de dados'!F54,Velocidade!E54) -> 0.00 | M59: 0.00 | N59: 0.00 | O59: 0.00 | P59: =IF($B$2="CEFISE Biotecnologia",Velocidade!A54,Velocidade!H54) -> 0.0000000 | Q59: 46.00 | R59: 0.00 | S59: 0.00 | U59: 0 | V59: 0
A60: ='Entrada de dados'!A55 -> 0 | B60: 0 | C60: ='Entrada de dados'!C55 -> 0.00 | D60: 0.00 | E60: 0.00 | F60: 0.00 | H60: ='Entrada de dados'!D55 -> 0.00 | I60: 0.00 | J60: 0.00 | K60: 0.00 | L60: =IF($B$2="CEFISE Biotecnologia",'Entrada de dados'!F55,Velocidade!E55) -> 0.00 | M60: 0.00 | N60: 0.00 | O60: 0.00 | P60: =IF($B$2="CEFISE Biotecnologia",Velocidade!A55,Velocidade!H55) -> 0.0000000 | Q60: 47.00 | R60: 0.00 | S60: 0.00 | U60: 0 | V60: 0
A61: ='Entrada de dados'!A56 -> 0 | B61: 0 | C61: ='Entrada de dados'!C56 -> 0.00 | D61: 0.00 | E61: 0.00 | F61: 0.00 | H61: ='Entrada de dados'!D56 -> 0.00 | I61: 0.00 | J61: 0.00 | K61: 0.00 | L61: =IF($B$2="CEFISE Biotecnologia",'Entrada de dados'!F56,Velocidade!E56) -> 0.00 | M61: 0.00 | N61: 0.00 | O61: 0.00 | P61: =IF($B$2="CEFISE Biotecnologia",Velocidade!A56,Velocidade!H56) -> 0.0000000 | Q61: 48.00 | R61: 0.00 | S61: 0.00 | U61: 0 | V61: 0
A62: ='Entrada de dados'!A57 -> 0 | B62: 0 | C62: ='Entrada de dados'!C57 -> 0.00 | D62: 0.00 | E62: 0.00 | F62: 0.00 | H62: ='Entrada de dados'!D57 -> 0.00 | I62: 0.00 | J62: 0.00 | K62: 0.00 | L62: =IF($B$2="CEFISE Biotecnologia",'Entrada de dados'!F57,Velocidade!E57) -> 0.00 | M62: 0.00 | N62: 0.00 | O62: 0.00 | P62: =IF($B$2="CEFISE Biotecnologia",Velocidade!A57,Velocidade!H57) -> 0.0000000 | Q62: 49.00 | R62: 0.00 | S62: 0.00 | U62: 0 | V62: 0
A63: ='Entrada de dados'!A58 -> 0 | B63: 0 | C63: ='Entrada de dados'!C58 -> 0.00 | D63: 0.00 | E63: 0.00 | F63: 0.00 | H63: ='Entrada de dados'!D58 -> 0.00 | I63: 0.00 | J63: 0.00 | K63: 0.00 | L63: =IF($B$2="CEFISE Biotecnologia",'Entrada de dados'!F58,Velocidade!E58) -> 0.00 | M63: 0.00 | N63: 0.00 | O63: 0.00 | P63: =IF($B$2="CEFISE Biotecnologia",Velocidade!A58,Velocidade!H58) -> 0.0000000 | Q63: 50.00 | R63: 0.00 | S63: 0.00 | U63: 0 | V63: 0
A64: ='Entrada de dados'!A59 -> 0 | B64: 0 | C64: ='Entrada de dados'!C59 -> 0.00 | D64: 0.00 | E64: 0.00 | F64: 0.00 | H64: ='Entrada de dados'!D59 -> 0.00 | I64: 0.00 | J64: 0.00 | K64: 0.00 | L64: =IF($B$2="CEFISE Biotecnologia",'Entrada de dados'!F59,Velocidade!E59) -> 0.00 | M64: 0.00 | N64: 0.00 | O64: 0.00 | P64: =IF($B$2="CEFISE Biotecnologia",Velocidade!A59,Velocidade!H59) -> 0.0000000 | Q64: 51.00 | R64: 0.00 | S64: 0.00 | U64: 0 | V64: 0
A65: ='Entrada de dados'!A60 -> 0 | B65: 0 | C65: ='Entrada de dados'!C60 -> 0.00 | D65: 0.00 | E65: 0.00 | F65: 0.00 | H65: ='Entrada de dados'!D60 -> 0.00 | I65: 0.00 | J65: 0.00 | K65: 0.00 | L65: =IF($B$2="CEFISE Biotecnologia",'Entrada de dados'!F60,Velocidade!E60) -> 0.00 | M65: 0.00 | N65: 0.00 | O65: 0.00 | P65: =IF($B$2="CEFISE Biotecnologia",Velocidade!A60,Velocidade!H60) -> 0.0000000 | Q65: 52.00 | R65: 0.00 | S65: 0.00 | U65: 0 | V65: 0
A66: ='Entrada de dados'!A61 -> 0 | B66: 0 | C66: ='Entrada de dados'!C61 -> 0.00 | D66: 0.00 | E66: 0.00 | F66: 0.00 | H66: ='Entrada de dados'!D61 -> 0.00 | I66: 0.00 | J66: 0.00 | K66: 0.00 | L66: =IF($B$2="CEFISE Biotecnologia",'Entrada de dados'!F61,Velocidade!E61) -> 0.00 | M66: 0.00 | N66: 0.00 | O66: 0.00 | P66: =IF($B$2="CEFISE Biotecnologia",Velocidade!A61,Velocidade!H61) -> 0.0000000 | Q66: 53.00 | R66: 0.00 | S66: 0.00 | U66: 0 | V66: 0
A67: ='Entrada de dados'!A62 -> 0 | B67: 0 | C67: ='Entrada de dados'!C62 -> 0.00 | D67: 0.00 | E67: 0.00 | F67: 0.00 | H67: ='Entrada de dados'!D62 -> 0.00 | I67: 0.00 | J67: 0.00 | K67: 0.00 | L67: =IF($B$2="CEFISE Biotecnologia",'Entrada de dados'!F62,Velocidade!E62) -> 0.00 | M67: 0.00 | N67: 0.00 | O67: 0.00 | P67: =IF($B$2="CEFISE Biotecnologia",Velocidade!A62,Velocidade!H62) -> 0.0000000 | Q67: 54.00 | R67: 0.00 | S67: 0.00 | U67: 0 | V67: 0
A68: ='Entrada de dados'!A63 -> 0 | B68: 0 | C68: ='Entrada de dados'!C63 -> 0.00 | D68: 0.00 | E68: 0.00 | F68: 0.00 | H68: ='Entrada de dados'!D63 -> 0.00 | I68: 0.00 | J68: 0.00 | K68: 0.00 | L68: =IF($B$2="CEFISE Biotecnologia",'Entrada de dados'!F63,Velocidade!E63) -> 0.00 | M68: 0.00 | N68: 0.00 | O68: 0.00 | P68: =IF($B$2="CEFISE Biotecnologia",Velocidade!A63,Velocidade!H63) -> 0.0000000 | Q68: 55.00 | R68: 0.00 | S68: 0.00 | U68: 0 | V68: 0
A69: ='Entrada de dados'!A64 -> 0 | B69: 0 | C69: ='Entrada de dados'!C64 -> 0.00 | D69: 0.00 | E69: 0.00 | F69: 0.00 | H69: ='Entrada de dados'!D64 -> 0.00 | I69: 0.00 | J69: 0.00 | K69: 0.00 | L69: =IF($B$2="CEFISE Biotecnologia",'Entrada de dados'!F64,Velocidade!E64) -> 0.00 | M69: 0.00 | N69: 0.00 | O69: 0.00 | P69: =IF($B$2="CEFISE Biotecnologia",Velocidade!A64,Velocidade!H64) -> 0.0000000 | Q69: 56.00 | R69: 0.00 | S69: 0.00 | U69: 0 | V69: 0
A70: ='Entrada de dados'!A65 -> 0 | B70: 0 | C70: ='Entrada de dados'!C65 -> 0.00 | D70: 0.00 | E70: 0.00 | F70: 0.00 | H70: ='Entrada de dados'!D65 -> 0.00 | I70: 0.00 | J70: 0.00 | K70: 0.00 | L70: =IF($B$2="CEFISE Biotecnologia",'Entrada de dados'!F65,Velocidade!E65) -> 0.00 | M70: 0.00 | N70: 0.00 | O70: 0.00 | P70: =IF($B$2="CEFISE Biotecnologia",Velocidade!A65,Velocidade!H65) -> 0.0000000 | Q70: 57.00 | R70: 0.00 | S70: 0.00 | U70: 0 | V70: 0
A71: ='Entrada de dados'!A66 -> 0 | B71: 0 | C71: ='Entrada de dados'!C66 -> 0.00 | D71: 0.00 | E71: 0.00 | F71: 0.00 | H71: ='Entrada de dados'!D66 -> 0.00 | I71: 0.00 | J71: 0.00 | K71: 0.00 | L71: =IF($B$2="CEFISE Biotecnologia",'Entrada de dados'!F66,Velocidade!E66) -> 0.00 | M71: 0.00 | N71: 0.00 | O71: 0.00 | P71: =IF($B$2="CEFISE Biotecnologia",Velocidade!A66,Velocidade!H66) -> 0.0000000 | Q71: 58.00 | R71: 0.00 | S71: 0.00 | U71: 0 | V71: 0
A72: ='Entrada de dados'!A67 -> 0 | B72: 0 | C72: ='Entrada de dados'!C67 -> 0.00 | D72: 0.00 | E72: 0.00 | F72: 0.00 | H72: ='Entrada de dados'!D67 -> 0.00 | I72: 0.00 | J72: 0.00 | K72: 0.00 | L72: =IF($B$2="CEFISE Biotecnologia",'Entrada de dados'!F67,Velocidade!E67) -> 0.00 | M72: 0.00 | N72: 0.00 | O72: 0.00 | P72: =IF($B$2="CEFISE Biotecnologia",Velocidade!A67,Velocidade!H67) -> 0.0000000 | Q72: 59.00 | R72: 0.00 | S72: 0.00 | U72: 0 | V72: 0
A73: ='Entrada de dados'!A68 -> 0 | B73: 0 | C73: ='Entrada de dados'!C68 -> 0.00 | D73: 0.00 | E73: 0.00 | F73: 0.00 | H73: ='Entrada de dados'!D68 -> 0.00 | I73: 0.00 | J73: 0.00 | K73: 0.00 | L73: =IF($B$2="CEFISE Biotecnologia",'Entrada de dados'!F68,Velocidade!E68) -> 0.00 | M73: 0.00 | N73: 0.00 | O73: 0.00 | P73: =IF($B$2="CEFISE Biotecnologia",Velocidade!A68,Velocidade!H68) -> 0.0000000 | Q73: 60.00 | R73: 0.00 | S73: 0.00 | U73: 0 | V73: 0
A74: ='Entrada de dados'!A69 -> 0 | B74: 0 | C74: ='Entrada de dados'!C69 -> 0.00 | D74: 0.00 | E74: 0.00 | F74: 0.00 | H74: ='Entrada de dados'!D69 -> 0.00 | I74: 0.00 | J74: 0.00 | K74: 0.00 | L74: =IF($B$2="CEFISE Biotecnologia",'Entrada de dados'!F69,Velocidade!E69) -> 0.00 | M74: 0.00 | N74: 0.00 | O74: 0.00 | P74: =IF($B$2="CEFISE Biotecnologia",Velocidade!A69,Velocidade!H69) -> 0.0000000 | Q74: 61.00 | R74: 0.00 | S74: 0.00 | U74: 0 | V74: 0
A75: ='Entrada de dados'!A70 -> 0 | B75: 0 | C75: ='Entrada de dados'!C70 -> 0.00 | D75: 0.00 | E75: 0.00 | F75: 0.00 | H75: ='Entrada de dados'!D70 -> 0.00 | I75: 0.00 | J75: 0.00 | K75: 0.00 | L75: =IF($B$2="CEFISE Biotecnologia",'Entrada de dados'!F70,Velocidade!E70) -> 0.00 | M75: 0.00 | N75: 0.00 | O75: 0.00 | P75: =IF($B$2="CEFISE Biotecnologia",Velocidade!A70,Velocidade!H70) -> 0.0000000 | Q75: 62.00 | R75: 0.00 | S75: 0.00 | U75: 0 | V75: 0
A76: ='Entrada de dados'!A71 -> 0 | B76: 0 | C76: ='Entrada de dados'!C71 -> 0.00 | D76: 0.00 | E76: 0.00 | F76: 0.00 | H76: ='Entrada de dados'!D71 -> 0.00 | I76: 0.00 | J76: 0.00 | K76: 0.00 | L76: =IF($B$2="CEFISE Biotecnologia",'Entrada de dados'!F71,Velocidade!E71) -> 0.00 | M76: 0.00 | N76: 0.00 | O76: 0.00 | P76: =IF($B$2="CEFISE Biotecnologia",Velocidade!A71,Velocidade!H71) -> 0.0000000 | Q76: 63.00 | R76: 0.00 | S76: 0.00 | U76: 0 | V76: 0
A77: ='Entrada de dados'!A72 -> 0 | B77: 0 | C77: ='Entrada de dados'!C72 -> 0.00 | D77: 0.00 | E77: 0.00 | F77: 0.00 | H77: ='Entrada de dados'!D72 -> 0.00 | I77: 0.00 | J77: 0.00 | K77: 0.00 | L77: =IF($B$2="CEFISE Biotecnologia",'Entrada de dados'!F72,Velocidade!E72) -> 0.00 | M77: 0.00 | N77: 0.00 | O77: 0.00 | P77: =IF($B$2="CEFISE Biotecnologia",Velocidade!A72,Velocidade!H72) -> 0.0000000 | Q77: 64.00 | R77: 0.00 | S77: 0.00 | U77: 0 | V77: 0
A78: ='Entrada de dados'!A73 -> 0 | B78: =(1/$B$3*A78)*$B$9 -> 0 | C78: ='Entrada de dados'!C73 -> 0.00 | D78: 0.00 | E78: 0.00 | F78: =E78 -> 0.00 | G78: =F78/O78*100 ->  | H78: ='Entrada de dados'!D73 -> 0.00 | I78: 0.00 | J78: 0.00 | K78: 0.00 | L78: =IF($B$2="CEFISE Biotecnologia",'Entrada de dados'!F73,Velocidade!E73) -> 0.00 | M78: 0.00 | N78: 0.00 | O78: 0.00 | P78: =IF($B$2="CEFISE Biotecnologia",Velocidade!A73,Velocidade!H73) -> 0.0000000 | Q78: 65.00 | R78: 0.00 | S78: 0.00 | T78: =(O78-$B$6)/$B$8 ->  | U78: =IF(OR(C78=0,H78=0),0,T78*G78%) -> 0 | V78: =IF(OR(C78=0,H78=0),0,T78-U78) -> 0
A79: ='Entrada de dados'!A74 -> 0 | B79: 0 | C79: ='Entrada de dados'!C74 -> 0.00 | D79: 0.00 | E79: 0.00 | F79: 0.00 | H79: ='Entrada de dados'!D74 -> 0.00 | I79: 0.00 | J79: 0.00 | K79: 0.00 | L79: =IF($B$2="CEFISE Biotecnologia",'Entrada de dados'!F74,Velocidade!E74) -> 0.00 | M79: =AVERAGE(L78:L80) -> 0.00 | N79: 0.00 | O79: 0.00 | P79: =IF($B$2="CEFISE Biotecnologia",Velocidade!A74,Velocidade!H74) -> 0.0000000 | Q79: =IF(P79=$P$9,1+Q78,IF(P79=$P$10,0,Q78)) -> 66.00 | R79: =IF(Q79=1,Q79+R78,0) -> 0.00 | S79: =IF(AND(R79>=$S$10,R79<$Q$10-$S$10),O79,0) -> 0.00 | U79: 0 | V79: 0
A80: ='Entrada de dados'!A75 -> 0 | B80: 0 | C80: ='Entrada de dados'!C75 -> 0.00 | D80: 0.00 | E80: 0.00 | F80: 0.00 | H80: ='Entrada de dados'!D75 -> 0.00 | I80: 0.00 | J80: 0.00 | K80: 0.00 | L80: =IF($B$2="CEFISE Biotecnologia",'Entrada de dados'!F75,Velocidade!E75) -> 0.00 | M80: 0.00 | N80: 0.00 | O80: 0.00 | P80: =IF($B$2="CEFISE Biotecnologia",Velocidade!A75,Velocidade!H75) -> 0.0000000 | Q80: 67.00 | R80: 0.00 | S80: 0.00 | U80: 0 | V80: 0
A81: ='Entrada de dados'!A76 -> 0 | B81: 0 | C81: ='Entrada de dados'!C76 -> 0.00 | D81: 0.00 | E81: 0.00 | F81: 0.00 | H81: ='Entrada de dados'!D76 -> 0.00 | I81: 0.00 | J81: 0.00 | K81: 0.00 | L81: =IF($B$2="CEFISE Biotecnologia",'Entrada de dados'!F76,Velocidade!E76) -> 0.00 | M81: 0.00 | N81: 0.00 | O81: 0.00 | P81: =IF($B$2="CEFISE Biotecnologia",Velocidade!A76,Velocidade!H76) -> 0.0000000 | Q81: 68.00 | R81: 0.00 | S81: 0.00 | U81: 0 | V81: 0
A82: ='Entrada de dados'!A77 -> 0 | B82: 0 | C82: ='Entrada de dados'!C77 -> 0.00 | D82: 0.00 | E82: 0.00 | F82: 0.00 | H82: ='Entrada de dados'!D77 -> 0.00 | I82: 0.00 | J82: 0.00 | K82: 0.00 | L82: =IF($B$2="CEFISE Biotecnologia",'Entrada de dados'!F77,Velocidade!E77) -> 0.00 | M82: 0.00 | N82: 0.00 | O82: 0.00 | P82: =IF($B$2="CEFISE Biotecnologia",Velocidade!A77,Velocidade!H77) -> 0.0000000 | Q82: 69.00 | R82: 0.00 | S82: 0.00 | U82: 0 | V82: 0
A83: ='Entrada de dados'!A78 -> 0 | B83: 0 | C83: ='Entrada de dados'!C78 -> 0.00 | D83: =AVERAGE(C82:C84) -> 0.00 | E83: =AVERAGE(D82:D84) -> 0.00 | F83: 0.00 | H83: ='Entrada de dados'!D78 -> 0.00 | I83: 0.00 | J83: 0.00 | K83: 0.00 | L83: =IF($B$2="CEFISE Biotecnologia",'Entrada de dados'!F78,Velocidade!E78) -> 0.00 | M83: 0.00 | N83: 0.00 | O83: 0.00 | P83: =IF($B$2="CEFISE Biotecnologia",Velocidade!A78,Velocidade!H78) -> 0.0000000 | Q83: 70.00 | R83: 0.00 | S83: 0.00 | U83: 0 | V83: 0
A84: ='Entrada de dados'!A79 -> 0 | B84: 0 | C84: ='Entrada de dados'!C79 -> 0.00 | D84: 0.00 | E84: 0.00 | F84: 0.00 | H84: ='Entrada de dados'!D79 -> 0.00 | I84: 0.00 | J84: 0.00 | K84: 0.00 | L84: =IF($B$2="CEFISE Biotecnologia",'Entrada de dados'!F79,Velocidade!E79) -> 0.00 | M84: 0.00 | N84: 0.00 | O84: 0.00 | P84: =IF($B$2="CEFISE Biotecnologia",Velocidade!A79,Velocidade!H79) -> 0.0000000 | Q84: 71.00 | R84: 0.00 | S84: 0.00 | U84: 0 | V84: 0
A85: ='Entrada de dados'!A80 -> 0 | B85: 0 | C85: ='Entrada de dados'!C80 -> 0.00 | D85: 0.00 | E85: 0.00 | F85: 0.00 | H85: ='Entrada de dados'!D80 -> 0.00 | I85: 0.00 | J85: 0.00 | K85: 0.00 | L85: =IF($B$2="CEFISE Biotecnologia",'Entrada de dados'!F80,Velocidade!E80) -> 0.00 | M85: 0.00 | N85: 0.00 | O85: 0.00 | P85: =IF($B$2="CEFISE Biotecnologia",Velocidade!A80,Velocidade!H80) -> 0.0000000 | Q85: 72.00 | R85: 0.00 | S85: 0.00 | U85: 0 | V85: 0
A86: ='Entrada de dados'!A81 -> 0 | B86: 0 | C86: ='Entrada de dados'!C81 -> 0.00 | D86: 0.00 | E86: 0.00 | F86: 0.00 | H86: ='Entrada de dados'!D81 -> 0.00 | I86: 0.00 | J86: 0.00 | K86: 0.00 | L86: =IF($B$2="CEFISE Biotecnologia",'Entrada de dados'!F81,Velocidade!E81) -> 0.00 | M86: 0.00 | N86: 0.00 | O86: 0.00 | P86: =IF($B$2="CEFISE Biotecnologia",Velocidade!A81,Velocidade!H81) -> 0.0000000 | Q86: 73.00 | R86: 0.00 | S86: 0.00 | U86: 0 | V86: 0
A87: ='Entrada de dados'!A82 -> 0 | B87: 0 | C87: ='Entrada de dados'!C82 -> 0.00 | D87: 0.00 | E87: 0.00 | F87: 0.00 | H87: ='Entrada de dados'!D82 -> 0.00 | I87: =AVERAGE(H86:H88) -> 0.00 | J87: =AVERAGE(I86:I88) -> 0.00 | K87: =AVERAGE(J86:J88) -> 0.00 | L87: =IF($B$2="CEFISE Biotecnologia",'Entrada de dados'!F82,Velocidade!E82) -> 0.00 | M87: 0.00 | N87: 0.00 | O87: 0.00 | P87: =IF($B$2="CEFISE Biotecnologia",Velocidade!A82,Velocidade!H82) -> 0.0000000 | Q87: 74.00 | R87: 0.00 | S87: 0.00 | U87: 0 | V87: 0
A88: ='Entrada de dados'!A83 -> 0 | B88: 0 | C88: ='Entrada de dados'!C83 -> 0.00 | D88: 0.00 | E88: 0.00 | F88: 0.00 | H88: ='Entrada de dados'!D83 -> 0.00 | I88: 0.00 | J88: 0.00 | K88: 0.00 | L88: =IF($B$2="CEFISE Biotecnologia",'Entrada de dados'!F83,Velocidade!E83) -> 0.00 | M88: 0.00 | N88: 0.00 | O88: 0.00 | P88: =IF($B$2="CEFISE Biotecnologia",Velocidade!A83,Velocidade!H83) -> 0.0000000 | Q88: 75.00 | R88: 0.00 | S88: 0.00 | U88: 0 | V88: 0
A89: ='Entrada de dados'!A84 -> 0 | B89: 0 | C89: ='Entrada de dados'!C84 -> 0.00 | D89: 0.00 | E89: 0.00 | F89: 0.00 | H89: ='Entrada de dados'!D84 -> 0.00 | I89: 0.00 | J89: 0.00 | K89: 0.00 | L89: =IF($B$2="CEFISE Biotecnologia",'Entrada de dados'!F84,Velocidade!E84) -> 0.00 | M89: 0.00 | N89: 0.00 | O89: 0.00 | P89: =IF($B$2="CEFISE Biotecnologia",Velocidade!A84,Velocidade!H84) -> 0.0000000 | Q89: 76.00 | R89: 0.00 | S89: 0.00 | U89: 0 | V89: 0
A90: ='Entrada de dados'!A85 -> 0 | B90: 0 | C90: ='Entrada de dados'!C85 -> 0.00 | D90: 0.00 | E90: 0.00 | F90: 0.00 | H90: ='Entrada de dados'!D85 -> 0.00 | I90: 0.00 | J90: 0.00 | K90: 0.00 | L90: =IF($B$2="CEFISE Biotecnologia",'Entrada de dados'!F85,Velocidade!E85) -> 0.00 | M90: 0.00 | N90: 0.00 | O90: 0.00 | P90: =IF($B$2="CEFISE Biotecnologia",Velocidade!A85,Velocidade!H85) -> 0.0000000 | Q90: 77.00 | R90: 0.00 | S90: 0.00 | U90: 0 | V90: 0
A91: ='Entrada de dados'!A86 -> 0 | B91: 0 | C91: ='Entrada de dados'!C86 -> 0.00 | D91: 0.00 | E91: 0.00 | F91: 0.00 | H91: ='Entrada de dados'!D86 -> 0.00 | I91: 0.00 | J91: 0.00 | K91: 0.00 | L91: =IF($B$2="CEFISE Biotecnologia",'Entrada de dados'!F86,Velocidade!E86) -> 0.00 | M91: 0.00 | N91: 0.00 | O91: 0.00 | P91: =IF($B$2="CEFISE Biotecnologia",Velocidade!A86,Velocidade!H86) -> 0.0000000 | Q91: 78.00 | R91: 0.00 | S91: 0.00 | U91: 0 | V91: 0
A92: ='Entrada de dados'!A87 -> 0 | B92: 0 | C92: ='Entrada de dados'!C87 -> 0.00 | D92: 0.00 | E92: 0.00 | F92: 0.00 | H92: ='Entrada de dados'!D87 -> 0.00 | I92: 0.00 | J92: 0.00 | K92: 0.00 | L92: =IF($B$2="CEFISE Biotecnologia",'Entrada de dados'!F87,Velocidade!E87) -> 0.00 | M92: 0.00 | N92: 0.00 | O92: 0.00 | P92: =IF($B$2="CEFISE Biotecnologia",Velocidade!A87,Velocidade!H87) -> 0.0000000 | Q92: 79.00 | R92: 0.00 | S92: 0.00 | U92: 0 | V92: 0
A93: ='Entrada de dados'!A88 -> 0 | B93: 0 | C93: ='Entrada de dados'!C88 -> 0.00 | D93: 0.00 | E93: 0.00 | F93: 0.00 | H93: ='Entrada de dados'!D88 -> 0.00 | I93: 0.00 | J93: 0.00 | K93: 0.00 | L93: =IF($B$2="CEFISE Biotecnologia",'Entrada de dados'!F88,Velocidade!E88) -> 0.00 | M93: 0.00 | N93: 0.00 | O93: 0.00 | P93: =IF($B$2="CEFISE Biotecnologia",Velocidade!A88,Velocidade!H88) -> 0.0000000 | Q93: 80.00 | R93: 0.00 | S93: 0.00 | U93: 0 | V93: 0
A94: ='Entrada de dados'!A89 -> 0 | B94: 0 | C94: ='Entrada de dados'!C89 -> 0.00 | D94: 0.00 | E94: 0.00 | F94: 0.00 | H94: ='Entrada de dados'!D89 -> 0.00 | I94: 0.00 | J94: 0.00 | K94: 0.00 | L94: =IF($B$2="CEFISE Biotecnologia",'Entrada de dados'!F89,Velocidade!E89) -> 0.00 | M94: 0.00 | N94: 0.00 | O94: 0.00 | P94: =IF($B$2="CEFISE Biotecnologia",Velocidade!A89,Velocidade!H89) -> 0.0000000 | Q94: 81.00 | R94: 0.00 | S94: 0.00 | U94: 0 | V94: 0
A95: ='Entrada de dados'!A90 -> 0 | B95: 0 | C95: ='Entrada de dados'!C90 -> 0.00 | D95: 0.00 | E95: 0.00 | F95: 0.00 | H95: ='Entrada de dados'!D90 -> 0.00 | I95: 0.00 | J95: 0.00 | K95: 0.00 | L95: =IF($B$2="CEFISE Biotecnologia",'Entrada de dados'!F90,Velocidade!E90) -> 0.00 | M95: 0.00 | N95: 0.00 | O95: 0.00 | P95: =IF($B$2="CEFISE Biotecnologia",Velocidade!A90,Velocidade!H90) -> 0.0000000 | Q95: 82.00 | R95: 0.00 | S95: 0.00 | U95: 0 | V95: 0
A96: ='Entrada de dados'!A91 -> 0 | B96: 0 | C96: ='Entrada de dados'!C91 -> 0.00 | D96: 0.00 | E96: 0.00 | F96: 0.00 | H96: ='Entrada de dados'!D91 -> 0.00 | I96: 0.00 | J96: 0.00 | K96: 0.00 | L96: =IF($B$2="CEFISE Biotecnologia",'Entrada de dados'!F91,Velocidade!E91) -> 0.00 | M96: 0.00 | N96: 0.00 | O96: 0.00 | P96: =IF($B$2="CEFISE Biotecnologia",Velocidade!A91,Velocidade!H91) -> 0.0000000 | Q96: 83.00 | R96: 0.00 | S96: 0.00 | U96: 0 | V96: 0
A97: ='Entrada de dados'!A92 -> 0 | B97: 0 | C97: ='Entrada de dados'!C92 -> 0.00 | D97: 0.00 | E97: 0.00 | F97: 0.00 | H97: ='Entrada de dados'!D92 -> 0.00 | I97: 0.00 | J97: 0.00 | K97: 0.00 | L97: =IF($B$2="CEFISE Biotecnologia",'Entrada de dados'!F92,Velocidade!E92) -> 0.00 | M97: 0.00 | N97: 0.00 | O97: 0.00 | P97: =IF($B$2="CEFISE Biotecnologia",Velocidade!A92,Velocidade!H92) -> 0.0000000 | Q97: 84.00 | R97: 0.00 | S97: 0.00 | U97: 0 | V97: 0
A98: ='Entrada de dados'!A93 -> 0 | B98: 0 | C98: ='Entrada de dados'!C93 -> 0.00 | D98: 0.00 | E98: 0.00 | F98: 0.00 | H98: ='Entrada de dados'!D93 -> 0.00 | I98: 0.00 | J98: 0.00 | K98: 0.00 | L98: =IF($B$2="CEFISE Biotecnologia",'Entrada de dados'!F93,Velocidade!E93) -> 0.00 | M98: 0.00 | N98: 0.00 | O98: 0.00 | P98: =IF($B$2="CEFISE Biotecnologia",Velocidade!A93,Velocidade!H93) -> 0.0000000 | Q98: 85.00 | R98: 0.00 | S98: 0.00 | U98: 0 | V98: 0
A99: ='Entrada de dados'!A94 -> 0 | B99: 0 | C99: ='Entrada de dados'!C94 -> 0.00 | D99: 0.00 | E99: 0.00 | F99: 0.00 | H99: ='Entrada de dados'!D94 -> 0.00 | I99: 0.00 | J99: 0.00 | K99: 0.00 | L99: =IF($B$2="CEFISE Biotecnologia",'Entrada de dados'!F94,Velocidade!E94) -> 0.00 | M99: 0.00 | N99: 0.00 | O99: 0.00 | P99: =IF($B$2="CEFISE Biotecnologia",Velocidade!A94,Velocidade!H94) -> 0.0000000 | Q99: 86.00 | R99: 0.00 | S99: 0.00 | U99: 0 | V99: 0
A100: ='Entrada de dados'!A95 -> 0 | B100: 0 | C100: ='Entrada de dados'!C95 -> 0.00 | D100: 0.00 | E100: 0.00 | F100: 0.00 | H100: ='Entrada de dados'!D95 -> 0.00 | I100: 0.00 | J100: 0.00 | K100: 0.00 | L100: =IF($B$2="CEFISE Biotecnologia",'Entrada de dados'!F95,Velocidade!E95) -> 0.00 | M100: 0.00 | N100: 0.00 | O100: 0.00 | P100: =IF($B$2="CEFISE Biotecnologia",Velocidade!A95,Velocidade!H95) -> 0.0000000 | Q100: 87.00 | R100: 0.00 | S100: 0.00 | U100: 0 | V100: 0
A101: ='Entrada de dados'!A96 -> 0 | B101: 0 | C101: ='Entrada de dados'!C96 -> 0.00 | D101: 0.00 | E101: 0.00 | F101: 0.00 | H101: ='Entrada de dados'!D96 -> 0.00 | I101: 0.00 | J101: 0.00 | K101: 0.00 | L101: =IF($B$2="CEFISE Biotecnologia",'Entrada de dados'!F96,Velocidade!E96) -> 0.00 | M101: 0.00 | N101: 0.00 | O101: 0.00 | P101: =IF($B$2="CEFISE Biotecnologia",Velocidade!A96,Velocidade!H96) -> 0.0000000 | Q101: 88.00 | R101: 0.00 | S101: 0.00 | U101: 0 | V101: 0
A102: ='Entrada de dados'!A97 -> 0 | B102: 0 | C102: ='Entrada de dados'!C97 -> 0.00 | D102: 0.00 | E102: 0.00 | F102: 0.00 | H102: ='Entrada de dados'!D97 -> 0.00 | I102: 0.00 | J102: 0.00 | K102: 0.00 | L102: =IF($B$2="CEFISE Biotecnologia",'Entrada de dados'!F97,Velocidade!E97) -> 0.00 | M102: 0.00 | N102: 0.00 | O102: 0.00 | P102: =IF($B$2="CEFISE Biotecnologia",Velocidade!A97,Velocidade!H97) -> 0.0000000 | Q102: 89.00 | R102: 0.00 | S102: 0.00 | U102: 0 | V102: 0
A103: ='Entrada de dados'!A98 -> 0 | B103: 0 | C103: ='Entrada de dados'!C98 -> 0.00 | D103: 0.00 | E103: 0.00 | F103: 0.00 | H103: ='Entrada de dados'!D98 -> 0.00 | I103: 0.00 | J103: 0.00 | K103: 0.00 | L103: =IF($B$2="CEFISE Biotecnologia",'Entrada de dados'!F98,Velocidade!E98) -> 0.00 | M103: 0.00 | N103: 0.00 | O103: 0.00 | P103: =IF($B$2="CEFISE Biotecnologia",Velocidade!A98,Velocidade!H98) -> 0.0000000 | Q103: 90.00 | R103: 0.00 | S103: 0.00 | U103: 0 | V103: 0
A104: ='Entrada de dados'!A99 -> 0 | B104: 0 | C104: ='Entrada de dados'!C99 -> 0.00 | D104: 0.00 | E104: 0.00 | F104: 0.00 | H104: ='Entrada de dados'!D99 -> 0.00 | I104: 0.00 | J104: 0.00 | K104: 0.00 | L104: =IF($B$2="CEFISE Biotecnologia",'Entrada de dados'!F99,Velocidade!E99) -> 0.00 | M104: 0.00 | N104: 0.00 | O104: 0.00 | P104: =IF($B$2="CEFISE Biotecnologia",Velocidade!A99,Velocidade!H99) -> 0.0000000 | Q104: 91.00 | R104: 0.00 | S104: 0.00 | U104: 0 | V104: 0
A105: ='Entrada de dados'!A100 -> 0 | B105: 0 | C105: ='Entrada de dados'!C100 -> 0.00 | D105: 0.00 | E105: 0.00 | F105: 0.00 | H105: ='Entrada de dados'!D100 -> 0.00 | I105: 0.00 | J105: 0.00 | K105: 0.00 | L105: =IF($B$2="CEFISE Biotecnologia",'Entrada de dados'!F100,Velocidade!E100) -> 0.00 | M105: 0.00 | N105: 0.00 | O105: 0.00 | P105: =IF($B$2="CEFISE Biotecnologia",Velocidade!A100,Velocidade!H100) -> 0.0000000 | Q105: 92.00 | R105: 0.00 | S105: 0.00 | U105: 0 | V105: 0
A106: ='Entrada de dados'!A101 -> 0 | B106: 0 | C106: ='Entrada de dados'!C101 -> 0.00 | D106: 0.00 | E106: 0.00 | F106: 0.00 | H106: ='Entrada de dados'!D101 -> 0.00 | I106: 0.00 | J106: 0.00 | K106: 0.00 | L106: =IF($B$2="CEFISE Biotecnologia",'Entrada de dados'!F101,Velocidade!E101) -> 0.00 | M106: 0.00 | N106: 0.00 | O106: 0.00 | P106: =IF($B$2="CEFISE Biotecnologia",Velocidade!A101,Velocidade!H101) -> 0.0000000 | Q106: 93.00 | R106: 0.00 | S106: 0.00 | U106: 0 | V106: 0
A107: ='Entrada de dados'!A102 -> 0 | B107: 0 | C107: ='Entrada de dados'!C102 -> 0.00 | D107: 0.00 | E107: 0.00 | F107: 0.00 | H107: ='Entrada de dados'!D102 -> 0.00 | I107: 0.00 | J107: 0.00 | K107: 0.00 | L107: =IF($B$2="CEFISE Biotecnologia",'Entrada de dados'!F102,Velocidade!E102) -> 0.00 | M107: 0.00 | N107: 0.00 | O107: 0.00 | P107: =IF($B$2="CEFISE Biotecnologia",Velocidade!A102,Velocidade!H102) -> 0.0000000 | Q107: 94.00 | R107: 0.00 | S107: 0.00 | U107: 0 | V107: 0
A108: ='Entrada de dados'!A103 -> 0 | B108: 0 | C108: ='Entrada de dados'!C103 -> 0.00 | D108: 0.00 | E108: 0.00 | F108: 0.00 | H108: ='Entrada de dados'!D103 -> 0.00 | I108: 0.00 | J108: 0.00 | K108: 0.00 | L108: =IF($B$2="CEFISE Biotecnologia",'Entrada de dados'!F103,Velocidade!E103) -> 0.00 | M108: 0.00 | N108: 0.00 | O108: 0.00 | P108: =IF($B$2="CEFISE Biotecnologia",Velocidade!A103,Velocidade!H103) -> 0.0000000 | Q108: 95.00 | R108: 0.00 | S108: 0.00 | U108: 0 | V108: 0
A109: ='Entrada de dados'!A104 -> 0 | B109: 0 | C109: ='Entrada de dados'!C104 -> 0.00 | D109: 0.00 | E109: 0.00 | F109: 0.00 | H109: ='Entrada de dados'!D104 -> 0.00 | I109: 0.00 | J109: 0.00 | K109: 0.00 | L109: =IF($B$2="CEFISE Biotecnologia",'Entrada de dados'!F104,Velocidade!E104) -> 0.00 | M109: 0.00 | N109: 0.00 | O109: 0.00 | P109: =IF($B$2="CEFISE Biotecnologia",Velocidade!A104,Velocidade!H104) -> 0.0000000 | Q109: 96.00 | R109: 0.00 | S109: 0.00 | U109: 0 | V109: 0
A110: ='Entrada de dados'!A105 -> 0 | B110: 0 | C110: ='Entrada de dados'!C105 -> 0.00 | D110: 0.00 | E110: 0.00 | F110: 0.00 | H110: ='Entrada de dados'!D105 -> 0.00 | I110: 0.00 | J110: 0.00 | K110: 0.00 | L110: =IF($B$2="CEFISE Biotecnologia",'Entrada de dados'!F105,Velocidade!E105) -> 0.00 | M110: 0.00 | N110: 0.00 | O110: 0.00 | P110: =IF($B$2="CEFISE Biotecnologia",Velocidade!A105,Velocidade!H105) -> 0.0000000 | Q110: 97.00 | R110: 0.00 | S110: 0.00 | U110: 0 | V110: 0
A111: ='Entrada de dados'!A106 -> 0 | B111: 0 | C111: ='Entrada de dados'!C106 -> 0.00 | D111: 0.00 | E111: 0.00 | F111: 0.00 | H111: ='Entrada de dados'!D106 -> 0.00 | I111: 0.00 | J111: 0.00 | K111: 0.00 | L111: =IF($B$2="CEFISE Biotecnologia",'Entrada de dados'!F106,Velocidade!E106) -> 0.00 | M111: 0.00 | N111: 0.00 | O111: 0.00 | P111: =IF($B$2="CEFISE Biotecnologia",Velocidade!A106,Velocidade!H106) -> 0.0000000 | Q111: 98.00 | R111: 0.00 | S111: 0.00 | U111: 0 | V111: 0
A112: ='Entrada de dados'!A107 -> 0 | B112: 0 | C112: ='Entrada de dados'!C107 -> 0.00 | D112: 0.00 | E112: 0.00 | F112: 0.00 | H112: ='Entrada de dados'!D107 -> 0.00 | I112: 0.00 | J112: 0.00 | K112: 0.00 | L112: =IF($B$2="CEFISE Biotecnologia",'Entrada de dados'!F107,Velocidade!E107) -> 0.00 | M112: 0.00 | N112: 0.00 | O112: 0.00 | P112: =IF($B$2="CEFISE Biotecnologia",Velocidade!A107,Velocidade!H107) -> 0.0000000 | Q112: 99.00 | R112: 0.00 | S112: 0.00 | U112: 0 | V112: 0
A113: ='Entrada de dados'!A108 -> 0 | B113: 0 | C113: ='Entrada de dados'!C108 -> 0.00 | D113: 0.00 | E113: 0.00 | F113: 0.00 | H113: ='Entrada de dados'!D108 -> 0.00 | I113: 0.00 | J113: 0.00 | K113: 0.00 | L113: =IF($B$2="CEFISE Biotecnologia",'Entrada de dados'!F108,Velocidade!E108) -> 0.00 | M113: 0.00 | N113: 0.00 | O113: 0.00 | P113: =IF($B$2="CEFISE Biotecnologia",Velocidade!A108,Velocidade!H108) -> 0.0000000 | Q113: 100.00 | R113: 0.00 | S113: 0.00 | U113: 0 | V113: 0
A114: ='Entrada de dados'!A109 -> 0 | B114: 0 | C114: ='Entrada de dados'!C109 -> 0.00 | D114: 0.00 | E114: 0.00 | F114: 0.00 | H114: ='Entrada de dados'!D109 -> 0.00 | I114: 0.00 | J114: 0.00 | K114: 0.00 | L114: =IF($B$2="CEFISE Biotecnologia",'Entrada de dados'!F109,Velocidade!E109) -> 0.00 | M114: 0.00 | N114: 0.00 | O114: 0.00 | P114: =IF($B$2="CEFISE Biotecnologia",Velocidade!A109,Velocidade!H109) -> 0.0000000 | Q114: 101.00 | R114: 0.00 | S114: 0.00 | U114: 0 | V114: 0
A115: ='Entrada de dados'!A110 -> 0 | B115: 0 | C115: ='Entrada de dados'!C110 -> 0.00 | D115: 0.00 | E115: 0.00 | F115: 0.00 | H115: ='Entrada de dados'!D110 -> 0.00 | I115: 0.00 | J115: 0.00 | K115: 0.00 | L115: =IF($B$2="CEFISE Biotecnologia",'Entrada de dados'!F110,Velocidade!E110) -> 0.00 | M115: 0.00 | N115: 0.00 | O115: 0.00 | P115: =IF($B$2="CEFISE Biotecnologia",Velocidade!A110,Velocidade!H110) -> 0.0000000 | Q115: 102.00 | R115: 0.00 | S115: 0.00 | U115: 0 | V115: 0
A116: ='Entrada de dados'!A111 -> 0 | B116: 0 | C116: ='Entrada de dados'!C111 -> 0.00 | D116: 0.00 | E116: 0.00 | F116: 0.00 | H116: ='Entrada de dados'!D111 -> 0.00 | I116: 0.00 | J116: 0.00 | K116: 0.00 | L116: =IF($B$2="CEFISE Biotecnologia",'Entrada de dados'!F111,Velocidade!E111) -> 0.00 | M116: 0.00 | N116: 0.00 | O116: 0.00 | P116: =IF($B$2="CEFISE Biotecnologia",Velocidade!A111,Velocidade!H111) -> 0.0000000 | Q116: 103.00 | R116: 0.00 | S116: 0.00 | U116: 0 | V116: 0
A117: ='Entrada de dados'!A112 -> 0 | B117: 0 | C117: ='Entrada de dados'!C112 -> 0.00 | D117: 0.00 | E117: 0.00 | F117: 0.00 | H117: ='Entrada de dados'!D112 -> 0.00 | I117: 0.00 | J117: 0.00 | K117: 0.00 | L117: =IF($B$2="CEFISE Biotecnologia",'Entrada de dados'!F112,Velocidade!E112) -> 0.00 | M117: 0.00 | N117: 0.00 | O117: 0.00 | P117: =IF($B$2="CEFISE Biotecnologia",Velocidade!A112,Velocidade!H112) -> 0.0000000 | Q117: 104.00 | R117: 0.00 | S117: 0.00 | U117: 0 | V117: 0
A118: ='Entrada de dados'!A113 -> 0 | B118: 0 | C118: ='Entrada de dados'!C113 -> 0.00 | D118: 0.00 | E118: 0.00 | F118: 0.00 | H118: ='Entrada de dados'!D113 -> 0.00 | I118: 0.00 | J118: 0.00 | K118: 0.00 | L118: =IF($B$2="CEFISE Biotecnologia",'Entrada de dados'!F113,Velocidade!E113) -> 0.00 | M118: 0.00 | N118: 0.00 | O118: 0.00 | P118: =IF($B$2="CEFISE Biotecnologia",Velocidade!A113,Velocidade!H113) -> 0.0000000 | Q118: 105.00 | R118: 0.00 | S118: 0.00 | U118: 0 | V118: 0
A119: ='Entrada de dados'!A114 -> 0 | B119: 0 | C119: ='Entrada de dados'!C114 -> 0.00 | D119: 0.00 | E119: 0.00 | F119: 0.00 | H119: ='Entrada de dados'!D114 -> 0.00 | I119: 0.00 | J119: 0.00 | K119: 0.00 | L119: =IF($B$2="CEFISE Biotecnologia",'Entrada de dados'!F114,Velocidade!E114) -> 0.00 | M119: 0.00 | N119: 0.00 | O119: 0.00 | P119: =IF($B$2="CEFISE Biotecnologia",Velocidade!A114,Velocidade!H114) -> 0.0000000 | Q119: 106.00 | R119: 0.00 | S119: 0.00 | U119: 0 | V119: 0
A120: ='Entrada de dados'!A115 -> 0 | B120: 0 | C120: ='Entrada de dados'!C115 -> 0.00 | D120: 0.00 | E120: 0.00 | F120: 0.00 | H120: ='Entrada de dados'!D115 -> 0.00 | I120: 0.00 | J120: 0.00 | K120: 0.00 | L120: =IF($B$2="CEFISE Biotecnologia",'Entrada de dados'!F115,Velocidade!E115) -> 0.00 | M120: 0.00 | N120: 0.00 | O120: 0.00 | P120: =IF($B$2="CEFISE Biotecnologia",Velocidade!A115,Velocidade!H115) -> 0.0000000 | Q120: 107.00 | R120: 0.00 | S120: 0.00 | U120: 0 | V120: 0
A121: ='Entrada de dados'!A116 -> 0 | B121: 0 | C121: ='Entrada de dados'!C116 -> 0.00 | D121: 0.00 | E121: 0.00 | F121: 0.00 | H121: ='Entrada de dados'!D116 -> 0.00 | I121: 0.00 | J121: 0.00 | K121: 0.00 | L121: =IF($B$2="CEFISE Biotecnologia",'Entrada de dados'!F116,Velocidade!E116) -> 0.00 | M121: 0.00 | N121: 0.00 | O121: 0.00 | P121: =IF($B$2="CEFISE Biotecnologia",Velocidade!A116,Velocidade!H116) -> 0.0000000 | Q121: 108.00 | R121: 0.00 | S121: 0.00 | U121: 0 | V121: 0
A122: ='Entrada de dados'!A117 -> 0 | B122: 0 | C122: ='Entrada de dados'!C117 -> 0.00 | D122: 0.00 | E122: 0.00 | F122: 0.00 | H122: ='Entrada de dados'!D117 -> 0.00 | I122: 0.00 | J122: 0.00 | K122: 0.00 | L122: =IF($B$2="CEFISE Biotecnologia",'Entrada de dados'!F117,Velocidade!E117) -> 0.00 | M122: 0.00 | N122: 0.00 | O122: 0.00 | P122: =IF($B$2="CEFISE Biotecnologia",Velocidade!A117,Velocidade!H117) -> 0.0000000 | Q122: 109.00 | R122: 0.00 | S122: 0.00 | U122: 0 | V122: 0
A123: ='Entrada de dados'!A118 -> 0 | B123: 0 | C123: ='Entrada de dados'!C118 -> 0.00 | D123: 0.00 | E123: 0.00 | F123: 0.00 | H123: ='Entrada de dados'!D118 -> 0.00 | I123: 0.00 | J123: 0.00 | K123: 0.00 | L123: =IF($B$2="CEFISE Biotecnologia",'Entrada de dados'!F118,Velocidade!E118) -> 0.00 | M123: 0.00 | N123: 0.00 | O123: 0.00 | P123: =IF($B$2="CEFISE Biotecnologia",Velocidade!A118,Velocidade!H118) -> 0.0000000 | Q123: 110.00 | R123: 0.00 | S123: 0.00 | U123: 0 | V123: 0
A124: ='Entrada de dados'!A119 -> 0 | B124: 0 | C124: ='Entrada de dados'!C119 -> 0.00 | D124: 0.00 | E124: 0.00 | F124: 0.00 | H124: ='Entrada de dados'!D119 -> 0.00 | I124: 0.00 | J124: 0.00 | K124: 0.00 | L124: =IF($B$2="CEFISE Biotecnologia",'Entrada de dados'!F119,Velocidade!E119) -> 0.00 | M124: 0.00 | N124: 0.00 | O124: 0.00 | P124: =IF($B$2="CEFISE Biotecnologia",Velocidade!A119,Velocidade!H119) -> 0.0000000 | Q124: 111.00 | R124: 0.00 | S124: 0.00 | U124: 0 | V124: 0
A125: ='Entrada de dados'!A120 -> 0 | B125: 0 | C125: ='Entrada de dados'!C120 -> 0.00 | D125: 0.00 | E125: 0.00 | F125: 0.00 | H125: ='Entrada de dados'!D120 -> 0.00 | I125: 0.00 | J125: 0.00 | K125: 0.00 | L125: =IF($B$2="CEFISE Biotecnologia",'Entrada de dados'!F120,Velocidade!E120) -> 0.00 | M125: 0.00 | N125: 0.00 | O125: 0.00 | P125: =IF($B$2="CEFISE Biotecnologia",Velocidade!A120,Velocidade!H120) -> 0.0000000 | Q125: 112.00 | R125: 0.00 | S125: 0.00 | U125: 0 | V125: 0
A126: ='Entrada de dados'!A121 -> 0 | B126: 0 | C126: ='Entrada de dados'!C121 -> 0.00 | D126: 0.00 | E126: 0.00 | F126: 0.00 | H126: ='Entrada de dados'!D121 -> 0.00 | I126: 0.00 | J126: 0.00 | K126: 0.00 | L126: =IF($B$2="CEFISE Biotecnologia",'Entrada de dados'!F121,Velocidade!E121) -> 0.00 | M126: 0.00 | N126: 0.00 | O126: 0.00 | P126: =IF($B$2="CEFISE Biotecnologia",Velocidade!A121,Velocidade!H121) -> 0.0000000 | Q126: 113.00 | R126: 0.00 | S126: 0.00 | U126: 0 | V126: 0
A127: ='Entrada de dados'!A122 -> 0 | B127: 0 | C127: ='Entrada de dados'!C122 -> 0.00 | D127: 0.00 | E127: 0.00 | F127: 0.00 | H127: ='Entrada de dados'!D122 -> 0.00 | I127: 0.00 | J127: 0.00 | K127: 0.00 | L127: =IF($B$2="CEFISE Biotecnologia",'Entrada de dados'!F122,Velocidade!E122) -> 0.00 | M127: 0.00 | N127: 0.00 | O127: 0.00 | P127: =IF($B$2="CEFISE Biotecnologia",Velocidade!A122,Velocidade!H122) -> 0.0000000 | Q127: 114.00 | R127: 0.00 | S127: 0.00 | U127: 0 | V127: 0
A128: ='Entrada de dados'!A123 -> 0 | B128: 0 | C128: ='Entrada de dados'!C123 -> 0.00 | D128: 0.00 | E128: 0.00 | F128: 0.00 | H128: ='Entrada de dados'!D123 -> 0.00 | I128: 0.00 | J128: 0.00 | K128: 0.00 | L128: =IF($B$2="CEFISE Biotecnologia",'Entrada de dados'!F123,Velocidade!E123) -> 0.00 | M128: 0.00 | N128: 0.00 | O128: 0.00 | P128: =IF($B$2="CEFISE Biotecnologia",Velocidade!A123,Velocidade!H123) -> 0.0000000 | Q128: 115.00 | R128: 0.00 | S128: 0.00 | U128: 0 | V128: 0
A129: ='Entrada de dados'!A124 -> 0 | B129: 0 | C129: ='Entrada de dados'!C124 -> 0.00 | D129: 0.00 | E129: 0.00 | F129: 0.00 | H129: ='Entrada de dados'!D124 -> 0.00 | I129: 0.00 | J129: 0.00 | K129: 0.00 | L129: =IF($B$2="CEFISE Biotecnologia",'Entrada de dados'!F124,Velocidade!E124) -> 0.00 | M129: 0.00 | N129: 0.00 | O129: 0.00 | P129: =IF($B$2="CEFISE Biotecnologia",Velocidade!A124,Velocidade!H124) -> 0.0000000 | Q129: 116.00 | R129: 0.00 | S129: 0.00 | U129: 0 | V129: 0
A130: ='Entrada de dados'!A125 -> 0 | B130: 0 | C130: ='Entrada de dados'!C125 -> 0.00 | D130: 0.00 | E130: 0.00 | F130: 0.00 | H130: ='Entrada de dados'!D125 -> 0.00 | I130: 0.00 | J130: 0.00 | K130: 0.00 | L130: =IF($B$2="CEFISE Biotecnologia",'Entrada de dados'!F125,Velocidade!E125) -> 0.00 | M130: 0.00 | N130: 0.00 | O130: 0.00 | P130: =IF($B$2="CEFISE Biotecnologia",Velocidade!A125,Velocidade!H125) -> 0.0000000 | Q130: 117.00 | R130: 0.00 | S130: 0.00 | U130: 0 | V130: 0
A131: ='Entrada de dados'!A126 -> 0 | B131: 0 | C131: ='Entrada de dados'!C126 -> 0.00 | D131: 0.00 | E131: 0.00 | F131: 0.00 | H131: ='Entrada de dados'!D126 -> 0.00 | I131: 0.00 | J131: 0.00 | K131: 0.00 | L131: =IF($B$2="CEFISE Biotecnologia",'Entrada de dados'!F126,Velocidade!E126) -> 0.00 | M131: 0.00 | N131: 0.00 | O131: 0.00 | P131: =IF($B$2="CEFISE Biotecnologia",Velocidade!A126,Velocidade!H126) -> 0.0000000 | Q131: 118.00 | R131: 0.00 | S131: 0.00 | U131: 0 | V131: 0
A132: ='Entrada de dados'!A127 -> 0 | B132: 0 | C132: ='Entrada de dados'!C127 -> 0.00 | D132: 0.00 | E132: 0.00 | F132: 0.00 | H132: ='Entrada de dados'!D127 -> 0.00 | I132: 0.00 | J132: 0.00 | K132: 0.00 | L132: =IF($B$2="CEFISE Biotecnologia",'Entrada de dados'!F127,Velocidade!E127) -> 0.00 | M132: 0.00 | N132: 0.00 | O132: 0.00 | P132: =IF($B$2="CEFISE Biotecnologia",Velocidade!A127,Velocidade!H127) -> 0.0000000 | Q132: 119.00 | R132: 0.00 | S132: 0.00 | U132: 0 | V132: 0
A133: ='Entrada de dados'!A128 -> 0 | B133: 0 | C133: ='Entrada de dados'!C128 -> 0.00 | D133: 0.00 | E133: 0.00 | F133: 0.00 | H133: ='Entrada de dados'!D128 -> 0.00 | I133: 0.00 | J133: 0.00 | K133: 0.00 | L133: =IF($B$2="CEFISE Biotecnologia",'Entrada de dados'!F128,Velocidade!E128) -> 0.00 | M133: 0.00 | N133: 0.00 | O133: 0.00 | P133: =IF($B$2="CEFISE Biotecnologia",Velocidade!A128,Velocidade!H128) -> 0.0000000 | Q133: 120.00 | R133: 0.00 | S133: 0.00 | U133: 0 | V133: 0
A134: ='Entrada de dados'!A129 -> 0 | B134: 0 | C134: ='Entrada de dados'!C129 -> 0.00 | D134: 0.00 | E134: 0.00 | F134: 0.00 | H134: ='Entrada de dados'!D129 -> 0.00 | I134: 0.00 | J134: 0.00 | K134: 0.00 | L134: =IF($B$2="CEFISE Biotecnologia",'Entrada de dados'!F129,Velocidade!E129) -> 0.00 | M134: 0.00 | N134: 0.00 | O134: 0.00 | P134: =IF($B$2="CEFISE Biotecnologia",Velocidade!A129,Velocidade!H129) -> 0.0000000 | Q134: 121.00 | R134: 0.00 | S134: 0.00 | U134: 0 | V134: 0
A135: ='Entrada de dados'!A130 -> 0 | B135: 0 | C135: ='Entrada de dados'!C130 -> 0.00 | D135: 0.00 | E135: 0.00 | F135: 0.00 | H135: ='Entrada de dados'!D130 -> 0.00 | I135: 0.00 | J135: 0.00 | K135: 0.00 | L135: =IF($B$2="CEFISE Biotecnologia",'Entrada de dados'!F130,Velocidade!E130) -> 0.00 | M135: 0.00 | N135: 0.00 | O135: 0.00 | P135: =IF($B$2="CEFISE Biotecnologia",Velocidade!A130,Velocidade!H130) -> 0.0000000 | Q135: 122.00 | R135: 0.00 | S135: 0.00 | U135: 0 | V135: 0
A136: ='Entrada de dados'!A131 -> 0 | B136: 0 | C136: ='Entrada de dados'!C131 -> 0.00 | D136: 0.00 | E136: 0.00 | F136: 0.00 | H136: ='Entrada de dados'!D131 -> 0.00 | I136: 0.00 | J136: 0.00 | K136: 0.00 | L136: =IF($B$2="CEFISE Biotecnologia",'Entrada de dados'!F131,Velocidade!E131) -> 0.00 | M136: 0.00 | N136: 0.00 | O136: 0.00 | P136: =IF($B$2="CEFISE Biotecnologia",Velocidade!A131,Velocidade!H131) -> 0.0000000 | Q136: 123.00 | R136: 0.00 | S136: 0.00 | U136: 0 | V136: 0
A137: ='Entrada de dados'!A132 -> 0 | B137: 0 | C137: ='Entrada de dados'!C132 -> 0.00 | D137: 0.00 | E137: 0.00 | F137: 0.00 | H137: ='Entrada de dados'!D132 -> 0.00 | I137: 0.00 | J137: 0.00 | K137: 0.00 | L137: =IF($B$2="CEFISE Biotecnologia",'Entrada de dados'!F132,Velocidade!E132) -> 0.00 | M137: 0.00 | N137: 0.00 | O137: 0.00 | P137: =IF($B$2="CEFISE Biotecnologia",Velocidade!A132,Velocidade!H132) -> 0.0000000 | Q137: 124.00 | R137: 0.00 | S137: 0.00 | U137: 0 | V137: 0
A138: ='Entrada de dados'!A133 -> 0 | B138: 0 | C138: ='Entrada de dados'!C133 -> 0.00 | D138: 0.00 | E138: 0.00 | F138: 0.00 | H138: ='Entrada de dados'!D133 -> 0.00 | I138: 0.00 | J138: 0.00 | K138: 0.00 | L138: =IF($B$2="CEFISE Biotecnologia",'Entrada de dados'!F133,Velocidade!E133) -> 0.00 | M138: 0.00 | N138: 0.00 | O138: 0.00 | P138: =IF($B$2="CEFISE Biotecnologia",Velocidade!A133,Velocidade!H133) -> 0.0000000 | Q138: 125.00 | R138: 0.00 | S138: 0.00 | U138: 0 | V138: 0
A139: ='Entrada de dados'!A134 -> 0 | B139: 0 | C139: ='Entrada de dados'!C134 -> 0.00 | D139: 0.00 | E139: 0.00 | F139: 0.00 | H139: ='Entrada de dados'!D134 -> 0.00 | I139: 0.00 | J139: 0.00 | K139: 0.00 | L139: =IF($B$2="CEFISE Biotecnologia",'Entrada de dados'!F134,Velocidade!E134) -> 0.00 | M139: 0.00 | N139: 0.00 | O139: 0.00 | P139: =IF($B$2="CEFISE Biotecnologia",Velocidade!A134,Velocidade!H134) -> 0.0000000 | Q139: 126.00 | R139: 0.00 | S139: 0.00 | U139: 0 | V139: 0
A140: ='Entrada de dados'!A135 -> 0 | B140: 0 | C140: ='Entrada de dados'!C135 -> 0.00 | D140: 0.00 | E140: 0.00 | F140: 0.00 | H140: ='Entrada de dados'!D135 -> 0.00 | I140: 0.00 | J140: 0.00 | K140: 0.00 | L140: =IF($B$2="CEFISE Biotecnologia",'Entrada de dados'!F135,Velocidade!E135) -> 0.00 | M140: 0.00 | N140: 0.00 | O140: 0.00 | P140: =IF($B$2="CEFISE Biotecnologia",Velocidade!A135,Velocidade!H135) -> 0.0000000 | Q140: 127.00 | R140: 0.00 | S140: 0.00 | U140: 0 | V140: 0
A141: ='Entrada de dados'!A136 -> 0 | B141: 0 | C141: ='Entrada de dados'!C136 -> 0.00 | D141: 0.00 | E141: 0.00 | F141: 0.00 | H141: ='Entrada de dados'!D136 -> 0.00 | I141: 0.00 | J141: 0.00 | K141: 0.00 | L141: =IF($B$2="CEFISE Biotecnologia",'Entrada de dados'!F136,Velocidade!E136) -> 0.00 | M141: 0.00 | N141: 0.00 | O141: 0.00 | P141: =IF($B$2="CEFISE Biotecnologia",Velocidade!A136,Velocidade!H136) -> 0.0000000 | Q141: 128.00 | R141: 0.00 | S141: 0.00 | U141: 0 | V141: 0
A142: ='Entrada de dados'!A137 -> 0 | B142: =(1/$B$3*A142)*$B$9 -> 0 | C142: ='Entrada de dados'!C137 -> 0.00 | D142: 0.00 | E142: 0.00 | F142: =E142 -> 0.00 | G142: =F142/O142*100 ->  | H142: ='Entrada de dados'!D137 -> 0.00 | I142: 0.00 | J142: 0.00 | K142: 0.00 | L142: =IF($B$2="CEFISE Biotecnologia",'Entrada de dados'!F137,Velocidade!E137) -> 0.00 | M142: 0.00 | N142: 0.00 | O142: 0.00 | P142: =IF($B$2="CEFISE Biotecnologia",Velocidade!A137,Velocidade!H137) -> 0.0000000 | Q142: 129.00 | R142: 0.00 | S142: 0.00 | T142: =(O142-$B$6)/$B$8 ->  | U142: =IF(OR(C142=0,H142=0),0,T142*G142%) -> 0 | V142: =IF(OR(C142=0,H142=0),0,T142-U142) -> 0
A143: ='Entrada de dados'!A138 -> 0 | B143: 0 | C143: ='Entrada de dados'!C138 -> 0.00 | D143: 0.00 | E143: 0.00 | F143: 0.00 | H143: ='Entrada de dados'!D138 -> 0.00 | I143: 0.00 | J143: 0.00 | K143: 0.00 | L143: =IF($B$2="CEFISE Biotecnologia",'Entrada de dados'!F138,Velocidade!E138) -> 0.00 | M143: =AVERAGE(L142:L144) -> 0.00 | N143: 0.00 | O143: 0.00 | P143: =IF($B$2="CEFISE Biotecnologia",Velocidade!A138,Velocidade!H138) -> 0.0000000 | Q143: =IF(P143=$P$9,1+Q142,IF(P143=$P$10,0,Q142)) -> 130.00 | R143: =IF(Q143=1,Q143+R142,0) -> 0.00 | S143: =IF(AND(R143>=$S$10,R143<$Q$10-$S$10),O143,0) -> 0.00 | U143: 0 | V143: 0
A144: ='Entrada de dados'!A139 -> 0 | B144: 0 | C144: ='Entrada de dados'!C139 -> 0.00 | D144: 0.00 | E144: 0.00 | F144: 0.00 | H144: ='Entrada de dados'!D139 -> 0.00 | I144: 0.00 | J144: 0.00 | K144: 0.00 | L144: =IF($B$2="CEFISE Biotecnologia",'Entrada de dados'!F139,Velocidade!E139) -> 0.00 | M144: 0.00 | N144: 0.00 | O144: 0.00 | P144: =IF($B$2="CEFISE Biotecnologia",Velocidade!A139,Velocidade!H139) -> 0.0000000 | Q144: 131.00 | R144: 0.00 | S144: 0.00 | U144: 0 | V144: 0
A145: ='Entrada de dados'!A140 -> 0 | B145: 0 | C145: ='Entrada de dados'!C140 -> 0.00 | D145: 0.00 | E145: 0.00 | F145: 0.00 | H145: ='Entrada de dados'!D140 -> 0.00 | I145: 0.00 | J145: 0.00 | K145: 0.00 | L145: =IF($B$2="CEFISE Biotecnologia",'Entrada de dados'!F140,Velocidade!E140) -> 0.00 | M145: 0.00 | N145: 0.00 | O145: 0.00 | P145: =IF($B$2="CEFISE Biotecnologia",Velocidade!A140,Velocidade!H140) -> 0.0000000 | Q145: 132.00 | R145: 0.00 | S145: 0.00 | U145: 0 | V145: 0
A146: ='Entrada de dados'!A141 -> 0 | B146: 0 | C146: ='Entrada de dados'!C141 -> 0.00 | D146: 0.00 | E146: 0.00 | F146: 0.00 | H146: ='Entrada de dados'!D141 -> 0.00 | I146: 0.00 | J146: 0.00 | K146: 0.00 | L146: =IF($B$2="CEFISE Biotecnologia",'Entrada de dados'!F141,Velocidade!E141) -> 0.00 | M146: 0.00 | N146: 0.00 | O146: 0.00 | P146: =IF($B$2="CEFISE Biotecnologia",Velocidade!A141,Velocidade!H141) -> 0.0000000 | Q146: 133.00 | R146: 0.00 | S146: 0.00 | U146: 0 | V146: 0
A147: ='Entrada de dados'!A142 -> 0 | B147: 0 | C147: ='Entrada de dados'!C142 -> 0.00 | D147: =AVERAGE(C146:C148) -> 0.00 | E147: =AVERAGE(D146:D148) -> 0.00 | F147: 0.00 | H147: ='Entrada de dados'!D142 -> 0.00 | I147: 0.00 | J147: 0.00 | K147: 0.00 | L147: =IF($B$2="CEFISE Biotecnologia",'Entrada de dados'!F142,Velocidade!E142) -> 0.00 | M147: 0.00 | N147: 0.00 | O147: 0.00 | P147: =IF($B$2="CEFISE Biotecnologia",Velocidade!A142,Velocidade!H142) -> 0.0000000 | Q147: 134.00 | R147: 0.00 | S147: 0.00 | U147: 0 | V147: 0
A148: ='Entrada de dados'!A143 -> 0 | B148: 0 | C148: ='Entrada de dados'!C143 -> 0.00 | D148: 0.00 | E148: 0.00 | F148: 0.00 | H148: ='Entrada de dados'!D143 -> 0.00 | I148: 0.00 | J148: 0.00 | K148: 0.00 | L148: =IF($B$2="CEFISE Biotecnologia",'Entrada de dados'!F143,Velocidade!E143) -> 0.00 | M148: 0.00 | N148: 0.00 | O148: 0.00 | P148: =IF($B$2="CEFISE Biotecnologia",Velocidade!A143,Velocidade!H143) -> 0.0000000 | Q148: 135.00 | R148: 0.00 | S148: 0.00 | U148: 0 | V148: 0
A149: ='Entrada de dados'!A144 -> 0 | B149: 0 | C149: ='Entrada de dados'!C144 -> 0.00 | D149: 0.00 | E149: 0.00 | F149: 0.00 | H149: ='Entrada de dados'!D144 -> 0.00 | I149: 0.00 | J149: 0.00 | K149: 0.00 | L149: =IF($B$2="CEFISE Biotecnologia",'Entrada de dados'!F144,Velocidade!E144) -> 0.00 | M149: 0.00 | N149: 0.00 | O149: 0.00 | P149: =IF($B$2="CEFISE Biotecnologia",Velocidade!A144,Velocidade!H144) -> 0.0000000 | Q149: 136.00 | R149: 0.00 | S149: 0.00 | U149: 0 | V149: 0
A150: ='Entrada de dados'!A145 -> 0 | B150: 0 | C150: ='Entrada de dados'!C145 -> 0.00 | D150: 0.00 | E150: 0.00 | F150: 0.00 | H150: ='Entrada de dados'!D145 -> 0.00 | I150: 0.00 | J150: 0.00 | K150: 0.00 | L150: =IF($B$2="CEFISE Biotecnologia",'Entrada de dados'!F145,Velocidade!E145) -> 0.00 | M150: 0.00 | N150: 0.00 | O150: 0.00 | P150: =IF($B$2="CEFISE Biotecnologia",Velocidade!A145,Velocidade!H145) -> 0.0000000 | Q150: 137.00 | R150: 0.00 | S150: 0.00 | U150: 0 | V150: 0
A151: ='Entrada de dados'!A146 -> 0 | B151: 0 | C151: ='Entrada de dados'!C146 -> 0.00 | D151: 0.00 | E151: 0.00 | F151: 0.00 | H151: ='Entrada de dados'!D146 -> 0.00 | I151: =AVERAGE(H150:H152) -> 0.00 | J151: =AVERAGE(I150:I152) -> 0.00 | K151: =AVERAGE(J150:J152) -> 0.00 | L151: =IF($B$2="CEFISE Biotecnologia",'Entrada de dados'!F146,Velocidade!E146) -> 0.00 | M151: 0.00 | N151: 0.00 | O151: 0.00 | P151: =IF($B$2="CEFISE Biotecnologia",Velocidade!A146,Velocidade!H146) -> 0.0000000 | Q151: 138.00 | R151: 0.00 | S151: 0.00 | U151: 0 | V151: 0
A152: ='Entrada de dados'!A147 -> 0 | B152: 0 | C152: ='Entrada de dados'!C147 -> 0.00 | D152: 0.00 | E152: 0.00 | F152: 0.00 | H152: ='Entrada de dados'!D147 -> 0.00 | I152: 0.00 | J152: 0.00 | K152: 0.00 | L152: =IF($B$2="CEFISE Biotecnologia",'Entrada de dados'!F147,Velocidade!E147) -> 0.00 | M152: 0.00 | N152: 0.00 | O152: 0.00 | P152: =IF($B$2="CEFISE Biotecnologia",Velocidade!A147,Velocidade!H147) -> 0.0000000 | Q152: 139.00 | R152: 0.00 | S152: 0.00 | U152: 0 | V152: 0
A153: ='Entrada de dados'!A148 -> 0 | B153: 0 | C153: ='Entrada de dados'!C148 -> 0.00 | D153: 0.00 | E153: 0.00 | F153: 0.00 | H153: ='Entrada de dados'!D148 -> 0.00 | I153: 0.00 | J153: 0.00 | K153: 0.00 | L153: =IF($B$2="CEFISE Biotecnologia",'Entrada de dados'!F148,Velocidade!E148) -> 0.00 | M153: 0.00 | N153: 0.00 | O153: 0.00 | P153: =IF($B$2="CEFISE Biotecnologia",Velocidade!A148,Velocidade!H148) -> 0.0000000 | Q153: 140.00 | R153: 0.00 | S153: 0.00 | U153: 0 | V153: 0
A154: ='Entrada de dados'!A149 -> 0 | B154: 0 | C154: ='Entrada de dados'!C149 -> 0.00 | D154: 0.00 | E154: 0.00 | F154: 0.00 | H154: ='Entrada de dados'!D149 -> 0.00 | I154: 0.00 | J154: 0.00 | K154: 0.00 | L154: =IF($B$2="CEFISE Biotecnologia",'Entrada de dados'!F149,Velocidade!E149) -> 0.00 | M154: 0.00 | N154: 0.00 | O154: 0.00 | P154: =IF($B$2="CEFISE Biotecnologia",Velocidade!A149,Velocidade!H149) -> 0.0000000 | Q154: 141.00 | R154: 0.00 | S154: 0.00 | U154: 0 | V154: 0
A155: ='Entrada de dados'!A150 -> 0 | B155: 0 | C155: ='Entrada de dados'!C150 -> 0.00 | D155: 0.00 | E155: 0.00 | F155: 0.00 | H155: ='Entrada de dados'!D150 -> 0.00 | I155: 0.00 | J155: 0.00 | K155: 0.00 | L155: =IF($B$2="CEFISE Biotecnologia",'Entrada de dados'!F150,Velocidade!E150) -> 0.00 | M155: 0.00 | N155: 0.00 | O155: 0.00 | P155: =IF($B$2="CEFISE Biotecnologia",Velocidade!A150,Velocidade!H150) -> 0.0000000 | Q155: 142.00 | R155: 0.00 | S155: 0.00 | U155: 0 | V155: 0
A156: ='Entrada de dados'!A151 -> 0 | B156: 0 | C156: ='Entrada de dados'!C151 -> 0.00 | D156: 0.00 | E156: 0.00 | F156: 0.00 | H156: ='Entrada de dados'!D151 -> 0.00 | I156: 0.00 | J156: 0.00 | K156: 0.00 | L156: =IF($B$2="CEFISE Biotecnologia",'Entrada de dados'!F151,Velocidade!E151) -> 0.00 | M156: 0.00 | N156: 0.00 | O156: 0.00 | P156: =IF($B$2="CEFISE Biotecnologia",Velocidade!A151,Velocidade!H151) -> 0.0000000 | Q156: 143.00 | R156: 0.00 | S156: 0.00 | U156: 0 | V156: 0
A157: ='Entrada de dados'!A152 -> 0 | B157: 0 | C157: ='Entrada de dados'!C152 -> 0.00 | D157: 0.00 | E157: 0.00 | F157: 0.00 | H157: ='Entrada de dados'!D152 -> 0.00 | I157: 0.00 | J157: 0.00 | K157: 0.00 | L157: =IF($B$2="CEFISE Biotecnologia",'Entrada de dados'!F152,Velocidade!E152) -> 0.00 | M157: 0.00 | N157: 0.00 | O157: 0.00 | P157: =IF($B$2="CEFISE Biotecnologia",Velocidade!A152,Velocidade!H152) -> 0.0000000 | Q157: 144.00 | R157: 0.00 | S157: 0.00 | U157: 0 | V157: 0
A158: ='Entrada de dados'!A153 -> 0 | B158: 0 | C158: ='Entrada de dados'!C153 -> 0.00 | D158: 0.00 | E158: 0.00 | F158: 0.00 | H158: ='Entrada de dados'!D153 -> 0.00 | I158: 0.00 | J158: 0.00 | K158: 0.00 | L158: =IF($B$2="CEFISE Biotecnologia",'Entrada de dados'!F153,Velocidade!E153) -> 0.00 | M158: 0.00 | N158: 0.00 | O158: 0.00 | P158: =IF($B$2="CEFISE Biotecnologia",Velocidade!A153,Velocidade!H153) -> 0.0000000 | Q158: 145.00 | R158: 0.00 | S158: 0.00 | U158: 0 | V158: 0
A159: ='Entrada de dados'!A154 -> 0 | B159: 0 | C159: ='Entrada de dados'!C154 -> 0.00 | D159: 0.00 | E159: 0.00 | F159: 0.00 | H159: ='Entrada de dados'!D154 -> 0.00 | I159: 0.00 | J159: 0.00 | K159: 0.00 | L159: =IF($B$2="CEFISE Biotecnologia",'Entrada de dados'!F154,Velocidade!E154) -> 0.00 | M159: 0.00 | N159: 0.00 | O159: 0.00 | P159: =IF($B$2="CEFISE Biotecnologia",Velocidade!A154,Velocidade!H154) -> 0.0000000 | Q159: 146.00 | R159: 0.00 | S159: 0.00 | U159: 0 | V159: 0
A160: ='Entrada de dados'!A155 -> 0 | B160: 0 | C160: ='Entrada de dados'!C155 -> 0.00 | D160: 0.00 | E160: 0.00 | F160: 0.00 | H160: ='Entrada de dados'!D155 -> 0.00 | I160: 0.00 | J160: 0.00 | K160: 0.00 | L160: =IF($B$2="CEFISE Biotecnologia",'Entrada de dados'!F155,Velocidade!E155) -> 0.00 | M160: 0.00 | N160: 0.00 | O160: 0.00 | P160: =IF($B$2="CEFISE Biotecnologia",Velocidade!A155,Velocidade!H155) -> 0.0000000 | Q160: 147.00 | R160: 0.00 | S160: 0.00 | U160: 0 | V160: 0
A161: ='Entrada de dados'!A156 -> 0 | B161: 0 | C161: ='Entrada de dados'!C156 -> 0.00 | D161: 0.00 | E161: 0.00 | F161: 0.00 | H161: ='Entrada de dados'!D156 -> 0.00 | I161: 0.00 | J161: 0.00 | K161: 0.00 | L161: =IF($B$2="CEFISE Biotecnologia",'Entrada de dados'!F156,Velocidade!E156) -> 0.00 | M161: 0.00 | N161: 0.00 | O161: 0.00 | P161: =IF($B$2="CEFISE Biotecnologia",Velocidade!A156,Velocidade!H156) -> 0.0000000 | Q161: 148.00 | R161: 0.00 | S161: 0.00 | U161: 0 | V161: 0
A162: ='Entrada de dados'!A157 -> 0 | B162: 0 | C162: ='Entrada de dados'!C157 -> 0.00 | D162: 0.00 | E162: 0.00 | F162: 0.00 | H162: ='Entrada de dados'!D157 -> 0.00 | I162: 0.00 | J162: 0.00 | K162: 0.00 | L162: =IF($B$2="CEFISE Biotecnologia",'Entrada de dados'!F157,Velocidade!E157) -> 0.00 | M162: 0.00 | N162: 0.00 | O162: 0.00 | P162: =IF($B$2="CEFISE Biotecnologia",Velocidade!A157,Velocidade!H157) -> 0.0000000 | Q162: 149.00 | R162: 0.00 | S162: 0.00 | U162: 0 | V162: 0
A163: ='Entrada de dados'!A158 -> 0 | B163: 0 | C163: ='Entrada de dados'!C158 -> 0.00 | D163: 0.00 | E163: 0.00 | F163: 0.00 | H163: ='Entrada de dados'!D158 -> 0.00 | I163: 0.00 | J163: 0.00 | K163: 0.00 | L163: =IF($B$2="CEFISE Biotecnologia",'Entrada de dados'!F158,Velocidade!E158) -> 0.00 | M163: 0.00 | N163: 0.00 | O163: 0.00 | P163: =IF($B$2="CEFISE Biotecnologia",Velocidade!A158,Velocidade!H158) -> 0.0000000 | Q163: 150.00 | R163: 0.00 | S163: 0.00 | U163: 0 | V163: 0
A164: ='Entrada de dados'!A159 -> 0 | B164: 0 | C164: ='Entrada de dados'!C159 -> 0.00 | D164: 0.00 | E164: 0.00 | F164: 0.00 | H164: ='Entrada de dados'!D159 -> 0.00 | I164: 0.00 | J164: 0.00 | K164: 0.00 | L164: =IF($B$2="CEFISE Biotecnologia",'Entrada de dados'!F159,Velocidade!E159) -> 0.00 | M164: 0.00 | N164: 0.00 | O164: 0.00 | P164: =IF($B$2="CEFISE Biotecnologia",Velocidade!A159,Velocidade!H159) -> 0.0000000 | Q164: 151.00 | R164: 0.00 | S164: 0.00 | U164: 0 | V164: 0
A165: ='Entrada de dados'!A160 -> 0 | B165: 0 | C165: ='Entrada de dados'!C160 -> 0.00 | D165: 0.00 | E165: 0.00 | F165: 0.00 | H165: ='Entrada de dados'!D160 -> 0.00 | I165: 0.00 | J165: 0.00 | K165: 0.00 | L165: =IF($B$2="CEFISE Biotecnologia",'Entrada de dados'!F160,Velocidade!E160) -> 0.00 | M165: 0.00 | N165: 0.00 | O165: 0.00 | P165: =IF($B$2="CEFISE Biotecnologia",Velocidade!A160,Velocidade!H160) -> 0.0000000 | Q165: 152.00 | R165: 0.00 | S165: 0.00 | U165: 0 | V165: 0
A166: ='Entrada de dados'!A161 -> 0 | B166: 0 | C166: ='Entrada de dados'!C161 -> 0.00 | D166: 0.00 | E166: 0.00 | F166: 0.00 | H166: ='Entrada de dados'!D161 -> 0.00 | I166: 0.00 | J166: 0.00 | K166: 0.00 | L166: =IF($B$2="CEFISE Biotecnologia",'Entrada de dados'!F161,Velocidade!E161) -> 0.00 | M166: 0.00 | N166: 0.00 | O166: 0.00 | P166: =IF($B$2="CEFISE Biotecnologia",Velocidade!A161,Velocidade!H161) -> 0.0000000 | Q166: 153.00 | R166: 0.00 | S166: 0.00 | U166: 0 | V166: 0
A167: ='Entrada de dados'!A162 -> 0 | B167: 0 | C167: ='Entrada de dados'!C162 -> 0.00 | D167: 0.00 | E167: 0.00 | F167: 0.00 | H167: ='Entrada de dados'!D162 -> 0.00 | I167: 0.00 | J167: 0.00 | K167: 0.00 | L167: =IF($B$2="CEFISE Biotecnologia",'Entrada de dados'!F162,Velocidade!E162) -> 0.00 | M167: 0.00 | N167: 0.00 | O167: 0.00 | P167: =IF($B$2="CEFISE Biotecnologia",Velocidade!A162,Velocidade!H162) -> 0.0000000 | Q167: 154.00 | R167: 0.00 | S167: 0.00 | U167: 0 | V167: 0
A168: ='Entrada de dados'!A163 -> 0 | B168: 0 | C168: ='Entrada de dados'!C163 -> 0.00 | D168: 0.00 | E168: 0.00 | F168: 0.00 | H168: ='Entrada de dados'!D163 -> 0.00 | I168: 0.00 | J168: 0.00 | K168: 0.00 | L168: =IF($B$2="CEFISE Biotecnologia",'Entrada de dados'!F163,Velocidade!E163) -> 0.00 | M168: 0.00 | N168: 0.00 | O168: 0.00 | P168: =IF($B$2="CEFISE Biotecnologia",Velocidade!A163,Velocidade!H163) -> 0.0000000 | Q168: 155.00 | R168: 0.00 | S168: 0.00 | U168: 0 | V168: 0
A169: ='Entrada de dados'!A164 -> 0 | B169: 0 | C169: ='Entrada de dados'!C164 -> 0.00 | D169: 0.00 | E169: 0.00 | F169: 0.00 | H169: ='Entrada de dados'!D164 -> 0.00 | I169: 0.00 | J169: 0.00 | K169: 0.00 | L169: =IF($B$2="CEFISE Biotecnologia",'Entrada de dados'!F164,Velocidade!E164) -> 0.00 | M169: 0.00 | N169: 0.00 | O169: 0.00 | P169: =IF($B$2="CEFISE Biotecnologia",Velocidade!A164,Velocidade!H164) -> 0.0000000 | Q169: 156.00 | R169: 0.00 | S169: 0.00 | U169: 0 | V169: 0
A170: ='Entrada de dados'!A165 -> 0 | B170: 0 | C170: ='Entrada de dados'!C165 -> 0.00 | D170: 0.00 | E170: 0.00 | F170: 0.00 | H170: ='Entrada de dados'!D165 -> 0.00 | I170: 0.00 | J170: 0.00 | K170: 0.00 | L170: =IF($B$2="CEFISE Biotecnologia",'Entrada de dados'!F165,Velocidade!E165) -> 0.00 | M170: 0.00 | N170: 0.00 | O170: 0.00 | P170: =IF($B$2="CEFISE Biotecnologia",Velocidade!A165,Velocidade!H165) -> 0.0000000 | Q170: 157.00 | R170: 0.00 | S170: 0.00 | U170: 0 | V170: 0
A171: ='Entrada de dados'!A166 -> 0 | B171: 0 | C171: ='Entrada de dados'!C166 -> 0.00 | D171: 0.00 | E171: 0.00 | F171: 0.00 | H171: ='Entrada de dados'!D166 -> 0.00 | I171: 0.00 | J171: 0.00 | K171: 0.00 | L171: =IF($B$2="CEFISE Biotecnologia",'Entrada de dados'!F166,Velocidade!E166) -> 0.00 | M171: 0.00 | N171: 0.00 | O171: 0.00 | P171: =IF($B$2="CEFISE Biotecnologia",Velocidade!A166,Velocidade!H166) -> 0.0000000 | Q171: 158.00 | R171: 0.00 | S171: 0.00 | U171: 0 | V171: 0
A172: ='Entrada de dados'!A167 -> 0 | B172: 0 | C172: ='Entrada de dados'!C167 -> 0.00 | D172: 0.00 | E172: 0.00 | F172: 0.00 | H172: ='Entrada de dados'!D167 -> 0.00 | I172: 0.00 | J172: 0.00 | K172: 0.00 | L172: =IF($B$2="CEFISE Biotecnologia",'Entrada de dados'!F167,Velocidade!E167) -> 0.00 | M172: 0.00 | N172: 0.00 | O172: 0.00 | P172: =IF($B$2="CEFISE Biotecnologia",Velocidade!A167,Velocidade!H167) -> 0.0000000 | Q172: 159.00 | R172: 0.00 | S172: 0.00 | U172: 0 | V172: 0
A173: ='Entrada de dados'!A168 -> 0 | B173: 0 | C173: ='Entrada de dados'!C168 -> 0.00 | D173: 0.00 | E173: 0.00 | F173: 0.00 | H173: ='Entrada de dados'!D168 -> 0.00 | I173: 0.00 | J173: 0.00 | K173: 0.00 | L173: =IF($B$2="CEFISE Biotecnologia",'Entrada de dados'!F168,Velocidade!E168) -> 0.00 | M173: 0.00 | N173: 0.00 | O173: 0.00 | P173: =IF($B$2="CEFISE Biotecnologia",Velocidade!A168,Velocidade!H168) -> 0.0000000 | Q173: 160.00 | R173: 0.00 | S173: 0.00 | U173: 0 | V173: 0
A174: ='Entrada de dados'!A169 -> 0 | B174: 0 | C174: ='Entrada de dados'!C169 -> 0.00 | D174: 0.00 | E174: 0.00 | F174: 0.00 | H174: ='Entrada de dados'!D169 -> 0.00 | I174: 0.00 | J174: 0.00 | K174: 0.00 | L174: =IF($B$2="CEFISE Biotecnologia",'Entrada de dados'!F169,Velocidade!E169) -> 0.00 | M174: 0.00 | N174: 0.00 | O174: 0.00 | P174: =IF($B$2="CEFISE Biotecnologia",Velocidade!A169,Velocidade!H169) -> 0.0000000 | Q174: 161.00 | R174: 0.00 | S174: 0.00 | U174: 0 | V174: 0
A175: ='Entrada de dados'!A170 -> 0 | B175: 0 | C175: ='Entrada de dados'!C170 -> 0.00 | D175: 0.00 | E175: 0.00 | F175: 0.00 | H175: ='Entrada de dados'!D170 -> 0.00 | I175: 0.00 | J175: 0.00 | K175: 0.00 | L175: =IF($B$2="CEFISE Biotecnologia",'Entrada de dados'!F170,Velocidade!E170) -> 0.00 | M175: 0.00 | N175: 0.00 | O175: 0.00 | P175: =IF($B$2="CEFISE Biotecnologia",Velocidade!A170,Velocidade!H170) -> 0.0000000 | Q175: 162.00 | R175: 0.00 | S175: 0.00 | U175: 0 | V175: 0
A176: ='Entrada de dados'!A171 -> 0 | B176: 0 | C176: ='Entrada de dados'!C171 -> 0.00 | D176: 0.00 | E176: 0.00 | F176: 0.00 | H176: ='Entrada de dados'!D171 -> 0.00 | I176: 0.00 | J176: 0.00 | K176: 0.00 | L176: =IF($B$2="CEFISE Biotecnologia",'Entrada de dados'!F171,Velocidade!E171) -> 0.00 | M176: 0.00 | N176: 0.00 | O176: 0.00 | P176: =IF($B$2="CEFISE Biotecnologia",Velocidade!A171,Velocidade!H171) -> 0.0000000 | Q176: 163.00 | R176: 0.00 | S176: 0.00 | U176: 0 | V176: 0
A177: ='Entrada de dados'!A172 -> 0 | B177: 0 | C177: ='Entrada de dados'!C172 -> 0.00 | D177: 0.00 | E177: 0.00 | F177: 0.00 | H177: ='Entrada de dados'!D172 -> 0.00 | I177: 0.00 | J177: 0.00 | K177: 0.00 | L177: =IF($B$2="CEFISE Biotecnologia",'Entrada de dados'!F172,Velocidade!E172) -> 0.00 | M177: 0.00 | N177: 0.00 | O177: 0.00 | P177: =IF($B$2="CEFISE Biotecnologia",Velocidade!A172,Velocidade!H172) -> 0.0000000 | Q177: 164.00 | R177: 0.00 | S177: 0.00 | U177: 0 | V177: 0
A178: ='Entrada de dados'!A173 -> 0 | B178: 0 | C178: ='Entrada de dados'!C173 -> 0.00 | D178: 0.00 | E178: 0.00 | F178: 0.00 | H178: ='Entrada de dados'!D173 -> 0.00 | I178: 0.00 | J178: 0.00 | K178: 0.00 | L178: =IF($B$2="CEFISE Biotecnologia",'Entrada de dados'!F173,Velocidade!E173) -> 0.00 | M178: 0.00 | N178: 0.00 | O178: 0.00 | P178: =IF($B$2="CEFISE Biotecnologia",Velocidade!A173,Velocidade!H173) -> 0.0000000 | Q178: 165.00 | R178: 0.00 | S178: 0.00 | U178: 0 | V178: 0
A179: ='Entrada de dados'!A174 -> 0 | B179: 0 | C179: ='Entrada de dados'!C174 -> 0.00 | D179: 0.00 | E179: 0.00 | F179: 0.00 | H179: ='Entrada de dados'!D174 -> 0.00 | I179: 0.00 | J179: 0.00 | K179: 0.00 | L179: =IF($B$2="CEFISE Biotecnologia",'Entrada de dados'!F174,Velocidade!E174) -> 0.00 | M179: 0.00 | N179: 0.00 | O179: 0.00 | P179: =IF($B$2="CEFISE Biotecnologia",Velocidade!A174,Velocidade!H174) -> 0.0000000 | Q179: 166.00 | R179: 0.00 | S179: 0.00 | U179: 0 | V179: 0
A180: ='Entrada de dados'!A175 -> 0 | B180: 0 | C180: ='Entrada de dados'!C175 -> 0.00 | D180: 0.00 | E180: 0.00 | F180: 0.00 | H180: ='Entrada de dados'!D175 -> 0.00 | I180: 0.00 | J180: 0.00 | K180: 0.00 | L180: =IF($B$2="CEFISE Biotecnologia",'Entrada de dados'!F175,Velocidade!E175) -> 0.00 | M180: 0.00 | N180: 0.00 | O180: 0.00 | P180: =IF($B$2="CEFISE Biotecnologia",Velocidade!A175,Velocidade!H175) -> 0.0000000 | Q180: 167.00 | R180: 0.00 | S180: 0.00 | U180: 0 | V180: 0
A181: ='Entrada de dados'!A176 -> 0 | B181: 0 | C181: ='Entrada de dados'!C176 -> 0.00 | D181: 0.00 | E181: 0.00 | F181: 0.00 | H181: ='Entrada de dados'!D176 -> 0.00 | I181: 0.00 | J181: 0.00 | K181: 0.00 | L181: =IF($B$2="CEFISE Biotecnologia",'Entrada de dados'!F176,Velocidade!E176) -> 0.00 | M181: 0.00 | N181: 0.00 | O181: 0.00 | P181: =IF($B$2="CEFISE Biotecnologia",Velocidade!A176,Velocidade!H176) -> 0.0000000 | Q181: 168.00 | R181: 0.00 | S181: 0.00 | U181: 0 | V181: 0
A182: ='Entrada de dados'!A177 -> 0 | B182: 0 | C182: ='Entrada de dados'!C177 -> 0.00 | D182: 0.00 | E182: 0.00 | F182: 0.00 | H182: ='Entrada de dados'!D177 -> 0.00 | I182: 0.00 | J182: 0.00 | K182: 0.00 | L182: =IF($B$2="CEFISE Biotecnologia",'Entrada de dados'!F177,Velocidade!E177) -> 0.00 | M182: 0.00 | N182: 0.00 | O182: 0.00 | P182: =IF($B$2="CEFISE Biotecnologia",Velocidade!A177,Velocidade!H177) -> 0.0000000 | Q182: 169.00 | R182: 0.00 | S182: 0.00 | U182: 0 | V182: 0
A183: ='Entrada de dados'!A178 -> 0 | B183: 0 | C183: ='Entrada de dados'!C178 -> 0.00 | D183: 0.00 | E183: 0.00 | F183: 0.00 | H183: ='Entrada de dados'!D178 -> 0.00 | I183: 0.00 | J183: 0.00 | K183: 0.00 | L183: =IF($B$2="CEFISE Biotecnologia",'Entrada de dados'!F178,Velocidade!E178) -> 0.00 | M183: 0.00 | N183: 0.00 | O183: 0.00 | P183: =IF($B$2="CEFISE Biotecnologia",Velocidade!A178,Velocidade!H178) -> 0.0000000 | Q183: 170.00 | R183: 0.00 | S183: 0.00 | U183: 0 | V183: 0
A184: ='Entrada de dados'!A179 -> 0 | B184: 0 | C184: ='Entrada de dados'!C179 -> 0.00 | D184: 0.00 | E184: 0.00 | F184: 0.00 | H184: ='Entrada de dados'!D179 -> 0.00 | I184: 0.00 | J184: 0.00 | K184: 0.00 | L184: =IF($B$2="CEFISE Biotecnologia",'Entrada de dados'!F179,Velocidade!E179) -> 0.00 | M184: 0.00 | N184: 0.00 | O184: 0.00 | P184: =IF($B$2="CEFISE Biotecnologia",Velocidade!A179,Velocidade!H179) -> 0.0000000 | Q184: 171.00 | R184: 0.00 | S184: 0.00 | U184: 0 | V184: 0
A185: ='Entrada de dados'!A180 -> 0 | B185: 0 | C185: ='Entrada de dados'!C180 -> 0.00 | D185: 0.00 | E185: 0.00 | F185: 0.00 | H185: ='Entrada de dados'!D180 -> 0.00 | I185: 0.00 | J185: 0.00 | K185: 0.00 | L185: =IF($B$2="CEFISE Biotecnologia",'Entrada de dados'!F180,Velocidade!E180) -> 0.00 | M185: 0.00 | N185: 0.00 | O185: 0.00 | P185: =IF($B$2="CEFISE Biotecnologia",Velocidade!A180,Velocidade!H180) -> 0.0000000 | Q185: 172.00 | R185: 0.00 | S185: 0.00 | U185: 0 | V185: 0
A186: ='Entrada de dados'!A181 -> 0 | B186: 0 | C186: ='Entrada de dados'!C181 -> 0.00 | D186: 0.00 | E186: 0.00 | F186: 0.00 | H186: ='Entrada de dados'!D181 -> 0.00 | I186: 0.00 | J186: 0.00 | K186: 0.00 | L186: =IF($B$2="CEFISE Biotecnologia",'Entrada de dados'!F181,Velocidade!E181) -> 0.00 | M186: 0.00 | N186: 0.00 | O186: 0.00 | P186: =IF($B$2="CEFISE Biotecnologia",Velocidade!A181,Velocidade!H181) -> 0.0000000 | Q186: 173.00 | R186: 0.00 | S186: 0.00 | U186: 0 | V186: 0
A187: ='Entrada de dados'!A182 -> 0 | B187: 0 | C187: ='Entrada de dados'!C182 -> 0.00 | D187: 0.00 | E187: 0.00 | F187: 0.00 | H187: ='Entrada de dados'!D182 -> 0.00 | I187: 0.00 | J187: 0.00 | K187: 0.00 | L187: =IF($B$2="CEFISE Biotecnologia",'Entrada de dados'!F182,Velocidade!E182) -> 0.00 | M187: 0.00 | N187: 0.00 | O187: 0.00 | P187: =IF($B$2="CEFISE Biotecnologia",Velocidade!A182,Velocidade!H182) -> 0.0000000 | Q187: 174.00 | R187: 0.00 | S187: 0.00 | U187: 0 | V187: 0
A188: ='Entrada de dados'!A183 -> 0 | B188: 0 | C188: ='Entrada de dados'!C183 -> 0.00 | D188: 0.00 | E188: 0.00 | F188: 0.00 | H188: ='Entrada de dados'!D183 -> 0.00 | I188: 0.00 | J188: 0.00 | K188: 0.00 | L188: =IF($B$2="CEFISE Biotecnologia",'Entrada de dados'!F183,Velocidade!E183) -> 0.00 | M188: 0.00 | N188: 0.00 | O188: 0.00 | P188: =IF($B$2="CEFISE Biotecnologia",Velocidade!A183,Velocidade!H183) -> 0.0000000 | Q188: 175.00 | R188: 0.00 | S188: 0.00 | U188: 0 | V188: 0
A189: ='Entrada de dados'!A184 -> 0 | B189: 0 | C189: ='Entrada de dados'!C184 -> 0.00 | D189: 0.00 | E189: 0.00 | F189: 0.00 | H189: ='Entrada de dados'!D184 -> 0.00 | I189: 0.00 | J189: 0.00 | K189: 0.00 | L189: =IF($B$2="CEFISE Biotecnologia",'Entrada de dados'!F184,Velocidade!E184) -> 0.00 | M189: 0.00 | N189: 0.00 | O189: 0.00 | P189: =IF($B$2="CEFISE Biotecnologia",Velocidade!A184,Velocidade!H184) -> 0.0000000 | Q189: 176.00 | R189: 0.00 | S189: 0.00 | U189: 0 | V189: 0
A190: ='Entrada de dados'!A185 -> 0 | B190: 0 | C190: ='Entrada de dados'!C185 -> 0.00 | D190: 0.00 | E190: 0.00 | F190: 0.00 | H190: ='Entrada de dados'!D185 -> 0.00 | I190: 0.00 | J190: 0.00 | K190: 0.00 | L190: =IF($B$2="CEFISE Biotecnologia",'Entrada de dados'!F185,Velocidade!E185) -> 0.00 | M190: 0.00 | N190: 0.00 | O190: 0.00 | P190: =IF($B$2="CEFISE Biotecnologia",Velocidade!A185,Velocidade!H185) -> 0.0000000 | Q190: 177.00 | R190: 0.00 | S190: 0.00 | U190: 0 | V190: 0
A191: ='Entrada de dados'!A186 -> 0 | B191: 0 | C191: ='Entrada de dados'!C186 -> 0.00 | D191: 0.00 | E191: 0.00 | F191: 0.00 | H191: ='Entrada de dados'!D186 -> 0.00 | I191: 0.00 | J191: 0.00 | K191: 0.00 | L191: =IF($B$2="CEFISE Biotecnologia",'Entrada de dados'!F186,Velocidade!E186) -> 0.00 | M191: 0.00 | N191: 0.00 | O191: 0.00 | P191: =IF($B$2="CEFISE Biotecnologia",Velocidade!A186,Velocidade!H186) -> 0.0000000 | Q191: 178.00 | R191: 0.00 | S191: 0.00 | U191: 0 | V191: 0
A192: ='Entrada de dados'!A187 -> 0 | B192: 0 | C192: ='Entrada de dados'!C187 -> 0.00 | D192: 0.00 | E192: 0.00 | F192: 0.00 | H192: ='Entrada de dados'!D187 -> 0.00 | I192: 0.00 | J192: 0.00 | K192: 0.00 | L192: =IF($B$2="CEFISE Biotecnologia",'Entrada de dados'!F187,Velocidade!E187) -> 0.00 | M192: 0.00 | N192: 0.00 | O192: 0.00 | P192: =IF($B$2="CEFISE Biotecnologia",Velocidade!A187,Velocidade!H187) -> 0.0000000 | Q192: 179.00 | R192: 0.00 | S192: 0.00 | U192: 0 | V192: 0
A193: ='Entrada de dados'!A188 -> 0 | B193: 0 | C193: ='Entrada de dados'!C188 -> 0.00 | D193: 0.00 | E193: 0.00 | F193: 0.00 | H193: ='Entrada de dados'!D188 -> 0.00 | I193: 0.00 | J193: 0.00 | K193: 0.00 | L193: =IF($B$2="CEFISE Biotecnologia",'Entrada de dados'!F188,Velocidade!E188) -> 0.00 | M193: 0.00 | N193: 0.00 | O193: 0.00 | P193: =IF($B$2="CEFISE Biotecnologia",Velocidade!A188,Velocidade!H188) -> 0.0000000 | Q193: 180.00 | R193: 0.00 | S193: 0.00 | U193: 0 | V193: 0
A194: ='Entrada de dados'!A189 -> 0 | B194: 0 | C194: ='Entrada de dados'!C189 -> 0.00 | D194: 0.00 | E194: 0.00 | F194: 0.00 | H194: ='Entrada de dados'!D189 -> 0.00 | I194: 0.00 | J194: 0.00 | K194: 0.00 | L194: =IF($B$2="CEFISE Biotecnologia",'Entrada de dados'!F189,Velocidade!E189) -> 0.00 | M194: 0.00 | N194: 0.00 | O194: 0.00 | P194: =IF($B$2="CEFISE Biotecnologia",Velocidade!A189,Velocidade!H189) -> 0.0000000 | Q194: 181.00 | R194: 0.00 | S194: 0.00 | U194: 0 | V194: 0
A195: ='Entrada de dados'!A190 -> 0 | B195: 0 | C195: ='Entrada de dados'!C190 -> 0.00 | D195: 0.00 | E195: 0.00 | F195: 0.00 | H195: ='Entrada de dados'!D190 -> 0.00 | I195: 0.00 | J195: 0.00 | K195: 0.00 | L195: =IF($B$2="CEFISE Biotecnologia",'Entrada de dados'!F190,Velocidade!E190) -> 0.00 | M195: 0.00 | N195: 0.00 | O195: 0.00 | P195: =IF($B$2="CEFISE Biotecnologia",Velocidade!A190,Velocidade!H190) -> 0.0000000 | Q195: 182.00 | R195: 0.00 | S195: 0.00 | U195: 0 | V195: 0
A196: ='Entrada de dados'!A191 -> 0 | B196: 0 | C196: ='Entrada de dados'!C191 -> 0.00 | D196: 0.00 | E196: 0.00 | F196: 0.00 | H196: ='Entrada de dados'!D191 -> 0.00 | I196: 0.00 | J196: 0.00 | K196: 0.00 | L196: =IF($B$2="CEFISE Biotecnologia",'Entrada de dados'!F191,Velocidade!E191) -> 0.00 | M196: 0.00 | N196: 0.00 | O196: 0.00 | P196: =IF($B$2="CEFISE Biotecnologia",Velocidade!A191,Velocidade!H191) -> 0.0000000 | Q196: 183.00 | R196: 0.00 | S196: 0.00 | U196: 0 | V196: 0
A197: ='Entrada de dados'!A192 -> 0 | B197: 0 | C197: ='Entrada de dados'!C192 -> 0.00 | D197: 0.00 | E197: 0.00 | F197: 0.00 | H197: ='Entrada de dados'!D192 -> 0.00 | I197: 0.00 | J197: 0.00 | K197: 0.00 | L197: =IF($B$2="CEFISE Biotecnologia",'Entrada de dados'!F192,Velocidade!E192) -> 0.00 | M197: 0.00 | N197: 0.00 | O197: 0.00 | P197: =IF($B$2="CEFISE Biotecnologia",Velocidade!A192,Velocidade!H192) -> 0.0000000 | Q197: 184.00 | R197: 0.00 | S197: 0.00 | U197: 0 | V197: 0
A198: ='Entrada de dados'!A193 -> 0 | B198: 0 | C198: ='Entrada de dados'!C193 -> 0.00 | D198: 0.00 | E198: 0.00 | F198: 0.00 | H198: ='Entrada de dados'!D193 -> 0.00 | I198: 0.00 | J198: 0.00 | K198: 0.00 | L198: =IF($B$2="CEFISE Biotecnologia",'Entrada de dados'!F193,Velocidade!E193) -> 0.00 | M198: 0.00 | N198: 0.00 | O198: 0.00 | P198: =IF($B$2="CEFISE Biotecnologia",Velocidade!A193,Velocidade!H193) -> 0.0000000 | Q198: 185.00 | R198: 0.00 | S198: 0.00 | U198: 0 | V198: 0
A199: ='Entrada de dados'!A194 -> 0 | B199: 0 | C199: ='Entrada de dados'!C194 -> 0.00 | D199: 0.00 | E199: 0.00 | F199: 0.00 | H199: ='Entrada de dados'!D194 -> 0.00 | I199: 0.00 | J199: 0.00 | K199: 0.00 | L199: =IF($B$2="CEFISE Biotecnologia",'Entrada de dados'!F194,Velocidade!E194) -> 0.00 | M199: 0.00 | N199: 0.00 | O199: 0.00 | P199: =IF($B$2="CEFISE Biotecnologia",Velocidade!A194,Velocidade!H194) -> 0.0000000 | Q199: 186.00 | R199: 0.00 | S199: 0.00 | U199: 0 | V199: 0
A200: ='Entrada de dados'!A195 -> 0 | B200: 0 | C200: ='Entrada de dados'!C195 -> 0.00 | D200: 0.00 | E200: 0.00 | F200: 0.00 | H200: ='Entrada de dados'!D195 -> 0.00 | I200: 0.00 | J200: 0.00 | K200: 0.00 | L200: =IF($B$2="CEFISE Biotecnologia",'Entrada de dados'!F195,Velocidade!E195) -> 0.00 | M200: 0.00 | N200: 0.00 | O200: 0.00 | P200: =IF($B$2="CEFISE Biotecnologia",Velocidade!A195,Velocidade!H195) -> 0.0000000 | Q200: 187.00 | R200: 0.00 | S200: 0.00 | U200: 0 | V200: 0
A201: ='Entrada de dados'!A196 -> 0 | B201: 0 | C201: ='Entrada de dados'!C196 -> 0.00 | D201: 0.00 | E201: 0.00 | F201: 0.00 | H201: ='Entrada de dados'!D196 -> 0.00 | I201: 0.00 | J201: 0.00 | K201: 0.00 | L201: =IF($B$2="CEFISE Biotecnologia",'Entrada de dados'!F196,Velocidade!E196) -> 0.00 | M201: 0.00 | N201: 0.00 | O201: 0.00 | P201: =IF($B$2="CEFISE Biotecnologia",Velocidade!A196,Velocidade!H196) -> 0.0000000 | Q201: 188.00 | R201: 0.00 | S201: 0.00 | U201: 0 | V201: 0
A202: ='Entrada de dados'!A197 -> 0 | B202: 0 | C202: ='Entrada de dados'!C197 -> 0.00 | D202: 0.00 | E202: 0.00 | F202: 0.00 | H202: ='Entrada de dados'!D197 -> 0.00 | I202: 0.00 | J202: 0.00 | K202: 0.00 | L202: =IF($B$2="CEFISE Biotecnologia",'Entrada de dados'!F197,Velocidade!E197) -> 0.00 | M202: 0.00 | N202: 0.00 | O202: 0.00 | P202: =IF($B$2="CEFISE Biotecnologia",Velocidade!A197,Velocidade!H197) -> 0.0000000 | Q202: 189.00 | R202: 0.00 | S202: 0.00 | U202: 0 | V202: 0
... 2810 more rows

Sheet Definição de Fases e Pontos (hidden)
A1: Cálculos | G1: Cél - Tempo | I1: Tempo (s) | J1: Cél - Força | L1: Força (N)
A2: Frequência de Amostragem | B2: ='Correção da Força x Peso'!B3 -> 600 | D2: a | E2: Início do Movimento | G2: =ADDRESS(MATCH(1,$K$1:$K$3030,0),2,4) ->  | I2: =INDIRECT(G2) ->  | J2: =ADDRESS(MATCH(I2,$B$1:$B$3030,0),3,4) ->  | L2: =INDIRECT(J2) ->  | N2: Força Média na Fase Excêntrica | S2: =AVERAGE(INDIRECT(J2):INDIRECT(J4)) ->  | T2: N | U2: Altura no Desprendimento | X2: =VLOOKUP($I$9,Dados2,7,1) -> 
A3: Nome | B3: =Cabeçalho!C8 -> 0 | D3: b | E3: Maior Velocidade Negativa | G3: =ADDRESS(MATCH(B12,$T$1:$T$3030,0),2,4) ->  | N3: Força de Pico na Fase Concêntrica | S3: =MAX(INDIRECT(J5):INDIRECT(J9)) ->  | T3: N | U3: Altura Integral | X3: =B17 -> 
A4: Massa Corporal | B4: ='Correção da Força x Peso'!B4 -> 0.0 | C4: Kg | E4: Fim da Fase Excêntrica | G4: =ADDRESS(MATCH(1,$O$1:$O$3030,0),2,4) ->  | N4: Força Média na Fase Concêntrica | S4: =AVERAGE(INDIRECT(J5):INDIRECT(J9)) ->  | T4: N | U4: Altura do Voo | X4: =X3-X2 -> 
A5: Peso Corporal | B5: ='Correção da Força x Peso'!B5 -> 0.00 | C5: N | D5: c | E5: Início da Fase Concêntrica | G5: =ADDRESS(MATCH(1,$N$1:$N$3030,0),2,4) ->  | N5: Força Resultante de Pico na Fase Concêntrica | S5: =S3-$B$5 ->  | T5: N | U5: Altura (Velocidade) | X5: =(($I$26^2)/(2*9.81))*100 -> 
A6: Tempo para Início do Movimento | B6: =Cabeçalho!F15 -> 1.000 | C6: s | D6: d | E6: Pico de Força da Fase Concêntrica | G6: =ADDRESS(MATCH(B14,$Y$1:$Y$3030,0),2,4) ->  | N6: Força Resultante Média na Fase Concêntrica | S6: =SUM(FR_Fcon)/COUNTIF(FR_Fcon,"<>0") ->  | T6: N | U6: Altura (Tempo de Voo) | X6: =(($I$20^2)*1.226)*100 -> 
A7: % PC para inìcio do Movimento | B7: =Cabeçalho!F16 -> 2.0% | C7: % | D7: e | E7: Pico de Potência da Fase Concêntrica | G7: =ADDRESS(MATCH(B15,$W$1:$W$3030,0),2,4) ->  | N7: Força de Pico (xPC) | S7: =S3/$B$5 ->  | T7: xPC | U7: Altura Média | X7: =AVERAGE(X4:X6) ->  | Z7: Foçra Média Descida FE F1
A8: Força para Início do Movimento | B8: =$B$5*(100%-$B$7) -> 0 | C8: N | D8: f | E8: Maxima Velocidade | G8: =ADDRESS(MATCH(B16,$T$1:$T$3030,0),2,4) ->  | N8: Força Resultante de Pico (xPC) | S8: =S7-1 ->  | T8: xPC | Z8: Força Média Frenagem FE F1
A9: % PC para Fim do Movimento | B9: =Cabeçalho!F17 -> 2.0% | C9: % | E9: Fim da Fase Concêntrica | G9: =ADDRESS(MATCH(1,$P$1:$P$3030,0),2,4) ->  | N9: Força Inicial da Fase Concêntrica | S9: =L5 ->  | T9: N | Z9: Força Média FC F1
A10: Tempo para Cálculo da TDF Inicial | B10: =Cabeçalho!F18 -> 30 | C10: ms | D10: g | E10: Iníco da Fase de Voo | G10: =ADDRESS(MATCH(1,$L$1:$L$3030,0),2,4) ->  | N10: Tempo X para Cálculo da TDF Inicial | S10: =I5+B10/1000 ->  | T10: s | U10: Índice de Transferência de Fase | X10: =100-(I16/I19%) -> 
A11: Força para Fim do Movimento | B11: =$B$5*(B9) -> 0 | C11: N | D11: h | E11: Maior Posição do CM | G11: =ADDRESS(MATCH(B17,$H$1:$H$3030,0),2,4) ->  | L11: =INDIRECT(J11) ->  | N11: Força no Tempo X da Fase Concêntrica | S11: =VLOOKUP(S10+(1/600),B29:C3030,2,1) ->  | T11: N | Z11: Foçra Média Descida FE F2
A12: Máxima Velocidade Negativa no Movimento | B12: =IF($C$22="Contra",MIN($T$31:$T$3030)," ") ->  | C12: m/s | E12: Fim da Fase de Voo | G12: =ADDRESS(MATCH(1,$Q$1:$Q$3030,0),2,4) ->  | L12: =INDIRECT(J12) ->  | N12: Dif Força no Tempo X - Força Inicial | S12: =S11-S9 ->  | T12: N | Z12: Força Média Frenagem FE F2
A13: Menor Posição do CM na Fase Escêntrica | B13: =MIN($U$31:$U$3030) ->  | C13: cm | D13: i | E13: Início da Aterrissagem | G13: =ADDRESS(MATCH(1,$M$1:$M$3030,0),2,4) ->  | L13: =INDIRECT(J13) ->  | N13: TDF Inicial (FxxmsFC - Finicial da FC) | Q13: =CONCATENATE(B10,"ms") -> 30ms | S13: =S12/(B10/1000) ->  | T13: N/s | Z13: Força Média FC F1
A14: Pico de Força na Fase Concêntrica | B14: =MAX($Y$31:$Y$3030) ->  | C14: N | D14: j | E14: Retorno à Posição Inicial do CM | G14: =ADDRESS(MATCH(B18,$F$1:$F$3030,0),2,4) ->  | L14: =INDIRECT(J14) ->  | N14: Dif Força Inicial - Força de Pico | S14: =L6-S9 ->  | T14: N
A15: Potência Máxima na Fase Concêntrica | B15: =MAX($W$31:$W$3030) ->  | C15: W | E15: Maxima TDF da Fase Concêntrica | G15: =ADDRESS(MATCH($S$18,$AD$1:$AD$3030,0),2,4) ->  | L15: =INDIRECT(J15) ->  | N15: TDF Força de Pico (PFFC - Finicial da FC) | S15: =IF(I22>0,S14/I22,0) ->  | T15: N/s | W15: Imp | X15: =S22 -> 
A16: Máxima Velocidade no Impulso | B16: =MAX($T$31:$T$3030) ->  | C16: m/s | E16: Tempo para Atingir Max TDF FC | I16: =I15-I5 ->  | N16: Dif Força na Potência de Pico - Força Inicial | S16: =L7-L5 ->  | T16: N | W16: Tempo | X16: 0.167
A17: Maior Posição do Centro de Massa | B17: =MAX($V$31:$V$3030) ->  | C17: cm | E17: Duração do Movimento | I17: =I10-I2 ->  | N17: TDF Potência de Pico | S17: =IF(I22>0,S16/I23,0) ->  | T17: N/s | W17: Indice | X17: =X15/(X16+0.001)/1000 -> 
A18: Velocidade de Retorno à Posição Inicial do CM | B18: =MIN($F$31:$F$3030) ->  | C18: m/s | E18: Duração da Fase Excêntrica | I18: =I5-I2 ->  | N18: Maxima TDF da Fase Concêntrica a cada 30ms | S18: =MAX(TDF_30Exc) ->  | X18: =X17*X15 -> 
A19: Retorno de Peso Corporal | B19: =AVERAGE(C2431:C3030) ->  | E19: Duração da Fase Concêntrica | I19: =I10-I5 ->  | N19: Potência no Início da Fase Concêntrica | S19: =VLOOKUP($I$5,Dados2,8,1) ->  | T19: w
E20: Duração da Fase de Voo | I20: =I13-I10 ->  | N20: Dif Potência Inicial - Potência de Pico | S20: =S25-S19 ->  | T20: w
E21: Instante do Pico de Força No Movimento | I21: =I6-I2 ->  | N21: TDP Total (Potência de Pico -Potência da FC) | S21: =IF(I22>0,S20/I23,0) ->  | T21: w/s | W21: Duração | X21: =I19 -> 
B22: =$B$5*(100%+$B$7) -> 0 | C22: ='Gráfico Geral'!AA7 -> Contra | E22: Instante do Pico de Força na Fase Concêntrica | I22: =I6-I5 ->  | N22: Impulso Fase Concêntrica | S22: =S6*I19 ->  | T22: N.s | W22: Tempo | X22: 0.167
E23: Instante do Pico de Potência na Fase Concêntrica | I23: =I7-I5 ->  | N23: Força de Pico na Aterrissagem | S23: =MAX(C31:C3030) ->  | T23: N | X23: =100-(X22/X21%) -> 
N24: Potência Média na Fase Excentrica | S24: =SUM(W_Fexc)/COUNTIF(W_Fexc,"<>0") ->  | T24: w
E25: Velocidade Máxima | I25: =B16 ->  | J25: m/s | N25: Potência de Pico na Fase Concêntrica | S25: =MAX(W_Fcon) ->  | T25: w
E26: Velocidade de Saída | I26: =VLOOKUP(I9,Dados2,5,0) ->  | J26: m/s | N26: Potência Média na Fase Concêntrica | S26: =SUM(W_Fcon)/COUNTIF(W_Fcon,"<>0") ->  | T26: w
BK27: Sem Valores da Fase de Voo
B28: Tempo | C28: F_Corr | R28: F_Mov | S28: FR_Mov | T28: V_Mov | U28: P_Mov | V28: P_Ater | W28: W_Mov | X28: F_Fexc | Y28: F_Fcon | Z28: FR_Fcon | AA28: W_Fexc | AB28: W_Fcon | AC28: TDF_30 | AD28: TDF_30Exc | AQ28: Trecho | AR28: Linha | AS28: Trecho | AT28: Trecho | AU28: Trecho | AV28: Trecho | AW28: Pontos | BH28: Forças 1 e 2 | BM28: Forças 1 e 2
A29: ='Correção da Força x Peso'!A12 -> Amostra | B29: ='Correção da Força x Peso'!B12 -> Tempo | C29: ='Correção da Força x Peso'!T12 -> Força (N) | D29: Força Resultante (N) | E29: Aceleração (m/s2) | F29: Velocidade (m/s) | G29: Posição (m) | H29: Posição (cm) | I29: Potência (w) | J29: Gravidade (g) ou xPC | K29: Início do movimento (a) | L29: Início da Fase de Voo (g) | M29: Início da Aterrissagem (i) | N29: Início da Fase Concêntrica (c) | O29: Fim da Fase Excêntrica | P29: Fim da Fase Concêntrica | Q29: Fim da Fase de Voo | R29: Força no Movimento (N) | S29: Força Resultante no Movimento (N) | T29: Velocidade no Movimento (m/s) | U29: Posição No Movimento (cm) | V29: Posição do Início à Aterrissagem (cm) | W29: Potência no Movimento (w) | X29: Força na Fase Excêntrica (N) | Y29: Força na Fase Concêntrica (N) | Z29: Força Resultante na Fase Concêntrica (N) | AA29: Potência na Fase Excêntrica (w) | AB29: Potência Na Fase Concêntrica (w) | AC29: TDF a cada 30 ms (Total) | AD29: TDF a cada 30 ms da Fase Concêntrica | AE29: Campo Livre | AF29: Ponto de Início do Movimento (a) | AG29: Ponto de Maior Velocidade Negativa (b) | AH29: Ponto de Início da Fase Concêntrica (c) | AI29: Ponto Pico de Força na Fase Concêntrica(d) | AJ29: Ponto de Potência Máxima (e) | AK29: Ponto de Máxima Velocidade (f) | AL29: Ponto de Início da Fase de Voo (g) | AM29: Ponto de Maior Posição do CM (h) | AN29: Ponto de Aterrissagem (i) | AO29: Ponto de retorno à Posição Zero do CM (j) | AP29: Pontos de (a) à (j) | AQ29: Peso Corporal (N) | AR29: Linha do Peso Corporal (N) | AS29: Início da Fase Excêntrica até Início da Frenagem | AT29: Início da Frenagem até Final da Fase Excêntrica | AU29: Fase Concêntrica | AV29: Período de Maior TDF na Fase Concêntrica | AW29: =AF29 -> Ponto de Início do Movimento (a) | AX29: Ponto de Maior Velocidade Negativa (b) | AY29: Ponto de Início da Fase Concêntrica (c) | AZ29: Ponto Pico de Força na Fase Concêntrica(d) | BA29: Ponto de Potência Máxima (e) | BB29: Ponto de Máxima Velocidade (f) | BC29: Ponto de Início da Fase de Voo (g) | BD29: Ponto de Maior Posição do CM (h) | BE29: Ponto de Aterrissagem (i) | BF29: Ponto de retorno à Posição Zero do CM (j) | BG29: =AP29 -> Pontos de (a) à (j) | BH29: Força 1 (N) | BI29: Força 2 (N) | BJ29: Dif Força (N) | BK29: Força 1 (N) | BL29: Força 2 (N) | BM29: Dif de Força (N) | BN29: % Força 1 | BO29: % Força 2
A30: n | B30: (s) | C30: (N) | D30: (N) | E30: (m/s^2) | F30: (m/s) | G30: (m) | H30: (cm) | I30: (W) | J30: (g) | R30: (N) | S30: (N) | T30: (m/s) | U30: (cm) | V30: (cm) | W30: (w) | X30: (N) | Y30: (N) | Z30: (N) | AA30: (w) | AB30: (w) | AC30: N/s | AP30: (a) à (j) | AQ30: (N) | AR30: (N) | BK30: (N) | BL30: (N) | BM30: (N)
A31: ='Correção da Força x Peso'!A13 -> 0 | B31: ='Correção da Força x Peso'!B13 -> 0.00000 | C31: ='Correção da Força x Peso'!T13 ->  | D31: =C31-$B$5 ->  | F31: 0 | G31: 0 | H31: =G31*100 -> 0.0000 | J31: =C31/$B$5 ->  | K31: =IF($C$22="Contra",IF(B31>$B$6,IF(C31<$B$8,K30+1,K30),0),IF(B31>$B$6,IF(C31>$B$22,K30+1,K30),0)) -> 0 | L31: =IF(C30<$B$11,L30+1,0) -> 0 | M31: =IF(AND(L31>0,C32>$B$11),M30+1,M30) ->  | N31: =IF($C$22="Contra",IF(U30=$B$13,N30+1,N30*1.00001),IF(B31>$B$6,IF(C31>$B$22,N30+1,N30*1.00001),0)) ->  | O31: =IF(N32>0,1+O30,0) ->  | P31: =IF(L32>0,1+P30,0) ->  | R31: =IF(AND(K31>0,L31<1),C31,0) -> 0 | S31: =IF(R31>0,R31-$B$5,0) -> 0 | T31: =IF(AND(K31>0,L31=0),F31,0) -> 0 | U31: =IF(AND(K31>0,L31=0),H31,0) -> 0 | V31: =IF(AND(K31>0,M31<1),H31,0) ->  | W31: =IF(AND(K31>0,L31<1),I31,0) -> 0 | X31: =IF(AND(N31<1,K31>=1),C31,0) ->  | Y31: =IF(AND(N31>0,L31<1),C31,0) ->  | Z31: =IF(Y31>0,Y31-$B$5,0) ->  | AA31: =IF(X31>0,W31,0) ->  | AB31: =IF(Y31>0,W31,0) ->  | AC31: =IF(B31>0.031,(C31-C13)/(30/1000),0) -> 0.000 | AD31: =IF(AND(B31>=$I$5+0.03,Y31>0),(C31-C13)/(30/1000),0) ->  | AE31: 0 | AF31: =IF(K31=1,1,0) -> 0 | AG31: =IF($C$22="Contra",IF(T31=$B$12,1,0),0) ->  | AH31: =IF(N31=1,1,0) ->  | AI31: =IF(R31=$B$14,1,0) ->  | AJ31: =IF(W31=$B$15,1,0) ->  | AK31: =IF(T31=$B$16,1,0) ->  | AL31: =IF(L31=1,1,0) -> 0 | AM31: =IF(V31=$B$17,1,0) ->  | AN31: =IF(M31=1,1,0) ->  | AO31: =IF(F31=$B$18,1,0) ->  | AP31: =IF(SUM(AF31:AO31)<>0,C31,-10000) ->  | AQ31: =IF(A31>600,0,$B$5) -> 0.00 | AR31: =$B$5 -> 0.00 | AS31: =IF(AND(B31>=$I$2,B31<=$I$3+0.005),$S$23,0) ->  | AT31: =IF(AND(B31>$I$3,B31<$I$5+0.005),$S$23,0) ->  | AU31: =IF(AND(B31>$I$4,B31<$I$10),$S$23,0) ->  | AV31: =IF(AND(B31>$I$15-0.03,B31<=$I$15),$S$23,0) ->  | AW31: =IF(AF31=1,$S$23,0) -> 0 | AX31: =IF(AG31=1,$S$23,0) ->  | AY31: =IF(AH31=1,$S$23,0) ->  | AZ31: =IF(AI31=1,$S$23,0) ->  | BA31: =IF(AJ31=1,$S$23,0) ->  | BB31: =IF(AK31=1,$S$23,0) ->  | BC31: =IF(AL31=1,$S$23,0) -> 0 | BD31: =IF(AM31=1,$S$23,0) ->  | BE31: =IF(AN31=1,$S$23,0) ->  | BF31: =IF(AO31=1,$S$23,0) ->  | BG31: =IF(AP31<-1000,0,$S$23) ->  | BH31: ='Correção da Força x Peso'!U13 -> 0 | BI31: ='Correção da Força x Peso'!V13 -> 0 | BJ31: =BH31-BI31 -> 0 | BK31: =IF(AND(B31>=$I$10,B31<=$I$12),0,BH31) ->  | BL31: =IF(AND(B31>=$I$10,B31<=$I$12),0,BI31) ->  | BM31: =BK31-BL31 ->  | BN31: =BK31/C31% ->  | BO31: =BL31/C31% -> 
A32: ='Correção da Força x Peso'!A14 -> 0 | B32: ='Correção da Força x Peso'!B14 -> 0.00000 | C32: ='Correção da Força x Peso'!T14 ->  | E32: =D32/($B$5/9.81) ->  | F32: =F31+((E32+E31)/2)*(B32-B31) ->  | G32: =(G31+((F32+F31)/2)*(B32-B31)) ->  | H32: =G32*100 ->  | I32: =C32*F32 ->  | K32: 0 | T32: =IF(AND(K32>0,L32=0),F32,0) ->  | V32: =IF(AND(K32>0,M32<1),H32,0) ->  | X32: =IF(AND(N32<1,K32>=1),C32,0) ->  | Y32: =IF(AND(N32>0,L32<1),C32,0) ->  | AA32: =IF(X32>0,W32,0) ->  | AB32: =IF(Y32>0,W32,0) ->  | AC32: 0.000 | AE32: 0 | AF32: 0 | AG32: =IF($C$22="Contra",IF(T32=$B$12,1,0),0) ->  | AP32: =IF(SUM(AF32:AO32)<>0,C32,-10000) ->  | AQ32: 0.00 | AR32: =$B$5 -> 0.00 | AU32: =IF(AND(B32>$I$4,B32<$I$10),$S$23,0) ->  | AV32: =IF(AND(B32>$I$15-0.03,B32<=$I$15),$S$23,0) ->  | AW32: 0 | BF32: =IF(AO32=1,$S$23,0) ->  | BG32: =IF(AP32<-1000,0,$S$23) ->  | BH32: ='Correção da Força x Peso'!U14 -> 0 | BI32: ='Correção da Força x Peso'!V14 -> 0 | BJ32: =BH32-BI32 -> 0 | BM32: =BK32-BL32 -> 
A33: ='Correção da Força x Peso'!A15 -> 0 | B33: ='Correção da Força x Peso'!B15 -> 0.00000 | C33: ='Correção da Força x Peso'!T15 ->  | F33: =F32+((E33+E32)/2)*(B33-B32) ->  | G33: =(G32+((F33+F32)/2)*(B33-B32)) ->  | I33: =C33*F33 ->  | K33: 0 | AC33: 0.000 | AE33: 0 | AF33: 0 | AQ33: 0.00 | AR33: 0.00 | AW33: 0 | BH33: ='Correção da Força x Peso'!U15 -> 0 | BI33: ='Correção da Força x Peso'!V15 -> 0 | BJ33: 0
A34: ='Correção da Força x Peso'!A16 -> 0 | B34: ='Correção da Força x Peso'!B16 -> 0.00000 | C34: ='Correção da Força x Peso'!T16 ->  | K34: 0 | AC34: 0.000 | AE34: 0 | AF34: 0 | AQ34: 0.00 | AR34: 0.00 | AW34: 0 | BH34: ='Correção da Força x Peso'!U16 -> 0 | BI34: ='Correção da Força x Peso'!V16 -> 0 | BJ34: 0
A35: ='Correção da Força x Peso'!A17 -> 0 | B35: ='Correção da Força x Peso'!B17 -> 0.00000 | C35: ='Correção da Força x Peso'!T17 ->  | K35: 0 | AC35: 0.000 | AE35: 0 | AF35: 0 | AQ35: 0.00 | AR35: 0.00 | AW35: 0 | BH35: ='Correção da Força x Peso'!U17 -> 0 | BI35: ='Correção da Força x Peso'!V17 -> 0 | BJ35: 0
A36: ='Correção da Força x Peso'!A18 -> 0 | B36: ='Correção da Força x Peso'!B18 -> 0.00000 | C36: ='Correção da Força x Peso'!T18 ->  | K36: 0 | AC36: 0.000 | AE36: 0 | AF36: 0 | AQ36: 0.00 | AR36: 0.00 | AW36: 0 | BH36: ='Correção da Força x Peso'!U18 -> 0 | BI36: ='Correção da Força x Peso'!V18 -> 0 | BJ36: 0
A37: ='Correção da Força x Peso'!A19 -> 0 | B37: ='Correção da Força x Peso'!B19 -> 0.00000 | C37: ='Correção da Força x Peso'!T19 ->  | K37: 0 | AC37: 0.000 | AE37: 0 | AF37: 0 | AQ37: 0.00 | AR37: 0.00 | AW37: 0 | BH37: ='Correção da Força x Peso'!U19 -> 0 | BI37: ='Correção da Força x Peso'!V19 -> 0 | BJ37: 0
A38: ='Correção da Força x Peso'!A20 -> 0 | B38: ='Correção da Força x Peso'!B20 -> 0.00000 | C38: ='Correção da Força x Peso'!T20 ->  | K38: 0 | AC38: 0.000 | AE38: 0 | AF38: 0 | AQ38: 0.00 | AR38: 0.00 | AW38: 0 | BH38: ='Correção da Força x Peso'!U20 -> 0 | BI38: ='Correção da Força x Peso'!V20 -> 0 | BJ38: 0
A39: ='Correção da Força x Peso'!A21 -> 0 | B39: ='Correção da Força x Peso'!B21 -> 0.00000 | C39: ='Correção da Força x Peso'!T21 ->  | K39: 0 | AC39: 0.000 | AE39: 0 | AF39: 0 | AQ39: 0.00 | AR39: 0.00 | AW39: 0 | BH39: ='Correção da Força x Peso'!U21 -> 0 | BI39: ='Correção da Força x Peso'!V21 -> 0 | BJ39: 0
A40: ='Correção da Força x Peso'!A22 -> 0 | B40: ='Correção da Força x Peso'!B22 -> 0.00000 | C40: ='Correção da Força x Peso'!T22 ->  | K40: 0 | AC40: 0.000 | AE40: 0 | AF40: 0 | AQ40: 0.00 | AR40: 0.00 | AW40: 0 | BH40: ='Correção da Força x Peso'!U22 -> 0 | BI40: ='Correção da Força x Peso'!V22 -> 0 | BJ40: 0
A41: ='Correção da Força x Peso'!A23 -> 0 | B41: ='Correção da Força x Peso'!B23 -> 0.00000 | C41: ='Correção da Força x Peso'!T23 ->  | K41: 0 | AC41: 0.000 | AE41: 0 | AF41: 0 | AQ41: 0.00 | AR41: 0.00 | AW41: 0 | BH41: ='Correção da Força x Peso'!U23 -> 0 | BI41: ='Correção da Força x Peso'!V23 -> 0 | BJ41: 0
A42: ='Correção da Força x Peso'!A24 -> 0 | B42: ='Correção da Força x Peso'!B24 -> 0.00000 | C42: ='Correção da Força x Peso'!T24 ->  | K42: 0 | AC42: 0.000 | AE42: 0 | AF42: 0 | AQ42: 0.00 | AR42: 0.00 | AW42: 0 | BH42: ='Correção da Força x Peso'!U24 -> 0 | BI42: ='Correção da Força x Peso'!V24 -> 0 | BJ42: 0
A43: ='Correção da Força x Peso'!A25 -> 0 | B43: ='Correção da Força x Peso'!B25 -> 0.00000 | C43: ='Correção da Força x Peso'!T25 ->  | K43: 0 | AC43: 0.000 | AE43: 0 | AF43: 0 | AQ43: 0.00 | AR43: 0.00 | AW43: 0 | BH43: ='Correção da Força x Peso'!U25 -> 0 | BI43: ='Correção da Força x Peso'!V25 -> 0 | BJ43: 0
A44: ='Correção da Força x Peso'!A26 -> 0 | B44: ='Correção da Força x Peso'!B26 -> 0.00000 | C44: ='Correção da Força x Peso'!T26 ->  | K44: 0 | AC44: 0.000 | AE44: 0 | AF44: 0 | AQ44: 0.00 | AR44: 0.00 | AW44: 0 | BH44: ='Correção da Força x Peso'!U26 -> 0 | BI44: ='Correção da Força x Peso'!V26 -> 0 | BJ44: 0
A45: ='Correção da Força x Peso'!A27 -> 0 | B45: ='Correção da Força x Peso'!B27 -> 0.00000 | C45: ='Correção da Força x Peso'!T27 ->  | K45: 0 | AC45: 0.000 | AE45: 0 | AF45: 0 | AQ45: 0.00 | AR45: 0.00 | AW45: 0 | BH45: ='Correção da Força x Peso'!U27 -> 0 | BI45: ='Correção da Força x Peso'!V27 -> 0 | BJ45: 0
A46: ='Correção da Força x Peso'!A28 -> 0 | B46: ='Correção da Força x Peso'!B28 -> 0.00000 | C46: ='Correção da Força x Peso'!T28 ->  | K46: 0 | AC46: 0.000 | AE46: 0 | AF46: 0 | AQ46: 0.00 | AR46: 0.00 | AW46: 0 | BH46: ='Correção da Força x Peso'!U28 -> 0 | BI46: ='Correção da Força x Peso'!V28 -> 0 | BJ46: 0
A47: ='Correção da Força x Peso'!A29 -> 0 | B47: ='Correção da Força x Peso'!B29 -> 0.00000 | C47: ='Correção da Força x Peso'!T29 ->  | K47: 0 | AC47: 0.000 | AE47: 0 | AF47: 0 | AQ47: 0.00 | AR47: 0.00 | AW47: 0 | BH47: ='Correção da Força x Peso'!U29 -> 0 | BI47: ='Correção da Força x Peso'!V29 -> 0 | BJ47: 0
A48: ='Correção da Força x Peso'!A30 -> 0 | B48: ='Correção da Força x Peso'!B30 -> 0.00000 | C48: ='Correção da Força x Peso'!T30 ->  | K48: 0 | AC48: 0.000 | AE48: 0 | AF48: 0 | AQ48: 0.00 | AR48: 0.00 | AW48: 0 | BH48: ='Correção da Força x Peso'!U30 -> 0 | BI48: ='Correção da Força x Peso'!V30 -> 0 | BJ48: 0
A49: ='Correção da Força x Peso'!A31 -> 0 | B49: ='Correção da Força x Peso'!B31 -> 0.00000 | C49: ='Correção da Força x Peso'!T31 ->  | K49: 0 | AC49: 0.000 | AE49: 0 | AF49: 0 | AQ49: 0.00 | AR49: 0.00 | AW49: 0 | BH49: ='Correção da Força x Peso'!U31 -> 0 | BI49: ='Correção da Força x Peso'!V31 -> 0 | BJ49: 0
A50: ='Correção da Força x Peso'!A32 -> 0 | B50: ='Correção da Força x Peso'!B32 -> 0.00000 | C50: ='Correção da Força x Peso'!T32 ->  | K50: 0 | AC50: 0.000 | AE50: 0 | AF50: 0 | AQ50: 0.00 | AR50: 0.00 | AW50: 0 | BH50: ='Correção da Força x Peso'!U32 -> 0 | BI50: ='Correção da Força x Peso'!V32 -> 0 | BJ50: 0
A51: ='Correção da Força x Peso'!A33 -> 0 | B51: ='Correção da Força x Peso'!B33 -> 0.00000 | C51: ='Correção da Força x Peso'!T33 ->  | K51: 0 | AC51: 0.000 | AE51: 0 | AF51: 0 | AQ51: 0.00 | AR51: 0.00 | AW51: 0 | BH51: ='Correção da Força x Peso'!U33 -> 0 | BI51: ='Correção da Força x Peso'!V33 -> 0 | BJ51: 0
A52: ='Correção da Força x Peso'!A34 -> 0 | B52: ='Correção da Força x Peso'!B34 -> 0.00000 | C52: ='Correção da Força x Peso'!T34 ->  | K52: 0 | AC52: 0.000 | AE52: 0 | AF52: 0 | AQ52: 0.00 | AR52: 0.00 | AW52: 0 | BH52: ='Correção da Força x Peso'!U34 -> 0 | BI52: ='Correção da Força x Peso'!V34 -> 0 | BJ52: 0
A53: ='Correção da Força x Peso'!A35 -> 0 | B53: ='Correção da Força x Peso'!B35 -> 0.00000 | C53: ='Correção da Força x Peso'!T35 ->  | K53: 0 | AC53: 0.000 | AE53: 0 | AF53: 0 | AQ53: 0.00 | AR53: 0.00 | AW53: 0 | BH53: ='Correção da Força x Peso'!U35 -> 0 | BI53: ='Correção da Força x Peso'!V35 -> 0 | BJ53: 0
A54: ='Correção da Força x Peso'!A36 -> 0 | B54: ='Correção da Força x Peso'!B36 -> 0.00000 | C54: ='Correção da Força x Peso'!T36 ->  | K54: 0 | AC54: 0.000 | AE54: 0 | AF54: 0 | AQ54: 0.00 | AR54: 0.00 | AW54: 0 | BH54: ='Correção da Força x Peso'!U36 -> 0 | BI54: ='Correção da Força x Peso'!V36 -> 0 | BJ54: 0
A55: ='Correção da Força x Peso'!A37 -> 0 | B55: ='Correção da Força x Peso'!B37 -> 0.00000 | C55: ='Correção da Força x Peso'!T37 ->  | K55: 0 | AC55: 0.000 | AE55: 0 | AF55: 0 | AQ55: 0.00 | AR55: 0.00 | AW55: 0 | BH55: ='Correção da Força x Peso'!U37 -> 0 | BI55: ='Correção da Força x Peso'!V37 -> 0 | BJ55: 0
A56: ='Correção da Força x Peso'!A38 -> 0 | B56: ='Correção da Força x Peso'!B38 -> 0.00000 | C56: ='Correção da Força x Peso'!T38 ->  | K56: 0 | AC56: 0.000 | AE56: 0 | AF56: 0 | AQ56: 0.00 | AR56: 0.00 | AW56: 0 | BH56: ='Correção da Força x Peso'!U38 -> 0 | BI56: ='Correção da Força x Peso'!V38 -> 0 | BJ56: 0
A57: ='Correção da Força x Peso'!A39 -> 0 | B57: ='Correção da Força x Peso'!B39 -> 0.00000 | C57: ='Correção da Força x Peso'!T39 ->  | K57: 0 | AC57: 0.000 | AE57: 0 | AF57: 0 | AQ57: 0.00 | AR57: 0.00 | AW57: 0 | BH57: ='Correção da Força x Peso'!U39 -> 0 | BI57: ='Correção da Força x Peso'!V39 -> 0 | BJ57: 0
A58: ='Correção da Força x Peso'!A40 -> 0 | B58: ='Correção da Força x Peso'!B40 -> 0.00000 | C58: ='Correção da Força x Peso'!T40 ->  | K58: 0 | AC58: 0.000 | AE58: 0 | AF58: 0 | AQ58: 0.00 | AR58: 0.00 | AW58: 0 | BH58: ='Correção da Força x Peso'!U40 -> 0 | BI58: ='Correção da Força x Peso'!V40 -> 0 | BJ58: 0
A59: ='Correção da Força x Peso'!A41 -> 0 | B59: ='Correção da Força x Peso'!B41 -> 0.00000 | C59: ='Correção da Força x Peso'!T41 ->  | K59: 0 | AC59: 0.000 | AE59: 0 | AF59: 0 | AQ59: 0.00 | AR59: 0.00 | AW59: 0 | BH59: ='Correção da Força x Peso'!U41 -> 0 | BI59: ='Correção da Força x Peso'!V41 -> 0 | BJ59: 0
A60: ='Correção da Força x Peso'!A42 -> 0 | B60: ='Correção da Força x Peso'!B42 -> 0.00000 | C60: ='Correção da Força x Peso'!T42 ->  | K60: 0 | AC60: 0.000 | AE60: 0 | AF60: 0 | AQ60: 0.00 | AR60: 0.00 | AW60: 0 | BH60: ='Correção da Força x Peso'!U42 -> 0 | BI60: ='Correção da Força x Peso'!V42 -> 0 | BJ60: 0
A61: ='Correção da Força x Peso'!A43 -> 0 | B61: ='Correção da Força x Peso'!B43 -> 0.00000 | C61: ='Correção da Força x Peso'!T43 ->  | K61: 0 | T61: =IF(AND(K61>0,L61=0),F61,0) ->  | U61: =IF(AND(K61>0,L61=0),H61,0) ->  | V61: =IF(AND(K61>0,M61<1),H61,0) ->  | W61: =IF(AND(K61>0,L61<1),I61,0) ->  | X61: =IF(AND(N61<1,K61>=1),C61,0) ->  | Y61: =IF(AND(N61>0,L61<1),C61,0) ->  | Z61: =IF(Y61>0,Y61-$B$5,0) ->  | AA61: =IF(X61>0,W61,0) ->  | AB61: =IF(Y61>0,W61,0) ->  | AC61: 0.000 | AE61: 0 | AF61: 0 | AQ61: 0.00 | AR61: 0.00 | AW61: 0 | BH61: ='Correção da Força x Peso'!U43 -> 0 | BI61: ='Correção da Força x Peso'!V43 -> 0 | BJ61: 0
A62: ='Correção da Força x Peso'!A44 -> 0 | B62: ='Correção da Força x Peso'!B44 -> 0.00000 | C62: ='Correção da Força x Peso'!T44 ->  | K62: 0 | AC62: 0.000 | AE62: 0 | AF62: 0 | AQ62: 0.00 | AR62: 0.00 | AW62: 0 | BH62: ='Correção da Força x Peso'!U44 -> 0 | BI62: ='Correção da Força x Peso'!V44 -> 0 | BJ62: 0
A63: ='Correção da Força x Peso'!A45 -> 0 | B63: ='Correção da Força x Peso'!B45 -> 0.00000 | C63: ='Correção da Força x Peso'!T45 ->  | K63: 0 | AC63: 0.000 | AE63: 0 | AF63: 0 | AQ63: 0.00 | AR63: 0.00 | AW63: 0 | BH63: ='Correção da Força x Peso'!U45 -> 0 | BI63: ='Correção da Força x Peso'!V45 -> 0 | BJ63: 0
A64: ='Correção da Força x Peso'!A46 -> 0 | B64: ='Correção da Força x Peso'!B46 -> 0.00000 | C64: ='Correção da Força x Peso'!T46 ->  | K64: 0 | AC64: 0.000 | AE64: 0 | AF64: 0 | AQ64: 0.00 | AR64: 0.00 | AW64: 0 | BH64: ='Correção da Força x Peso'!U46 -> 0 | BI64: ='Correção da Força x Peso'!V46 -> 0 | BJ64: 0
A65: ='Correção da Força x Peso'!A47 -> 0 | B65: ='Correção da Força x Peso'!B47 -> 0.00000 | C65: ='Correção da Força x Peso'!T47 ->  | K65: 0 | AC65: 0.000 | AE65: 0 | AF65: 0 | AQ65: 0.00 | AR65: 0.00 | AW65: 0 | BH65: ='Correção da Força x Peso'!U47 -> 0 | BI65: ='Correção da Força x Peso'!V47 -> 0 | BJ65: 0
A66: ='Correção da Força x Peso'!A48 -> 0 | B66: ='Correção da Força x Peso'!B48 -> 0.00000 | C66: ='Correção da Força x Peso'!T48 ->  | K66: 0 | AC66: 0.000 | AE66: 0 | AF66: 0 | AQ66: 0.00 | AR66: 0.00 | AW66: 0 | BH66: ='Correção da Força x Peso'!U48 -> 0 | BI66: ='Correção da Força x Peso'!V48 -> 0 | BJ66: 0
A67: ='Correção da Força x Peso'!A49 -> 0 | B67: ='Correção da Força x Peso'!B49 -> 0.00000 | C67: ='Correção da Força x Peso'!T49 ->  | K67: 0 | AC67: 0.000 | AE67: 0 | AF67: 0 | AQ67: 0.00 | AR67: 0.00 | AW67: 0 | BH67: ='Correção da Força x Peso'!U49 -> 0 | BI67: ='Correção da Força x Peso'!V49 -> 0 | BJ67: 0
A68: ='Correção da Força x Peso'!A50 -> 0 | B68: ='Correção da Força x Peso'!B50 -> 0.00000 | C68: ='Correção da Força x Peso'!T50 ->  | K68: 0 | AC68: 0.000 | AE68: 0 | AF68: 0 | AQ68: 0.00 | AR68: 0.00 | AW68: 0 | BH68: ='Correção da Força x Peso'!U50 -> 0 | BI68: ='Correção da Força x Peso'!V50 -> 0 | BJ68: 0
A69: ='Correção da Força x Peso'!A51 -> 0 | B69: ='Correção da Força x Peso'!B51 -> 0.00000 | C69: ='Correção da Força x Peso'!T51 ->  | K69: 0 | AC69: 0.000 | AE69: 0 | AF69: 0 | AQ69: 0.00 | AR69: 0.00 | AW69: 0 | BH69: ='Correção da Força x Peso'!U51 -> 0 | BI69: ='Correção da Força x Peso'!V51 -> 0 | BJ69: 0
A70: ='Correção da Força x Peso'!A52 -> 0 | B70: ='Correção da Força x Peso'!B52 -> 0.00000 | C70: ='Correção da Força x Peso'!T52 ->  | K70: 0 | AC70: 0.000 | AE70: 0 | AF70: 0 | AQ70: 0.00 | AR70: 0.00 | AW70: 0 | BH70: ='Correção da Força x Peso'!U52 -> 0 | BI70: ='Correção da Força x Peso'!V52 -> 0 | BJ70: 0
A71: ='Correção da Força x Peso'!A53 -> 0 | B71: ='Correção da Força x Peso'!B53 -> 0.00000 | C71: ='Correção da Força x Peso'!T53 ->  | K71: 0 | AC71: 0.000 | AE71: 0 | AF71: 0 | AQ71: 0.00 | AR71: 0.00 | AW71: 0 | BH71: ='Correção da Força x Peso'!U53 -> 0 | BI71: ='Correção da Força x Peso'!V53 -> 0 | BJ71: 0
A72: ='Correção da Força x Peso'!A54 -> 0 | B72: ='Correção da Força x Peso'!B54 -> 0.00000 | C72: ='Correção da Força x Peso'!T54 ->  | K72: 0 | AC72: 0.000 | AE72: 0 | AF72: 0 | AQ72: 0.00 | AR72: 0.00 | AW72: 0 | BH72: ='Correção da Força x Peso'!U54 -> 0 | BI72: ='Correção da Força x Peso'!V54 -> 0 | BJ72: 0
A73: ='Correção da Força x Peso'!A55 -> 0 | B73: ='Correção da Força x Peso'!B55 -> 0.00000 | C73: ='Correção da Força x Peso'!T55 ->  | K73: 0 | AC73: 0.000 | AE73: 0 | AF73: 0 | AQ73: 0.00 | AR73: 0.00 | AW73: 0 | BH73: ='Correção da Força x Peso'!U55 -> 0 | BI73: ='Correção da Força x Peso'!V55 -> 0 | BJ73: 0
A74: ='Correção da Força x Peso'!A56 -> 0 | B74: ='Correção da Força x Peso'!B56 -> 0.00000 | C74: ='Correção da Força x Peso'!T56 ->  | K74: 0 | AC74: 0.000 | AE74: 0 | AF74: 0 | AQ74: 0.00 | AR74: 0.00 | AW74: 0 | BH74: ='Correção da Força x Peso'!U56 -> 0 | BI74: ='Correção da Força x Peso'!V56 -> 0 | BJ74: 0
A75: ='Correção da Força x Peso'!A57 -> 0 | B75: ='Correção da Força x Peso'!B57 -> 0.00000 | C75: ='Correção da Força x Peso'!T57 ->  | K75: 0 | AC75: 0.000 | AE75: 0 | AF75: 0 | AQ75: 0.00 | AR75: 0.00 | AW75: 0 | BH75: ='Correção da Força x Peso'!U57 -> 0 | BI75: ='Correção da Força x Peso'!V57 -> 0 | BJ75: 0
A76: ='Correção da Força x Peso'!A58 -> 0 | B76: ='Correção da Força x Peso'!B58 -> 0.00000 | C76: ='Correção da Força x Peso'!T58 ->  | K76: 0 | AC76: 0.000 | AE76: 0 | AF76: 0 | AQ76: 0.00 | AR76: 0.00 | AW76: 0 | BH76: ='Correção da Força x Peso'!U58 -> 0 | BI76: ='Correção da Força x Peso'!V58 -> 0 | BJ76: 0
A77: ='Correção da Força x Peso'!A59 -> 0 | B77: ='Correção da Força x Peso'!B59 -> 0.00000 | C77: ='Correção da Força x Peso'!T59 ->  | K77: 0 | AC77: 0.000 | AE77: 0 | AF77: 0 | AQ77: 0.00 | AR77: 0.00 | AW77: 0 | BH77: ='Correção da Força x Peso'!U59 -> 0 | BI77: ='Correção da Força x Peso'!V59 -> 0 | BJ77: 0
A78: ='Correção da Força x Peso'!A60 -> 0 | B78: ='Correção da Força x Peso'!B60 -> 0.00000 | C78: ='Correção da Força x Peso'!T60 ->  | K78: 0 | AC78: 0.000 | AE78: 0 | AF78: 0 | AQ78: 0.00 | AR78: 0.00 | AW78: 0 | BH78: ='Correção da Força x Peso'!U60 -> 0 | BI78: ='Correção da Força x Peso'!V60 -> 0 | BJ78: 0
A79: ='Correção da Força x Peso'!A61 -> 0 | B79: ='Correção da Força x Peso'!B61 -> 0.00000 | C79: ='Correção da Força x Peso'!T61 ->  | K79: 0 | AC79: 0.000 | AE79: 0 | AF79: 0 | AQ79: 0.00 | AR79: 0.00 | AW79: 0 | BH79: ='Correção da Força x Peso'!U61 -> 0 | BI79: ='Correção da Força x Peso'!V61 -> 0 | BJ79: 0
A80: ='Correção da Força x Peso'!A62 -> 0 | B80: ='Correção da Força x Peso'!B62 -> 0.00000 | C80: ='Correção da Força x Peso'!T62 ->  | K80: 0 | AC80: 0.000 | AE80: 0 | AF80: 0 | AQ80: 0.00 | AR80: 0.00 | AW80: 0 | BH80: ='Correção da Força x Peso'!U62 -> 0 | BI80: ='Correção da Força x Peso'!V62 -> 0 | BJ80: 0
A81: ='Correção da Força x Peso'!A63 -> 0 | B81: ='Correção da Força x Peso'!B63 -> 0.00000 | C81: ='Correção da Força x Peso'!T63 ->  | K81: 0 | AC81: 0.000 | AE81: 0 | AF81: 0 | AQ81: 0.00 | AR81: 0.00 | AW81: 0 | BH81: ='Correção da Força x Peso'!U63 -> 0 | BI81: ='Correção da Força x Peso'!V63 -> 0 | BJ81: 0
A82: ='Correção da Força x Peso'!A64 -> 0 | B82: ='Correção da Força x Peso'!B64 -> 0.00000 | C82: ='Correção da Força x Peso'!T64 ->  | K82: 0 | AC82: 0.000 | AE82: 0 | AF82: 0 | AQ82: 0.00 | AR82: 0.00 | AW82: 0 | BH82: ='Correção da Força x Peso'!U64 -> 0 | BI82: ='Correção da Força x Peso'!V64 -> 0 | BJ82: 0
A83: ='Correção da Força x Peso'!A65 -> 0 | B83: ='Correção da Força x Peso'!B65 -> 0.00000 | C83: ='Correção da Força x Peso'!T65 ->  | K83: 0 | AC83: 0.000 | AE83: 0 | AF83: 0 | AQ83: 0.00 | AR83: 0.00 | AW83: 0 | BH83: ='Correção da Força x Peso'!U65 -> 0 | BI83: ='Correção da Força x Peso'!V65 -> 0 | BJ83: 0
A84: ='Correção da Força x Peso'!A66 -> 0 | B84: ='Correção da Força x Peso'!B66 -> 0.00000 | C84: ='Correção da Força x Peso'!T66 ->  | K84: 0 | AC84: 0.000 | AE84: 0 | AF84: 0 | AQ84: 0.00 | AR84: 0.00 | AW84: 0 | BH84: ='Correção da Força x Peso'!U66 -> 0 | BI84: ='Correção da Força x Peso'!V66 -> 0 | BJ84: 0
A85: ='Correção da Força x Peso'!A67 -> 0 | B85: ='Correção da Força x Peso'!B67 -> 0.00000 | C85: ='Correção da Força x Peso'!T67 ->  | K85: 0 | AC85: 0.000 | AE85: 0 | AF85: 0 | AQ85: 0.00 | AR85: 0.00 | AW85: 0 | BH85: ='Correção da Força x Peso'!U67 -> 0 | BI85: ='Correção da Força x Peso'!V67 -> 0 | BJ85: 0
A86: ='Correção da Força x Peso'!A68 -> 0 | B86: ='Correção da Força x Peso'!B68 -> 0.00000 | C86: ='Correção da Força x Peso'!T68 ->  | K86: 0 | AC86: 0.000 | AE86: 0 | AF86: 0 | AQ86: 0.00 | AR86: 0.00 | AW86: 0 | BH86: ='Correção da Força x Peso'!U68 -> 0 | BI86: ='Correção da Força x Peso'!V68 -> 0 | BJ86: 0
A87: ='Correção da Força x Peso'!A69 -> 0 | B87: ='Correção da Força x Peso'!B69 -> 0.00000 | C87: ='Correção da Força x Peso'!T69 ->  | K87: 0 | AC87: 0.000 | AE87: 0 | AF87: 0 | AQ87: 0.00 | AR87: 0.00 | AW87: 0 | BH87: ='Correção da Força x Peso'!U69 -> 0 | BI87: ='Correção da Força x Peso'!V69 -> 0 | BJ87: 0
A88: ='Correção da Força x Peso'!A70 -> 0 | B88: ='Correção da Força x Peso'!B70 -> 0.00000 | C88: ='Correção da Força x Peso'!T70 ->  | K88: 0 | AC88: 0.000 | AE88: 0 | AF88: 0 | AQ88: 0.00 | AR88: 0.00 | AW88: 0 | BH88: ='Correção da Força x Peso'!U70 -> 0 | BI88: ='Correção da Força x Peso'!V70 -> 0 | BJ88: 0
A89: ='Correção da Força x Peso'!A71 -> 0 | B89: ='Correção da Força x Peso'!B71 -> 0.00000 | C89: ='Correção da Força x Peso'!T71 ->  | K89: 0 | AC89: 0.000 | AE89: 0 | AF89: 0 | AQ89: 0.00 | AR89: 0.00 | AW89: 0 | BH89: ='Correção da Força x Peso'!U71 -> 0 | BI89: ='Correção da Força x Peso'!V71 -> 0 | BJ89: 0
A90: ='Correção da Força x Peso'!A72 -> 0 | B90: ='Correção da Força x Peso'!B72 -> 0.00000 | C90: ='Correção da Força x Peso'!T72 ->  | K90: 0 | AC90: 0.000 | AE90: 0 | AF90: 0 | AQ90: 0.00 | AR90: 0.00 | AW90: 0 | BH90: ='Correção da Força x Peso'!U72 -> 0 | BI90: ='Correção da Força x Peso'!V72 -> 0 | BJ90: 0
A91: ='Correção da Força x Peso'!A73 -> 0 | B91: ='Correção da Força x Peso'!B73 -> 0.00000 | C91: ='Correção da Força x Peso'!T73 ->  | K91: 0 | AC91: 0.000 | AE91: 0 | AF91: 0 | AQ91: 0.00 | AR91: 0.00 | AW91: 0 | BH91: ='Correção da Força x Peso'!U73 -> 0 | BI91: ='Correção da Força x Peso'!V73 -> 0 | BJ91: 0
A92: ='Correção da Força x Peso'!A74 -> 0 | B92: ='Correção da Força x Peso'!B74 -> 0.00000 | C92: ='Correção da Força x Peso'!T74 ->  | K92: 0 | AC92: 0.000 | AE92: 0 | AF92: 0 | AQ92: 0.00 | AR92: 0.00 | AW92: 0 | BH92: ='Correção da Força x Peso'!U74 -> 0 | BI92: ='Correção da Força x Peso'!V74 -> 0 | BJ92: 0
A93: ='Correção da Força x Peso'!A75 -> 0 | B93: ='Correção da Força x Peso'!B75 -> 0.00000 | C93: ='Correção da Força x Peso'!T75 ->  | K93: 0 | AC93: 0.000 | AE93: 0 | AF93: 0 | AQ93: 0.00 | AR93: 0.00 | AW93: 0 | BH93: ='Correção da Força x Peso'!U75 -> 0 | BI93: ='Correção da Força x Peso'!V75 -> 0 | BJ93: 0
A94: ='Correção da Força x Peso'!A76 -> 0 | B94: ='Correção da Força x Peso'!B76 -> 0.00000 | C94: ='Correção da Força x Peso'!T76 ->  | K94: 0 | AC94: 0.000 | AE94: 0 | AF94: 0 | AQ94: 0.00 | AR94: 0.00 | AW94: 0 | BH94: ='Correção da Força x Peso'!U76 -> 0 | BI94: ='Correção da Força x Peso'!V76 -> 0 | BJ94: 0
A95: ='Correção da Força x Peso'!A77 -> 0 | B95: ='Correção da Força x Peso'!B77 -> 0.00000 | C95: ='Correção da Força x Peso'!T77 ->  | D95: =C95-$B$5 ->  | J95: =C95/$B$5 ->  | K95: =IF($C$22="Contra",IF(B95>$B$6,IF(C95<$B$8,K94+1,K94),0),IF(B95>$B$6,IF(C95>$B$22,K94+1,K94),0)) -> 0 | L95: =IF(C94<$B$11,L94+1,0) ->  | M95: =IF(AND(L95>0,C96>$B$11),M94+1,M94) ->  | N95: =IF($C$22="Contra",IF(U94=$B$13,N94+1,N94*1.00001),IF(B95>$B$6,IF(C95>$B$22,N94+1,N94*1.00001),0)) ->  | O95: =IF(N96>0,1+O94,0) ->  | P95: =IF(L96>0,1+P94,0) ->  | R95: =IF(AND(K95>0,L95<1),C95,0) ->  | S95: =IF(R95>0,R95-$B$5,0) ->  | AC95: =IF(B95>0.031,(C95-C77)/(30/1000),0) -> 0.000 | AD95: =IF(AND(B95>=$I$5+0.03,Y95>0),(C95-C77)/(30/1000),0) ->  | AE95: 0 | AF95: =IF(K95=1,1,0) -> 0 | AH95: =IF(N95=1,1,0) ->  | AI95: =IF(R95=$B$14,1,0) ->  | AJ95: =IF(W95=$B$15,1,0) ->  | AK95: =IF(T95=$B$16,1,0) ->  | AL95: =IF(L95=1,1,0) ->  | AM95: =IF(V95=$B$17,1,0) ->  | AN95: =IF(M95=1,1,0) ->  | AO95: =IF(F95=$B$18,1,0) ->  | AQ95: =IF(A95>600,0,$B$5) -> 0.00 | AR95: 0.00 | AS95: =IF(AND(B95>=$I$2,B95<=$I$3+0.005),$S$23,0) ->  | AT95: =IF(AND(B95>$I$3,B95<$I$5+0.005),$S$23,0) ->  | AW95: =IF(AF95=1,$S$23,0) -> 0 | AX95: =IF(AG95=1,$S$23,0) ->  | AY95: =IF(AH95=1,$S$23,0) ->  | AZ95: =IF(AI95=1,$S$23,0) ->  | BA95: =IF(AJ95=1,$S$23,0) ->  | BB95: =IF(AK95=1,$S$23,0) ->  | BC95: =IF(AL95=1,$S$23,0) ->  | BD95: =IF(AM95=1,$S$23,0) ->  | BE95: =IF(AN95=1,$S$23,0) ->  | BH95: ='Correção da Força x Peso'!U77 -> 0 | BI95: ='Correção da Força x Peso'!V77 -> 0 | BJ95: 0 | BK95: =IF(AND(B95>=$I$10,B95<=$I$12),0,BH95) ->  | BL95: =IF(AND(B95>=$I$10,B95<=$I$12),0,BI95) ->  | BN95: =BK95/C95% ->  | BO95: =BL95/C95% -> 
A96: ='Correção da Força x Peso'!A78 -> 0 | B96: ='Correção da Força x Peso'!B78 -> 0.00000 | C96: ='Correção da Força x Peso'!T78 ->  | E96: =D96/($B$5/9.81) ->  | H96: =G96*100 ->  | K96: 0 | AC96: 0.000 | AE96: 0 | AF96: 0 | AG96: =IF($C$22="Contra",IF(T96=$B$12,1,0),0) ->  | AP96: =IF(SUM(AF96:AO96)<>0,C96,-10000) ->  | AQ96: 0.00 | AR96: =$B$5 -> 0.00 | AU96: =IF(AND(B96>$I$4,B96<$I$10),$S$23,0) ->  | AV96: =IF(AND(B96>$I$15-0.03,B96<=$I$15),$S$23,0) ->  | AW96: 0 | BF96: =IF(AO96=1,$S$23,0) ->  | BG96: =IF(AP96<-1000,0,$S$23) ->  | BH96: ='Correção da Força x Peso'!U78 -> 0 | BI96: ='Correção da Força x Peso'!V78 -> 0 | BJ96: =BH96-BI96 -> 0 | BM96: =BK96-BL96 -> 
A97: ='Correção da Força x Peso'!A79 -> 0 | B97: ='Correção da Força x Peso'!B79 -> 0.00000 | C97: ='Correção da Força x Peso'!T79 ->  | F97: =F96+((E97+E96)/2)*(B97-B96) ->  | G97: =(G96+((F97+F96)/2)*(B97-B96)) ->  | I97: =C97*F97 ->  | K97: 0 | AC97: 0.000 | AE97: 0 | AF97: 0 | AQ97: 0.00 | AR97: 0.00 | AW97: 0 | BH97: ='Correção da Força x Peso'!U79 -> 0 | BI97: ='Correção da Força x Peso'!V79 -> 0 | BJ97: 0
A98: ='Correção da Força x Peso'!A80 -> 0 | B98: ='Correção da Força x Peso'!B80 -> 0.00000 | C98: ='Correção da Força x Peso'!T80 ->  | K98: 0 | AC98: 0.000 | AE98: 0 | AF98: 0 | AQ98: 0.00 | AR98: 0.00 | AW98: 0 | BH98: ='Correção da Força x Peso'!U80 -> 0 | BI98: ='Correção da Força x Peso'!V80 -> 0 | BJ98: 0
A99: ='Correção da Força x Peso'!A81 -> 0 | B99: ='Correção da Força x Peso'!B81 -> 0.00000 | C99: ='Correção da Força x Peso'!T81 ->  | K99: 0 | AC99: 0.000 | AE99: 0 | AF99: 0 | AQ99: 0.00 | AR99: 0.00 | AW99: 0 | BH99: ='Correção da Força x Peso'!U81 -> 0 | BI99: ='Correção da Força x Peso'!V81 -> 0 | BJ99: 0
A100: ='Correção da Força x Peso'!A82 -> 0 | B100: ='Correção da Força x Peso'!B82 -> 0.00000 | C100: ='Correção da Força x Peso'!T82 ->  | K100: 0 | AC100: 0.000 | AE100: 0 | AF100: 0 | AQ100: 0.00 | AR100: 0.00 | AW100: 0 | BH100: ='Correção da Força x Peso'!U82 -> 0 | BI100: ='Correção da Força x Peso'!V82 -> 0 | BJ100: 0
A101: ='Correção da Força x Peso'!A83 -> 0 | B101: ='Correção da Força x Peso'!B83 -> 0.00000 | C101: ='Correção da Força x Peso'!T83 ->  | K101: 0 | AC101: 0.000 | AE101: 0 | AF101: 0 | AQ101: 0.00 | AR101: 0.00 | AW101: 0 | BH101: ='Correção da Força x Peso'!U83 -> 0 | BI101: ='Correção da Força x Peso'!V83 -> 0 | BJ101: 0
A102: ='Correção da Força x Peso'!A84 -> 0 | B102: ='Correção da Força x Peso'!B84 -> 0.00000 | C102: ='Correção da Força x Peso'!T84 ->  | K102: 0 | AC102: 0.000 | AE102: 0 | AF102: 0 | AQ102: 0.00 | AR102: 0.00 | AW102: 0 | BH102: ='Correção da Força x Peso'!U84 -> 0 | BI102: ='Correção da Força x Peso'!V84 -> 0 | BJ102: 0
A103: ='Correção da Força x Peso'!A85 -> 0 | B103: ='Correção da Força x Peso'!B85 -> 0.00000 | C103: ='Correção da Força x Peso'!T85 ->  | K103: 0 | AC103: 0.000 | AE103: 0 | AF103: 0 | AQ103: 0.00 | AR103: 0.00 | AW103: 0 | BH103: ='Correção da Força x Peso'!U85 -> 0 | BI103: ='Correção da Força x Peso'!V85 -> 0 | BJ103: 0
A104: ='Correção da Força x Peso'!A86 -> 0 | B104: ='Correção da Força x Peso'!B86 -> 0.00000 | C104: ='Correção da Força x Peso'!T86 ->  | K104: 0 | AC104: 0.000 | AE104: 0 | AF104: 0 | AQ104: 0.00 | AR104: 0.00 | AW104: 0 | BH104: ='Correção da Força x Peso'!U86 -> 0 | BI104: ='Correção da Força x Peso'!V86 -> 0 | BJ104: 0
A105: ='Correção da Força x Peso'!A87 -> 0 | B105: ='Correção da Força x Peso'!B87 -> 0.00000 | C105: ='Correção da Força x Peso'!T87 ->  | K105: 0 | AC105: 0.000 | AE105: 0 | AF105: 0 | AQ105: 0.00 | AR105: 0.00 | AW105: 0 | BH105: ='Correção da Força x Peso'!U87 -> 0 | BI105: ='Correção da Força x Peso'!V87 -> 0 | BJ105: 0
A106: ='Correção da Força x Peso'!A88 -> 0 | B106: ='Correção da Força x Peso'!B88 -> 0.00000 | C106: ='Correção da Força x Peso'!T88 ->  | K106: 0 | AC106: 0.000 | AE106: 0 | AF106: 0 | AQ106: 0.00 | AR106: 0.00 | AW106: 0 | BH106: ='Correção da Força x Peso'!U88 -> 0 | BI106: ='Correção da Força x Peso'!V88 -> 0 | BJ106: 0
A107: ='Correção da Força x Peso'!A89 -> 0 | B107: ='Correção da Força x Peso'!B89 -> 0.00000 | C107: ='Correção da Força x Peso'!T89 ->  | K107: 0 | AC107: 0.000 | AE107: 0 | AF107: 0 | AQ107: 0.00 | AR107: 0.00 | AW107: 0 | BH107: ='Correção da Força x Peso'!U89 -> 0 | BI107: ='Correção da Força x Peso'!V89 -> 0 | BJ107: 0
A108: ='Correção da Força x Peso'!A90 -> 0 | B108: ='Correção da Força x Peso'!B90 -> 0.00000 | C108: ='Correção da Força x Peso'!T90 ->  | K108: 0 | AC108: 0.000 | AE108: 0 | AF108: 0 | AQ108: 0.00 | AR108: 0.00 | AW108: 0 | BH108: ='Correção da Força x Peso'!U90 -> 0 | BI108: ='Correção da Força x Peso'!V90 -> 0 | BJ108: 0
A109: ='Correção da Força x Peso'!A91 -> 0 | B109: ='Correção da Força x Peso'!B91 -> 0.00000 | C109: ='Correção da Força x Peso'!T91 ->  | K109: 0 | AC109: 0.000 | AE109: 0 | AF109: 0 | AQ109: 0.00 | AR109: 0.00 | AW109: 0 | BH109: ='Correção da Força x Peso'!U91 -> 0 | BI109: ='Correção da Força x Peso'!V91 -> 0 | BJ109: 0
A110: ='Correção da Força x Peso'!A92 -> 0 | B110: ='Correção da Força x Peso'!B92 -> 0.00000 | C110: ='Correção da Força x Peso'!T92 ->  | K110: 0 | AC110: 0.000 | AE110: 0 | AF110: 0 | AQ110: 0.00 | AR110: 0.00 | AW110: 0 | BH110: ='Correção da Força x Peso'!U92 -> 0 | BI110: ='Correção da Força x Peso'!V92 -> 0 | BJ110: 0
A111: ='Correção da Força x Peso'!A93 -> 0 | B111: ='Correção da Força x Peso'!B93 -> 0.00000 | C111: ='Correção da Força x Peso'!T93 ->  | K111: 0 | AC111: 0.000 | AE111: 0 | AF111: 0 | AQ111: 0.00 | AR111: 0.00 | AW111: 0 | BH111: ='Correção da Força x Peso'!U93 -> 0 | BI111: ='Correção da Força x Peso'!V93 -> 0 | BJ111: 0
A112: ='Correção da Força x Peso'!A94 -> 0 | B112: ='Correção da Força x Peso'!B94 -> 0.00000 | C112: ='Correção da Força x Peso'!T94 ->  | K112: 0 | AC112: 0.000 | AE112: 0 | AF112: 0 | AQ112: 0.00 | AR112: 0.00 | AW112: 0 | BH112: ='Correção da Força x Peso'!U94 -> 0 | BI112: ='Correção da Força x Peso'!V94 -> 0 | BJ112: 0
A113: ='Correção da Força x Peso'!A95 -> 0 | B113: ='Correção da Força x Peso'!B95 -> 0.00000 | C113: ='Correção da Força x Peso'!T95 ->  | K113: 0 | AC113: 0.000 | AE113: 0 | AF113: 0 | AQ113: 0.00 | AR113: 0.00 | AW113: 0 | BH113: ='Correção da Força x Peso'!U95 -> 0 | BI113: ='Correção da Força x Peso'!V95 -> 0 | BJ113: 0
A114: ='Correção da Força x Peso'!A96 -> 0 | B114: ='Correção da Força x Peso'!B96 -> 0.00000 | C114: ='Correção da Força x Peso'!T96 ->  | K114: 0 | AC114: 0.000 | AE114: 0 | AF114: 0 | AQ114: 0.00 | AR114: 0.00 | AW114: 0 | BH114: ='Correção da Força x Peso'!U96 -> 0 | BI114: ='Correção da Força x Peso'!V96 -> 0 | BJ114: 0
A115: ='Correção da Força x Peso'!A97 -> 0 | B115: ='Correção da Força x Peso'!B97 -> 0.00000 | C115: ='Correção da Força x Peso'!T97 ->  | K115: 0 | AC115: 0.000 | AE115: 0 | AF115: 0 | AQ115: 0.00 | AR115: 0.00 | AW115: 0 | BH115: ='Correção da Força x Peso'!U97 -> 0 | BI115: ='Correção da Força x Peso'!V97 -> 0 | BJ115: 0
A116: ='Correção da Força x Peso'!A98 -> 0 | B116: ='Correção da Força x Peso'!B98 -> 0.00000 | C116: ='Correção da Força x Peso'!T98 ->  | K116: 0 | AC116: 0.000 | AE116: 0 | AF116: 0 | AQ116: 0.00 | AR116: 0.00 | AW116: 0 | BH116: ='Correção da Força x Peso'!U98 -> 0 | BI116: ='Correção da Força x Peso'!V98 -> 0 | BJ116: 0
A117: ='Correção da Força x Peso'!A99 -> 0 | B117: ='Correção da Força x Peso'!B99 -> 0.00000 | C117: ='Correção da Força x Peso'!T99 ->  | K117: 0 | AC117: 0.000 | AE117: 0 | AF117: 0 | AQ117: 0.00 | AR117: 0.00 | AW117: 0 | BH117: ='Correção da Força x Peso'!U99 -> 0 | BI117: ='Correção da Força x Peso'!V99 -> 0 | BJ117: 0
A118: ='Correção da Força x Peso'!A100 -> 0 | B118: ='Correção da Força x Peso'!B100 -> 0.00000 | C118: ='Correção da Força x Peso'!T100 ->  | K118: 0 | AC118: 0.000 | AE118: 0 | AF118: 0 | AQ118: 0.00 | AR118: 0.00 | AW118: 0 | BH118: ='Correção da Força x Peso'!U100 -> 0 | BI118: ='Correção da Força x Peso'!V100 -> 0 | BJ118: 0
A119: ='Correção da Força x Peso'!A101 -> 0 | B119: ='Correção da Força x Peso'!B101 -> 0.00000 | C119: ='Correção da Força x Peso'!T101 ->  | K119: 0 | AC119: 0.000 | AE119: 0 | AF119: 0 | AQ119: 0.00 | AR119: 0.00 | AW119: 0 | BH119: ='Correção da Força x Peso'!U101 -> 0 | BI119: ='Correção da Força x Peso'!V101 -> 0 | BJ119: 0
A120: ='Correção da Força x Peso'!A102 -> 0 | B120: ='Correção da Força x Peso'!B102 -> 0.00000 | C120: ='Correção da Força x Peso'!T102 ->  | K120: 0 | AC120: 0.000 | AE120: 0 | AF120: 0 | AQ120: 0.00 | AR120: 0.00 | AW120: 0 | BH120: ='Correção da Força x Peso'!U102 -> 0 | BI120: ='Correção da Força x Peso'!V102 -> 0 | BJ120: 0
A121: ='Correção da Força x Peso'!A103 -> 0 | B121: ='Correção da Força x Peso'!B103 -> 0.00000 | C121: ='Correção da Força x Peso'!T103 ->  | K121: 0 | AC121: 0.000 | AE121: 0 | AF121: 0 | AQ121: 0.00 | AR121: 0.00 | AW121: 0 | BH121: ='Correção da Força x Peso'!U103 -> 0 | BI121: ='Correção da Força x Peso'!V103 -> 0 | BJ121: 0
A122: ='Correção da Força x Peso'!A104 -> 0 | B122: ='Correção da Força x Peso'!B104 -> 0.00000 | C122: ='Correção da Força x Peso'!T104 ->  | K122: 0 | AC122: 0.000 | AE122: 0 | AF122: 0 | AQ122: 0.00 | AR122: 0.00 | AW122: 0 | BH122: ='Correção da Força x Peso'!U104 -> 0 | BI122: ='Correção da Força x Peso'!V104 -> 0 | BJ122: 0
A123: ='Correção da Força x Peso'!A105 -> 0 | B123: ='Correção da Força x Peso'!B105 -> 0.00000 | C123: ='Correção da Força x Peso'!T105 ->  | K123: 0 | AC123: 0.000 | AE123: 0 | AF123: 0 | AQ123: 0.00 | AR123: 0.00 | AW123: 0 | BH123: ='Correção da Força x Peso'!U105 -> 0 | BI123: ='Correção da Força x Peso'!V105 -> 0 | BJ123: 0
A124: ='Correção da Força x Peso'!A106 -> 0 | B124: ='Correção da Força x Peso'!B106 -> 0.00000 | C124: ='Correção da Força x Peso'!T106 ->  | K124: 0 | AC124: 0.000 | AE124: 0 | AF124: 0 | AQ124: 0.00 | AR124: 0.00 | AW124: 0 | BH124: ='Correção da Força x Peso'!U106 -> 0 | BI124: ='Correção da Força x Peso'!V106 -> 0 | BJ124: 0
A125: ='Correção da Força x Peso'!A107 -> 0 | B125: ='Correção da Força x Peso'!B107 -> 0.00000 | C125: ='Correção da Força x Peso'!T107 ->  | K125: 0 | T125: =IF(AND(K125>0,L125=0),F125,0) ->  | U125: =IF(AND(K125>0,L125=0),H125,0) ->  | V125: =IF(AND(K125>0,M125<1),H125,0) ->  | W125: =IF(AND(K125>0,L125<1),I125,0) ->  | X125: =IF(AND(N125<1,K125>=1),C125,0) ->  | Y125: =IF(AND(N125>0,L125<1),C125,0) ->  | Z125: =IF(Y125>0,Y125-$B$5,0) ->  | AA125: =IF(X125>0,W125,0) ->  | AB125: =IF(Y125>0,W125,0) ->  | AC125: 0.000 | AE125: 0 | AF125: 0 | AQ125: 0.00 | AR125: 0.00 | AW125: 0 | BH125: ='Correção da Força x Peso'!U107 -> 0 | BI125: ='Correção da Força x Peso'!V107 -> 0 | BJ125: 0
A126: ='Correção da Força x Peso'!A108 -> 0 | B126: ='Correção da Força x Peso'!B108 -> 0.00000 | C126: ='Correção da Força x Peso'!T108 ->  | K126: 0 | AC126: 0.000 | AE126: 0 | AF126: 0 | AQ126: 0.00 | AR126: 0.00 | AW126: 0 | BH126: ='Correção da Força x Peso'!U108 -> 0 | BI126: ='Correção da Força x Peso'!V108 -> 0 | BJ126: 0
A127: ='Correção da Força x Peso'!A109 -> 0 | B127: ='Correção da Força x Peso'!B109 -> 0.00000 | C127: ='Correção da Força x Peso'!T109 ->  | K127: 0 | AC127: 0.000 | AE127: 0 | AF127: 0 | AQ127: 0.00 | AR127: 0.00 | AW127: 0 | BH127: ='Correção da Força x Peso'!U109 -> 0 | BI127: ='Correção da Força x Peso'!V109 -> 0 | BJ127: 0
A128: ='Correção da Força x Peso'!A110 -> 0 | B128: ='Correção da Força x Peso'!B110 -> 0.00000 | C128: ='Correção da Força x Peso'!T110 ->  | K128: 0 | AC128: 0.000 | AE128: 0 | AF128: 0 | AQ128: 0.00 | AR128: 0.00 | AW128: 0 | BH128: ='Correção da Força x Peso'!U110 -> 0 | BI128: ='Correção da Força x Peso'!V110 -> 0 | BJ128: 0
A129: ='Correção da Força x Peso'!A111 -> 0 | B129: ='Correção da Força x Peso'!B111 -> 0.00000 | C129: ='Correção da Força x Peso'!T111 ->  | K129: 0 | AC129: 0.000 | AE129: 0 | AF129: 0 | AQ129: 0.00 | AR129: 0.00 | AW129: 0 | BH129: ='Correção da Força x Peso'!U111 -> 0 | BI129: ='Correção da Força x Peso'!V111 -> 0 | BJ129: 0
A130: ='Correção da Força x Peso'!A112 -> 0 | B130: ='Correção da Força x Peso'!B112 -> 0.00000 | C130: ='Correção da Força x Peso'!T112 ->  | K130: 0 | AC130: 0.000 | AE130: 0 | AF130: 0 | AQ130: 0.00 | AR130: 0.00 | AW130: 0 | BH130: ='Correção da Força x Peso'!U112 -> 0 | BI130: ='Correção da Força x Peso'!V112 -> 0 | BJ130: 0
A131: ='Correção da Força x Peso'!A113 -> 0 | B131: ='Correção da Força x Peso'!B113 -> 0.00000 | C131: ='Correção da Força x Peso'!T113 ->  | K131: 0 | AC131: 0.000 | AE131: 0 | AF131: 0 | AQ131: 0.00 | AR131: 0.00 | AW131: 0 | BH131: ='Correção da Força x Peso'!U113 -> 0 | BI131: ='Correção da Força x Peso'!V113 -> 0 | BJ131: 0
A132: ='Correção da Força x Peso'!A114 -> 0 | B132: ='Correção da Força x Peso'!B114 -> 0.00000 | C132: ='Correção da Força x Peso'!T114 ->  | K132: 0 | AC132: 0.000 | AE132: 0 | AF132: 0 | AQ132: 0.00 | AR132: 0.00 | AW132: 0 | BH132: ='Correção da Força x Peso'!U114 -> 0 | BI132: ='Correção da Força x Peso'!V114 -> 0 | BJ132: 0
A133: ='Correção da Força x Peso'!A115 -> 0 | B133: ='Correção da Força x Peso'!B115 -> 0.00000 | C133: ='Correção da Força x Peso'!T115 ->  | K133: 0 | AC133: 0.000 | AE133: 0 | AF133: 0 | AQ133: 0.00 | AR133: 0.00 | AW133: 0 | BH133: ='Correção da Força x Peso'!U115 -> 0 | BI133: ='Correção da Força x Peso'!V115 -> 0 | BJ133: 0
A134: ='Correção da Força x Peso'!A116 -> 0 | B134: ='Correção da Força x Peso'!B116 -> 0.00000 | C134: ='Correção da Força x Peso'!T116 ->  | K134: 0 | AC134: 0.000 | AE134: 0 | AF134: 0 | AQ134: 0.00 | AR134: 0.00 | AW134: 0 | BH134: ='Correção da Força x Peso'!U116 -> 0 | BI134: ='Correção da Força x Peso'!V116 -> 0 | BJ134: 0
A135: ='Correção da Força x Peso'!A117 -> 0 | B135: ='Correção da Força x Peso'!B117 -> 0.00000 | C135: ='Correção da Força x Peso'!T117 ->  | K135: 0 | AC135: 0.000 | AE135: 0 | AF135: 0 | AQ135: 0.00 | AR135: 0.00 | AW135: 0 | BH135: ='Correção da Força x Peso'!U117 -> 0 | BI135: ='Correção da Força x Peso'!V117 -> 0 | BJ135: 0
A136: ='Correção da Força x Peso'!A118 -> 0 | B136: ='Correção da Força x Peso'!B118 -> 0.00000 | C136: ='Correção da Força x Peso'!T118 ->  | K136: 0 | AC136: 0.000 | AE136: 0 | AF136: 0 | AQ136: 0.00 | AR136: 0.00 | AW136: 0 | BH136: ='Correção da Força x Peso'!U118 -> 0 | BI136: ='Correção da Força x Peso'!V118 -> 0 | BJ136: 0
A137: ='Correção da Força x Peso'!A119 -> 0 | B137: ='Correção da Força x Peso'!B119 -> 0.00000 | C137: ='Correção da Força x Peso'!T119 ->  | K137: 0 | AC137: 0.000 | AE137: 0 | AF137: 0 | AQ137: 0.00 | AR137: 0.00 | AW137: 0 | BH137: ='Correção da Força x Peso'!U119 -> 0 | BI137: ='Correção da Força x Peso'!V119 -> 0 | BJ137: 0
A138: ='Correção da Força x Peso'!A120 -> 0 | B138: ='Correção da Força x Peso'!B120 -> 0.00000 | C138: ='Correção da Força x Peso'!T120 ->  | K138: 0 | AC138: 0.000 | AE138: 0 | AF138: 0 | AQ138: 0.00 | AR138: 0.00 | AW138: 0 | BH138: ='Correção da Força x Peso'!U120 -> 0 | BI138: ='Correção da Força x Peso'!V120 -> 0 | BJ138: 0
A139: ='Correção da Força x Peso'!A121 -> 0 | B139: ='Correção da Força x Peso'!B121 -> 0.00000 | C139: ='Correção da Força x Peso'!T121 ->  | K139: 0 | AC139: 0.000 | AE139: 0 | AF139: 0 | AQ139: 0.00 | AR139: 0.00 | AW139: 0 | BH139: ='Correção da Força x Peso'!U121 -> 0 | BI139: ='Correção da Força x Peso'!V121 -> 0 | BJ139: 0
A140: ='Correção da Força x Peso'!A122 -> 0 | B140: ='Correção da Força x Peso'!B122 -> 0.00000 | C140: ='Correção da Força x Peso'!T122 ->  | K140: 0 | AC140: 0.000 | AE140: 0 | AF140: 0 | AQ140: 0.00 | AR140: 0.00 | AW140: 0 | BH140: ='Correção da Força x Peso'!U122 -> 0 | BI140: ='Correção da Força x Peso'!V122 -> 0 | BJ140: 0
A141: ='Correção da Força x Peso'!A123 -> 0 | B141: ='Correção da Força x Peso'!B123 -> 0.00000 | C141: ='Correção da Força x Peso'!T123 ->  | K141: 0 | AC141: 0.000 | AE141: 0 | AF141: 0 | AQ141: 0.00 | AR141: 0.00 | AW141: 0 | BH141: ='Correção da Força x Peso'!U123 -> 0 | BI141: ='Correção da Força x Peso'!V123 -> 0 | BJ141: 0
A142: ='Correção da Força x Peso'!A124 -> 0 | B142: ='Correção da Força x Peso'!B124 -> 0.00000 | C142: ='Correção da Força x Peso'!T124 ->  | K142: 0 | AC142: 0.000 | AE142: 0 | AF142: 0 | AQ142: 0.00 | AR142: 0.00 | AW142: 0 | BH142: ='Correção da Força x Peso'!U124 -> 0 | BI142: ='Correção da Força x Peso'!V124 -> 0 | BJ142: 0
A143: ='Correção da Força x Peso'!A125 -> 0 | B143: ='Correção da Força x Peso'!B125 -> 0.00000 | C143: ='Correção da Força x Peso'!T125 ->  | K143: 0 | AC143: 0.000 | AE143: 0 | AF143: 0 | AQ143: 0.00 | AR143: 0.00 | AW143: 0 | BH143: ='Correção da Força x Peso'!U125 -> 0 | BI143: ='Correção da Força x Peso'!V125 -> 0 | BJ143: 0
A144: ='Correção da Força x Peso'!A126 -> 0 | B144: ='Correção da Força x Peso'!B126 -> 0.00000 | C144: ='Correção da Força x Peso'!T126 ->  | K144: 0 | AC144: 0.000 | AE144: 0 | AF144: 0 | AQ144: 0.00 | AR144: 0.00 | AW144: 0 | BH144: ='Correção da Força x Peso'!U126 -> 0 | BI144: ='Correção da Força x Peso'!V126 -> 0 | BJ144: 0
A145: ='Correção da Força x Peso'!A127 -> 0 | B145: ='Correção da Força x Peso'!B127 -> 0.00000 | C145: ='Correção da Força x Peso'!T127 ->  | K145: 0 | AC145: 0.000 | AE145: 0 | AF145: 0 | AQ145: 0.00 | AR145: 0.00 | AW145: 0 | BH145: ='Correção da Força x Peso'!U127 -> 0 | BI145: ='Correção da Força x Peso'!V127 -> 0 | BJ145: 0
A146: ='Correção da Força x Peso'!A128 -> 0 | B146: ='Correção da Força x Peso'!B128 -> 0.00000 | C146: ='Correção da Força x Peso'!T128 ->  | K146: 0 | AC146: 0.000 | AE146: 0 | AF146: 0 | AQ146: 0.00 | AR146: 0.00 | AW146: 0 | BH146: ='Correção da Força x Peso'!U128 -> 0 | BI146: ='Correção da Força x Peso'!V128 -> 0 | BJ146: 0
A147: ='Correção da Força x Peso'!A129 -> 0 | B147: ='Correção da Força x Peso'!B129 -> 0.00000 | C147: ='Correção da Força x Peso'!T129 ->  | K147: 0 | AC147: 0.000 | AE147: 0 | AF147: 0 | AQ147: 0.00 | AR147: 0.00 | AW147: 0 | BH147: ='Correção da Força x Peso'!U129 -> 0 | BI147: ='Correção da Força x Peso'!V129 -> 0 | BJ147: 0
A148: ='Correção da Força x Peso'!A130 -> 0 | B148: ='Correção da Força x Peso'!B130 -> 0.00000 | C148: ='Correção da Força x Peso'!T130 ->  | K148: 0 | AC148: 0.000 | AE148: 0 | AF148: 0 | AQ148: 0.00 | AR148: 0.00 | AW148: 0 | BH148: ='Correção da Força x Peso'!U130 -> 0 | BI148: ='Correção da Força x Peso'!V130 -> 0 | BJ148: 0
A149: ='Correção da Força x Peso'!A131 -> 0 | B149: ='Correção da Força x Peso'!B131 -> 0.00000 | C149: ='Correção da Força x Peso'!T131 ->  | K149: 0 | AC149: 0.000 | AE149: 0 | AF149: 0 | AQ149: 0.00 | AR149: 0.00 | AW149: 0 | BH149: ='Correção da Força x Peso'!U131 -> 0 | BI149: ='Correção da Força x Peso'!V131 -> 0 | BJ149: 0
A150: ='Correção da Força x Peso'!A132 -> 0 | B150: ='Correção da Força x Peso'!B132 -> 0.00000 | C150: ='Correção da Força x Peso'!T132 ->  | K150: 0 | AC150: 0.000 | AE150: 0 | AF150: 0 | AQ150: 0.00 | AR150: 0.00 | AW150: 0 | BH150: ='Correção da Força x Peso'!U132 -> 0 | BI150: ='Correção da Força x Peso'!V132 -> 0 | BJ150: 0
A151: ='Correção da Força x Peso'!A133 -> 0 | B151: ='Correção da Força x Peso'!B133 -> 0.00000 | C151: ='Correção da Força x Peso'!T133 ->  | K151: 0 | AC151: 0.000 | AE151: 0 | AF151: 0 | AQ151: 0.00 | AR151: 0.00 | AW151: 0 | BH151: ='Correção da Força x Peso'!U133 -> 0 | BI151: ='Correção da Força x Peso'!V133 -> 0 | BJ151: 0
A152: ='Correção da Força x Peso'!A134 -> 0 | B152: ='Correção da Força x Peso'!B134 -> 0.00000 | C152: ='Correção da Força x Peso'!T134 ->  | K152: 0 | AC152: 0.000 | AE152: 0 | AF152: 0 | AQ152: 0.00 | AR152: 0.00 | AW152: 0 | BH152: ='Correção da Força x Peso'!U134 -> 0 | BI152: ='Correção da Força x Peso'!V134 -> 0 | BJ152: 0
A153: ='Correção da Força x Peso'!A135 -> 0 | B153: ='Correção da Força x Peso'!B135 -> 0.00000 | C153: ='Correção da Força x Peso'!T135 ->  | K153: 0 | AC153: 0.000 | AE153: 0 | AF153: 0 | AQ153: 0.00 | AR153: 0.00 | AW153: 0 | BH153: ='Correção da Força x Peso'!U135 -> 0 | BI153: ='Correção da Força x Peso'!V135 -> 0 | BJ153: 0
A154: ='Correção da Força x Peso'!A136 -> 0 | B154: ='Correção da Força x Peso'!B136 -> 0.00000 | C154: ='Correção da Força x Peso'!T136 ->  | K154: 0 | AC154: 0.000 | AE154: 0 | AF154: 0 | AQ154: 0.00 | AR154: 0.00 | AW154: 0 | BH154: ='Correção da Força x Peso'!U136 -> 0 | BI154: ='Correção da Força x Peso'!V136 -> 0 | BJ154: 0
A155: ='Correção da Força x Peso'!A137 -> 0 | B155: ='Correção da Força x Peso'!B137 -> 0.00000 | C155: ='Correção da Força x Peso'!T137 ->  | K155: 0 | AC155: 0.000 | AE155: 0 | AF155: 0 | AQ155: 0.00 | AR155: 0.00 | AW155: 0 | BH155: ='Correção da Força x Peso'!U137 -> 0 | BI155: ='Correção da Força x Peso'!V137 -> 0 | BJ155: 0
A156: ='Correção da Força x Peso'!A138 -> 0 | B156: ='Correção da Força x Peso'!B138 -> 0.00000 | C156: ='Correção da Força x Peso'!T138 ->  | K156: 0 | AC156: 0.000 | AE156: 0 | AF156: 0 | AQ156: 0.00 | AR156: 0.00 | AW156: 0 | BH156: ='Correção da Força x Peso'!U138 -> 0 | BI156: ='Correção da Força x Peso'!V138 -> 0 | BJ156: 0
A157: ='Correção da Força x Peso'!A139 -> 0 | B157: ='Correção da Força x Peso'!B139 -> 0.00000 | C157: ='Correção da Força x Peso'!T139 ->  | K157: 0 | AC157: 0.000 | AE157: 0 | AF157: 0 | AQ157: 0.00 | AR157: 0.00 | AW157: 0 | BH157: ='Correção da Força x Peso'!U139 -> 0 | BI157: ='Correção da Força x Peso'!V139 -> 0 | BJ157: 0
A158: ='Correção da Força x Peso'!A140 -> 0 | B158: ='Correção da Força x Peso'!B140 -> 0.00000 | C158: ='Correção da Força x Peso'!T140 ->  | K158: 0 | AC158: 0.000 | AE158: 0 | AF158: 0 | AQ158: 0.00 | AR158: 0.00 | AW158: 0 | BH158: ='Correção da Força x Peso'!U140 -> 0 | BI158: ='Correção da Força x Peso'!V140 -> 0 | BJ158: 0
A159: ='Correção da Força x Peso'!A141 -> 0 | B159: ='Correção da Força x Peso'!B141 -> 0.00000 | C159: ='Correção da Força x Peso'!T141 ->  | D159: =C159-$B$5 ->  | J159: =C159/$B$5 ->  | K159: =IF($C$22="Contra",IF(B159>$B$6,IF(C159<$B$8,K158+1,K158),0),IF(B159>$B$6,IF(C159>$B$22,K158+1,K158),0)) -> 0 | L159: =IF(C158<$B$11,L158+1,0) ->  | M159: =IF(AND(L159>0,C160>$B$11),M158+1,M158) ->  | N159: =IF($C$22="Contra",IF(U158=$B$13,N158+1,N158*1.00001),IF(B159>$B$6,IF(C159>$B$22,N158+1,N158*1.00001),0)) ->  | O159: =IF(N160>0,1+O158,0) ->  | P159: =IF(L160>0,1+P158,0) ->  | R159: =IF(AND(K159>0,L159<1),C159,0) ->  | S159: =IF(R159>0,R159-$B$5,0) ->  | AC159: =IF(B159>0.031,(C159-C141)/(30/1000),0) -> 0.000 | AD159: =IF(AND(B159>=$I$5+0.03,Y159>0),(C159-C141)/(30/1000),0) ->  | AE159: 0 | AF159: =IF(K159=1,1,0) -> 0 | AH159: =IF(N159=1,1,0) ->  | AI159: =IF(R159=$B$14,1,0) ->  | AJ159: =IF(W159=$B$15,1,0) ->  | AK159: =IF(T159=$B$16,1,0) ->  | AL159: =IF(L159=1,1,0) ->  | AM159: =IF(V159=$B$17,1,0) ->  | AN159: =IF(M159=1,1,0) ->  | AO159: =IF(F159=$B$18,1,0) ->  | AQ159: =IF(A159>600,0,$B$5) -> 0.00 | AR159: 0.00 | AS159: =IF(AND(B159>=$I$2,B159<=$I$3+0.005),$S$23,0) ->  | AT159: =IF(AND(B159>$I$3,B159<$I$5+0.005),$S$23,0) ->  | AW159: =IF(AF159=1,$S$23,0) -> 0 | AX159: =IF(AG159=1,$S$23,0) ->  | AY159: =IF(AH159=1,$S$23,0) ->  | AZ159: =IF(AI159=1,$S$23,0) ->  | BA159: =IF(AJ159=1,$S$23,0) ->  | BB159: =IF(AK159=1,$S$23,0) ->  | BC159: =IF(AL159=1,$S$23,0) ->  | BD159: =IF(AM159=1,$S$23,0) ->  | BE159: =IF(AN159=1,$S$23,0) ->  | BH159: ='Correção da Força x Peso'!U141 -> 0 | BI159: ='Correção da Força x Peso'!V141 -> 0 | BJ159: 0 | BK159: =IF(AND(B159>=$I$10,B159<=$I$12),0,BH159) ->  | BL159: =IF(AND(B159>=$I$10,B159<=$I$12),0,BI159) ->  | BN159: =BK159/C159% ->  | BO159: =BL159/C159% -> 
A160: ='Correção da Força x Peso'!A142 -> 0 | B160: ='Correção da Força x Peso'!B142 -> 0.00000 | C160: ='Correção da Força x Peso'!T142 ->  | E160: =D160/($B$5/9.81) ->  | H160: =G160*100 ->  | K160: 0 | AC160: 0.000 | AE160: 0 | AF160: 0 | AG160: =IF($C$22="Contra",IF(T160=$B$12,1,0),0) ->  | AP160: =IF(SUM(AF160:AO160)<>0,C160,-10000) ->  | AQ160: 0.00 | AR160: =$B$5 -> 0.00 | AU160: =IF(AND(B160>$I$4,B160<$I$10),$S$23,0) ->  | AV160: =IF(AND(B160>$I$15-0.03,B160<=$I$15),$S$23,0) ->  | AW160: 0 | BF160: =IF(AO160=1,$S$23,0) ->  | BG160: =IF(AP160<-1000,0,$S$23) ->  | BH160: ='Correção da Força x Peso'!U142 -> 0 | BI160: ='Correção da Força x Peso'!V142 -> 0 | BJ160: =BH160-BI160 -> 0 | BM160: =BK160-BL160 -> 
A161: ='Correção da Força x Peso'!A143 -> 0 | B161: ='Correção da Força x Peso'!B143 -> 0.00000 | C161: ='Correção da Força x Peso'!T143 ->  | F161: =F160+((E161+E160)/2)*(B161-B160) ->  | G161: =(G160+((F161+F160)/2)*(B161-B160)) ->  | I161: =C161*F161 ->  | K161: 0 | AC161: 0.000 | AE161: 0 | AF161: 0 | AQ161: 0.00 | AR161: 0.00 | AW161: 0 | BH161: ='Correção da Força x Peso'!U143 -> 0 | BI161: ='Correção da Força x Peso'!V143 -> 0 | BJ161: 0
A162: ='Correção da Força x Peso'!A144 -> 0 | B162: ='Correção da Força x Peso'!B144 -> 0.00000 | C162: ='Correção da Força x Peso'!T144 ->  | K162: 0 | AC162: 0.000 | AE162: 0 | AF162: 0 | AQ162: 0.00 | AR162: 0.00 | AW162: 0 | BH162: ='Correção da Força x Peso'!U144 -> 0 | BI162: ='Correção da Força x Peso'!V144 -> 0 | BJ162: 0
A163: ='Correção da Força x Peso'!A145 -> 0 | B163: ='Correção da Força x Peso'!B145 -> 0.00000 | C163: ='Correção da Força x Peso'!T145 ->  | K163: 0 | AC163: 0.000 | AE163: 0 | AF163: 0 | AQ163: 0.00 | AR163: 0.00 | AW163: 0 | BH163: ='Correção da Força x Peso'!U145 -> 0 | BI163: ='Correção da Força x Peso'!V145 -> 0 | BJ163: 0
A164: ='Correção da Força x Peso'!A146 -> 0 | B164: ='Correção da Força x Peso'!B146 -> 0.00000 | C164: ='Correção da Força x Peso'!T146 ->  | K164: 0 | AC164: 0.000 | AE164: 0 | AF164: 0 | AQ164: 0.00 | AR164: 0.00 | AW164: 0 | BH164: ='Correção da Força x Peso'!U146 -> 0 | BI164: ='Correção da Força x Peso'!V146 -> 0 | BJ164: 0
A165: ='Correção da Força x Peso'!A147 -> 0 | B165: ='Correção da Força x Peso'!B147 -> 0.00000 | C165: ='Correção da Força x Peso'!T147 ->  | K165: 0 | AC165: 0.000 | AE165: 0 | AF165: 0 | AQ165: 0.00 | AR165: 0.00 | AW165: 0 | BH165: ='Correção da Força x Peso'!U147 -> 0 | BI165: ='Correção da Força x Peso'!V147 -> 0 | BJ165: 0
A166: ='Correção da Força x Peso'!A148 -> 0 | B166: ='Correção da Força x Peso'!B148 -> 0.00000 | C166: ='Correção da Força x Peso'!T148 ->  | K166: 0 | AC166: 0.000 | AE166: 0 | AF166: 0 | AQ166: 0.00 | AR166: 0.00 | AW166: 0 | BH166: ='Correção da Força x Peso'!U148 -> 0 | BI166: ='Correção da Força x Peso'!V148 -> 0 | BJ166: 0
A167: ='Correção da Força x Peso'!A149 -> 0 | B167: ='Correção da Força x Peso'!B149 -> 0.00000 | C167: ='Correção da Força x Peso'!T149 ->  | K167: 0 | AC167: 0.000 | AE167: 0 | AF167: 0 | AQ167: 0.00 | AR167: 0.00 | AW167: 0 | BH167: ='Correção da Força x Peso'!U149 -> 0 | BI167: ='Correção da Força x Peso'!V149 -> 0 | BJ167: 0
A168: ='Correção da Força x Peso'!A150 -> 0 | B168: ='Correção da Força x Peso'!B150 -> 0.00000 | C168: ='Correção da Força x Peso'!T150 ->  | K168: 0 | AC168: 0.000 | AE168: 0 | AF168: 0 | AQ168: 0.00 | AR168: 0.00 | AW168: 0 | BH168: ='Correção da Força x Peso'!U150 -> 0 | BI168: ='Correção da Força x Peso'!V150 -> 0 | BJ168: 0
A169: ='Correção da Força x Peso'!A151 -> 0 | B169: ='Correção da Força x Peso'!B151 -> 0.00000 | C169: ='Correção da Força x Peso'!T151 ->  | K169: 0 | AC169: 0.000 | AE169: 0 | AF169: 0 | AQ169: 0.00 | AR169: 0.00 | AW169: 0 | BH169: ='Correção da Força x Peso'!U151 -> 0 | BI169: ='Correção da Força x Peso'!V151 -> 0 | BJ169: 0
A170: ='Correção da Força x Peso'!A152 -> 0 | B170: ='Correção da Força x Peso'!B152 -> 0.00000 | C170: ='Correção da Força x Peso'!T152 ->  | K170: 0 | AC170: 0.000 | AE170: 0 | AF170: 0 | AQ170: 0.00 | AR170: 0.00 | AW170: 0 | BH170: ='Correção da Força x Peso'!U152 -> 0 | BI170: ='Correção da Força x Peso'!V152 -> 0 | BJ170: 0
A171: ='Correção da Força x Peso'!A153 -> 0 | B171: ='Correção da Força x Peso'!B153 -> 0.00000 | C171: ='Correção da Força x Peso'!T153 ->  | K171: 0 | AC171: 0.000 | AE171: 0 | AF171: 0 | AQ171: 0.00 | AR171: 0.00 | AW171: 0 | BH171: ='Correção da Força x Peso'!U153 -> 0 | BI171: ='Correção da Força x Peso'!V153 -> 0 | BJ171: 0
A172: ='Correção da Força x Peso'!A154 -> 0 | B172: ='Correção da Força x Peso'!B154 -> 0.00000 | C172: ='Correção da Força x Peso'!T154 ->  | K172: 0 | AC172: 0.000 | AE172: 0 | AF172: 0 | AQ172: 0.00 | AR172: 0.00 | AW172: 0 | BH172: ='Correção da Força x Peso'!U154 -> 0 | BI172: ='Correção da Força x Peso'!V154 -> 0 | BJ172: 0
A173: ='Correção da Força x Peso'!A155 -> 0 | B173: ='Correção da Força x Peso'!B155 -> 0.00000 | C173: ='Correção da Força x Peso'!T155 ->  | K173: 0 | AC173: 0.000 | AE173: 0 | AF173: 0 | AQ173: 0.00 | AR173: 0.00 | AW173: 0 | BH173: ='Correção da Força x Peso'!U155 -> 0 | BI173: ='Correção da Força x Peso'!V155 -> 0 | BJ173: 0
A174: ='Correção da Força x Peso'!A156 -> 0 | B174: ='Correção da Força x Peso'!B156 -> 0.00000 | C174: ='Correção da Força x Peso'!T156 ->  | K174: 0 | AC174: 0.000 | AE174: 0 | AF174: 0 | AQ174: 0.00 | AR174: 0.00 | AW174: 0 | BH174: ='Correção da Força x Peso'!U156 -> 0 | BI174: ='Correção da Força x Peso'!V156 -> 0 | BJ174: 0
A175: ='Correção da Força x Peso'!A157 -> 0 | B175: ='Correção da Força x Peso'!B157 -> 0.00000 | C175: ='Correção da Força x Peso'!T157 ->  | K175: 0 | AC175: 0.000 | AE175: 0 | AF175: 0 | AQ175: 0.00 | AR175: 0.00 | AW175: 0 | BH175: ='Correção da Força x Peso'!U157 -> 0 | BI175: ='Correção da Força x Peso'!V157 -> 0 | BJ175: 0
A176: ='Correção da Força x Peso'!A158 -> 0 | B176: ='Correção da Força x Peso'!B158 -> 0.00000 | C176: ='Correção da Força x Peso'!T158 ->  | K176: 0 | AC176: 0.000 | AE176: 0 | AF176: 0 | AQ176: 0.00 | AR176: 0.00 | AW176: 0 | BH176: ='Correção da Força x Peso'!U158 -> 0 | BI176: ='Correção da Força x Peso'!V158 -> 0 | BJ176: 0
A177: ='Correção da Força x Peso'!A159 -> 0 | B177: ='Correção da Força x Peso'!B159 -> 0.00000 | C177: ='Correção da Força x Peso'!T159 ->  | K177: 0 | AC177: 0.000 | AE177: 0 | AF177: 0 | AQ177: 0.00 | AR177: 0.00 | AW177: 0 | BH177: ='Correção da Força x Peso'!U159 -> 0 | BI177: ='Correção da Força x Peso'!V159 -> 0 | BJ177: 0
A178: ='Correção da Força x Peso'!A160 -> 0 | B178: ='Correção da Força x Peso'!B160 -> 0.00000 | C178: ='Correção da Força x Peso'!T160 ->  | K178: 0 | AC178: 0.000 | AE178: 0 | AF178: 0 | AQ178: 0.00 | AR178: 0.00 | AW178: 0 | BH178: ='Correção da Força x Peso'!U160 -> 0 | BI178: ='Correção da Força x Peso'!V160 -> 0 | BJ178: 0
A179: ='Correção da Força x Peso'!A161 -> 0 | B179: ='Correção da Força x Peso'!B161 -> 0.00000 | C179: ='Correção da Força x Peso'!T161 ->  | K179: 0 | AC179: 0.000 | AE179: 0 | AF179: 0 | AQ179: 0.00 | AR179: 0.00 | AW179: 0 | BH179: ='Correção da Força x Peso'!U161 -> 0 | BI179: ='Correção da Força x Peso'!V161 -> 0 | BJ179: 0
A180: ='Correção da Força x Peso'!A162 -> 0 | B180: ='Correção da Força x Peso'!B162 -> 0.00000 | C180: ='Correção da Força x Peso'!T162 ->  | K180: 0 | AC180: 0.000 | AE180: 0 | AF180: 0 | AQ180: 0.00 | AR180: 0.00 | AW180: 0 | BH180: ='Correção da Força x Peso'!U162 -> 0 | BI180: ='Correção da Força x Peso'!V162 -> 0 | BJ180: 0
A181: ='Correção da Força x Peso'!A163 -> 0 | B181: ='Correção da Força x Peso'!B163 -> 0.00000 | C181: ='Correção da Força x Peso'!T163 ->  | K181: 0 | AC181: 0.000 | AE181: 0 | AF181: 0 | AQ181: 0.00 | AR181: 0.00 | AW181: 0 | BH181: ='Correção da Força x Peso'!U163 -> 0 | BI181: ='Correção da Força x Peso'!V163 -> 0 | BJ181: 0
A182: ='Correção da Força x Peso'!A164 -> 0 | B182: ='Correção da Força x Peso'!B164 -> 0.00000 | C182: ='Correção da Força x Peso'!T164 ->  | K182: 0 | AC182: 0.000 | AE182: 0 | AF182: 0 | AQ182: 0.00 | AR182: 0.00 | AW182: 0 | BH182: ='Correção da Força x Peso'!U164 -> 0 | BI182: ='Correção da Força x Peso'!V164 -> 0 | BJ182: 0
A183: ='Correção da Força x Peso'!A165 -> 0 | B183: ='Correção da Força x Peso'!B165 -> 0.00000 | C183: ='Correção da Força x Peso'!T165 ->  | K183: 0 | AC183: 0.000 | AE183: 0 | AF183: 0 | AQ183: 0.00 | AR183: 0.00 | AW183: 0 | BH183: ='Correção da Força x Peso'!U165 -> 0 | BI183: ='Correção da Força x Peso'!V165 -> 0 | BJ183: 0
A184: ='Correção da Força x Peso'!A166 -> 0 | B184: ='Correção da Força x Peso'!B166 -> 0.00000 | C184: ='Correção da Força x Peso'!T166 ->  | K184: 0 | AC184: 0.000 | AE184: 0 | AF184: 0 | AQ184: 0.00 | AR184: 0.00 | AW184: 0 | BH184: ='Correção da Força x Peso'!U166 -> 0 | BI184: ='Correção da Força x Peso'!V166 -> 0 | BJ184: 0
A185: ='Correção da Força x Peso'!A167 -> 0 | B185: ='Correção da Força x Peso'!B167 -> 0.00000 | C185: ='Correção da Força x Peso'!T167 ->  | K185: 0 | AC185: 0.000 | AE185: 0 | AF185: 0 | AQ185: 0.00 | AR185: 0.00 | AW185: 0 | BH185: ='Correção da Força x Peso'!U167 -> 0 | BI185: ='Correção da Força x Peso'!V167 -> 0 | BJ185: 0
A186: ='Correção da Força x Peso'!A168 -> 0 | B186: ='Correção da Força x Peso'!B168 -> 0.00000 | C186: ='Correção da Força x Peso'!T168 ->  | K186: 0 | AC186: 0.000 | AE186: 0 | AF186: 0 | AQ186: 0.00 | AR186: 0.00 | AW186: 0 | BH186: ='Correção da Força x Peso'!U168 -> 0 | BI186: ='Correção da Força x Peso'!V168 -> 0 | BJ186: 0
A187: ='Correção da Força x Peso'!A169 -> 0 | B187: ='Correção da Força x Peso'!B169 -> 0.00000 | C187: ='Correção da Força x Peso'!T169 ->  | K187: 0 | AC187: 0.000 | AE187: 0 | AF187: 0 | AQ187: 0.00 | AR187: 0.00 | AW187: 0 | BH187: ='Correção da Força x Peso'!U169 -> 0 | BI187: ='Correção da Força x Peso'!V169 -> 0 | BJ187: 0
A188: ='Correção da Força x Peso'!A170 -> 0 | B188: ='Correção da Força x Peso'!B170 -> 0.00000 | C188: ='Correção da Força x Peso'!T170 ->  | K188: 0 | AC188: 0.000 | AE188: 0 | AF188: 0 | AQ188: 0.00 | AR188: 0.00 | AW188: 0 | BH188: ='Correção da Força x Peso'!U170 -> 0 | BI188: ='Correção da Força x Peso'!V170 -> 0 | BJ188: 0
A189: ='Correção da Força x Peso'!A171 -> 0 | B189: ='Correção da Força x Peso'!B171 -> 0.00000 | C189: ='Correção da Força x Peso'!T171 ->  | K189: 0 | T189: =IF(AND(K189>0,L189=0),F189,0) ->  | U189: =IF(AND(K189>0,L189=0),H189,0) ->  | V189: =IF(AND(K189>0,M189<1),H189,0) ->  | W189: =IF(AND(K189>0,L189<1),I189,0) ->  | X189: =IF(AND(N189<1,K189>=1),C189,0) ->  | Y189: =IF(AND(N189>0,L189<1),C189,0) ->  | Z189: =IF(Y189>0,Y189-$B$5,0) ->  | AA189: =IF(X189>0,W189,0) ->  | AB189: =IF(Y189>0,W189,0) ->  | AC189: 0.000 | AE189: 0 | AF189: 0 | AQ189: 0.00 | AR189: 0.00 | AW189: 0 | BH189: ='Correção da Força x Peso'!U171 -> 0 | BI189: ='Correção da Força x Peso'!V171 -> 0 | BJ189: 0
A190: ='Correção da Força x Peso'!A172 -> 0 | B190: ='Correção da Força x Peso'!B172 -> 0.00000 | C190: ='Correção da Força x Peso'!T172 ->  | K190: 0 | AC190: 0.000 | AE190: 0 | AF190: 0 | AQ190: 0.00 | AR190: 0.00 | AW190: 0 | BH190: ='Correção da Força x Peso'!U172 -> 0 | BI190: ='Correção da Força x Peso'!V172 -> 0 | BJ190: 0
A191: ='Correção da Força x Peso'!A173 -> 0 | B191: ='Correção da Força x Peso'!B173 -> 0.00000 | C191: ='Correção da Força x Peso'!T173 ->  | K191: 0 | AC191: 0.000 | AE191: 0 | AF191: 0 | AQ191: 0.00 | AR191: 0.00 | AW191: 0 | BH191: ='Correção da Força x Peso'!U173 -> 0 | BI191: ='Correção da Força x Peso'!V173 -> 0 | BJ191: 0
A192: ='Correção da Força x Peso'!A174 -> 0 | B192: ='Correção da Força x Peso'!B174 -> 0.00000 | C192: ='Correção da Força x Peso'!T174 ->  | K192: 0 | AC192: 0.000 | AE192: 0 | AF192: 0 | AQ192: 0.00 | AR192: 0.00 | AW192: 0 | BH192: ='Correção da Força x Peso'!U174 -> 0 | BI192: ='Correção da Força x Peso'!V174 -> 0 | BJ192: 0
A193: ='Correção da Força x Peso'!A175 -> 0 | B193: ='Correção da Força x Peso'!B175 -> 0.00000 | C193: ='Correção da Força x Peso'!T175 ->  | K193: 0 | AC193: 0.000 | AE193: 0 | AF193: 0 | AQ193: 0.00 | AR193: 0.00 | AW193: 0 | BH193: ='Correção da Força x Peso'!U175 -> 0 | BI193: ='Correção da Força x Peso'!V175 -> 0 | BJ193: 0
A194: ='Correção da Força x Peso'!A176 -> 0 | B194: ='Correção da Força x Peso'!B176 -> 0.00000 | C194: ='Correção da Força x Peso'!T176 ->  | K194: 0 | AC194: 0.000 | AE194: 0 | AF194: 0 | AQ194: 0.00 | AR194: 0.00 | AW194: 0 | BH194: ='Correção da Força x Peso'!U176 -> 0 | BI194: ='Correção da Força x Peso'!V176 -> 0 | BJ194: 0
A195: ='Correção da Força x Peso'!A177 -> 0 | B195: ='Correção da Força x Peso'!B177 -> 0.00000 | C195: ='Correção da Força x Peso'!T177 ->  | K195: 0 | AC195: 0.000 | AE195: 0 | AF195: 0 | AQ195: 0.00 | AR195: 0.00 | AW195: 0 | BH195: ='Correção da Força x Peso'!U177 -> 0 | BI195: ='Correção da Força x Peso'!V177 -> 0 | BJ195: 0
A196: ='Correção da Força x Peso'!A178 -> 0 | B196: ='Correção da Força x Peso'!B178 -> 0.00000 | C196: ='Correção da Força x Peso'!T178 ->  | K196: 0 | AC196: 0.000 | AE196: 0 | AF196: 0 | AQ196: 0.00 | AR196: 0.00 | AW196: 0 | BH196: ='Correção da Força x Peso'!U178 -> 0 | BI196: ='Correção da Força x Peso'!V178 -> 0 | BJ196: 0
A197: ='Correção da Força x Peso'!A179 -> 0 | B197: ='Correção da Força x Peso'!B179 -> 0.00000 | C197: ='Correção da Força x Peso'!T179 ->  | K197: 0 | AC197: 0.000 | AE197: 0 | AF197: 0 | AQ197: 0.00 | AR197: 0.00 | AW197: 0 | BH197: ='Correção da Força x Peso'!U179 -> 0 | BI197: ='Correção da Força x Peso'!V179 -> 0 | BJ197: 0
A198: ='Correção da Força x Peso'!A180 -> 0 | B198: ='Correção da Força x Peso'!B180 -> 0.00000 | C198: ='Correção da Força x Peso'!T180 ->  | K198: 0 | AC198: 0.000 | AE198: 0 | AF198: 0 | AQ198: 0.00 | AR198: 0.00 | AW198: 0 | BH198: ='Correção da Força x Peso'!U180 -> 0 | BI198: ='Correção da Força x Peso'!V180 -> 0 | BJ198: 0
A199: ='Correção da Força x Peso'!A181 -> 0 | B199: ='Correção da Força x Peso'!B181 -> 0.00000 | C199: ='Correção da Força x Peso'!T181 ->  | K199: 0 | AC199: 0.000 | AE199: 0 | AF199: 0 | AQ199: 0.00 | AR199: 0.00 | AW199: 0 | BH199: ='Correção da Força x Peso'!U181 -> 0 | BI199: ='Correção da Força x Peso'!V181 -> 0 | BJ199: 0
A200: ='Correção da Força x Peso'!A182 -> 0 | B200: ='Correção da Força x Peso'!B182 -> 0.00000 | C200: ='Correção da Força x Peso'!T182 ->  | K200: 0 | AC200: 0.000 | AE200: 0 | AF200: 0 | AQ200: 0.00 | AR200: 0.00 | AW200: 0 | BH200: ='Correção da Força x Peso'!U182 -> 0 | BI200: ='Correção da Força x Peso'!V182 -> 0 | BJ200: 0
... 925 more rows

Sheet Resultados
B2: =Cabeçalho!C8 -> 0
A4: 1 | B4: Velocidade Máxima | C4: ='Definição de Fases e Pontos'!I25 ->  | D4: m/s | E4: 3
A5: 2 | B5: Velocidade de Saída | C5: ='Definição de Fases e Pontos'!I26 ->  | D5: m/s | E5: 3
A6: 3 | B6: Tempo de Voo | C6: ='Definição de Fases e Pontos'!I20 ->  | D6: s | E6: 3
A7: 4 | B7: Máximo Deslocamento do CM para Baixo | C7: ='Definição de Fases e Pontos'!B13 ->  | D7: cm | E7: 1
A8: 5 | B8: Duração da Fase Excêntrica | C8: ='Definição de Fases e Pontos'!I18 ->  | D8: s | E8: 3
A9: 6 | B9: Potência Média da Fase Excêntrica | C9: ='Definição de Fases e Pontos'!S24 ->  | D9: w | E9: 1
A10: 7 | B10: Duração da Fase Concêntrica | C10: ='Definição de Fases e Pontos'!I19 ->  | D10: s | E10: 3
A11: 8 | B11: Potência Média da Fase Concêntrica | C11: ='Definição de Fases e Pontos'!S26 ->  | D11: w | E11: 0
A12: 9 | B12: Potência de Pico da Fase Concêntrica | C12: ='Definição de Fases e Pontos'!S25 ->  | D12: w | E12: 0
A13: 10 | B13: Força no Início da Fase Concêntrica | C13: ='Definição de Fases e Pontos'!S9 ->  | D13: N | E13: 1
A14: 11 | B14: =CONCATENATE("Força nos ",C19," s iniciais da FC") -> Força nos 0,03 s iniciais da FC | C14: ='Definição de Fases e Pontos'!S11 ->  | D14: N | E14: 1
A15: 12 | B15: Força Média na Fase Concêntrica | C15: ='Definição de Fases e Pontos'!S4 ->  | D15: N | E15: 1
A16: 13 | B16: Força Resultante Média na FC | C16: ='Definição de Fases e Pontos'!S6 ->  | D16: N | E16: 1
A17: 14 | B17: Força de Pico na Fase Concêntrica | C17: ='Definição de Fases e Pontos'!S3 ->  | D17: N | E17: 1
A18: 15 | B18: Força Resultante de Pico na FC | C18: ='Definição de Fases e Pontos'!S5 ->  | D18: N | E18: 1
A19: 16 | B19: Tempo para cálculo de TDF inicial | C19: ='Definição de Fases e Pontos'!B10/1000 -> 0.030 | D19: s | E19: 3
A20: 17 | B20: =CONCATENATE("TDF Inicial"," ",'Definição de Fases e Pontos'!Q13) -> TDF Inicial 30ms | C20: ='Definição de Fases e Pontos'!S13 ->  | D20: N/s | E20: 1
A21: 18 | B21: TDF Força de Pico | C21: ='Definição de Fases e Pontos'!S15 ->  | D21: N/s | E21: 1
A22: 19 | B22: TDF Força na Potência de Pico | C22: ='Definição de Fases e Pontos'!S17 ->  | D22: N/s | E22: 1
A23: 20 | B23: Maxima TDF da Fase Concêntrica a cada 30ms | C23: ='Definição de Fases e Pontos'!S18 ->  | D23: N/s | E23: 1
A24: 21 | B24: TDPotência | C24: ='Definição de Fases e Pontos'!S21 ->  | D24: w/s | E24: 0
A25: 22 | B25: Força de Pico (xPC) | C25: ='Definição de Fases e Pontos'!S7 ->  | D25: PC | E25: 3
A26: 23 | B26: Força Resultante de Pico (xPC) | C26: ='Definição de Fases e Pontos'!S8 ->  | D26: PC | E26: 3
A27: 24 | B27: Impulso Fase Concêntrica | C27: ='Definição de Fases e Pontos'!S22 ->  | D27: N.s | E27: 1
A28: 25 | B28: Tempo para Atingir Max TDF FC | C28: ='Definição de Fases e Pontos'!I16 ->  | D28: s | E28: 3
A29: 26 | B29: Índice Transferência de Fase | C29: ='Definição de Fases e Pontos'!X10 ->  | E29: 3
A30: 27 | B30: Força de Pico na Aterrissagem | C30: ='Definição de Fases e Pontos'!S23 ->  | D30: N | E30: 1
A31: 28 | B31: Altura no Desprendimento | C31: ='Definição de Fases e Pontos'!X2 ->  | D31: cm | E31: 1
A32: 29 | B32: Altura (Integral) | C32: ='Definição de Fases e Pontos'!X3 ->  | D32: cm | E32: 1
A33: 30 | B33: Altura (Integral - Desprendimento) | C33: ='Definição de Fases e Pontos'!X4 ->  | D33: cm | E33: 1
A34: 31 | B34: Altura (Velocidade) | C34: ='Definição de Fases e Pontos'!X5 ->  | D34: cm | E34: 1
A35: 32 | B35: Altura (Tempo Voo) | C35: ='Definição de Fases e Pontos'!X6 ->  | D35: cm | E35: 1
A36: 33 | B36: Altura (Média) | C36: ='Definição de Fases e Pontos'!X7 ->  | D36: cm | E36: 1
A37: 34 | B37: Início do Movimento | C37: ='Definição de Fases e Pontos'!I2 ->  | D37: s | E37: 3
A38: 35 | B38: Início da Fase Excêntrica | C38: =IF('Definição de Fases e Pontos'!C22="Contra",'Definição de Fases e Pontos'!I2,0) ->  | D38: s | E38: 3
A39: 36 | B39: Início da Fase Concêntrica | C39: ='Definição de Fases e Pontos'!I5 ->  | D39: s | E39: 3
A40: 37 | B40: Início da Fase de Voo | C40: ='Definição de Fases e Pontos'!I10 ->  | D40: s | E40: 3
A41: 38 | B41: Início da Aterrissagem | C41: ='Definição de Fases e Pontos'!I13 ->  | D41: s | E41: 3
A42: 39 | B42: Duração do Movimento | C42: ='Definição de Fases e Pontos'!I17 ->  | D42: s | E42: 3
A43: 40 | B43: Duração da Fase Excêntrica | C43: ='Definição de Fases e Pontos'!I18 ->  | D43: s | E43: 3
A44: 41 | B44: Duração da Fase Concêntrica | C44: ='Definição de Fases e Pontos'!I19 ->  | D44: s | E44: 3
A45: 42 | B45: Duração da Fase de Voo | C45: ='Definição de Fases e Pontos'!I20 ->  | D45: s | E45: 3
A46: 43 | B46: Instante do Pico de Força FC na Amostragem | C46: ='Definição de Fases e Pontos'!I6 ->  | D46: s | E46: 3
A47: 44 | B47: Instante do Pico de Força no Movimento | C47: ='Definição de Fases e Pontos'!I21 ->  | D47: s | E47: 3
A48: 45 | B48: Instante do Pico de Força na Fase Concêntrica | C48: ='Definição de Fases e Pontos'!I22 ->  | D48: s | E48: 3
A49: 46 | B49: Instante do Pico de Potência na Fase Concêntrica | C49: ='Definição de Fases e Pontos'!I23 ->  | D49: s | E49: 3

Sheet Coluna de Fases e Variáveis
A1: 2 | B1: 3 | C1: 4 | D1: 5 | E1: 6 | F1: 7 | G1: 8 | H1: 9 | I1: 10 | J1: 11 | K1: 12 | L1: 13 | M1: 14 | N1: 15 | O1: 16 | P1: 17 | Q1: 18 | R1: 19 | S1: 20 | T1: 21 | U1: 22 | V1: 23 | W1: 24 | X1: 25 | Y1: 26 | Z1: 27 | AA1: 28 | AB1: 29 | AC1: 30 | AD1: 31 | AE1: 32 | AF1: 33 | AG1: 34 | AH1: 35 | AI1: 36 | AJ1: 37 | AK1: 38 | AL1: 39 | AM1: 40 | AN1: 41 | AO1: 42 | AP1: 43 | AQ1: 44 | AR1: 45 | AS1: 46 | AT1: 47 | AU1: 48 | AX1: ='Dados do Gráfico'!$B$31 -> 4 | AY1: ='Dados do Gráfico'!$B$32 -> 1 | AZ1: ='Dados do Gráfico'!$B$33 -> 1 | BA1: ='Dados do Gráfico'!$F$11 -> 29 | BB1: ='Dados do Gráfico'!$F$12 -> 30 | BC1: ='Dados do Gráfico'!$F$13 -> 31 | BD1: ='Dados do Gráfico'!$F$21 -> 32 | BE1: ='Dados do Gráfico'!$F$38 -> 37 | BF1: ='Dados do Gráfico'!$F$39 -> 1
A2: ='Definição de Fases e Pontos'!A29 -> Amostra | B2: ='Definição de Fases e Pontos'!B29 -> Tempo | C2: ='Definição de Fases e Pontos'!C29 -> Força (N) | D2: ='Definição de Fases e Pontos'!D29 -> Força Resultante (N) | E2: ='Definição de Fases e Pontos'!E29 -> Aceleração (m/s2) | F2: ='Definição de Fases e Pontos'!F29 -> Velocidade (m/s) | G2: ='Definição de Fases e Pontos'!G29 -> Posição (m) | H2: ='Definição de Fases e Pontos'!H29 -> Posição (cm) | I2: ='Definição de Fases e Pontos'!I29 -> Potência (w) | J2: ='Definição de Fases e Pontos'!J29 -> Gravidade (g) ou xPC | K2: ='Definição de Fases e Pontos'!R29 -> Força no Movimento (N) | L2: ='Definição de Fases e Pontos'!S29 -> Força Resultante no Movimento (N) | M2: ='Definição de Fases e Pontos'!T29 -> Velocidade no Movimento (m/s) | N2: ='Definição de Fases e Pontos'!U29 -> Posição No Movimento (cm) | O2: ='Definição de Fases e Pontos'!V29 -> Posição do Início à Aterrissagem (cm) | P2: ='Definição de Fases e Pontos'!W29 -> Potência no Movimento (w) | Q2: ='Definição de Fases e Pontos'!X29 -> Força na Fase Excêntrica (N) | R2: ='Definição de Fases e Pontos'!Y29 -> Força na Fase Concêntrica (N) | S2: ='Definição de Fases e Pontos'!Z29 -> Força Resultante na Fase Concêntrica (N) | T2: ='Definição de Fases e Pontos'!AA29 -> Potência na Fase Excêntrica (w) | U2: ='Definição de Fases e Pontos'!AB29 -> Potência Na Fase Concêntrica (w) | V2: ='Definição de Fases e Pontos'!AC29 -> TDF a cada 30 ms (Total) | W2: ='Definição de Fases e Pontos'!AD29 -> TDF a cada 30 ms da Fase Concêntrica | X2: ='Definição de Fases e Pontos'!AP29 -> Pontos de (a) à (j) | Y2: ='Definição de Fases e Pontos'!BG29 -> Pontos de (a) à (j) | Z2: ='Definição de Fases e Pontos'!AQ29 -> Peso Corporal (N) | AA2: ='Definição de Fases e Pontos'!AR29 -> Linha do Peso Corporal (N) | AB2: ='Definição de Fases e Pontos'!AS29 -> Início da Fase Excêntrica até Início da Frenagem | AC2: ='Definição de Fases e Pontos'!AT29 -> Início da Frenagem até Final da Fase Excêntrica | AD2: ='Definição de Fases e Pontos'!AU29 -> Fase Concêntrica | AE2: ='Definição de Fases e Pontos'!AV29 -> Período de Maior TDF na Fase Concêntrica | AF2: ='Definição de Fases e Pontos'!AW29 -> Ponto de Início do Movimento (a) | AG2: ='Definição de Fases e Pontos'!AX29 -> Ponto de Maior Velocidade Negativa (b) | AH2: ='Definição de Fases e Pontos'!O29 -> Fim da Fase Excêntrica | AI2: ='Definição de Fases e Pontos'!AY29 -> Ponto de Início da Fase Concêntrica (c) | AJ2: ='Definição de Fases e Pontos'!AZ29 -> Ponto Pico de Força na Fase Concêntrica(d) | AK2: ='Definição de Fases e Pontos'!BA29 -> Ponto de Potência Máxima (e) | AL2: ='Definição de Fases e Pontos'!BB29 -> Ponto de Máxima Velocidade (f) | AM2: ='Definição de Fases e Pontos'!P29 -> Fim da Fase Concêntrica | AN2: ='Definição de Fases e Pontos'!BC29 -> Ponto de Início da Fase de Voo (g) | AO2: ='Definição de Fases e Pontos'!BD29 -> Ponto de Maior Posição do CM (h) | AP2: ='Definição de Fases e Pontos'!Q29 -> Fim da Fase de Voo | AQ2: ='Definição de Fases e Pontos'!BE29 -> Ponto de Aterrissagem (i) | AR2: ='Definição de Fases e Pontos'!BF29 -> Ponto de retorno à Posição Zero do CM (j) | AS2: ='Definição de Fases e Pontos'!BK29 -> Força 1 (N) | AT2: ='Definição de Fases e Pontos'!BL29 -> Força 2 (N) | AU2: ='Definição de Fases e Pontos'!BM29 -> Dif de Força (N) | AW2: =B2 -> Tempo | AX2: =IFERROR(INDEX($A$2:$AU$3003,$A4,MATCH($AX$1,$A$1:$AU$1,0)),"Nenhuma ") -> Força (N) | AY2: =IFERROR(INDEX($A$2:$AU$3003,$A4,MATCH($AY$1,$A$1:$AU$1,0)),"Nenhuma") -> Nenhuma | AZ2: =IFERROR(INDEX($A$2:$AU$3003,$A4,MATCH($AZ$1,$A$1:$AU$1,0)),"Nenhuma") -> Nenhuma | BA2: =IFERROR(INDEX($A$2:$AU$3003,$A4,MATCH($BA$1,$A$1:$AU$1,0)),"Nenhum") -> Início da Fase Excêntrica até Início da Frenagem | BB2: =IFERROR(INDEX($A$2:$AU$3003,$A4,MATCH($BB$1,$A$1:$AU$1,0)),"Nenhum") -> Início da Frenagem até Final da Fase Excêntrica | BC2: =IFERROR(INDEX($A$2:$AU$3003,$A4,MATCH($BC$1,$A$1:$AU$1,0)),"Nenhum") -> Fase Concêntrica | BD2: =IFERROR(INDEX($A$2:$AU$3003,$A4,MATCH($BD$1,$A$1:$AU$1,0)),"Nenhum") -> Período de Maior TDF na Fase Concêntrica | BE2: =IFERROR(INDEX($A$2:$AU$3003,$A4,MATCH($BE$1,$A$1:$AU$1,0)),"Nenhum") -> Ponto Pico de Força na Fase Concêntrica(d) | BF2: =IFERROR(INDEX($A$2:$AU$3003,$A4,MATCH($BF$1,$A$1:$AU$1,0)),"Nenhum") -> Nenhum
A3: ='Definição de Fases e Pontos'!A30 -> n | B3: ='Definição de Fases e Pontos'!B30 -> (s) | C3: ='Definição de Fases e Pontos'!C30 -> (N) | D3: ='Definição de Fases e Pontos'!D30 -> (N) | E3: ='Definição de Fases e Pontos'!E30 -> (m/s^2) | F3: ='Definição de Fases e Pontos'!F30 -> (m/s) | G3: ='Definição de Fases e Pontos'!G30 -> (m) | H3: ='Definição de Fases e Pontos'!H30 -> (cm) | I3: ='Definição de Fases e Pontos'!I30 -> (W) | J3: ='Definição de Fases e Pontos'!J30 -> (g) | K3: ='Definição de Fases e Pontos'!R30 -> (N) | L3: ='Definição de Fases e Pontos'!S30 -> (N) | M3: ='Definição de Fases e Pontos'!T30 -> (m/s) | N3: ='Definição de Fases e Pontos'!U30 -> (cm) | O3: ='Definição de Fases e Pontos'!V30 -> (cm) | P3: ='Definição de Fases e Pontos'!W30 -> (w) | Q3: ='Definição de Fases e Pontos'!X30 -> (N) | R3: ='Definição de Fases e Pontos'!Y30 -> (N) | S3: ='Definição de Fases e Pontos'!Z30 -> (N) | T3: ='Definição de Fases e Pontos'!AA30 -> (w) | U3: ='Definição de Fases e Pontos'!AB30 -> (w) | V3: ='Definição de Fases e Pontos'!AC30 -> N/s | X3: ='Definição de Fases e Pontos'!AP30 -> (a) à (j) | Z3: ='Definição de Fases e Pontos'!AQ30 -> (N) | AA3: ='Definição de Fases e Pontos'!AR30 -> (N) | AS3: ='Definição de Fases e Pontos'!BK30 -> (N) | AT3: ='Definição de Fases e Pontos'!BL30 -> (N) | AU3: ='Definição de Fases e Pontos'!BM30 -> (N) | AW3: =B3 -> (s) | AX3: =IFERROR(INDEX($A$2:$AR$3003,$A5,MATCH($AX$1,$A$1:$AR$1,0))," ") -> (N) | AY3: =IFERROR(INDEX($A$2:$AR$3003,$A5,MATCH($AY$1,$A$1:$AR$1,0))," ") ->  | AZ3: =IFERROR(INDEX($A$2:$AR$3003,$A5,MATCH($AZ$1,$A$1:$AR$1,0))," ") -> 
A4: ='Definição de Fases e Pontos'!A31 -> 0.000 | B4: ='Definição de Fases e Pontos'!B31 -> 0.000 | C4: ='Definição de Fases e Pontos'!C31 ->  | D4: ='Definição de Fases e Pontos'!D31 ->  | E4: ='Definição de Fases e Pontos'!E31 -> 0.000 | F4: ='Definição de Fases e Pontos'!F31 -> 0.000 | G4: ='Definição de Fases e Pontos'!G31 -> 0.000 | H4: ='Definição de Fases e Pontos'!H31 -> 0.000 | I4: ='Definição de Fases e Pontos'!I31 -> 0.000 | J4: ='Definição de Fases e Pontos'!J31 ->  | K4: ='Definição de Fases e Pontos'!R31 -> 0.000 | L4: ='Definição de Fases e Pontos'!S31 -> 0.000 | M4: ='Definição de Fases e Pontos'!T31 -> 0.000 | N4: ='Definição de Fases e Pontos'!U31 -> 0.000 | O4: ='Definição de Fases e Pontos'!V31 ->  | P4: ='Definição de Fases e Pontos'!W31 -> 0.000 | Q4: ='Definição de Fases e Pontos'!X31 ->  | R4: ='Definição de Fases e Pontos'!Y31 ->  | S4: ='Definição de Fases e Pontos'!Z31 ->  | T4: ='Definição de Fases e Pontos'!AA31 ->  | U4: ='Definição de Fases e Pontos'!AB31 ->  | V4: ='Definição de Fases e Pontos'!AC31 -> 0.000 | W4: ='Definição de Fases e Pontos'!AD31 ->  | X4: ='Definição de Fases e Pontos'!AP31 ->  | Y4: ='Definição de Fases e Pontos'!BG31 ->  | Z4: ='Definição de Fases e Pontos'!AQ31 -> 0.000 | AA4: ='Definição de Fases e Pontos'!AR31 -> 0.000 | AB4: ='Definição de Fases e Pontos'!AS31 ->  | AC4: ='Definição de Fases e Pontos'!AT31 ->  | AD4: ='Definição de Fases e Pontos'!AU31 ->  | AE4: ='Definição de Fases e Pontos'!AV31 ->  | AF4: ='Definição de Fases e Pontos'!AW31 -> 0 | AG4: ='Definição de Fases e Pontos'!AX31 ->  | AH4: ='Definição de Fases e Pontos'!O31 ->  | AI4: ='Definição de Fases e Pontos'!AY31 ->  | AJ4: ='Definição de Fases e Pontos'!AZ31 ->  | AK4: ='Definição de Fases e Pontos'!BA31 ->  | AL4: ='Definição de Fases e Pontos'!BB31 ->  | AM4: ='Definição de Fases e Pontos'!P31 ->  | AN4: ='Definição de Fases e Pontos'!BC31 -> 0 | AO4: ='Definição de Fases e Pontos'!BD31 ->  | AP4: ='Definição de Fases e Pontos'!Q31 ->  | AQ4: ='Definição de Fases e Pontos'!BE31 ->  | AR4: ='Definição de Fases e Pontos'!BF31 ->  | AS4: ='Definição de Fases e Pontos'!BK31 ->  | AT4: ='Definição de Fases e Pontos'!BL31 ->  | AU4: ='Definição de Fases e Pontos'!BM31 ->  | AW4: 0.000 | AX4: =IFERROR(INDEX($A$2:$AU$3003,$A6,MATCH($AX$1,$A$1:$AU$1,0))," ") ->  | AY4: =IFERROR(INDEX($A$2:$AU$3003,$A6,MATCH($AY$1,$A$1:$AU$1,0))," ") ->  | AZ4: =IFERROR(INDEX($A$2:$AU$3003,$A6,MATCH($AZ$1,$A$1:$AU$1,0))," ") ->  | BA4: =IFERROR(INDEX($A$2:$AU$3003,$A6,MATCH($BA$1,$A$1:$AU$1,0))," ") ->  | BB4: =IFERROR(INDEX($A$2:$AU$3003,$A6,MATCH($BB$1,$A$1:$AU$1,0))," ") ->  | BC4: =IFERROR(INDEX($A$2:$AU$3003,$A6,MATCH($BC$1,$A$1:$AU$1,0))," ") ->  | BD4: =IFERROR(INDEX($A$2:$AU$3003,$A6,MATCH($BD$1,$A$1:$AU$1,0))," ") ->  | BE4: =IFERROR(INDEX($A$2:$AU$3003,$A6,MATCH($BE$1,$A$1:$AU$1,0))," ") ->  | BF4: =IFERROR(INDEX($A$2:$AU$3003,$A6,MATCH($BF$1,$A$1:$AU$1,0))," ") -> 
A5: ='Definição de Fases e Pontos'!A32 -> 0.000 | B5: ='Definição de Fases e Pontos'!B32 -> 0.000 | C5: ='Definição de Fases e Pontos'!C32 ->  | D5: ='Definição de Fases e Pontos'!D32 ->  | E5: ='Definição de Fases e Pontos'!E32 ->  | F5: ='Definição de Fases e Pontos'!F32 ->  | G5: ='Definição de Fases e Pontos'!G32 ->  | H5: ='Definição de Fases e Pontos'!H32 ->  | I5: ='Definição de Fases e Pontos'!I32 ->  | J5: ='Definição de Fases e Pontos'!J32 ->  | K5: ='Definição de Fases e Pontos'!R32 ->  | L5: ='Definição de Fases e Pontos'!S32 ->  | M5: ='Definição de Fases e Pontos'!T32 ->  | N5: ='Definição de Fases e Pontos'!U32 ->  | O5: ='Definição de Fases e Pontos'!V32 ->  | P5: ='Definição de Fases e Pontos'!W32 ->  | Q5: ='Definição de Fases e Pontos'!X32 ->  | R5: ='Definição de Fases e Pontos'!Y32 ->  | S5: ='Definição de Fases e Pontos'!Z32 ->  | T5: ='Definição de Fases e Pontos'!AA32 ->  | U5: ='Definição de Fases e Pontos'!AB32 ->  | V5: ='Definição de Fases e Pontos'!AC32 -> 0.000 | W5: ='Definição de Fases e Pontos'!AD32 ->  | X5: ='Definição de Fases e Pontos'!AP32 ->  | Y5: ='Definição de Fases e Pontos'!BG32 ->  | Z5: ='Definição de Fases e Pontos'!AQ32 -> 0.000 | AA5: ='Definição de Fases e Pontos'!AR32 -> 0.000 | AB5: ='Definição de Fases e Pontos'!AS32 ->  | AC5: ='Definição de Fases e Pontos'!AT32 ->  | AD5: ='Definição de Fases e Pontos'!AU32 ->  | AE5: ='Definição de Fases e Pontos'!AV32 ->  | AF5: ='Definição de Fases e Pontos'!AW32 -> 0 | AG5: ='Definição de Fases e Pontos'!AX32 ->  | AH5: ='Definição de Fases e Pontos'!O32 ->  | AI5: ='Definição de Fases e Pontos'!AY32 ->  | AJ5: ='Definição de Fases e Pontos'!AZ32 ->  | AK5: ='Definição de Fases e Pontos'!BA32 ->  | AL5: ='Definição de Fases e Pontos'!BB32 ->  | AM5: ='Definição de Fases e Pontos'!P32 ->  | AN5: ='Definição de Fases e Pontos'!BC32 ->  | AO5: ='Definição de Fases e Pontos'!BD32 ->  | AP5: ='Definição de Fases e Pontos'!Q32 ->  | AQ5: ='Definição de Fases e Pontos'!BE32 ->  | AR5: ='Definição de Fases e Pontos'!BF32 ->  | AS5: ='Definição de Fases e Pontos'!BK32 ->  | AT5: ='Definição de Fases e Pontos'!BL32 ->  | AU5: ='Definição de Fases e Pontos'!BM32 ->  | AW5: 0.000 | AX5: =IFERROR(INDEX($A$2:$AU$3003,$A7,MATCH($AX$1,$A$1:$AU$1,0))," ") ->  | AY5: =IFERROR(INDEX($A$2:$AU$3003,$A7,MATCH($AY$1,$A$1:$AU$1,0))," ") ->  | AZ5: =IFERROR(INDEX($A$2:$AU$3003,$A7,MATCH($AZ$1,$A$1:$AU$1,0))," ") ->  | BA5: =IFERROR(INDEX($A$2:$AU$3003,$A7,MATCH($BA$1,$A$1:$AU$1,0))," ") ->  | BB5: =IFERROR(INDEX($A$2:$AU$3003,$A7,MATCH($BB$1,$A$1:$AU$1,0))," ") ->  | BC5: =IFERROR(INDEX($A$2:$AU$3003,$A7,MATCH($BC$1,$A$1:$AU$1,0))," ") ->  | BD5: =IFERROR(INDEX($A$2:$AU$3003,$A7,MATCH($BD$1,$A$1:$AU$1,0))," ") ->  | BE5: =IFERROR(INDEX($A$2:$AU$3003,$A7,MATCH($BE$1,$A$1:$AU$1,0))," ") ->  | BF5: =IFERROR(INDEX($A$2:$AU$3003,$A7,MATCH($BF$1,$A$1:$AU$1,0))," ") -> 
A6: ='Definição de Fases e Pontos'!A33 -> 0.000 | B6: ='Definição de Fases e Pontos'!B33 -> 0.000 | C6: ='Definição de Fases e Pontos'!C33 ->  | D6: ='Definição de Fases e Pontos'!D33 ->  | E6: ='Definição de Fases e Pontos'!E33 ->  | F6: ='Definição de Fases e Pontos'!F33 ->  | G6: ='Definição de Fases e Pontos'!G33 ->  | H6: ='Definição de Fases e Pontos'!H33 ->  | I6: ='Definição de Fases e Pontos'!I33 ->  | J6: ='Definição de Fases e Pontos'!J33 ->  | K6: ='Definição de Fases e Pontos'!R33 ->  | L6: ='Definição de Fases e Pontos'!S33 ->  | M6: ='Definição de Fases e Pontos'!T33 ->  | N6: ='Definição de Fases e Pontos'!U33 ->  | O6: ='Definição de Fases e Pontos'!V33 ->  | P6: ='Definição de Fases e Pontos'!W33 ->  | Q6: ='Definição de Fases e Pontos'!X33 ->  | R6: ='Definição de Fases e Pontos'!Y33 ->  | S6: ='Definição de Fases e Pontos'!Z33 ->  | T6: ='Definição de Fases e Pontos'!AA33 ->  | U6: ='Definição de Fases e Pontos'!AB33 ->  | V6: ='Definição de Fases e Pontos'!AC33 -> 0.000 | W6: ='Definição de Fases e Pontos'!AD33 ->  | X6: ='Definição de Fases e Pontos'!AP33 ->  | Y6: ='Definição de Fases e Pontos'!BG33 ->  | Z6: ='Definição de Fases e Pontos'!AQ33 -> 0.000 | AA6: ='Definição de Fases e Pontos'!AR33 -> 0.000 | AB6: ='Definição de Fases e Pontos'!AS33 ->  | AC6: ='Definição de Fases e Pontos'!AT33 ->  | AD6: ='Definição de Fases e Pontos'!AU33 ->  | AE6: ='Definição de Fases e Pontos'!AV33 ->  | AF6: ='Definição de Fases e Pontos'!AW33 -> 0 | AG6: ='Definição de Fases e Pontos'!AX33 ->  | AH6: ='Definição de Fases e Pontos'!O33 ->  | AI6: ='Definição de Fases e Pontos'!AY33 ->  | AJ6: ='Definição de Fases e Pontos'!AZ33 ->  | AK6: ='Definição de Fases e Pontos'!BA33 ->  | AL6: ='Definição de Fases e Pontos'!BB33 ->  | AM6: ='Definição de Fases e Pontos'!P33 ->  | AN6: ='Definição de Fases e Pontos'!BC33 ->  | AO6: ='Definição de Fases e Pontos'!BD33 ->  | AP6: ='Definição de Fases e Pontos'!Q33 ->  | AQ6: ='Definição de Fases e Pontos'!BE33 ->  | AR6: ='Definição de Fases e Pontos'!BF33 ->  | AS6: ='Definição de Fases e Pontos'!BK33 ->  | AT6: ='Definição de Fases e Pontos'!BL33 ->  | AU6: ='Definição de Fases e Pontos'!BM33 ->  | AW6: 0.000
A7: ='Definição de Fases e Pontos'!A34 -> 0.000 | B7: ='Definição de Fases e Pontos'!B34 -> 0.000 | C7: ='Definição de Fases e Pontos'!C34 ->  | D7: ='Definição de Fases e Pontos'!D34 ->  | E7: ='Definição de Fases e Pontos'!E34 ->  | F7: ='Definição de Fases e Pontos'!F34 ->  | G7: ='Definição de Fases e Pontos'!G34 ->  | H7: ='Definição de Fases e Pontos'!H34 ->  | I7: ='Definição de Fases e Pontos'!I34 ->  | J7: ='Definição de Fases e Pontos'!J34 ->  | K7: ='Definição de Fases e Pontos'!R34 ->  | L7: ='Definição de Fases e Pontos'!S34 ->  | M7: ='Definição de Fases e Pontos'!T34 ->  | N7: ='Definição de Fases e Pontos'!U34 ->  | O7: ='Definição de Fases e Pontos'!V34 ->  | P7: ='Definição de Fases e Pontos'!W34 ->  | Q7: ='Definição de Fases e Pontos'!X34 ->  | R7: ='Definição de Fases e Pontos'!Y34 ->  | S7: ='Definição de Fases e Pontos'!Z34 ->  | T7: ='Definição de Fases e Pontos'!AA34 ->  | U7: ='Definição de Fases e Pontos'!AB34 ->  | V7: ='Definição de Fases e Pontos'!AC34 -> 0.000 | W7: ='Definição de Fases e Pontos'!AD34 ->  | X7: ='Definição de Fases e Pontos'!AP34 ->  | Y7: ='Definição de Fases e Pontos'!BG34 ->  | Z7: ='Definição de Fases e Pontos'!AQ34 -> 0.000 | AA7: ='Definição de Fases e Pontos'!AR34 -> 0.000 | AB7: ='Definição de Fases e Pontos'!AS34 ->  | AC7: ='Definição de Fases e Pontos'!AT34 ->  | AD7: ='Definição de Fases e Pontos'!AU34 ->  | AE7: ='Definição de Fases e Pontos'!AV34 ->  | AF7: ='Definição de Fases e Pontos'!AW34 -> 0 | AG7: ='Definição de Fases e Pontos'!AX34 ->  | AH7: ='Definição de Fases e Pontos'!O34 ->  | AI7: ='Definição de Fases e Pontos'!AY34 ->  | AJ7: ='Definição de Fases e Pontos'!AZ34 ->  | AK7: ='Definição de Fases e Pontos'!BA34 ->  | AL7: ='Definição de Fases e Pontos'!BB34 ->  | AM7: ='Definição de Fases e Pontos'!P34 ->  | AN7: ='Definição de Fases e Pontos'!BC34 ->  | AO7: ='Definição de Fases e Pontos'!BD34 ->  | AP7: ='Definição de Fases e Pontos'!Q34 ->  | AQ7: ='Definição de Fases e Pontos'!BE34 ->  | AR7: ='Definição de Fases e Pontos'!BF34 ->  | AS7: ='Definição de Fases e Pontos'!BK34 ->  | AT7: ='Definição de Fases e Pontos'!BL34 ->  | AU7: ='Definição de Fases e Pontos'!BM34 ->  | AW7: 0.000
A8: ='Definição de Fases e Pontos'!A35 -> 0.000 | B8: ='Definição de Fases e Pontos'!B35 -> 0.000 | C8: ='Definição de Fases e Pontos'!C35 ->  | D8: ='Definição de Fases e Pontos'!D35 ->  | E8: ='Definição de Fases e Pontos'!E35 ->  | F8: ='Definição de Fases e Pontos'!F35 ->  | G8: ='Definição de Fases e Pontos'!G35 ->  | H8: ='Definição de Fases e Pontos'!H35 ->  | I8: ='Definição de Fases e Pontos'!I35 ->  | J8: ='Definição de Fases e Pontos'!J35 ->  | K8: ='Definição de Fases e Pontos'!R35 ->  | L8: ='Definição de Fases e Pontos'!S35 ->  | M8: ='Definição de Fases e Pontos'!T35 ->  | N8: ='Definição de Fases e Pontos'!U35 ->  | O8: ='Definição de Fases e Pontos'!V35 ->  | P8: ='Definição de Fases e Pontos'!W35 ->  | Q8: ='Definição de Fases e Pontos'!X35 ->  | R8: ='Definição de Fases e Pontos'!Y35 ->  | S8: ='Definição de Fases e Pontos'!Z35 ->  | T8: ='Definição de Fases e Pontos'!AA35 ->  | U8: ='Definição de Fases e Pontos'!AB35 ->  | V8: ='Definição de Fases e Pontos'!AC35 -> 0.000 | W8: ='Definição de Fases e Pontos'!AD35 ->  | X8: ='Definição de Fases e Pontos'!AP35 ->  | Y8: ='Definição de Fases e Pontos'!BG35 ->  | Z8: ='Definição de Fases e Pontos'!AQ35 -> 0.000 | AA8: ='Definição de Fases e Pontos'!AR35 -> 0.000 | AB8: ='Definição de Fases e Pontos'!AS35 ->  | AC8: ='Definição de Fases e Pontos'!AT35 ->  | AD8: ='Definição de Fases e Pontos'!AU35 ->  | AE8: ='Definição de Fases e Pontos'!AV35 ->  | AF8: ='Definição de Fases e Pontos'!AW35 -> 0 | AG8: ='Definição de Fases e Pontos'!AX35 ->  | AH8: ='Definição de Fases e Pontos'!O35 ->  | AI8: ='Definição de Fases e Pontos'!AY35 ->  | AJ8: ='Definição de Fases e Pontos'!AZ35 ->  | AK8: ='Definição de Fases e Pontos'!BA35 ->  | AL8: ='Definição de Fases e Pontos'!BB35 ->  | AM8: ='Definição de Fases e Pontos'!P35 ->  | AN8: ='Definição de Fases e Pontos'!BC35 ->  | AO8: ='Definição de Fases e Pontos'!BD35 ->  | AP8: ='Definição de Fases e Pontos'!Q35 ->  | AQ8: ='Definição de Fases e Pontos'!BE35 ->  | AR8: ='Definição de Fases e Pontos'!BF35 ->  | AS8: ='Definição de Fases e Pontos'!BK35 ->  | AT8: ='Definição de Fases e Pontos'!BL35 ->  | AU8: ='Definição de Fases e Pontos'!BM35 ->  | AW8: 0.000
A9: ='Definição de Fases e Pontos'!A36 -> 0.000 | B9: ='Definição de Fases e Pontos'!B36 -> 0.000 | C9: ='Definição de Fases e Pontos'!C36 ->  | D9: ='Definição de Fases e Pontos'!D36 ->  | E9: ='Definição de Fases e Pontos'!E36 ->  | F9: ='Definição de Fases e Pontos'!F36 ->  | G9: ='Definição de Fases e Pontos'!G36 ->  | H9: ='Definição de Fases e Pontos'!H36 ->  | I9: ='Definição de Fases e Pontos'!I36 ->  | J9: ='Definição de Fases e Pontos'!J36 ->  | K9: ='Definição de Fases e Pontos'!R36 ->  | L9: ='Definição de Fases e Pontos'!S36 ->  | M9: ='Definição de Fases e Pontos'!T36 ->  | N9: ='Definição de Fases e Pontos'!U36 ->  | O9: ='Definição de Fases e Pontos'!V36 ->  | P9: ='Definição de Fases e Pontos'!W36 ->  | Q9: ='Definição de Fases e Pontos'!X36 ->  | R9: ='Definição de Fases e Pontos'!Y36 ->  | S9: ='Definição de Fases e Pontos'!Z36 ->  | T9: ='Definição de Fases e Pontos'!AA36 ->  | U9: ='Definição de Fases e Pontos'!AB36 ->  | V9: ='Definição de Fases e Pontos'!AC36 -> 0.000 | W9: ='Definição de Fases e Pontos'!AD36 ->  | X9: ='Definição de Fases e Pontos'!AP36 ->  | Y9: ='Definição de Fases e Pontos'!BG36 ->  | Z9: ='Definição de Fases e Pontos'!AQ36 -> 0.000 | AA9: ='Definição de Fases e Pontos'!AR36 -> 0.000 | AB9: ='Definição de Fases e Pontos'!AS36 ->  | AC9: ='Definição de Fases e Pontos'!AT36 ->  | AD9: ='Definição de Fases e Pontos'!AU36 ->  | AE9: ='Definição de Fases e Pontos'!AV36 ->  | AF9: ='Definição de Fases e Pontos'!AW36 -> 0 | AG9: ='Definição de Fases e Pontos'!AX36 ->  | AH9: ='Definição de Fases e Pontos'!O36 ->  | AI9: ='Definição de Fases e Pontos'!AY36 ->  | AJ9: ='Definição de Fases e Pontos'!AZ36 ->  | AK9: ='Definição de Fases e Pontos'!BA36 ->  | AL9: ='Definição de Fases e Pontos'!BB36 ->  | AM9: ='Definição de Fases e Pontos'!P36 ->  | AN9: ='Definição de Fases e Pontos'!BC36 ->  | AO9: ='Definição de Fases e Pontos'!BD36 ->  | AP9: ='Definição de Fases e Pontos'!Q36 ->  | AQ9: ='Definição de Fases e Pontos'!BE36 ->  | AR9: ='Definição de Fases e Pontos'!BF36 ->  | AS9: ='Definição de Fases e Pontos'!BK36 ->  | AT9: ='Definição de Fases e Pontos'!BL36 ->  | AU9: ='Definição de Fases e Pontos'!BM36 ->  | AW9: 0.000
A10: ='Definição de Fases e Pontos'!A37 -> 0.000 | B10: ='Definição de Fases e Pontos'!B37 -> 0.000 | C10: ='Definição de Fases e Pontos'!C37 ->  | D10: ='Definição de Fases e Pontos'!D37 ->  | E10: ='Definição de Fases e Pontos'!E37 ->  | F10: ='Definição de Fases e Pontos'!F37 ->  | G10: ='Definição de Fases e Pontos'!G37 ->  | H10: ='Definição de Fases e Pontos'!H37 ->  | I10: ='Definição de Fases e Pontos'!I37 ->  | J10: ='Definição de Fases e Pontos'!J37 ->  | K10: ='Definição de Fases e Pontos'!R37 ->  | L10: ='Definição de Fases e Pontos'!S37 ->  | M10: ='Definição de Fases e Pontos'!T37 ->  | N10: ='Definição de Fases e Pontos'!U37 ->  | O10: ='Definição de Fases e Pontos'!V37 ->  | P10: ='Definição de Fases e Pontos'!W37 ->  | Q10: ='Definição de Fases e Pontos'!X37 ->  | R10: ='Definição de Fases e Pontos'!Y37 ->  | S10: ='Definição de Fases e Pontos'!Z37 ->  | T10: ='Definição de Fases e Pontos'!AA37 ->  | U10: ='Definição de Fases e Pontos'!AB37 ->  | V10: ='Definição de Fases e Pontos'!AC37 -> 0.000 | W10: ='Definição de Fases e Pontos'!AD37 ->  | X10: ='Definição de Fases e Pontos'!AP37 ->  | Y10: ='Definição de Fases e Pontos'!BG37 ->  | Z10: ='Definição de Fases e Pontos'!AQ37 -> 0.000 | AA10: ='Definição de Fases e Pontos'!AR37 -> 0.000 | AB10: ='Definição de Fases e Pontos'!AS37 ->  | AC10: ='Definição de Fases e Pontos'!AT37 ->  | AD10: ='Definição de Fases e Pontos'!AU37 ->  | AE10: ='Definição de Fases e Pontos'!AV37 ->  | AF10: ='Definição de Fases e Pontos'!AW37 -> 0 | AG10: ='Definição de Fases e Pontos'!AX37 ->  | AH10: ='Definição de Fases e Pontos'!O37 ->  | AI10: ='Definição de Fases e Pontos'!AY37 ->  | AJ10: ='Definição de Fases e Pontos'!AZ37 ->  | AK10: ='Definição de Fases e Pontos'!BA37 ->  | AL10: ='Definição de Fases e Pontos'!BB37 ->  | AM10: ='Definição de Fases e Pontos'!P37 ->  | AN10: ='Definição de Fases e Pontos'!BC37 ->  | AO10: ='Definição de Fases e Pontos'!BD37 ->  | AP10: ='Definição de Fases e Pontos'!Q37 ->  | AQ10: ='Definição de Fases e Pontos'!BE37 ->  | AR10: ='Definição de Fases e Pontos'!BF37 ->  | AS10: ='Definição de Fases e Pontos'!BK37 ->  | AT10: ='Definição de Fases e Pontos'!BL37 ->  | AU10: ='Definição de Fases e Pontos'!BM37 ->  | AW10: 0.000
A11: ='Definição de Fases e Pontos'!A38 -> 0.000 | B11: ='Definição de Fases e Pontos'!B38 -> 0.000 | C11: ='Definição de Fases e Pontos'!C38 ->  | D11: ='Definição de Fases e Pontos'!D38 ->  | E11: ='Definição de Fases e Pontos'!E38 ->  | F11: ='Definição de Fases e Pontos'!F38 ->  | G11: ='Definição de Fases e Pontos'!G38 ->  | H11: ='Definição de Fases e Pontos'!H38 ->  | I11: ='Definição de Fases e Pontos'!I38 ->  | J11: ='Definição de Fases e Pontos'!J38 ->  | K11: ='Definição de Fases e Pontos'!R38 ->  | L11: ='Definição de Fases e Pontos'!S38 ->  | M11: ='Definição de Fases e Pontos'!T38 ->  | N11: ='Definição de Fases e Pontos'!U38 ->  | O11: ='Definição de Fases e Pontos'!V38 ->  | P11: ='Definição de Fases e Pontos'!W38 ->  | Q11: ='Definição de Fases e Pontos'!X38 ->  | R11: ='Definição de Fases e Pontos'!Y38 ->  | S11: ='Definição de Fases e Pontos'!Z38 ->  | T11: ='Definição de Fases e Pontos'!AA38 ->  | U11: ='Definição de Fases e Pontos'!AB38 ->  | V11: ='Definição de Fases e Pontos'!AC38 -> 0.000 | W11: ='Definição de Fases e Pontos'!AD38 ->  | X11: ='Definição de Fases e Pontos'!AP38 ->  | Y11: ='Definição de Fases e Pontos'!BG38 ->  | Z11: ='Definição de Fases e Pontos'!AQ38 -> 0.000 | AA11: ='Definição de Fases e Pontos'!AR38 -> 0.000 | AB11: ='Definição de Fases e Pontos'!AS38 ->  | AC11: ='Definição de Fases e Pontos'!AT38 ->  | AD11: ='Definição de Fases e Pontos'!AU38 ->  | AE11: ='Definição de Fases e Pontos'!AV38 ->  | AF11: ='Definição de Fases e Pontos'!AW38 -> 0 | AG11: ='Definição de Fases e Pontos'!AX38 ->  | AH11: ='Definição de Fases e Pontos'!O38 ->  | AI11: ='Definição de Fases e Pontos'!AY38 ->  | AJ11: ='Definição de Fases e Pontos'!AZ38 ->  | AK11: ='Definição de Fases e Pontos'!BA38 ->  | AL11: ='Definição de Fases e Pontos'!BB38 ->  | AM11: ='Definição de Fases e Pontos'!P38 ->  | AN11: ='Definição de Fases e Pontos'!BC38 ->  | AO11: ='Definição de Fases e Pontos'!BD38 ->  | AP11: ='Definição de Fases e Pontos'!Q38 ->  | AQ11: ='Definição de Fases e Pontos'!BE38 ->  | AR11: ='Definição de Fases e Pontos'!BF38 ->  | AS11: ='Definição de Fases e Pontos'!BK38 ->  | AT11: ='Definição de Fases e Pontos'!BL38 ->  | AU11: ='Definição de Fases e Pontos'!BM38 ->  | AW11: 0.000
A12: ='Definição de Fases e Pontos'!A39 -> 0.000 | B12: ='Definição de Fases e Pontos'!B39 -> 0.000 | C12: ='Definição de Fases e Pontos'!C39 ->  | D12: ='Definição de Fases e Pontos'!D39 ->  | E12: ='Definição de Fases e Pontos'!E39 ->  | F12: ='Definição de Fases e Pontos'!F39 ->  | G12: ='Definição de Fases e Pontos'!G39 ->  | H12: ='Definição de Fases e Pontos'!H39 ->  | I12: ='Definição de Fases e Pontos'!I39 ->  | J12: ='Definição de Fases e Pontos'!J39 ->  | K12: ='Definição de Fases e Pontos'!R39 ->  | L12: ='Definição de Fases e Pontos'!S39 ->  | M12: ='Definição de Fases e Pontos'!T39 ->  | N12: ='Definição de Fases e Pontos'!U39 ->  | O12: ='Definição de Fases e Pontos'!V39 ->  | P12: ='Definição de Fases e Pontos'!W39 ->  | Q12: ='Definição de Fases e Pontos'!X39 ->  | R12: ='Definição de Fases e Pontos'!Y39 ->  | S12: ='Definição de Fases e Pontos'!Z39 ->  | T12: ='Definição de Fases e Pontos'!AA39 ->  | U12: ='Definição de Fases e Pontos'!AB39 ->  | V12: ='Definição de Fases e Pontos'!AC39 -> 0.000 | W12: ='Definição de Fases e Pontos'!AD39 ->  | X12: ='Definição de Fases e Pontos'!AP39 ->  | Y12: ='Definição de Fases e Pontos'!BG39 ->  | Z12: ='Definição de Fases e Pontos'!AQ39 -> 0.000 | AA12: ='Definição de Fases e Pontos'!AR39 -> 0.000 | AB12: ='Definição de Fases e Pontos'!AS39 ->  | AC12: ='Definição de Fases e Pontos'!AT39 ->  | AD12: ='Definição de Fases e Pontos'!AU39 ->  | AE12: ='Definição de Fases e Pontos'!AV39 ->  | AF12: ='Definição de Fases e Pontos'!AW39 -> 0 | AG12: ='Definição de Fases e Pontos'!AX39 ->  | AH12: ='Definição de Fases e Pontos'!O39 ->  | AI12: ='Definição de Fases e Pontos'!AY39 ->  | AJ12: ='Definição de Fases e Pontos'!AZ39 ->  | AK12: ='Definição de Fases e Pontos'!BA39 ->  | AL12: ='Definição de Fases e Pontos'!BB39 ->  | AM12: ='Definição de Fases e Pontos'!P39 ->  | AN12: ='Definição de Fases e Pontos'!BC39 ->  | AO12: ='Definição de Fases e Pontos'!BD39 ->  | AP12: ='Definição de Fases e Pontos'!Q39 ->  | AQ12: ='Definição de Fases e Pontos'!BE39 ->  | AR12: ='Definição de Fases e Pontos'!BF39 ->  | AS12: ='Definição de Fases e Pontos'!BK39 ->  | AT12: ='Definição de Fases e Pontos'!BL39 ->  | AU12: ='Definição de Fases e Pontos'!BM39 ->  | AW12: 0.000
A13: ='Definição de Fases e Pontos'!A40 -> 0.000 | B13: ='Definição de Fases e Pontos'!B40 -> 0.000 | C13: ='Definição de Fases e Pontos'!C40 ->  | D13: ='Definição de Fases e Pontos'!D40 ->  | E13: ='Definição de Fases e Pontos'!E40 ->  | F13: ='Definição de Fases e Pontos'!F40 ->  | G13: ='Definição de Fases e Pontos'!G40 ->  | H13: ='Definição de Fases e Pontos'!H40 ->  | I13: ='Definição de Fases e Pontos'!I40 ->  | J13: ='Definição de Fases e Pontos'!J40 ->  | K13: ='Definição de Fases e Pontos'!R40 ->  | L13: ='Definição de Fases e Pontos'!S40 ->  | M13: ='Definição de Fases e Pontos'!T40 ->  | N13: ='Definição de Fases e Pontos'!U40 ->  | O13: ='Definição de Fases e Pontos'!V40 ->  | P13: ='Definição de Fases e Pontos'!W40 ->  | Q13: ='Definição de Fases e Pontos'!X40 ->  | R13: ='Definição de Fases e Pontos'!Y40 ->  | S13: ='Definição de Fases e Pontos'!Z40 ->  | T13: ='Definição de Fases e Pontos'!AA40 ->  | U13: ='Definição de Fases e Pontos'!AB40 ->  | V13: ='Definição de Fases e Pontos'!AC40 -> 0.000 | W13: ='Definição de Fases e Pontos'!AD40 ->  | X13: ='Definição de Fases e Pontos'!AP40 ->  | Y13: ='Definição de Fases e Pontos'!BG40 ->  | Z13: ='Definição de Fases e Pontos'!AQ40 -> 0.000 | AA13: ='Definição de Fases e Pontos'!AR40 -> 0.000 | AB13: ='Definição de Fases e Pontos'!AS40 ->  | AC13: ='Definição de Fases e Pontos'!AT40 ->  | AD13: ='Definição de Fases e Pontos'!AU40 ->  | AE13: ='Definição de Fases e Pontos'!AV40 ->  | AF13: ='Definição de Fases e Pontos'!AW40 -> 0 | AG13: ='Definição de Fases e Pontos'!AX40 ->  | AH13: ='Definição de Fases e Pontos'!O40 ->  | AI13: ='Definição de Fases e Pontos'!AY40 ->  | AJ13: ='Definição de Fases e Pontos'!AZ40 ->  | AK13: ='Definição de Fases e Pontos'!BA40 ->  | AL13: ='Definição de Fases e Pontos'!BB40 ->  | AM13: ='Definição de Fases e Pontos'!P40 ->  | AN13: ='Definição de Fases e Pontos'!BC40 ->  | AO13: ='Definição de Fases e Pontos'!BD40 ->  | AP13: ='Definição de Fases e Pontos'!Q40 ->  | AQ13: ='Definição de Fases e Pontos'!BE40 ->  | AR13: ='Definição de Fases e Pontos'!BF40 ->  | AS13: ='Definição de Fases e Pontos'!BK40 ->  | AT13: ='Definição de Fases e Pontos'!BL40 ->  | AU13: ='Definição de Fases e Pontos'!BM40 ->  | AW13: 0.000
A14: ='Definição de Fases e Pontos'!A41 -> 0.000 | B14: ='Definição de Fases e Pontos'!B41 -> 0.000 | C14: ='Definição de Fases e Pontos'!C41 ->  | D14: ='Definição de Fases e Pontos'!D41 ->  | E14: ='Definição de Fases e Pontos'!E41 ->  | F14: ='Definição de Fases e Pontos'!F41 ->  | G14: ='Definição de Fases e Pontos'!G41 ->  | H14: ='Definição de Fases e Pontos'!H41 ->  | I14: ='Definição de Fases e Pontos'!I41 ->  | J14: ='Definição de Fases e Pontos'!J41 ->  | K14: ='Definição de Fases e Pontos'!R41 ->  | L14: ='Definição de Fases e Pontos'!S41 ->  | M14: ='Definição de Fases e Pontos'!T41 ->  | N14: ='Definição de Fases e Pontos'!U41 ->  | O14: ='Definição de Fases e Pontos'!V41 ->  | P14: ='Definição de Fases e Pontos'!W41 ->  | Q14: ='Definição de Fases e Pontos'!X41 ->  | R14: ='Definição de Fases e Pontos'!Y41 ->  | S14: ='Definição de Fases e Pontos'!Z41 ->  | T14: ='Definição de Fases e Pontos'!AA41 ->  | U14: ='Definição de Fases e Pontos'!AB41 ->  | V14: ='Definição de Fases e Pontos'!AC41 -> 0.000 | W14: ='Definição de Fases e Pontos'!AD41 ->  | X14: ='Definição de Fases e Pontos'!AP41 ->  | Y14: ='Definição de Fases e Pontos'!BG41 ->  | Z14: ='Definição de Fases e Pontos'!AQ41 -> 0.000 | AA14: ='Definição de Fases e Pontos'!AR41 -> 0.000 | AB14: ='Definição de Fases e Pontos'!AS41 ->  | AC14: ='Definição de Fases e Pontos'!AT41 ->  | AD14: ='Definição de Fases e Pontos'!AU41 ->  | AE14: ='Definição de Fases e Pontos'!AV41 ->  | AF14: ='Definição de Fases e Pontos'!AW41 -> 0 | AG14: ='Definição de Fases e Pontos'!AX41 ->  | AH14: ='Definição de Fases e Pontos'!O41 ->  | AI14: ='Definição de Fases e Pontos'!AY41 ->  | AJ14: ='Definição de Fases e Pontos'!AZ41 ->  | AK14: ='Definição de Fases e Pontos'!BA41 ->  | AL14: ='Definição de Fases e Pontos'!BB41 ->  | AM14: ='Definição de Fases e Pontos'!P41 ->  | AN14: ='Definição de Fases e Pontos'!BC41 ->  | AO14: ='Definição de Fases e Pontos'!BD41 ->  | AP14: ='Definição de Fases e Pontos'!Q41 ->  | AQ14: ='Definição de Fases e Pontos'!BE41 ->  | AR14: ='Definição de Fases e Pontos'!BF41 ->  | AS14: ='Definição de Fases e Pontos'!BK41 ->  | AT14: ='Definição de Fases e Pontos'!BL41 ->  | AU14: ='Definição de Fases e Pontos'!BM41 ->  | AW14: 0.000
A15: ='Definição de Fases e Pontos'!A42 -> 0.000 | B15: ='Definição de Fases e Pontos'!B42 -> 0.000 | C15: ='Definição de Fases e Pontos'!C42 ->  | D15: ='Definição de Fases e Pontos'!D42 ->  | E15: ='Definição de Fases e Pontos'!E42 ->  | F15: ='Definição de Fases e Pontos'!F42 ->  | G15: ='Definição de Fases e Pontos'!G42 ->  | H15: ='Definição de Fases e Pontos'!H42 ->  | I15: ='Definição de Fases e Pontos'!I42 ->  | J15: ='Definição de Fases e Pontos'!J42 ->  | K15: ='Definição de Fases e Pontos'!R42 ->  | L15: ='Definição de Fases e Pontos'!S42 ->  | M15: ='Definição de Fases e Pontos'!T42 ->  | N15: ='Definição de Fases e Pontos'!U42 ->  | O15: ='Definição de Fases e Pontos'!V42 ->  | P15: ='Definição de Fases e Pontos'!W42 ->  | Q15: ='Definição de Fases e Pontos'!X42 ->  | R15: ='Definição de Fases e Pontos'!Y42 ->  | S15: ='Definição de Fases e Pontos'!Z42 ->  | T15: ='Definição de Fases e Pontos'!AA42 ->  | U15: ='Definição de Fases e Pontos'!AB42 ->  | V15: ='Definição de Fases e Pontos'!AC42 -> 0.000 | W15: ='Definição de Fases e Pontos'!AD42 ->  | X15: ='Definição de Fases e Pontos'!AP42 ->  | Y15: ='Definição de Fases e Pontos'!BG42 ->  | Z15: ='Definição de Fases e Pontos'!AQ42 -> 0.000 | AA15: ='Definição de Fases e Pontos'!AR42 -> 0.000 | AB15: ='Definição de Fases e Pontos'!AS42 ->  | AC15: ='Definição de Fases e Pontos'!AT42 ->  | AD15: ='Definição de Fases e Pontos'!AU42 ->  | AE15: ='Definição de Fases e Pontos'!AV42 ->  | AF15: ='Definição de Fases e Pontos'!AW42 -> 0 | AG15: ='Definição de Fases e Pontos'!AX42 ->  | AH15: ='Definição de Fases e Pontos'!O42 ->  | AI15: ='Definição de Fases e Pontos'!AY42 ->  | AJ15: ='Definição de Fases e Pontos'!AZ42 ->  | AK15: ='Definição de Fases e Pontos'!BA42 ->  | AL15: ='Definição de Fases e Pontos'!BB42 ->  | AM15: ='Definição de Fases e Pontos'!P42 ->  | AN15: ='Definição de Fases e Pontos'!BC42 ->  | AO15: ='Definição de Fases e Pontos'!BD42 ->  | AP15: ='Definição de Fases e Pontos'!Q42 ->  | AQ15: ='Definição de Fases e Pontos'!BE42 ->  | AR15: ='Definição de Fases e Pontos'!BF42 ->  | AS15: ='Definição de Fases e Pontos'!BK42 ->  | AT15: ='Definição de Fases e Pontos'!BL42 ->  | AU15: ='Definição de Fases e Pontos'!BM42 ->  | AW15: 0.000
A16: ='Definição de Fases e Pontos'!A43 -> 0.000 | B16: ='Definição de Fases e Pontos'!B43 -> 0.000 | C16: ='Definição de Fases e Pontos'!C43 ->  | D16: ='Definição de Fases e Pontos'!D43 ->  | E16: ='Definição de Fases e Pontos'!E43 ->  | F16: ='Definição de Fases e Pontos'!F43 ->  | G16: ='Definição de Fases e Pontos'!G43 ->  | H16: ='Definição de Fases e Pontos'!H43 ->  | I16: ='Definição de Fases e Pontos'!I43 ->  | J16: ='Definição de Fases e Pontos'!J43 ->  | K16: ='Definição de Fases e Pontos'!R43 ->  | L16: ='Definição de Fases e Pontos'!S43 ->  | M16: ='Definição de Fases e Pontos'!T43 ->  | N16: ='Definição de Fases e Pontos'!U43 ->  | O16: ='Definição de Fases e Pontos'!V43 ->  | P16: ='Definição de Fases e Pontos'!W43 ->  | Q16: ='Definição de Fases e Pontos'!X43 ->  | R16: ='Definição de Fases e Pontos'!Y43 ->  | S16: ='Definição de Fases e Pontos'!Z43 ->  | T16: ='Definição de Fases e Pontos'!AA43 ->  | U16: ='Definição de Fases e Pontos'!AB43 ->  | V16: ='Definição de Fases e Pontos'!AC43 -> 0.000 | W16: ='Definição de Fases e Pontos'!AD43 ->  | X16: ='Definição de Fases e Pontos'!AP43 ->  | Y16: ='Definição de Fases e Pontos'!BG43 ->  | Z16: ='Definição de Fases e Pontos'!AQ43 -> 0.000 | AA16: ='Definição de Fases e Pontos'!AR43 -> 0.000 | AB16: ='Definição de Fases e Pontos'!AS43 ->  | AC16: ='Definição de Fases e Pontos'!AT43 ->  | AD16: ='Definição de Fases e Pontos'!AU43 ->  | AE16: ='Definição de Fases e Pontos'!AV43 ->  | AF16: ='Definição de Fases e Pontos'!AW43 -> 0 | AG16: ='Definição de Fases e Pontos'!AX43 ->  | AH16: ='Definição de Fases e Pontos'!O43 ->  | AI16: ='Definição de Fases e Pontos'!AY43 ->  | AJ16: ='Definição de Fases e Pontos'!AZ43 ->  | AK16: ='Definição de Fases e Pontos'!BA43 ->  | AL16: ='Definição de Fases e Pontos'!BB43 ->  | AM16: ='Definição de Fases e Pontos'!P43 ->  | AN16: ='Definição de Fases e Pontos'!BC43 ->  | AO16: ='Definição de Fases e Pontos'!BD43 ->  | AP16: ='Definição de Fases e Pontos'!Q43 ->  | AQ16: ='Definição de Fases e Pontos'!BE43 ->  | AR16: ='Definição de Fases e Pontos'!BF43 ->  | AS16: ='Definição de Fases e Pontos'!BK43 ->  | AT16: ='Definição de Fases e Pontos'!BL43 ->  | AU16: ='Definição de Fases e Pontos'!BM43 ->  | AW16: 0.000
A17: ='Definição de Fases e Pontos'!A44 -> 0.000 | B17: ='Definição de Fases e Pontos'!B44 -> 0.000 | C17: ='Definição de Fases e Pontos'!C44 ->  | D17: ='Definição de Fases e Pontos'!D44 ->  | E17: ='Definição de Fases e Pontos'!E44 ->  | F17: ='Definição de Fases e Pontos'!F44 ->  | G17: ='Definição de Fases e Pontos'!G44 ->  | H17: ='Definição de Fases e Pontos'!H44 ->  | I17: ='Definição de Fases e Pontos'!I44 ->  | J17: ='Definição de Fases e Pontos'!J44 ->  | K17: ='Definição de Fases e Pontos'!R44 ->  | L17: ='Definição de Fases e Pontos'!S44 ->  | M17: ='Definição de Fases e Pontos'!T44 ->  | N17: ='Definição de Fases e Pontos'!U44 ->  | O17: ='Definição de Fases e Pontos'!V44 ->  | P17: ='Definição de Fases e Pontos'!W44 ->  | Q17: ='Definição de Fases e Pontos'!X44 ->  | R17: ='Definição de Fases e Pontos'!Y44 ->  | S17: ='Definição de Fases e Pontos'!Z44 ->  | T17: ='Definição de Fases e Pontos'!AA44 ->  | U17: ='Definição de Fases e Pontos'!AB44 ->  | V17: ='Definição de Fases e Pontos'!AC44 -> 0.000 | W17: ='Definição de Fases e Pontos'!AD44 ->  | X17: ='Definição de Fases e Pontos'!AP44 ->  | Y17: ='Definição de Fases e Pontos'!BG44 ->  | Z17: ='Definição de Fases e Pontos'!AQ44 -> 0.000 | AA17: ='Definição de Fases e Pontos'!AR44 -> 0.000 | AB17: ='Definição de Fases e Pontos'!AS44 ->  | AC17: ='Definição de Fases e Pontos'!AT44 ->  | AD17: ='Definição de Fases e Pontos'!AU44 ->  | AE17: ='Definição de Fases e Pontos'!AV44 ->  | AF17: ='Definição de Fases e Pontos'!AW44 -> 0 | AG17: ='Definição de Fases e Pontos'!AX44 ->  | AH17: ='Definição de Fases e Pontos'!O44 ->  | AI17: ='Definição de Fases e Pontos'!AY44 ->  | AJ17: ='Definição de Fases e Pontos'!AZ44 ->  | AK17: ='Definição de Fases e Pontos'!BA44 ->  | AL17: ='Definição de Fases e Pontos'!BB44 ->  | AM17: ='Definição de Fases e Pontos'!P44 ->  | AN17: ='Definição de Fases e Pontos'!BC44 ->  | AO17: ='Definição de Fases e Pontos'!BD44 ->  | AP17: ='Definição de Fases e Pontos'!Q44 ->  | AQ17: ='Definição de Fases e Pontos'!BE44 ->  | AR17: ='Definição de Fases e Pontos'!BF44 ->  | AS17: ='Definição de Fases e Pontos'!BK44 ->  | AT17: ='Definição de Fases e Pontos'!BL44 ->  | AU17: ='Definição de Fases e Pontos'!BM44 ->  | AW17: 0.000
A18: ='Definição de Fases e Pontos'!A45 -> 0.000 | B18: ='Definição de Fases e Pontos'!B45 -> 0.000 | C18: ='Definição de Fases e Pontos'!C45 ->  | D18: ='Definição de Fases e Pontos'!D45 ->  | E18: ='Definição de Fases e Pontos'!E45 ->  | F18: ='Definição de Fases e Pontos'!F45 ->  | G18: ='Definição de Fases e Pontos'!G45 ->  | H18: ='Definição de Fases e Pontos'!H45 ->  | I18: ='Definição de Fases e Pontos'!I45 ->  | J18: ='Definição de Fases e Pontos'!J45 ->  | K18: ='Definição de Fases e Pontos'!R45 ->  | L18: ='Definição de Fases e Pontos'!S45 ->  | M18: ='Definição de Fases e Pontos'!T45 ->  | N18: ='Definição de Fases e Pontos'!U45 ->  | O18: ='Definição de Fases e Pontos'!V45 ->  | P18: ='Definição de Fases e Pontos'!W45 ->  | Q18: ='Definição de Fases e Pontos'!X45 ->  | R18: ='Definição de Fases e Pontos'!Y45 ->  | S18: ='Definição de Fases e Pontos'!Z45 ->  | T18: ='Definição de Fases e Pontos'!AA45 ->  | U18: ='Definição de Fases e Pontos'!AB45 ->  | V18: ='Definição de Fases e Pontos'!AC45 -> 0.000 | W18: ='Definição de Fases e Pontos'!AD45 ->  | X18: ='Definição de Fases e Pontos'!AP45 ->  | Y18: ='Definição de Fases e Pontos'!BG45 ->  | Z18: ='Definição de Fases e Pontos'!AQ45 -> 0.000 | AA18: ='Definição de Fases e Pontos'!AR45 -> 0.000 | AB18: ='Definição de Fases e Pontos'!AS45 ->  | AC18: ='Definição de Fases e Pontos'!AT45 ->  | AD18: ='Definição de Fases e Pontos'!AU45 ->  | AE18: ='Definição de Fases e Pontos'!AV45 ->  | AF18: ='Definição de Fases e Pontos'!AW45 -> 0 | AG18: ='Definição de Fases e Pontos'!AX45 ->  | AH18: ='Definição de Fases e Pontos'!O45 ->  | AI18: ='Definição de Fases e Pontos'!AY45 ->  | AJ18: ='Definição de Fases e Pontos'!AZ45 ->  | AK18: ='Definição de Fases e Pontos'!BA45 ->  | AL18: ='Definição de Fases e Pontos'!BB45 ->  | AM18: ='Definição de Fases e Pontos'!P45 ->  | AN18: ='Definição de Fases e Pontos'!BC45 ->  | AO18: ='Definição de Fases e Pontos'!BD45 ->  | AP18: ='Definição de Fases e Pontos'!Q45 ->  | AQ18: ='Definição de Fases e Pontos'!BE45 ->  | AR18: ='Definição de Fases e Pontos'!BF45 ->  | AS18: ='Definição de Fases e Pontos'!BK45 ->  | AT18: ='Definição de Fases e Pontos'!BL45 ->  | AU18: ='Definição de Fases e Pontos'!BM45 ->  | AW18: 0.000
A19: ='Definição de Fases e Pontos'!A46 -> 0.000 | B19: ='Definição de Fases e Pontos'!B46 -> 0.000 | C19: ='Definição de Fases e Pontos'!C46 ->  | D19: ='Definição de Fases e Pontos'!D46 ->  | E19: ='Definição de Fases e Pontos'!E46 ->  | F19: ='Definição de Fases e Pontos'!F46 ->  | G19: ='Definição de Fases e Pontos'!G46 ->  | H19: ='Definição de Fases e Pontos'!H46 ->  | I19: ='Definição de Fases e Pontos'!I46 ->  | J19: ='Definição de Fases e Pontos'!J46 ->  | K19: ='Definição de Fases e Pontos'!R46 ->  | L19: ='Definição de Fases e Pontos'!S46 ->  | M19: ='Definição de Fases e Pontos'!T46 ->  | N19: ='Definição de Fases e Pontos'!U46 ->  | O19: ='Definição de Fases e Pontos'!V46 ->  | P19: ='Definição de Fases e Pontos'!W46 ->  | Q19: ='Definição de Fases e Pontos'!X46 ->  | R19: ='Definição de Fases e Pontos'!Y46 ->  | S19: ='Definição de Fases e Pontos'!Z46 ->  | T19: ='Definição de Fases e Pontos'!AA46 ->  | U19: ='Definição de Fases e Pontos'!AB46 ->  | V19: ='Definição de Fases e Pontos'!AC46 -> 0.000 | W19: ='Definição de Fases e Pontos'!AD46 ->  | X19: ='Definição de Fases e Pontos'!AP46 ->  | Y19: ='Definição de Fases e Pontos'!BG46 ->  | Z19: ='Definição de Fases e Pontos'!AQ46 -> 0.000 | AA19: ='Definição de Fases e Pontos'!AR46 -> 0.000 | AB19: ='Definição de Fases e Pontos'!AS46 ->  | AC19: ='Definição de Fases e Pontos'!AT46 ->  | AD19: ='Definição de Fases e Pontos'!AU46 ->  | AE19: ='Definição de Fases e Pontos'!AV46 ->  | AF19: ='Definição de Fases e Pontos'!AW46 -> 0 | AG19: ='Definição de Fases e Pontos'!AX46 ->  | AH19: ='Definição de Fases e Pontos'!O46 ->  | AI19: ='Definição de Fases e Pontos'!AY46 ->  | AJ19: ='Definição de Fases e Pontos'!AZ46 ->  | AK19: ='Definição de Fases e Pontos'!BA46 ->  | AL19: ='Definição de Fases e Pontos'!BB46 ->  | AM19: ='Definição de Fases e Pontos'!P46 ->  | AN19: ='Definição de Fases e Pontos'!BC46 ->  | AO19: ='Definição de Fases e Pontos'!BD46 ->  | AP19: ='Definição de Fases e Pontos'!Q46 ->  | AQ19: ='Definição de Fases e Pontos'!BE46 ->  | AR19: ='Definição de Fases e Pontos'!BF46 ->  | AS19: ='Definição de Fases e Pontos'!BK46 ->  | AT19: ='Definição de Fases e Pontos'!BL46 ->  | AU19: ='Definição de Fases e Pontos'!BM46 ->  | AW19: 0.000
A20: ='Definição de Fases e Pontos'!A47 -> 0.000 | B20: ='Definição de Fases e Pontos'!B47 -> 0.000 | C20: ='Definição de Fases e Pontos'!C47 ->  | D20: ='Definição de Fases e Pontos'!D47 ->  | E20: ='Definição de Fases e Pontos'!E47 ->  | F20: ='Definição de Fases e Pontos'!F47 ->  | G20: ='Definição de Fases e Pontos'!G47 ->  | H20: ='Definição de Fases e Pontos'!H47 ->  | I20: ='Definição de Fases e Pontos'!I47 ->  | J20: ='Definição de Fases e Pontos'!J47 ->  | K20: ='Definição de Fases e Pontos'!R47 ->  | L20: ='Definição de Fases e Pontos'!S47 ->  | M20: ='Definição de Fases e Pontos'!T47 ->  | N20: ='Definição de Fases e Pontos'!U47 ->  | O20: ='Definição de Fases e Pontos'!V47 ->  | P20: ='Definição de Fases e Pontos'!W47 ->  | Q20: ='Definição de Fases e Pontos'!X47 ->  | R20: ='Definição de Fases e Pontos'!Y47 ->  | S20: ='Definição de Fases e Pontos'!Z47 ->  | T20: ='Definição de Fases e Pontos'!AA47 ->  | U20: ='Definição de Fases e Pontos'!AB47 ->  | V20: ='Definição de Fases e Pontos'!AC47 -> 0.000 | W20: ='Definição de Fases e Pontos'!AD47 ->  | X20: ='Definição de Fases e Pontos'!AP47 ->  | Y20: ='Definição de Fases e Pontos'!BG47 ->  | Z20: ='Definição de Fases e Pontos'!AQ47 -> 0.000 | AA20: ='Definição de Fases e Pontos'!AR47 -> 0.000 | AB20: ='Definição de Fases e Pontos'!AS47 ->  | AC20: ='Definição de Fases e Pontos'!AT47 ->  | AD20: ='Definição de Fases e Pontos'!AU47 ->  | AE20: ='Definição de Fases e Pontos'!AV47 ->  | AF20: ='Definição de Fases e Pontos'!AW47 -> 0 | AG20: ='Definição de Fases e Pontos'!AX47 ->  | AH20: ='Definição de Fases e Pontos'!O47 ->  | AI20: ='Definição de Fases e Pontos'!AY47 ->  | AJ20: ='Definição de Fases e Pontos'!AZ47 ->  | AK20: ='Definição de Fases e Pontos'!BA47 ->  | AL20: ='Definição de Fases e Pontos'!BB47 ->  | AM20: ='Definição de Fases e Pontos'!P47 ->  | AN20: ='Definição de Fases e Pontos'!BC47 ->  | AO20: ='Definição de Fases e Pontos'!BD47 ->  | AP20: ='Definição de Fases e Pontos'!Q47 ->  | AQ20: ='Definição de Fases e Pontos'!BE47 ->  | AR20: ='Definição de Fases e Pontos'!BF47 ->  | AS20: ='Definição de Fases e Pontos'!BK47 ->  | AT20: ='Definição de Fases e Pontos'!BL47 ->  | AU20: ='Definição de Fases e Pontos'!BM47 ->  | AW20: 0.000
A21: ='Definição de Fases e Pontos'!A48 -> 0.000 | B21: ='Definição de Fases e Pontos'!B48 -> 0.000 | C21: ='Definição de Fases e Pontos'!C48 ->  | D21: ='Definição de Fases e Pontos'!D48 ->  | E21: ='Definição de Fases e Pontos'!E48 ->  | F21: ='Definição de Fases e Pontos'!F48 ->  | G21: ='Definição de Fases e Pontos'!G48 ->  | H21: ='Definição de Fases e Pontos'!H48 ->  | I21: ='Definição de Fases e Pontos'!I48 ->  | J21: ='Definição de Fases e Pontos'!J48 ->  | K21: ='Definição de Fases e Pontos'!R48 ->  | L21: ='Definição de Fases e Pontos'!S48 ->  | M21: ='Definição de Fases e Pontos'!T48 ->  | N21: ='Definição de Fases e Pontos'!U48 ->  | O21: ='Definição de Fases e Pontos'!V48 ->  | P21: ='Definição de Fases e Pontos'!W48 ->  | Q21: ='Definição de Fases e Pontos'!X48 ->  | R21: ='Definição de Fases e Pontos'!Y48 ->  | S21: ='Definição de Fases e Pontos'!Z48 ->  | T21: ='Definição de Fases e Pontos'!AA48 ->  | U21: ='Definição de Fases e Pontos'!AB48 ->  | V21: ='Definição de Fases e Pontos'!AC48 -> 0.000 | W21: ='Definição de Fases e Pontos'!AD48 ->  | X21: ='Definição de Fases e Pontos'!AP48 ->  | Y21: ='Definição de Fases e Pontos'!BG48 ->  | Z21: ='Definição de Fases e Pontos'!AQ48 -> 0.000 | AA21: ='Definição de Fases e Pontos'!AR48 -> 0.000 | AB21: ='Definição de Fases e Pontos'!AS48 ->  | AC21: ='Definição de Fases e Pontos'!AT48 ->  | AD21: ='Definição de Fases e Pontos'!AU48 ->  | AE21: ='Definição de Fases e Pontos'!AV48 ->  | AF21: ='Definição de Fases e Pontos'!AW48 -> 0 | AG21: ='Definição de Fases e Pontos'!AX48 ->  | AH21: ='Definição de Fases e Pontos'!O48 ->  | AI21: ='Definição de Fases e Pontos'!AY48 ->  | AJ21: ='Definição de Fases e Pontos'!AZ48 ->  | AK21: ='Definição de Fases e Pontos'!BA48 ->  | AL21: ='Definição de Fases e Pontos'!BB48 ->  | AM21: ='Definição de Fases e Pontos'!P48 ->  | AN21: ='Definição de Fases e Pontos'!BC48 ->  | AO21: ='Definição de Fases e Pontos'!BD48 ->  | AP21: ='Definição de Fases e Pontos'!Q48 ->  | AQ21: ='Definição de Fases e Pontos'!BE48 ->  | AR21: ='Definição de Fases e Pontos'!BF48 ->  | AS21: ='Definição de Fases e Pontos'!BK48 ->  | AT21: ='Definição de Fases e Pontos'!BL48 ->  | AU21: ='Definição de Fases e Pontos'!BM48 ->  | AW21: 0.000
A22: ='Definição de Fases e Pontos'!A49 -> 0.000 | B22: ='Definição de Fases e Pontos'!B49 -> 0.000 | C22: ='Definição de Fases e Pontos'!C49 ->  | D22: ='Definição de Fases e Pontos'!D49 ->  | E22: ='Definição de Fases e Pontos'!E49 ->  | F22: ='Definição de Fases e Pontos'!F49 ->  | G22: ='Definição de Fases e Pontos'!G49 ->  | H22: ='Definição de Fases e Pontos'!H49 ->  | I22: ='Definição de Fases e Pontos'!I49 ->  | J22: ='Definição de Fases e Pontos'!J49 ->  | K22: ='Definição de Fases e Pontos'!R49 ->  | L22: ='Definição de Fases e Pontos'!S49 ->  | M22: ='Definição de Fases e Pontos'!T49 ->  | N22: ='Definição de Fases e Pontos'!U49 ->  | O22: ='Definição de Fases e Pontos'!V49 ->  | P22: ='Definição de Fases e Pontos'!W49 ->  | Q22: ='Definição de Fases e Pontos'!X49 ->  | R22: ='Definição de Fases e Pontos'!Y49 ->  | S22: ='Definição de Fases e Pontos'!Z49 ->  | T22: ='Definição de Fases e Pontos'!AA49 ->  | U22: ='Definição de Fases e Pontos'!AB49 ->  | V22: ='Definição de Fases e Pontos'!AC49 -> 0.000 | W22: ='Definição de Fases e Pontos'!AD49 ->  | X22: ='Definição de Fases e Pontos'!AP49 ->  | Y22: ='Definição de Fases e Pontos'!BG49 ->  | Z22: ='Definição de Fases e Pontos'!AQ49 -> 0.000 | AA22: ='Definição de Fases e Pontos'!AR49 -> 0.000 | AB22: ='Definição de Fases e Pontos'!AS49 ->  | AC22: ='Definição de Fases e Pontos'!AT49 ->  | AD22: ='Definição de Fases e Pontos'!AU49 ->  | AE22: ='Definição de Fases e Pontos'!AV49 ->  | AF22: ='Definição de Fases e Pontos'!AW49 -> 0 | AG22: ='Definição de Fases e Pontos'!AX49 ->  | AH22: ='Definição de Fases e Pontos'!O49 ->  | AI22: ='Definição de Fases e Pontos'!AY49 ->  | AJ22: ='Definição de Fases e Pontos'!AZ49 ->  | AK22: ='Definição de Fases e Pontos'!BA49 ->  | AL22: ='Definição de Fases e Pontos'!BB49 ->  | AM22: ='Definição de Fases e Pontos'!P49 ->  | AN22: ='Definição de Fases e Pontos'!BC49 ->  | AO22: ='Definição de Fases e Pontos'!BD49 ->  | AP22: ='Definição de Fases e Pontos'!Q49 ->  | AQ22: ='Definição de Fases e Pontos'!BE49 ->  | AR22: ='Definição de Fases e Pontos'!BF49 ->  | AS22: ='Definição de Fases e Pontos'!BK49 ->  | AT22: ='Definição de Fases e Pontos'!BL49 ->  | AU22: ='Definição de Fases e Pontos'!BM49 ->  | AW22: 0.000
A23: ='Definição de Fases e Pontos'!A50 -> 0.000 | B23: ='Definição de Fases e Pontos'!B50 -> 0.000 | C23: ='Definição de Fases e Pontos'!C50 ->  | D23: ='Definição de Fases e Pontos'!D50 ->  | E23: ='Definição de Fases e Pontos'!E50 ->  | F23: ='Definição de Fases e Pontos'!F50 ->  | G23: ='Definição de Fases e Pontos'!G50 ->  | H23: ='Definição de Fases e Pontos'!H50 ->  | I23: ='Definição de Fases e Pontos'!I50 ->  | J23: ='Definição de Fases e Pontos'!J50 ->  | K23: ='Definição de Fases e Pontos'!R50 ->  | L23: ='Definição de Fases e Pontos'!S50 ->  | M23: ='Definição de Fases e Pontos'!T50 ->  | N23: ='Definição de Fases e Pontos'!U50 ->  | O23: ='Definição de Fases e Pontos'!V50 ->  | P23: ='Definição de Fases e Pontos'!W50 ->  | Q23: ='Definição de Fases e Pontos'!X50 ->  | R23: ='Definição de Fases e Pontos'!Y50 ->  | S23: ='Definição de Fases e Pontos'!Z50 ->  | T23: ='Definição de Fases e Pontos'!AA50 ->  | U23: ='Definição de Fases e Pontos'!AB50 ->  | V23: ='Definição de Fases e Pontos'!AC50 -> 0.000 | W23: ='Definição de Fases e Pontos'!AD50 ->  | X23: ='Definição de Fases e Pontos'!AP50 ->  | Y23: ='Definição de Fases e Pontos'!BG50 ->  | Z23: ='Definição de Fases e Pontos'!AQ50 -> 0.000 | AA23: ='Definição de Fases e Pontos'!AR50 -> 0.000 | AB23: ='Definição de Fases e Pontos'!AS50 ->  | AC23: ='Definição de Fases e Pontos'!AT50 ->  | AD23: ='Definição de Fases e Pontos'!AU50 ->  | AE23: ='Definição de Fases e Pontos'!AV50 ->  | AF23: ='Definição de Fases e Pontos'!AW50 -> 0 | AG23: ='Definição de Fases e Pontos'!AX50 ->  | AH23: ='Definição de Fases e Pontos'!O50 ->  | AI23: ='Definição de Fases e Pontos'!AY50 ->  | AJ23: ='Definição de Fases e Pontos'!AZ50 ->  | AK23: ='Definição de Fases e Pontos'!BA50 ->  | AL23: ='Definição de Fases e Pontos'!BB50 ->  | AM23: ='Definição de Fases e Pontos'!P50 ->  | AN23: ='Definição de Fases e Pontos'!BC50 ->  | AO23: ='Definição de Fases e Pontos'!BD50 ->  | AP23: ='Definição de Fases e Pontos'!Q50 ->  | AQ23: ='Definição de Fases e Pontos'!BE50 ->  | AR23: ='Definição de Fases e Pontos'!BF50 ->  | AS23: ='Definição de Fases e Pontos'!BK50 ->  | AT23: ='Definição de Fases e Pontos'!BL50 ->  | AU23: ='Definição de Fases e Pontos'!BM50 ->  | AW23: 0.000
A24: ='Definição de Fases e Pontos'!A51 -> 0.000 | B24: ='Definição de Fases e Pontos'!B51 -> 0.000 | C24: ='Definição de Fases e Pontos'!C51 ->  | D24: ='Definição de Fases e Pontos'!D51 ->  | E24: ='Definição de Fases e Pontos'!E51 ->  | F24: ='Definição de Fases e Pontos'!F51 ->  | G24: ='Definição de Fases e Pontos'!G51 ->  | H24: ='Definição de Fases e Pontos'!H51 ->  | I24: ='Definição de Fases e Pontos'!I51 ->  | J24: ='Definição de Fases e Pontos'!J51 ->  | K24: ='Definição de Fases e Pontos'!R51 ->  | L24: ='Definição de Fases e Pontos'!S51 ->  | M24: ='Definição de Fases e Pontos'!T51 ->  | N24: ='Definição de Fases e Pontos'!U51 ->  | O24: ='Definição de Fases e Pontos'!V51 ->  | P24: ='Definição de Fases e Pontos'!W51 ->  | Q24: ='Definição de Fases e Pontos'!X51 ->  | R24: ='Definição de Fases e Pontos'!Y51 ->  | S24: ='Definição de Fases e Pontos'!Z51 ->  | T24: ='Definição de Fases e Pontos'!AA51 ->  | U24: ='Definição de Fases e Pontos'!AB51 ->  | V24: ='Definição de Fases e Pontos'!AC51 -> 0.000 | W24: ='Definição de Fases e Pontos'!AD51 ->  | X24: ='Definição de Fases e Pontos'!AP51 ->  | Y24: ='Definição de Fases e Pontos'!BG51 ->  | Z24: ='Definição de Fases e Pontos'!AQ51 -> 0.000 | AA24: ='Definição de Fases e Pontos'!AR51 -> 0.000 | AB24: ='Definição de Fases e Pontos'!AS51 ->  | AC24: ='Definição de Fases e Pontos'!AT51 ->  | AD24: ='Definição de Fases e Pontos'!AU51 ->  | AE24: ='Definição de Fases e Pontos'!AV51 ->  | AF24: ='Definição de Fases e Pontos'!AW51 -> 0 | AG24: ='Definição de Fases e Pontos'!AX51 ->  | AH24: ='Definição de Fases e Pontos'!O51 ->  | AI24: ='Definição de Fases e Pontos'!AY51 ->  | AJ24: ='Definição de Fases e Pontos'!AZ51 ->  | AK24: ='Definição de Fases e Pontos'!BA51 ->  | AL24: ='Definição de Fases e Pontos'!BB51 ->  | AM24: ='Definição de Fases e Pontos'!P51 ->  | AN24: ='Definição de Fases e Pontos'!BC51 ->  | AO24: ='Definição de Fases e Pontos'!BD51 ->  | AP24: ='Definição de Fases e Pontos'!Q51 ->  | AQ24: ='Definição de Fases e Pontos'!BE51 ->  | AR24: ='Definição de Fases e Pontos'!BF51 ->  | AS24: ='Definição de Fases e Pontos'!BK51 ->  | AT24: ='Definição de Fases e Pontos'!BL51 ->  | AU24: ='Definição de Fases e Pontos'!BM51 ->  | AW24: 0.000
A25: ='Definição de Fases e Pontos'!A52 -> 0.000 | B25: ='Definição de Fases e Pontos'!B52 -> 0.000 | C25: ='Definição de Fases e Pontos'!C52 ->  | D25: ='Definição de Fases e Pontos'!D52 ->  | E25: ='Definição de Fases e Pontos'!E52 ->  | F25: ='Definição de Fases e Pontos'!F52 ->  | G25: ='Definição de Fases e Pontos'!G52 ->  | H25: ='Definição de Fases e Pontos'!H52 ->  | I25: ='Definição de Fases e Pontos'!I52 ->  | J25: ='Definição de Fases e Pontos'!J52 ->  | K25: ='Definição de Fases e Pontos'!R52 ->  | L25: ='Definição de Fases e Pontos'!S52 ->  | M25: ='Definição de Fases e Pontos'!T52 ->  | N25: ='Definição de Fases e Pontos'!U52 ->  | O25: ='Definição de Fases e Pontos'!V52 ->  | P25: ='Definição de Fases e Pontos'!W52 ->  | Q25: ='Definição de Fases e Pontos'!X52 ->  | R25: ='Definição de Fases e Pontos'!Y52 ->  | S25: ='Definição de Fases e Pontos'!Z52 ->  | T25: ='Definição de Fases e Pontos'!AA52 ->  | U25: ='Definição de Fases e Pontos'!AB52 ->  | V25: ='Definição de Fases e Pontos'!AC52 -> 0.000 | W25: ='Definição de Fases e Pontos'!AD52 ->  | X25: ='Definição de Fases e Pontos'!AP52 ->  | Y25: ='Definição de Fases e Pontos'!BG52 ->  | Z25: ='Definição de Fases e Pontos'!AQ52 -> 0.000 | AA25: ='Definição de Fases e Pontos'!AR52 -> 0.000 | AB25: ='Definição de Fases e Pontos'!AS52 ->  | AC25: ='Definição de Fases e Pontos'!AT52 ->  | AD25: ='Definição de Fases e Pontos'!AU52 ->  | AE25: ='Definição de Fases e Pontos'!AV52 ->  | AF25: ='Definição de Fases e Pontos'!AW52 -> 0 | AG25: ='Definição de Fases e Pontos'!AX52 ->  | AH25: ='Definição de Fases e Pontos'!O52 ->  | AI25: ='Definição de Fases e Pontos'!AY52 ->  | AJ25: ='Definição de Fases e Pontos'!AZ52 ->  | AK25: ='Definição de Fases e Pontos'!BA52 ->  | AL25: ='Definição de Fases e Pontos'!BB52 ->  | AM25: ='Definição de Fases e Pontos'!P52 ->  | AN25: ='Definição de Fases e Pontos'!BC52 ->  | AO25: ='Definição de Fases e Pontos'!BD52 ->  | AP25: ='Definição de Fases e Pontos'!Q52 ->  | AQ25: ='Definição de Fases e Pontos'!BE52 ->  | AR25: ='Definição de Fases e Pontos'!BF52 ->  | AS25: ='Definição de Fases e Pontos'!BK52 ->  | AT25: ='Definição de Fases e Pontos'!BL52 ->  | AU25: ='Definição de Fases e Pontos'!BM52 ->  | AW25: 0.000
A26: ='Definição de Fases e Pontos'!A53 -> 0.000 | B26: ='Definição de Fases e Pontos'!B53 -> 0.000 | C26: ='Definição de Fases e Pontos'!C53 ->  | D26: ='Definição de Fases e Pontos'!D53 ->  | E26: ='Definição de Fases e Pontos'!E53 ->  | F26: ='Definição de Fases e Pontos'!F53 ->  | G26: ='Definição de Fases e Pontos'!G53 ->  | H26: ='Definição de Fases e Pontos'!H53 ->  | I26: ='Definição de Fases e Pontos'!I53 ->  | J26: ='Definição de Fases e Pontos'!J53 ->  | K26: ='Definição de Fases e Pontos'!R53 ->  | L26: ='Definição de Fases e Pontos'!S53 ->  | M26: ='Definição de Fases e Pontos'!T53 ->  | N26: ='Definição de Fases e Pontos'!U53 ->  | O26: ='Definição de Fases e Pontos'!V53 ->  | P26: ='Definição de Fases e Pontos'!W53 ->  | Q26: ='Definição de Fases e Pontos'!X53 ->  | R26: ='Definição de Fases e Pontos'!Y53 ->  | S26: ='Definição de Fases e Pontos'!Z53 ->  | T26: ='Definição de Fases e Pontos'!AA53 ->  | U26: ='Definição de Fases e Pontos'!AB53 ->  | V26: ='Definição de Fases e Pontos'!AC53 -> 0.000 | W26: ='Definição de Fases e Pontos'!AD53 ->  | X26: ='Definição de Fases e Pontos'!AP53 ->  | Y26: ='Definição de Fases e Pontos'!BG53 ->  | Z26: ='Definição de Fases e Pontos'!AQ53 -> 0.000 | AA26: ='Definição de Fases e Pontos'!AR53 -> 0.000 | AB26: ='Definição de Fases e Pontos'!AS53 ->  | AC26: ='Definição de Fases e Pontos'!AT53 ->  | AD26: ='Definição de Fases e Pontos'!AU53 ->  | AE26: ='Definição de Fases e Pontos'!AV53 ->  | AF26: ='Definição de Fases e Pontos'!AW53 -> 0 | AG26: ='Definição de Fases e Pontos'!AX53 ->  | AH26: ='Definição de Fases e Pontos'!O53 ->  | AI26: ='Definição de Fases e Pontos'!AY53 ->  | AJ26: ='Definição de Fases e Pontos'!AZ53 ->  | AK26: ='Definição de Fases e Pontos'!BA53 ->  | AL26: ='Definição de Fases e Pontos'!BB53 ->  | AM26: ='Definição de Fases e Pontos'!P53 ->  | AN26: ='Definição de Fases e Pontos'!BC53 ->  | AO26: ='Definição de Fases e Pontos'!BD53 ->  | AP26: ='Definição de Fases e Pontos'!Q53 ->  | AQ26: ='Definição de Fases e Pontos'!BE53 ->  | AR26: ='Definição de Fases e Pontos'!BF53 ->  | AS26: ='Definição de Fases e Pontos'!BK53 ->  | AT26: ='Definição de Fases e Pontos'!BL53 ->  | AU26: ='Definição de Fases e Pontos'!BM53 ->  | AW26: 0.000
A27: ='Definição de Fases e Pontos'!A54 -> 0.000 | B27: ='Definição de Fases e Pontos'!B54 -> 0.000 | C27: ='Definição de Fases e Pontos'!C54 ->  | D27: ='Definição de Fases e Pontos'!D54 ->  | E27: ='Definição de Fases e Pontos'!E54 ->  | F27: ='Definição de Fases e Pontos'!F54 ->  | G27: ='Definição de Fases e Pontos'!G54 ->  | H27: ='Definição de Fases e Pontos'!H54 ->  | I27: ='Definição de Fases e Pontos'!I54 ->  | J27: ='Definição de Fases e Pontos'!J54 ->  | K27: ='Definição de Fases e Pontos'!R54 ->  | L27: ='Definição de Fases e Pontos'!S54 ->  | M27: ='Definição de Fases e Pontos'!T54 ->  | N27: ='Definição de Fases e Pontos'!U54 ->  | O27: ='Definição de Fases e Pontos'!V54 ->  | P27: ='Definição de Fases e Pontos'!W54 ->  | Q27: ='Definição de Fases e Pontos'!X54 ->  | R27: ='Definição de Fases e Pontos'!Y54 ->  | S27: ='Definição de Fases e Pontos'!Z54 ->  | T27: ='Definição de Fases e Pontos'!AA54 ->  | U27: ='Definição de Fases e Pontos'!AB54 ->  | V27: ='Definição de Fases e Pontos'!AC54 -> 0.000 | W27: ='Definição de Fases e Pontos'!AD54 ->  | X27: ='Definição de Fases e Pontos'!AP54 ->  | Y27: ='Definição de Fases e Pontos'!BG54 ->  | Z27: ='Definição de Fases e Pontos'!AQ54 -> 0.000 | AA27: ='Definição de Fases e Pontos'!AR54 -> 0.000 | AB27: ='Definição de Fases e Pontos'!AS54 ->  | AC27: ='Definição de Fases e Pontos'!AT54 ->  | AD27: ='Definição de Fases e Pontos'!AU54 ->  | AE27: ='Definição de Fases e Pontos'!AV54 ->  | AF27: ='Definição de Fases e Pontos'!AW54 -> 0 | AG27: ='Definição de Fases e Pontos'!AX54 ->  | AH27: ='Definição de Fases e Pontos'!O54 ->  | AI27: ='Definição de Fases e Pontos'!AY54 ->  | AJ27: ='Definição de Fases e Pontos'!AZ54 ->  | AK27: ='Definição de Fases e Pontos'!BA54 ->  | AL27: ='Definição de Fases e Pontos'!BB54 ->  | AM27: ='Definição de Fases e Pontos'!P54 ->  | AN27: ='Definição de Fases e Pontos'!BC54 ->  | AO27: ='Definição de Fases e Pontos'!BD54 ->  | AP27: ='Definição de Fases e Pontos'!Q54 ->  | AQ27: ='Definição de Fases e Pontos'!BE54 ->  | AR27: ='Definição de Fases e Pontos'!BF54 ->  | AS27: ='Definição de Fases e Pontos'!BK54 ->  | AT27: ='Definição de Fases e Pontos'!BL54 ->  | AU27: ='Definição de Fases e Pontos'!BM54 ->  | AW27: 0.000
A28: ='Definição de Fases e Pontos'!A55 -> 0.000 | B28: ='Definição de Fases e Pontos'!B55 -> 0.000 | C28: ='Definição de Fases e Pontos'!C55 ->  | D28: ='Definição de Fases e Pontos'!D55 ->  | E28: ='Definição de Fases e Pontos'!E55 ->  | F28: ='Definição de Fases e Pontos'!F55 ->  | G28: ='Definição de Fases e Pontos'!G55 ->  | H28: ='Definição de Fases e Pontos'!H55 ->  | I28: ='Definição de Fases e Pontos'!I55 ->  | J28: ='Definição de Fases e Pontos'!J55 ->  | K28: ='Definição de Fases e Pontos'!R55 ->  | L28: ='Definição de Fases e Pontos'!S55 ->  | M28: ='Definição de Fases e Pontos'!T55 ->  | N28: ='Definição de Fases e Pontos'!U55 ->  | O28: ='Definição de Fases e Pontos'!V55 ->  | P28: ='Definição de Fases e Pontos'!W55 ->  | Q28: ='Definição de Fases e Pontos'!X55 ->  | R28: ='Definição de Fases e Pontos'!Y55 ->  | S28: ='Definição de Fases e Pontos'!Z55 ->  | T28: ='Definição de Fases e Pontos'!AA55 ->  | U28: ='Definição de Fases e Pontos'!AB55 ->  | V28: ='Definição de Fases e Pontos'!AC55 -> 0.000 | W28: ='Definição de Fases e Pontos'!AD55 ->  | X28: ='Definição de Fases e Pontos'!AP55 ->  | Y28: ='Definição de Fases e Pontos'!BG55 ->  | Z28: ='Definição de Fases e Pontos'!AQ55 -> 0.000 | AA28: ='Definição de Fases e Pontos'!AR55 -> 0.000 | AB28: ='Definição de Fases e Pontos'!AS55 ->  | AC28: ='Definição de Fases e Pontos'!AT55 ->  | AD28: ='Definição de Fases e Pontos'!AU55 ->  | AE28: ='Definição de Fases e Pontos'!AV55 ->  | AF28: ='Definição de Fases e Pontos'!AW55 -> 0 | AG28: ='Definição de Fases e Pontos'!AX55 ->  | AH28: ='Definição de Fases e Pontos'!O55 ->  | AI28: ='Definição de Fases e Pontos'!AY55 ->  | AJ28: ='Definição de Fases e Pontos'!AZ55 ->  | AK28: ='Definição de Fases e Pontos'!BA55 ->  | AL28: ='Definição de Fases e Pontos'!BB55 ->  | AM28: ='Definição de Fases e Pontos'!P55 ->  | AN28: ='Definição de Fases e Pontos'!BC55 ->  | AO28: ='Definição de Fases e Pontos'!BD55 ->  | AP28: ='Definição de Fases e Pontos'!Q55 ->  | AQ28: ='Definição de Fases e Pontos'!BE55 ->  | AR28: ='Definição de Fases e Pontos'!BF55 ->  | AS28: ='Definição de Fases e Pontos'!BK55 ->  | AT28: ='Definição de Fases e Pontos'!BL55 ->  | AU28: ='Definição de Fases e Pontos'!BM55 ->  | AW28: 0.000
A29: ='Definição de Fases e Pontos'!A56 -> 0.000 | B29: ='Definição de Fases e Pontos'!B56 -> 0.000 | C29: ='Definição de Fases e Pontos'!C56 ->  | D29: ='Definição de Fases e Pontos'!D56 ->  | E29: ='Definição de Fases e Pontos'!E56 ->  | F29: ='Definição de Fases e Pontos'!F56 ->  | G29: ='Definição de Fases e Pontos'!G56 ->  | H29: ='Definição de Fases e Pontos'!H56 ->  | I29: ='Definição de Fases e Pontos'!I56 ->  | J29: ='Definição de Fases e Pontos'!J56 ->  | K29: ='Definição de Fases e Pontos'!R56 ->  | L29: ='Definição de Fases e Pontos'!S56 ->  | M29: ='Definição de Fases e Pontos'!T56 ->  | N29: ='Definição de Fases e Pontos'!U56 ->  | O29: ='Definição de Fases e Pontos'!V56 ->  | P29: ='Definição de Fases e Pontos'!W56 ->  | Q29: ='Definição de Fases e Pontos'!X56 ->  | R29: ='Definição de Fases e Pontos'!Y56 ->  | S29: ='Definição de Fases e Pontos'!Z56 ->  | T29: ='Definição de Fases e Pontos'!AA56 ->  | U29: ='Definição de Fases e Pontos'!AB56 ->  | V29: ='Definição de Fases e Pontos'!AC56 -> 0.000 | W29: ='Definição de Fases e Pontos'!AD56 ->  | X29: ='Definição de Fases e Pontos'!AP56 ->  | Y29: ='Definição de Fases e Pontos'!BG56 ->  | Z29: ='Definição de Fases e Pontos'!AQ56 -> 0.000 | AA29: ='Definição de Fases e Pontos'!AR56 -> 0.000 | AB29: ='Definição de Fases e Pontos'!AS56 ->  | AC29: ='Definição de Fases e Pontos'!AT56 ->  | AD29: ='Definição de Fases e Pontos'!AU56 ->  | AE29: ='Definição de Fases e Pontos'!AV56 ->  | AF29: ='Definição de Fases e Pontos'!AW56 -> 0 | AG29: ='Definição de Fases e Pontos'!AX56 ->  | AH29: ='Definição de Fases e Pontos'!O56 ->  | AI29: ='Definição de Fases e Pontos'!AY56 ->  | AJ29: ='Definição de Fases e Pontos'!AZ56 ->  | AK29: ='Definição de Fases e Pontos'!BA56 ->  | AL29: ='Definição de Fases e Pontos'!BB56 ->  | AM29: ='Definição de Fases e Pontos'!P56 ->  | AN29: ='Definição de Fases e Pontos'!BC56 ->  | AO29: ='Definição de Fases e Pontos'!BD56 ->  | AP29: ='Definição de Fases e Pontos'!Q56 ->  | AQ29: ='Definição de Fases e Pontos'!BE56 ->  | AR29: ='Definição de Fases e Pontos'!BF56 ->  | AS29: ='Definição de Fases e Pontos'!BK56 ->  | AT29: ='Definição de Fases e Pontos'!BL56 ->  | AU29: ='Definição de Fases e Pontos'!BM56 ->  | AW29: 0.000
A30: ='Definição de Fases e Pontos'!A57 -> 0.000 | B30: ='Definição de Fases e Pontos'!B57 -> 0.000 | C30: ='Definição de Fases e Pontos'!C57 ->  | D30: ='Definição de Fases e Pontos'!D57 ->  | E30: ='Definição de Fases e Pontos'!E57 ->  | F30: ='Definição de Fases e Pontos'!F57 ->  | G30: ='Definição de Fases e Pontos'!G57 ->  | H30: ='Definição de Fases e Pontos'!H57 ->  | I30: ='Definição de Fases e Pontos'!I57 ->  | J30: ='Definição de Fases e Pontos'!J57 ->  | K30: ='Definição de Fases e Pontos'!R57 ->  | L30: ='Definição de Fases e Pontos'!S57 ->  | M30: ='Definição de Fases e Pontos'!T57 ->  | N30: ='Definição de Fases e Pontos'!U57 ->  | O30: ='Definição de Fases e Pontos'!V57 ->  | P30: ='Definição de Fases e Pontos'!W57 ->  | Q30: ='Definição de Fases e Pontos'!X57 ->  | R30: ='Definição de Fases e Pontos'!Y57 ->  | S30: ='Definição de Fases e Pontos'!Z57 ->  | T30: ='Definição de Fases e Pontos'!AA57 ->  | U30: ='Definição de Fases e Pontos'!AB57 ->  | V30: ='Definição de Fases e Pontos'!AC57 -> 0.000 | W30: ='Definição de Fases e Pontos'!AD57 ->  | X30: ='Definição de Fases e Pontos'!AP57 ->  | Y30: ='Definição de Fases e Pontos'!BG57 ->  | Z30: ='Definição de Fases e Pontos'!AQ57 -> 0.000 | AA30: ='Definição de Fases e Pontos'!AR57 -> 0.000 | AB30: ='Definição de Fases e Pontos'!AS57 ->  | AC30: ='Definição de Fases e Pontos'!AT57 ->  | AD30: ='Definição de Fases e Pontos'!AU57 ->  | AE30: ='Definição de Fases e Pontos'!AV57 ->  | AF30: ='Definição de Fases e Pontos'!AW57 -> 0 | AG30: ='Definição de Fases e Pontos'!AX57 ->  | AH30: ='Definição de Fases e Pontos'!O57 ->  | AI30: ='Definição de Fases e Pontos'!AY57 ->  | AJ30: ='Definição de Fases e Pontos'!AZ57 ->  | AK30: ='Definição de Fases e Pontos'!BA57 ->  | AL30: ='Definição de Fases e Pontos'!BB57 ->  | AM30: ='Definição de Fases e Pontos'!P57 ->  | AN30: ='Definição de Fases e Pontos'!BC57 ->  | AO30: ='Definição de Fases e Pontos'!BD57 ->  | AP30: ='Definição de Fases e Pontos'!Q57 ->  | AQ30: ='Definição de Fases e Pontos'!BE57 ->  | AR30: ='Definição de Fases e Pontos'!BF57 ->  | AS30: ='Definição de Fases e Pontos'!BK57 ->  | AT30: ='Definição de Fases e Pontos'!BL57 ->  | AU30: ='Definição de Fases e Pontos'!BM57 ->  | AW30: 0.000
A31: ='Definição de Fases e Pontos'!A58 -> 0.000 | B31: ='Definição de Fases e Pontos'!B58 -> 0.000 | C31: ='Definição de Fases e Pontos'!C58 ->  | D31: ='Definição de Fases e Pontos'!D58 ->  | E31: ='Definição de Fases e Pontos'!E58 ->  | F31: ='Definição de Fases e Pontos'!F58 ->  | G31: ='Definição de Fases e Pontos'!G58 ->  | H31: ='Definição de Fases e Pontos'!H58 ->  | I31: ='Definição de Fases e Pontos'!I58 ->  | J31: ='Definição de Fases e Pontos'!J58 ->  | K31: ='Definição de Fases e Pontos'!R58 ->  | L31: ='Definição de Fases e Pontos'!S58 ->  | M31: ='Definição de Fases e Pontos'!T58 ->  | N31: ='Definição de Fases e Pontos'!U58 ->  | O31: ='Definição de Fases e Pontos'!V58 ->  | P31: ='Definição de Fases e Pontos'!W58 ->  | Q31: ='Definição de Fases e Pontos'!X58 ->  | R31: ='Definição de Fases e Pontos'!Y58 ->  | S31: ='Definição de Fases e Pontos'!Z58 ->  | T31: ='Definição de Fases e Pontos'!AA58 ->  | U31: ='Definição de Fases e Pontos'!AB58 ->  | V31: ='Definição de Fases e Pontos'!AC58 -> 0.000 | W31: ='Definição de Fases e Pontos'!AD58 ->  | X31: ='Definição de Fases e Pontos'!AP58 ->  | Y31: ='Definição de Fases e Pontos'!BG58 ->  | Z31: ='Definição de Fases e Pontos'!AQ58 -> 0.000 | AA31: ='Definição de Fases e Pontos'!AR58 -> 0.000 | AB31: ='Definição de Fases e Pontos'!AS58 ->  | AC31: ='Definição de Fases e Pontos'!AT58 ->  | AD31: ='Definição de Fases e Pontos'!AU58 ->  | AE31: ='Definição de Fases e Pontos'!AV58 ->  | AF31: ='Definição de Fases e Pontos'!AW58 -> 0 | AG31: ='Definição de Fases e Pontos'!AX58 ->  | AH31: ='Definição de Fases e Pontos'!O58 ->  | AI31: ='Definição de Fases e Pontos'!AY58 ->  | AJ31: ='Definição de Fases e Pontos'!AZ58 ->  | AK31: ='Definição de Fases e Pontos'!BA58 ->  | AL31: ='Definição de Fases e Pontos'!BB58 ->  | AM31: ='Definição de Fases e Pontos'!P58 ->  | AN31: ='Definição de Fases e Pontos'!BC58 ->  | AO31: ='Definição de Fases e Pontos'!BD58 ->  | AP31: ='Definição de Fases e Pontos'!Q58 ->  | AQ31: ='Definição de Fases e Pontos'!BE58 ->  | AR31: ='Definição de Fases e Pontos'!BF58 ->  | AS31: ='Definição de Fases e Pontos'!BK58 ->  | AT31: ='Definição de Fases e Pontos'!BL58 ->  | AU31: ='Definição de Fases e Pontos'!BM58 ->  | AW31: 0.000
A32: ='Definição de Fases e Pontos'!A59 -> 0.000 | B32: ='Definição de Fases e Pontos'!B59 -> 0.000 | C32: ='Definição de Fases e Pontos'!C59 ->  | D32: ='Definição de Fases e Pontos'!D59 ->  | E32: ='Definição de Fases e Pontos'!E59 ->  | F32: ='Definição de Fases e Pontos'!F59 ->  | G32: ='Definição de Fases e Pontos'!G59 ->  | H32: ='Definição de Fases e Pontos'!H59 ->  | I32: ='Definição de Fases e Pontos'!I59 ->  | J32: ='Definição de Fases e Pontos'!J59 ->  | K32: ='Definição de Fases e Pontos'!R59 ->  | L32: ='Definição de Fases e Pontos'!S59 ->  | M32: ='Definição de Fases e Pontos'!T59 ->  | N32: ='Definição de Fases e Pontos'!U59 ->  | O32: ='Definição de Fases e Pontos'!V59 ->  | P32: ='Definição de Fases e Pontos'!W59 ->  | Q32: ='Definição de Fases e Pontos'!X59 ->  | R32: ='Definição de Fases e Pontos'!Y59 ->  | S32: ='Definição de Fases e Pontos'!Z59 ->  | T32: ='Definição de Fases e Pontos'!AA59 ->  | U32: ='Definição de Fases e Pontos'!AB59 ->  | V32: ='Definição de Fases e Pontos'!AC59 -> 0.000 | W32: ='Definição de Fases e Pontos'!AD59 ->  | X32: ='Definição de Fases e Pontos'!AP59 ->  | Y32: ='Definição de Fases e Pontos'!BG59 ->  | Z32: ='Definição de Fases e Pontos'!AQ59 -> 0.000 | AA32: ='Definição de Fases e Pontos'!AR59 -> 0.000 | AB32: ='Definição de Fases e Pontos'!AS59 ->  | AC32: ='Definição de Fases e Pontos'!AT59 ->  | AD32: ='Definição de Fases e Pontos'!AU59 ->  | AE32: ='Definição de Fases e Pontos'!AV59 ->  | AF32: ='Definição de Fases e Pontos'!AW59 -> 0 | AG32: ='Definição de Fases e Pontos'!AX59 ->  | AH32: ='Definição de Fases e Pontos'!O59 ->  | AI32: ='Definição de Fases e Pontos'!AY59 ->  | AJ32: ='Definição de Fases e Pontos'!AZ59 ->  | AK32: ='Definição de Fases e Pontos'!BA59 ->  | AL32: ='Definição de Fases e Pontos'!BB59 ->  | AM32: ='Definição de Fases e Pontos'!P59 ->  | AN32: ='Definição de Fases e Pontos'!BC59 ->  | AO32: ='Definição de Fases e Pontos'!BD59 ->  | AP32: ='Definição de Fases e Pontos'!Q59 ->  | AQ32: ='Definição de Fases e Pontos'!BE59 ->  | AR32: ='Definição de Fases e Pontos'!BF59 ->  | AS32: ='Definição de Fases e Pontos'!BK59 ->  | AT32: ='Definição de Fases e Pontos'!BL59 ->  | AU32: ='Definição de Fases e Pontos'!BM59 ->  | AW32: 0.000
A33: ='Definição de Fases e Pontos'!A60 -> 0.000 | B33: ='Definição de Fases e Pontos'!B60 -> 0.000 | C33: ='Definição de Fases e Pontos'!C60 ->  | D33: ='Definição de Fases e Pontos'!D60 ->  | E33: ='Definição de Fases e Pontos'!E60 ->  | F33: ='Definição de Fases e Pontos'!F60 ->  | G33: ='Definição de Fases e Pontos'!G60 ->  | H33: ='Definição de Fases e Pontos'!H60 ->  | I33: ='Definição de Fases e Pontos'!I60 ->  | J33: ='Definição de Fases e Pontos'!J60 ->  | K33: ='Definição de Fases e Pontos'!R60 ->  | L33: ='Definição de Fases e Pontos'!S60 ->  | M33: ='Definição de Fases e Pontos'!T60 ->  | N33: ='Definição de Fases e Pontos'!U60 ->  | O33: ='Definição de Fases e Pontos'!V60 ->  | P33: ='Definição de Fases e Pontos'!W60 ->  | Q33: ='Definição de Fases e Pontos'!X60 ->  | R33: ='Definição de Fases e Pontos'!Y60 ->  | S33: ='Definição de Fases e Pontos'!Z60 ->  | T33: ='Definição de Fases e Pontos'!AA60 ->  | U33: ='Definição de Fases e Pontos'!AB60 ->  | V33: ='Definição de Fases e Pontos'!AC60 -> 0.000 | W33: ='Definição de Fases e Pontos'!AD60 ->  | X33: ='Definição de Fases e Pontos'!AP60 ->  | Y33: ='Definição de Fases e Pontos'!BG60 ->  | Z33: ='Definição de Fases e Pontos'!AQ60 -> 0.000 | AA33: ='Definição de Fases e Pontos'!AR60 -> 0.000 | AB33: ='Definição de Fases e Pontos'!AS60 ->  | AC33: ='Definição de Fases e Pontos'!AT60 ->  | AD33: ='Definição de Fases e Pontos'!AU60 ->  | AE33: ='Definição de Fases e Pontos'!AV60 ->  | AF33: ='Definição de Fases e Pontos'!AW60 -> 0 | AG33: ='Definição de Fases e Pontos'!AX60 ->  | AH33: ='Definição de Fases e Pontos'!O60 ->  | AI33: ='Definição de Fases e Pontos'!AY60 ->  | AJ33: ='Definição de Fases e Pontos'!AZ60 ->  | AK33: ='Definição de Fases e Pontos'!BA60 ->  | AL33: ='Definição de Fases e Pontos'!BB60 ->  | AM33: ='Definição de Fases e Pontos'!P60 ->  | AN33: ='Definição de Fases e Pontos'!BC60 ->  | AO33: ='Definição de Fases e Pontos'!BD60 ->  | AP33: ='Definição de Fases e Pontos'!Q60 ->  | AQ33: ='Definição de Fases e Pontos'!BE60 ->  | AR33: ='Definição de Fases e Pontos'!BF60 ->  | AS33: ='Definição de Fases e Pontos'!BK60 ->  | AT33: ='Definição de Fases e Pontos'!BL60 ->  | AU33: ='Definição de Fases e Pontos'!BM60 ->  | AW33: 0.000
A34: ='Definição de Fases e Pontos'!A61 -> 0.000 | B34: ='Definição de Fases e Pontos'!B61 -> 0.000 | C34: ='Definição de Fases e Pontos'!C61 ->  | D34: ='Definição de Fases e Pontos'!D61 ->  | E34: ='Definição de Fases e Pontos'!E61 ->  | F34: ='Definição de Fases e Pontos'!F61 ->  | G34: ='Definição de Fases e Pontos'!G61 ->  | H34: ='Definição de Fases e Pontos'!H61 ->  | I34: ='Definição de Fases e Pontos'!I61 ->  | J34: ='Definição de Fases e Pontos'!J61 ->  | K34: ='Definição de Fases e Pontos'!R61 ->  | L34: ='Definição de Fases e Pontos'!S61 ->  | M34: ='Definição de Fases e Pontos'!T61 ->  | N34: ='Definição de Fases e Pontos'!U61 ->  | O34: ='Definição de Fases e Pontos'!V61 ->  | P34: ='Definição de Fases e Pontos'!W61 ->  | Q34: ='Definição de Fases e Pontos'!X61 ->  | R34: ='Definição de Fases e Pontos'!Y61 ->  | S34: ='Definição de Fases e Pontos'!Z61 ->  | T34: ='Definição de Fases e Pontos'!AA61 ->  | U34: ='Definição de Fases e Pontos'!AB61 ->  | V34: ='Definição de Fases e Pontos'!AC61 -> 0.000 | W34: ='Definição de Fases e Pontos'!AD61 ->  | X34: ='Definição de Fases e Pontos'!AP61 ->  | Y34: ='Definição de Fases e Pontos'!BG61 ->  | Z34: ='Definição de Fases e Pontos'!AQ61 -> 0.000 | AA34: ='Definição de Fases e Pontos'!AR61 -> 0.000 | AB34: ='Definição de Fases e Pontos'!AS61 ->  | AC34: ='Definição de Fases e Pontos'!AT61 ->  | AD34: ='Definição de Fases e Pontos'!AU61 ->  | AE34: ='Definição de Fases e Pontos'!AV61 ->  | AF34: ='Definição de Fases e Pontos'!AW61 -> 0 | AG34: ='Definição de Fases e Pontos'!AX61 ->  | AH34: ='Definição de Fases e Pontos'!O61 ->  | AI34: ='Definição de Fases e Pontos'!AY61 ->  | AJ34: ='Definição de Fases e Pontos'!AZ61 ->  | AK34: ='Definição de Fases e Pontos'!BA61 ->  | AL34: ='Definição de Fases e Pontos'!BB61 ->  | AM34: ='Definição de Fases e Pontos'!P61 ->  | AN34: ='Definição de Fases e Pontos'!BC61 ->  | AO34: ='Definição de Fases e Pontos'!BD61 ->  | AP34: ='Definição de Fases e Pontos'!Q61 ->  | AQ34: ='Definição de Fases e Pontos'!BE61 ->  | AR34: ='Definição de Fases e Pontos'!BF61 ->  | AS34: ='Definição de Fases e Pontos'!BK61 ->  | AT34: ='Definição de Fases e Pontos'!BL61 ->  | AU34: ='Definição de Fases e Pontos'!BM61 ->  | AW34: 0.000
A35: ='Definição de Fases e Pontos'!A62 -> 0.000 | B35: ='Definição de Fases e Pontos'!B62 -> 0.000 | C35: ='Definição de Fases e Pontos'!C62 ->  | D35: ='Definição de Fases e Pontos'!D62 ->  | E35: ='Definição de Fases e Pontos'!E62 ->  | F35: ='Definição de Fases e Pontos'!F62 ->  | G35: ='Definição de Fases e Pontos'!G62 ->  | H35: ='Definição de Fases e Pontos'!H62 ->  | I35: ='Definição de Fases e Pontos'!I62 ->  | J35: ='Definição de Fases e Pontos'!J62 ->  | K35: ='Definição de Fases e Pontos'!R62 ->  | L35: ='Definição de Fases e Pontos'!S62 ->  | M35: ='Definição de Fases e Pontos'!T62 ->  | N35: ='Definição de Fases e Pontos'!U62 ->  | O35: ='Definição de Fases e Pontos'!V62 ->  | P35: ='Definição de Fases e Pontos'!W62 ->  | Q35: ='Definição de Fases e Pontos'!X62 ->  | R35: ='Definição de Fases e Pontos'!Y62 ->  | S35: ='Definição de Fases e Pontos'!Z62 ->  | T35: ='Definição de Fases e Pontos'!AA62 ->  | U35: ='Definição de Fases e Pontos'!AB62 ->  | V35: ='Definição de Fases e Pontos'!AC62 -> 0.000 | W35: ='Definição de Fases e Pontos'!AD62 ->  | X35: ='Definição de Fases e Pontos'!AP62 ->  | Y35: ='Definição de Fases e Pontos'!BG62 ->  | Z35: ='Definição de Fases e Pontos'!AQ62 -> 0.000 | AA35: ='Definição de Fases e Pontos'!AR62 -> 0.000 | AB35: ='Definição de Fases e Pontos'!AS62 ->  | AC35: ='Definição de Fases e Pontos'!AT62 ->  | AD35: ='Definição de Fases e Pontos'!AU62 ->  | AE35: ='Definição de Fases e Pontos'!AV62 ->  | AF35: ='Definição de Fases e Pontos'!AW62 -> 0 | AG35: ='Definição de Fases e Pontos'!AX62 ->  | AH35: ='Definição de Fases e Pontos'!O62 ->  | AI35: ='Definição de Fases e Pontos'!AY62 ->  | AJ35: ='Definição de Fases e Pontos'!AZ62 ->  | AK35: ='Definição de Fases e Pontos'!BA62 ->  | AL35: ='Definição de Fases e Pontos'!BB62 ->  | AM35: ='Definição de Fases e Pontos'!P62 ->  | AN35: ='Definição de Fases e Pontos'!BC62 ->  | AO35: ='Definição de Fases e Pontos'!BD62 ->  | AP35: ='Definição de Fases e Pontos'!Q62 ->  | AQ35: ='Definição de Fases e Pontos'!BE62 ->  | AR35: ='Definição de Fases e Pontos'!BF62 ->  | AS35: ='Definição de Fases e Pontos'!BK62 ->  | AT35: ='Definição de Fases e Pontos'!BL62 ->  | AU35: ='Definição de Fases e Pontos'!BM62 ->  | AW35: 0.000
A36: ='Definição de Fases e Pontos'!A63 -> 0.000 | B36: ='Definição de Fases e Pontos'!B63 -> 0.000 | C36: ='Definição de Fases e Pontos'!C63 ->  | D36: ='Definição de Fases e Pontos'!D63 ->  | E36: ='Definição de Fases e Pontos'!E63 ->  | F36: ='Definição de Fases e Pontos'!F63 ->  | G36: ='Definição de Fases e Pontos'!G63 ->  | H36: ='Definição de Fases e Pontos'!H63 ->  | I36: ='Definição de Fases e Pontos'!I63 ->  | J36: ='Definição de Fases e Pontos'!J63 ->  | K36: ='Definição de Fases e Pontos'!R63 ->  | L36: ='Definição de Fases e Pontos'!S63 ->  | M36: ='Definição de Fases e Pontos'!T63 ->  | N36: ='Definição de Fases e Pontos'!U63 ->  | O36: ='Definição de Fases e Pontos'!V63 ->  | P36: ='Definição de Fases e Pontos'!W63 ->  | Q36: ='Definição de Fases e Pontos'!X63 ->  | R36: ='Definição de Fases e Pontos'!Y63 ->  | S36: ='Definição de Fases e Pontos'!Z63 ->  | T36: ='Definição de Fases e Pontos'!AA63 ->  | U36: ='Definição de Fases e Pontos'!AB63 ->  | V36: ='Definição de Fases e Pontos'!AC63 -> 0.000 | W36: ='Definição de Fases e Pontos'!AD63 ->  | X36: ='Definição de Fases e Pontos'!AP63 ->  | Y36: ='Definição de Fases e Pontos'!BG63 ->  | Z36: ='Definição de Fases e Pontos'!AQ63 -> 0.000 | AA36: ='Definição de Fases e Pontos'!AR63 -> 0.000 | AB36: ='Definição de Fases e Pontos'!AS63 ->  | AC36: ='Definição de Fases e Pontos'!AT63 ->  | AD36: ='Definição de Fases e Pontos'!AU63 ->  | AE36: ='Definição de Fases e Pontos'!AV63 ->  | AF36: ='Definição de Fases e Pontos'!AW63 -> 0 | AG36: ='Definição de Fases e Pontos'!AX63 ->  | AH36: ='Definição de Fases e Pontos'!O63 ->  | AI36: ='Definição de Fases e Pontos'!AY63 ->  | AJ36: ='Definição de Fases e Pontos'!AZ63 ->  | AK36: ='Definição de Fases e Pontos'!BA63 ->  | AL36: ='Definição de Fases e Pontos'!BB63 ->  | AM36: ='Definição de Fases e Pontos'!P63 ->  | AN36: ='Definição de Fases e Pontos'!BC63 ->  | AO36: ='Definição de Fases e Pontos'!BD63 ->  | AP36: ='Definição de Fases e Pontos'!Q63 ->  | AQ36: ='Definição de Fases e Pontos'!BE63 ->  | AR36: ='Definição de Fases e Pontos'!BF63 ->  | AS36: ='Definição de Fases e Pontos'!BK63 ->  | AT36: ='Definição de Fases e Pontos'!BL63 ->  | AU36: ='Definição de Fases e Pontos'!BM63 ->  | AW36: 0.000
A37: ='Definição de Fases e Pontos'!A64 -> 0.000 | B37: ='Definição de Fases e Pontos'!B64 -> 0.000 | C37: ='Definição de Fases e Pontos'!C64 ->  | D37: ='Definição de Fases e Pontos'!D64 ->  | E37: ='Definição de Fases e Pontos'!E64 ->  | F37: ='Definição de Fases e Pontos'!F64 ->  | G37: ='Definição de Fases e Pontos'!G64 ->  | H37: ='Definição de Fases e Pontos'!H64 ->  | I37: ='Definição de Fases e Pontos'!I64 ->  | J37: ='Definição de Fases e Pontos'!J64 ->  | K37: ='Definição de Fases e Pontos'!R64 ->  | L37: ='Definição de Fases e Pontos'!S64 ->  | M37: ='Definição de Fases e Pontos'!T64 ->  | N37: ='Definição de Fases e Pontos'!U64 ->  | O37: ='Definição de Fases e Pontos'!V64 ->  | P37: ='Definição de Fases e Pontos'!W64 ->  | Q37: ='Definição de Fases e Pontos'!X64 ->  | R37: ='Definição de Fases e Pontos'!Y64 ->  | S37: ='Definição de Fases e Pontos'!Z64 ->  | T37: ='Definição de Fases e Pontos'!AA64 ->  | U37: ='Definição de Fases e Pontos'!AB64 ->  | V37: ='Definição de Fases e Pontos'!AC64 -> 0.000 | W37: ='Definição de Fases e Pontos'!AD64 ->  | X37: ='Definição de Fases e Pontos'!AP64 ->  | Y37: ='Definição de Fases e Pontos'!BG64 ->  | Z37: ='Definição de Fases e Pontos'!AQ64 -> 0.000 | AA37: ='Definição de Fases e Pontos'!AR64 -> 0.000 | AB37: ='Definição de Fases e Pontos'!AS64 ->  | AC37: ='Definição de Fases e Pontos'!AT64 ->  | AD37: ='Definição de Fases e Pontos'!AU64 ->  | AE37: ='Definição de Fases e Pontos'!AV64 ->  | AF37: ='Definição de Fases e Pontos'!AW64 -> 0 | AG37: ='Definição de Fases e Pontos'!AX64 ->  | AH37: ='Definição de Fases e Pontos'!O64 ->  | AI37: ='Definição de Fases e Pontos'!AY64 ->  | AJ37: ='Definição de Fases e Pontos'!AZ64 ->  | AK37: ='Definição de Fases e Pontos'!BA64 ->  | AL37: ='Definição de Fases e Pontos'!BB64 ->  | AM37: ='Definição de Fases e Pontos'!P64 ->  | AN37: ='Definição de Fases e Pontos'!BC64 ->  | AO37: ='Definição de Fases e Pontos'!BD64 ->  | AP37: ='Definição de Fases e Pontos'!Q64 ->  | AQ37: ='Definição de Fases e Pontos'!BE64 ->  | AR37: ='Definição de Fases e Pontos'!BF64 ->  | AS37: ='Definição de Fases e Pontos'!BK64 ->  | AT37: ='Definição de Fases e Pontos'!BL64 ->  | AU37: ='Definição de Fases e Pontos'!BM64 ->  | AW37: 0.000
A38: ='Definição de Fases e Pontos'!A65 -> 0.000 | B38: ='Definição de Fases e Pontos'!B65 -> 0.000 | C38: ='Definição de Fases e Pontos'!C65 ->  | D38: ='Definição de Fases e Pontos'!D65 ->  | E38: ='Definição de Fases e Pontos'!E65 ->  | F38: ='Definição de Fases e Pontos'!F65 ->  | G38: ='Definição de Fases e Pontos'!G65 ->  | H38: ='Definição de Fases e Pontos'!H65 ->  | I38: ='Definição de Fases e Pontos'!I65 ->  | J38: ='Definição de Fases e Pontos'!J65 ->  | K38: ='Definição de Fases e Pontos'!R65 ->  | L38: ='Definição de Fases e Pontos'!S65 ->  | M38: ='Definição de Fases e Pontos'!T65 ->  | N38: ='Definição de Fases e Pontos'!U65 ->  | O38: ='Definição de Fases e Pontos'!V65 ->  | P38: ='Definição de Fases e Pontos'!W65 ->  | Q38: ='Definição de Fases e Pontos'!X65 ->  | R38: ='Definição de Fases e Pontos'!Y65 ->  | S38: ='Definição de Fases e Pontos'!Z65 ->  | T38: ='Definição de Fases e Pontos'!AA65 ->  | U38: ='Definição de Fases e Pontos'!AB65 ->  | V38: ='Definição de Fases e Pontos'!AC65 -> 0.000 | W38: ='Definição de Fases e Pontos'!AD65 ->  | X38: ='Definição de Fases e Pontos'!AP65 ->  | Y38: ='Definição de Fases e Pontos'!BG65 ->  | Z38: ='Definição de Fases e Pontos'!AQ65 -> 0.000 | AA38: ='Definição de Fases e Pontos'!AR65 -> 0.000 | AB38: ='Definição de Fases e Pontos'!AS65 ->  | AC38: ='Definição de Fases e Pontos'!AT65 ->  | AD38: ='Definição de Fases e Pontos'!AU65 ->  | AE38: ='Definição de Fases e Pontos'!AV65 ->  | AF38: ='Definição de Fases e Pontos'!AW65 -> 0 | AG38: ='Definição de Fases e Pontos'!AX65 ->  | AH38: ='Definição de Fases e Pontos'!O65 ->  | AI38: ='Definição de Fases e Pontos'!AY65 ->  | AJ38: ='Definição de Fases e Pontos'!AZ65 ->  | AK38: ='Definição de Fases e Pontos'!BA65 ->  | AL38: ='Definição de Fases e Pontos'!BB65 ->  | AM38: ='Definição de Fases e Pontos'!P65 ->  | AN38: ='Definição de Fases e Pontos'!BC65 ->  | AO38: ='Definição de Fases e Pontos'!BD65 ->  | AP38: ='Definição de Fases e Pontos'!Q65 ->  | AQ38: ='Definição de Fases e Pontos'!BE65 ->  | AR38: ='Definição de Fases e Pontos'!BF65 ->  | AS38: ='Definição de Fases e Pontos'!BK65 ->  | AT38: ='Definição de Fases e Pontos'!BL65 ->  | AU38: ='Definição de Fases e Pontos'!BM65 ->  | AW38: 0.000
A39: ='Definição de Fases e Pontos'!A66 -> 0.000 | B39: ='Definição de Fases e Pontos'!B66 -> 0.000 | C39: ='Definição de Fases e Pontos'!C66 ->  | D39: ='Definição de Fases e Pontos'!D66 ->  | E39: ='Definição de Fases e Pontos'!E66 ->  | F39: ='Definição de Fases e Pontos'!F66 ->  | G39: ='Definição de Fases e Pontos'!G66 ->  | H39: ='Definição de Fases e Pontos'!H66 ->  | I39: ='Definição de Fases e Pontos'!I66 ->  | J39: ='Definição de Fases e Pontos'!J66 ->  | K39: ='Definição de Fases e Pontos'!R66 ->  | L39: ='Definição de Fases e Pontos'!S66 ->  | M39: ='Definição de Fases e Pontos'!T66 ->  | N39: ='Definição de Fases e Pontos'!U66 ->  | O39: ='Definição de Fases e Pontos'!V66 ->  | P39: ='Definição de Fases e Pontos'!W66 ->  | Q39: ='Definição de Fases e Pontos'!X66 ->  | R39: ='Definição de Fases e Pontos'!Y66 ->  | S39: ='Definição de Fases e Pontos'!Z66 ->  | T39: ='Definição de Fases e Pontos'!AA66 ->  | U39: ='Definição de Fases e Pontos'!AB66 ->  | V39: ='Definição de Fases e Pontos'!AC66 -> 0.000 | W39: ='Definição de Fases e Pontos'!AD66 ->  | X39: ='Definição de Fases e Pontos'!AP66 ->  | Y39: ='Definição de Fases e Pontos'!BG66 ->  | Z39: ='Definição de Fases e Pontos'!AQ66 -> 0.000 | AA39: ='Definição de Fases e Pontos'!AR66 -> 0.000 | AB39: ='Definição de Fases e Pontos'!AS66 ->  | AC39: ='Definição de Fases e Pontos'!AT66 ->  | AD39: ='Definição de Fases e Pontos'!AU66 ->  | AE39: ='Definição de Fases e Pontos'!AV66 ->  | AF39: ='Definição de Fases e Pontos'!AW66 -> 0 | AG39: ='Definição de Fases e Pontos'!AX66 ->  | AH39: ='Definição de Fases e Pontos'!O66 ->  | AI39: ='Definição de Fases e Pontos'!AY66 ->  | AJ39: ='Definição de Fases e Pontos'!AZ66 ->  | AK39: ='Definição de Fases e Pontos'!BA66 ->  | AL39: ='Definição de Fases e Pontos'!BB66 ->  | AM39: ='Definição de Fases e Pontos'!P66 ->  | AN39: ='Definição de Fases e Pontos'!BC66 ->  | AO39: ='Definição de Fases e Pontos'!BD66 ->  | AP39: ='Definição de Fases e Pontos'!Q66 ->  | AQ39: ='Definição de Fases e Pontos'!BE66 ->  | AR39: ='Definição de Fases e Pontos'!BF66 ->  | AS39: ='Definição de Fases e Pontos'!BK66 ->  | AT39: ='Definição de Fases e Pontos'!BL66 ->  | AU39: ='Definição de Fases e Pontos'!BM66 ->  | AW39: 0.000
A40: ='Definição de Fases e Pontos'!A67 -> 0.000 | B40: ='Definição de Fases e Pontos'!B67 -> 0.000 | C40: ='Definição de Fases e Pontos'!C67 ->  | D40: ='Definição de Fases e Pontos'!D67 ->  | E40: ='Definição de Fases e Pontos'!E67 ->  | F40: ='Definição de Fases e Pontos'!F67 ->  | G40: ='Definição de Fases e Pontos'!G67 ->  | H40: ='Definição de Fases e Pontos'!H67 ->  | I40: ='Definição de Fases e Pontos'!I67 ->  | J40: ='Definição de Fases e Pontos'!J67 ->  | K40: ='Definição de Fases e Pontos'!R67 ->  | L40: ='Definição de Fases e Pontos'!S67 ->  | M40: ='Definição de Fases e Pontos'!T67 ->  | N40: ='Definição de Fases e Pontos'!U67 ->  | O40: ='Definição de Fases e Pontos'!V67 ->  | P40: ='Definição de Fases e Pontos'!W67 ->  | Q40: ='Definição de Fases e Pontos'!X67 ->  | R40: ='Definição de Fases e Pontos'!Y67 ->  | S40: ='Definição de Fases e Pontos'!Z67 ->  | T40: ='Definição de Fases e Pontos'!AA67 ->  | U40: ='Definição de Fases e Pontos'!AB67 ->  | V40: ='Definição de Fases e Pontos'!AC67 -> 0.000 | W40: ='Definição de Fases e Pontos'!AD67 ->  | X40: ='Definição de Fases e Pontos'!AP67 ->  | Y40: ='Definição de Fases e Pontos'!BG67 ->  | Z40: ='Definição de Fases e Pontos'!AQ67 -> 0.000 | AA40: ='Definição de Fases e Pontos'!AR67 -> 0.000 | AB40: ='Definição de Fases e Pontos'!AS67 ->  | AC40: ='Definição de Fases e Pontos'!AT67 ->  | AD40: ='Definição de Fases e Pontos'!AU67 ->  | AE40: ='Definição de Fases e Pontos'!AV67 ->  | AF40: ='Definição de Fases e Pontos'!AW67 -> 0 | AG40: ='Definição de Fases e Pontos'!AX67 ->  | AH40: ='Definição de Fases e Pontos'!O67 ->  | AI40: ='Definição de Fases e Pontos'!AY67 ->  | AJ40: ='Definição de Fases e Pontos'!AZ67 ->  | AK40: ='Definição de Fases e Pontos'!BA67 ->  | AL40: ='Definição de Fases e Pontos'!BB67 ->  | AM40: ='Definição de Fases e Pontos'!P67 ->  | AN40: ='Definição de Fases e Pontos'!BC67 ->  | AO40: ='Definição de Fases e Pontos'!BD67 ->  | AP40: ='Definição de Fases e Pontos'!Q67 ->  | AQ40: ='Definição de Fases e Pontos'!BE67 ->  | AR40: ='Definição de Fases e Pontos'!BF67 ->  | AS40: ='Definição de Fases e Pontos'!BK67 ->  | AT40: ='Definição de Fases e Pontos'!BL67 ->  | AU40: ='Definição de Fases e Pontos'!BM67 ->  | AW40: 0.000
A41: ='Definição de Fases e Pontos'!A68 -> 0.000 | B41: ='Definição de Fases e Pontos'!B68 -> 0.000 | C41: ='Definição de Fases e Pontos'!C68 ->  | D41: ='Definição de Fases e Pontos'!D68 ->  | E41: ='Definição de Fases e Pontos'!E68 ->  | F41: ='Definição de Fases e Pontos'!F68 ->  | G41: ='Definição de Fases e Pontos'!G68 ->  | H41: ='Definição de Fases e Pontos'!H68 ->  | I41: ='Definição de Fases e Pontos'!I68 ->  | J41: ='Definição de Fases e Pontos'!J68 ->  | K41: ='Definição de Fases e Pontos'!R68 ->  | L41: ='Definição de Fases e Pontos'!S68 ->  | M41: ='Definição de Fases e Pontos'!T68 ->  | N41: ='Definição de Fases e Pontos'!U68 ->  | O41: ='Definição de Fases e Pontos'!V68 ->  | P41: ='Definição de Fases e Pontos'!W68 ->  | Q41: ='Definição de Fases e Pontos'!X68 ->  | R41: ='Definição de Fases e Pontos'!Y68 ->  | S41: ='Definição de Fases e Pontos'!Z68 ->  | T41: ='Definição de Fases e Pontos'!AA68 ->  | U41: ='Definição de Fases e Pontos'!AB68 ->  | V41: ='Definição de Fases e Pontos'!AC68 -> 0.000 | W41: ='Definição de Fases e Pontos'!AD68 ->  | X41: ='Definição de Fases e Pontos'!AP68 ->  | Y41: ='Definição de Fases e Pontos'!BG68 ->  | Z41: ='Definição de Fases e Pontos'!AQ68 -> 0.000 | AA41: ='Definição de Fases e Pontos'!AR68 -> 0.000 | AB41: ='Definição de Fases e Pontos'!AS68 ->  | AC41: ='Definição de Fases e Pontos'!AT68 ->  | AD41: ='Definição de Fases e Pontos'!AU68 ->  | AE41: ='Definição de Fases e Pontos'!AV68 ->  | AF41: ='Definição de Fases e Pontos'!AW68 -> 0 | AG41: ='Definição de Fases e Pontos'!AX68 ->  | AH41: ='Definição de Fases e Pontos'!O68 ->  | AI41: ='Definição de Fases e Pontos'!AY68 ->  | AJ41: ='Definição de Fases e Pontos'!AZ68 ->  | AK41: ='Definição de Fases e Pontos'!BA68 ->  | AL41: ='Definição de Fases e Pontos'!BB68 ->  | AM41: ='Definição de Fases e Pontos'!P68 ->  | AN41: ='Definição de Fases e Pontos'!BC68 ->  | AO41: ='Definição de Fases e Pontos'!BD68 ->  | AP41: ='Definição de Fases e Pontos'!Q68 ->  | AQ41: ='Definição de Fases e Pontos'!BE68 ->  | AR41: ='Definição de Fases e Pontos'!BF68 ->  | AS41: ='Definição de Fases e Pontos'!BK68 ->  | AT41: ='Definição de Fases e Pontos'!BL68 ->  | AU41: ='Definição de Fases e Pontos'!BM68 ->  | AW41: 0.000
